Workbook

Sheet Info
A1: FALSE | B1: Ende
A2: Ende | B2: Aktiva
B3: Ende
B10: Kosten- und Leistungsrechnung
B11: für die kommunale Wasserversorgung in der Steiermark
C13: Version 01/2021
G14: =CONCATENATE("Rechnungsabschlussjahr: "&BAB!J12) -> Rechnungsabschlussjahr: 2021
C16: Bezeichnung der KLR-Ebene (Gemeinde, AWV, AWG, etc.): | G16: Stichtag | I16: Ansatz
G17: 2021-12-31 | I17: 850
C18: 8179.26 | E18: =DATE(G18,1,1) -> 2021-01-01 | G18: =YEAR(G17) -> 2021
C19: 9623.94
C21: Erstellungsdatum:
C22: Dateneingabe durch:
C23: Funktion:
C25: Der Ersteller / die Erstellerin erklärt, die nachfolgenden Nutzungsbedingungen akzeptiert zu haben.
C29: Herausgeber
C31: Amt der Steiermärkischen Landesregierung, Abteilung 14, Referat Siedlungswasserwirtschaft
C32: Wartingergasse 43, 8010 Graz
C34: Gemeindebund Steiermark
C35: Stadionplatz 2, 8041 Graz
C37: Inhaltliche Bearbeitung
C39: Amt der Steiermärkischen Landesregierung, Abteilung 14, Dipl.-Ing. Peter Rappold
C40: Telefonnummer: 0316 877-4152, E-Mail: peter.rappold@stmk.gv.at
C42: Gemeindebund Steiermark, Christian Lang, BSc MSc
C43: Telefonnummer: 0316 82 20 79-205, E-Mail: lang@gemeindebund.steiermark.at
C45: Programmierung der Arbeitsmappe
C47: Quantum - Institut für betriebswirtschaftliche Beratung GmbH
C48: Telefonnummer: 0463 32612, E-Mail: office@quantum-gmbh.at
C50: Haftungsausschluss
C52: Eine Haftung der Herausgeber für Schäden aufgrund von Fehlern in der gegenständlichen Excel-Arbeitsmappe wird ausgeschlossen. Die Ergebnisse sind auf Plausibilität zu prüfen.
C54: Nutzungsbedingungen
C56: Die gegenständliche Excel-Arbeitsmappe steht den Wasserversorgern in der Steiermark kostenlos zur Verfügung. Eine Nutzung außerhalb der Steiermark ist nicht zulässig.
C58: Heranzuziehendes Rechnungsjahr
C60: Für die Bearbeitung der gegenständlichen Excel-Arbeitsmappe ist der zuletzt genehmigte Rechnungsabschluss (Jahresabschluss) heranzuziehen.

Sheet BÜB
A1: FALSE | B1: TRUE | C1: Ende
A2: FALSE | B2: Darlehen | C2: 001.00
A3: FALSE | B3: Ende
A4: TRUE | B4: =CONCATENATE("Betriebsüberleitungsbogen Daten Wasserversorgung Rechnungsabschluss "&BAB!J12&" KLR-Ebene: "&Info!C17) -> Betriebsüberleitungsbogen Daten Wasserversorgung Rechnungsabschluss 2021 KLR-Ebene:
A5: TRUE
A6: TRUE | C6: Ansatz | D6: Konto | E6: Bezeichnung | F6: Ergebnis- haushalt (Detailnachweis) | G6: Betriebsüberleitung | K6: Anteil Kostenstelle KLR | Q6: Finanzierungs- haushalt (Detailnachweis) | R6: Zuordnungs-kennziffern für Liquidität | S6: Kommentar | T6: Wert KLR | W6: Kontrolle für Kostenstellen-zuordnung
G7: Neutral | H7: Anders- / Zusatzerlöse /-kosten | I7: Erlöse / Kosten | J7: Zuordnungs-kennziffern für BAB | K7: Verteilung | M7: Gewinnung | O7: Verwaltung | T7: Verteilung | U7: Gewinnung | V7: Verwaltung
K8: in % | L8: absolut in € | M8: in % | N8: absolut in € | O8: in % | P8: absolut in €
A9: TRUE
A10: TRUE | B10: OPERATIVE GEBARUNG | F10: Summe Erträge | I10: Summe Erlöse | Q10: Summe Einzahlungen
A11: =OR(A12:A26) -> FALSE | B11: SU 21 Summe Erträge / Erlöse - SU 31 Summe Einzahlungen operative Gebarung | F11: =SUMPRODUCT(F12:F26,$AC12:$AC26) -> 0 | G11: =SUMPRODUCT(G12:G26,$AC12:$AC26) -> 0 | H11: =SUMPRODUCT(H12:H26,$AC12:$AC26) -> 0 | I11: =SUMPRODUCT(I12:I26,$AC12:$AC26) -> 0 | Q11: =SUMPRODUCT(Q12:Q26,$AC12:$AC26) -> 0
A12: =AC12>0 -> FALSE | I12: =+F12-G12+H12 -> 0 | AC12: =IF(C12=0,0,IF(VALUE(LEFT(C12,3))=wST.Ansatz,1,0)) -> 0
A13: FALSE | I13: 0 | AC13: 0
A14: FALSE | I14: 0 | AC14: 0
A15: FALSE | I15: 0 | AC15: 0
A16: FALSE | I16: 0 | AC16: 0
A17: FALSE | I17: 0 | AC17: 0
A18: =AC18>0 -> FALSE | I18: 0 | AC18: 0
A19: =AC19>0 -> FALSE | I19: 0 | AC19: 0
A20: =AC20>0 -> FALSE | I20: 0 | AC20: 0
A21: =AC21>0 -> FALSE | I21: 0 | AC21: 0
A22: =AC22>0 -> FALSE | I22: 0 | AC22: 0
A23: =AC23>0 -> FALSE | I23: =+F23-G23+H23 -> 0 | AC23: =IF(C23=0,0,IF(VALUE(LEFT(C23,3))=wST.Ansatz,1,0)) -> 0
A24: =AC24>0 -> FALSE | I24: =+F24-G24+H24 -> 0 | AC24: =IF(C24=0,0,IF(VALUE(LEFT(C24,3))=wST.Ansatz,1,0)) -> 0
A25: =AC25>0 -> FALSE | I25: =+F25-G25+H25 -> 0 | AC25: =IF(C25=0,0,IF(VALUE(LEFT(C25,3))=wST.Ansatz,1,0)) -> 0
A26: FALSE | I26: 0 | AC26: 0
A27: =A11 -> FALSE
A28: =A27 -> FALSE | F28: Summe Aufwendungen | I28: Summe Kosten | Q28: Summe Auszahlungen
A29: =OR(A30:A78) -> FALSE | B29: SU 22 Summe Aufwendungen / Kosten - SU 32 Summe Auszahlungen operative Gebarung | F29: =SUMPRODUCT(F30:F78,$AC30:$AC78) -> 0 | G29: =SUMPRODUCT(G30:G78,$AC30:$AC78) -> 0 | H29: =SUMPRODUCT(H30:H78,$AC30:$AC78) -> 0 | I29: =SUMPRODUCT(I30:I78,$AC30:$AC78) -> 0 | Q29: =SUMPRODUCT(Q30:Q78,$AC30:$AC78) -> 0
A30: =AC30>0 -> FALSE | I30: =+F30-G30+H30 -> 0 | T30: =IF(L30="",$I30*K30,L30) -> 0 | U30: =IF(N30="",$I30*M30,N30) -> 0 | V30: =IF(P30="",$I30*O30,P30) -> 0 | W30: =ROUND(I30-T30-U30-V30,2) -> 0 | AC30: =IF(C30=0,0,IF(VALUE(LEFT(C30,3))=wST.Ansatz,1,0)) -> 0
A31: FALSE | I31: 0 | T31: =IF(L31="",$I31*K31,L31) -> 0 | U31: =IF(N31="",$I31*M31,N31) -> 0 | V31: =IF(P31="",$I31*O31,P31) -> 0 | W31: 0 | AC31: 0
A32: FALSE | I32: 0 | T32: 0 | U32: 0 | V32: 0 | W32: 0 | AC32: 0
A33: FALSE | I33: 0 | T33: 0 | U33: 0 | V33: 0 | W33: 0 | AC33: 0
A34: FALSE | I34: 0 | T34: 0 | U34: 0 | V34: 0 | W34: 0 | AC34: 0
A35: FALSE | I35: 0 | T35: 0 | U35: 0 | V35: 0 | W35: 0 | AC35: 0
A36: FALSE | I36: 0 | T36: 0 | U36: 0 | V36: 0 | W36: 0 | AC36: 0
A37: FALSE | I37: 0 | T37: 0 | U37: 0 | V37: 0 | W37: 0 | AC37: 0
A38: FALSE | I38: 0 | T38: 0 | U38: 0 | V38: 0 | W38: 0 | AC38: 0
A39: FALSE | I39: 0 | T39: 0 | U39: 0 | V39: 0 | W39: 0 | AC39: 0
A40: FALSE | I40: 0 | T40: 0 | U40: 0 | V40: 0 | W40: 0 | AC40: 0
A41: FALSE | I41: 0 | T41: 0 | U41: 0 | V41: 0 | W41: 0 | AC41: 0
A42: FALSE | I42: 0 | T42: 0 | U42: 0 | V42: 0 | W42: 0 | AC42: 0
A43: FALSE | I43: 0 | T43: 0 | U43: 0 | V43: 0 | W43: 0 | AC43: 0
A44: FALSE | I44: 0 | T44: 0 | U44: 0 | V44: 0 | W44: 0 | AC44: 0
A45: FALSE | I45: 0 | T45: 0 | U45: 0 | V45: 0 | W45: 0 | AC45: 0
A46: FALSE | I46: 0 | T46: 0 | U46: 0 | V46: 0 | W46: 0 | AC46: 0
A47: FALSE | I47: 0 | T47: 0 | U47: 0 | V47: 0 | W47: 0 | AC47: 0
A48: FALSE | I48: 0 | T48: 0 | U48: 0 | V48: 0 | W48: 0 | AC48: 0
A49: FALSE | I49: 0 | T49: 0 | U49: 0 | V49: 0 | W49: 0 | AC49: 0
A50: FALSE | I50: 0 | T50: 0 | U50: 0 | V50: 0 | W50: 0 | AC50: 0
A51: FALSE | I51: 0 | T51: 0 | U51: 0 | V51: 0 | W51: 0 | AC51: 0
A52: FALSE | I52: 0 | T52: 0 | U52: 0 | V52: 0 | W52: 0 | AC52: 0
A53: FALSE | I53: 0 | T53: 0 | U53: 0 | V53: 0 | W53: 0 | AC53: 0
A54: FALSE | I54: 0 | T54: 0 | U54: 0 | V54: 0 | W54: 0 | AC54: 0
A55: FALSE | I55: 0 | T55: 0 | U55: 0 | V55: 0 | W55: 0 | AC55: 0
A56: FALSE | I56: 0 | T56: 0 | U56: 0 | V56: 0 | W56: 0 | AC56: 0
A57: FALSE | I57: 0 | T57: 0 | U57: 0 | V57: 0 | W57: 0 | AC57: 0
A58: FALSE | I58: 0 | T58: 0 | U58: 0 | V58: 0 | W58: 0 | AC58: 0
A59: =AC59>0 -> FALSE | I59: 0 | T59: 0 | U59: 0 | V59: 0 | W59: 0 | AC59: 0
A60: =AC60>0 -> FALSE | I60: 0 | T60: 0 | U60: 0 | V60: 0 | W60: 0 | AC60: 0
A61: =AC61>0 -> FALSE | I61: 0 | T61: 0 | U61: 0 | V61: 0 | W61: 0 | AC61: 0
A62: =AC62>0 -> FALSE | I62: 0 | T62: 0 | U62: 0 | V62: 0 | W62: 0 | AC62: 0
A63: =AC63>0 -> FALSE | I63: =+F63-G63+H63 -> 0 | T63: =IF(L63="",$I63*K63,L63) -> 0 | U63: 0 | V63: 0 | W63: 0 | AC63: =IF(C63=0,0,IF(VALUE(LEFT(C63,3))=wST.Ansatz,1,0)) -> 0
A64: =AC64>0 -> FALSE | I64: 0 | T64: 0 | U64: 0 | V64: 0 | W64: 0 | AC64: 0
A65: =AC65>0 -> FALSE | I65: 0 | T65: 0 | U65: 0 | V65: 0 | W65: 0 | AC65: 0
A66: =AC66>0 -> FALSE | I66: 0 | T66: 0 | U66: 0 | V66: 0 | W66: 0 | AC66: 0
A67: =AC67>0 -> FALSE | I67: 0 | T67: 0 | U67: 0 | V67: 0 | W67: 0 | AC67: 0
A68: =AC68>0 -> FALSE | I68: 0 | T68: 0 | U68: 0 | V68: 0 | W68: 0 | AC68: 0
A69: =AC69>0 -> FALSE | I69: 0 | T69: 0 | U69: 0 | V69: 0 | W69: 0 | AC69: 0
A70: =AC70>0 -> FALSE | I70: 0 | T70: 0 | U70: 0 | V70: 0 | W70: 0 | AC70: 0
A71: =AC71>0 -> FALSE | I71: 0 | T71: 0 | U71: 0 | V71: 0 | W71: 0 | AC71: 0
A72: =AC72>0 -> FALSE | I72: 0 | T72: 0 | U72: 0 | V72: 0 | W72: 0 | AC72: 0
A73: =AC73>0 -> FALSE | I73: 0 | T73: 0 | U73: 0 | V73: 0 | W73: 0 | AC73: =IF(C73=0,0,IF(VALUE(LEFT(C73,3))=wST.Ansatz,1,0)) -> 0
A74: =AC74>0 -> FALSE | I74: =+F74-G74+H74 -> 0 | T74: 0 | U74: 0 | V74: 0 | W74: 0 | AC74: =IF(C74=0,0,IF(VALUE(LEFT(C74,3))=wST.Ansatz,1,0)) -> 0
A75: =AC75>0 -> FALSE | I75: =+F75-G75+H75 -> 0 | T75: 0 | U75: 0 | V75: 0 | W75: 0 | AC75: =IF(C75=0,0,IF(VALUE(LEFT(C75,3))=wST.Ansatz,1,0)) -> 0
A76: =AC76>0 -> FALSE | I76: =+F76-G76+H76 -> 0 | T76: 0 | U76: 0 | V76: 0 | W76: 0 | AC76: =IF(C76=0,0,IF(VALUE(LEFT(C76,3))=wST.Ansatz,1,0)) -> 0
A77: =AC77>0 -> FALSE | I77: =+F77-G77+H77 -> 0 | T77: =IF(L77="",$I77*K77,L77) -> 0 | U77: 0 | V77: 0 | W77: 0 | AC77: =IF(C77=0,0,IF(VALUE(LEFT(C77,3))=wST.Ansatz,1,0)) -> 0
A78: FALSE | I78: 0 | T78: 0 | U78: 0 | V78: 0 | W78: 0 | AC78: =IF(C78=0,0,IF(VALUE(LEFT(C78,3))=wST.Ansatz,1,0)) -> 0
A79: =A29 -> FALSE
A80: =OR(A29,A11) -> FALSE | B80: SA 0 - Nettoergebnis / SA 1 - Geldfluss aus der Operativen Gebarung | F80: =F11-F29 -> 0 | G80: =G11-G29 -> 0 | H80: =H11-H29 -> 0 | I80: =I11-I29 -> 0 | Q80: =Q11-Q29 -> 0 | R80: SA 1 - Geldfluss aus der Operativen Gebarung
A81: =A80 -> FALSE
A82: TRUE | D82: 89411 | E82: Entnahme von zweckgebundenen Haushaltsrücklagen gem. § 190 Abs. 1 StGHVO | R82: SU 33 Summe Einzahlungen investive Gebarung
A83: TRUE | D83: 89412 | E83: Entnahme von zweckgebundenen Haushaltsrücklagen gem. § 190 Abs. 2 StGHVO | R83: SU 34 Summe Auszahlungen investive Gebarung
A84: TRUE | D84: 79411 | E84: Zuweisung an zweckgebundene Haushaltsrücklagen gem. § 189 Abs. 1 StGHVO | G84: Eingabe mit Minus (-) | R84: SU 35 Summe Einzahlungen aus der Finanzierungstätigkeit
D85: 79412 | E85: Zuweisung an zweckgebundene Haushaltsrücklagen gem. § 189 Abs. 2 StGHVO | G85: Eingabe mit Minus (-) | R85: SU 36 Summe Auszahlungen aus der Finanzierungstätigkeit
B86: SA 00 - Nettoergebnis nach Zuweisung und Entnahmen von Haushaltsrücklagen | F86: =+F80+F82+F85+F83+F84 -> 0 | R86: MVAG 361 Auszahlungen aus der Tilgung von Finanzschulden
R87: Stand Rücklage per 31.12. (aus Anlage 6b VRV 2015)
R88: Stand ZMR per 31.12. (aus Anlage 6b VRV 2015)
C90: Kalkulatorische Kosten | H90: Kalkulatorische Anders-/ Zusatzkosten
H91: Summe | I91: =SUM(I92:I113) -> 0
E92: Kalkulatorische Anlagenabschreibung - aus Registerblatt Anlagen | H92: =Anlagen!S7+Anlagen!S69+Anlagen!S76+Anlagen!S90+Anlagen!S97+Anlagen!S109 -> 0 | I92: =+H92 -> 0 | J92: 2.1 | L92: =SUM(Anlagen!AB9:AB115) -> 0 | N92: =SUM(Anlagen!AC9:AC115) -> 0 | P92: =SUM(Anlagen!AD9:AD115) -> 0 | T92: =IF(L92="",$I92*K92,L92) -> 0 | U92: =IF(N92="",$I92*M92,N92) -> 0 | V92: =IF(P92="",$I92*O92,P92) -> 0 | W92: =ROUND(I92-T92-U92-V92,2) -> 0
E93: Eigenkapitalzinsen - aus Registerblatt Eigenkapitalzinsen | H93: =+Eigenkapitalzinsen!F18 -> 0 | I93: =+H93 -> 0 | J93: 2.2.1 | L93: =+Eigenkapitalzinsen!H18 -> 0 | N93: =+Eigenkapitalzinsen!I18 -> 0 | P93: =+Eigenkapitalzinsen!J18 -> 0 | T93: =IF(L93="",$I93*K93,L93) -> 0 | U93: =IF(N93="",$I93*M93,N93) -> 0 | V93: =IF(P93="",$I93*O93,P93) -> 0 | W93: =ROUND(I93-T93-U93-V93,2) -> 0
E94: Auflösung Subventionen - Korrektur Anlagenabschreibung - aus Registerblatt Anlagen | H94: =-Anlagen!S118 -> 0 | I94: 0 | J94: 3.1 | L94: =-SUM(Anlagen!AB119:AB167) -> 0 | N94: =-SUM(Anlagen!AC119:AC167) -> 0 | P94: =-SUM(Anlagen!AD119:AD167) -> 0 | T94: =IF(L94="",$I94*K94,L94) -> 0 | U94: 0 | V94: 0 | W94: =ROUND(I94-T94-U94-V94,2) -> 0
E95: Auflösung Beiträge - Korrektur Anlagenabschreibung - aus Registerblatt Anlagen | H95: =-Anlagen!S170 -> 0 | I95: 0 | J95: 3.2 | L95: =-SUM(Anlagen!AB171:AB209) -> 0 | N95: =-SUM(Anlagen!AC171:AC209) -> 0 | P95: =-SUM(Anlagen!AD171:AD209) -> 0 | T95: 0 | U95: 0 | V95: 0 | W95: 0
E96: Kalkulatorische Wagnisse | I96: =+H96 -> 0 | J96: 2.3 | T96: 0 | U96: 0 | V96: 0 | W96: 0
E97: Sonstige kalkulatorische Kosten | I97: =+H97 -> 0 | J97: 2.4 | T97: 0 | U97: 0 | V97: 0 | W97: 0
E98: Korrektur Sonstige kalkulatorische Kosten (Auflösung Rückstellungen) | G98: Eingabe mit Minus (-) | I98: 0 | J98: 2.4 | T98: 0 | U98: 0 | V98: 0 | W98: 0
E99: Korrektur Sonstige kalkulatorische Kosten (Auflösung Sonstiges) | G99: Eingabe mit Minus (-) | I99: 0 | J99: 2.4 | T99: 0 | U99: 0 | V99: 0 | W99: 0
E100: Sonstige kalkulatorische Kosten (ILV) Wirtschaftshof | I100: 0 | J100: 2.4 | T100: 0 | U100: 0 | V100: 0 | W100: 0
E101: Sonstige kalkulatorische Kosten (ILV) Bauamt | I101: 0 | J101: 2.4 | T101: 0 | U101: 0 | V101: 0 | W101: 0
E102: Sonstige kalkulatorische Kosten (ILV) Allgemeine Verwaltung | I102: 0 | J102: 2.4 | T102: 0 | U102: 0 | V102: 0 | W102: 0
E103: Sonstige kalkulatorische Kosten (ILV) Pensionsleistungen | I103: 0 | J103: 2.4 | T103: 0 | U103: 0 | V103: 0 | W103: 0
I104: 0 | T104: 0 | U104: 0 | V104: 0 | W104: 0
I105: 0 | T105: =IF(L105="",$I105*K105,L105) -> 0 | U105: =IF(N105="",$I105*M105,N105) -> 0 | V105: =IF(P105="",$I105*O105,P105) -> 0 | W105: =ROUND(I105-T105-U105-V105,2) -> 0
I106: 0 | T106: 0 | U106: 0 | V106: 0 | W106: 0
I107: 0 | T107: 0 | U107: 0 | V107: 0 | W107: 0
I108: 0 | T108: 0 | U108: 0 | V108: 0 | W108: 0
I109: 0 | T109: 0 | U109: 0 | V109: 0 | W109: 0
I110: 0 | T110: 0 | U110: 0 | V110: 0 | W110: 0
I111: 0 | T111: 0 | U111: 0 | V111: 0 | W111: 0
I112: 0 | T112: 0 | U112: 0 | V112: 0 | W112: 0
I113: 0 | T113: 0 | U113: 0 | V113: 0 | W113: 0
H115: Gesamtkosten | I115: =+I29+I91 -> 0
H117: Erlöse | I117: =I11 -> 0
A169: FALSE | F169: 0 | AC169: =IF(C169=0,0,IF(VALUE(LEFT(C169,3))=wST.Ansatz,1,0)) -> 0
A170: FALSE | F170: 0 | AC170: =IF(C170=0,0,IF(VALUE(LEFT(C170,3))=wST.Ansatz,1,0)) -> 0
A171: FALSE | F171: 0 | AC171: =IF(C171=0,0,IF(VALUE(LEFT(C171,3))=wST.Ansatz,1,0)) -> 0
A172: FALSE | B172: 251 | C172: an andere | F172: =SUMPRODUCT(F173:F175,$AC173:$AC175) -> 0
A173: FALSE | F173: 0 | AC173: =IF(C173=0,0,IF(VALUE(LEFT(C173,3))=wST.Ansatz,1,0)) -> 0
A174: FALSE | F174: 0 | AC174: =IF(C174=0,0,IF(VALUE(LEFT(C174,3))=wST.Ansatz,1,0)) -> 0
A175: FALSE | F175: 0 | AC175: =IF(C175=0,0,IF(VALUE(LEFT(C175,3))=wST.Ansatz,1,0)) -> 0
A176: FALSE | B176: 256 | C176: Bezugsvorschüsse | F176: =SUMPRODUCT(F177:F179,$AC177:$AC179) -> 0
A177: FALSE | F177: 0 | AC177: =IF(C177=0,0,IF(VALUE(LEFT(C177,3))=wST.Ansatz,1,0)) -> 0
A178: FALSE | F178: 0 | AC178: =IF(C178=0,0,IF(VALUE(LEFT(C178,3))=wST.Ansatz,1,0)) -> 0
A179: FALSE | F179: 0 | AC179: =IF(C179=0,0,IF(VALUE(LEFT(C179,3))=wST.Ansatz,1,0)) -> 0
A180: Ende
B203: 1.1
B204: 1.2
B205: 1.3
B206: 1.4
B207: 1.5
B208: 1.6
B209: 1.7
B210: 2.1
B211: 2.2.1
B212: 2.2.2
B213: 2.3
B214: 2.4
B215: 3.1
B216: 3.2
B218: 1.1
B219: 1.2
B220: 1.3
B221: 1.4
B222: 1.5
B223: 1.6
B224: 1.7
B225: 2.2.2
B235: ="3.1" -> 3.1
B236: ="3.2" -> 3.2
B237: ="4.1" -> 4.1
B238: ="4.2" -> 4.2
B239: ="4.3" -> 4.3
B240: ="4.4" -> 4.4

Sheet BAB
A1: FALSE | B1: Ende
A2: FALSE | B2: Anlagen
A3: FALSE | B3: Ende
A4: TRUE
A5: TRUE
A6: TRUE | C6: Eine Umweltförderung des BMNT– managed by Kommunalkredit Public Consulting
A7: TRUE
A8: TRUE | B8: Kosten- und Leistungsrechnung (VRV) – WVA
A9: TRUE | B9: Betriebsabrechnungsbogen (BAB) in Anlehnung an ÖVGW W61 inkl. Erlösermittlung - Beträge exkl. UST
A10: TRUE | B10: =CONCATENATE("Gemeindebund Steiermark u. Land Steiermark Version 01/2021; Erstellungsdatum "&TEXT(Info!G21,"TT.MM.JJJJ")) -> Gemeindebund Steiermark u. Land Steiermark Version 01/2021; Erstellungsdatum 00.01.1900
A11: TRUE
A12: TRUE | B12: KLR-Ebene: | C12: =Info!C17 -> 0 | I12: Jahr des Rechnungsabschlusses: | J12: =YEAR(wST.PeriodeEnde) -> 2021
A13: TRUE
A14: TRUE | E14: Summe | H14: Verteilung Speicherung | I14: Gewinnung Aufbereitung | J14: Verwaltung
A15: TRUE
A16: TRUE | B16: 1. | C16: Betriebskosten | E16: =SUM(H16:J16) -> 0 | H16: =SUM(H17:H32) -> 0 | I16: =SUM(I17:I32) -> 0 | J16: =SUM(J18:J31) -> 0
A17: TRUE
A18: TRUE | B18: 1.1 | C18: Material- und Stoffkosten | E18: =H18+I18+J18 -> 0 | H18: =SUMIF(BÜB!$J$30:$J$78,$B18,BÜB!T$30:T$78) -> 0 | I18: =SUMIF(BÜB!$J$30:$J$78,$B18,BÜB!U$30:U$78) -> 0 | J18: =SUMIF(BÜB!$J$30:$J$78,$B18,BÜB!V$30:V$78) -> 0
A19: TRUE
A20: TRUE | B20: 1.2 | C20: Personalkosten | E20: =H20+I20+J20 -> 0 | H20: =SUMIF(BÜB!$J$30:$J$78,$B20,BÜB!T$30:T$78) -> 0 | I20: =SUMIF(BÜB!$J$30:$J$78,$B20,BÜB!U$30:U$78) -> 0 | J20: =SUMIF(BÜB!$J$30:$J$78,$B20,BÜB!V$30:V$78) -> 0
A21: TRUE
A22: TRUE | B22: 1.3 | C22: Leistungen durch Dritte | E22: =H22+I22+J22 -> 0 | H22: =SUMIF(BÜB!$J$30:$J$78,$B22,BÜB!T$30:T$78) -> 0 | I22: =SUMIF(BÜB!$J$30:$J$78,$B22,BÜB!U$30:U$78) -> 0 | J22: =SUMIF(BÜB!$J$30:$J$78,$B22,BÜB!V$30:V$78) -> 0
A23: TRUE
A24: TRUE | B24: 1.4 | C24: Energiekosten | E24: =H24+I24+J24 -> 0 | H24: =SUMIF(BÜB!$J$30:$J$78,$B24,BÜB!T$30:T$78) -> 0 | I24: =SUMIF(BÜB!$J$30:$J$78,$B24,BÜB!U$30:U$78) -> 0 | J24: =SUMIF(BÜB!$J$30:$J$78,$B24,BÜB!V$30:V$78) -> 0
A25: TRUE
A26: TRUE | B26: 1.5 | C26: Kosten für Wasserbezug von Dritten | E26: =H26+I26+J26 -> 0 | H26: =SUMIF(BÜB!$J$30:$J$78,$B26,BÜB!T$30:T$78) -> 0 | I26: =SUMIF(BÜB!$J$30:$J$78,$B26,BÜB!U$30:U$78) -> 0 | J26: =SUMIF(BÜB!$J$30:$J$78,$B26,BÜB!V$30:V$78) -> 0
A27: TRUE
A28: TRUE | B28: 1.6 | C28: Sonstige betriebliche Kosten | E28: =H28+I28+J28 -> 0 | H28: =SUMIF(BÜB!$J$30:$J$78,$B28,BÜB!T$30:T$78) -> 0 | I28: =SUMIF(BÜB!$J$30:$J$78,$B28,BÜB!U$30:U$78) -> 0 | J28: =SUMIF(BÜB!$J$30:$J$78,$B28,BÜB!V$30:V$78) -> 0
A29: TRUE
A31: TRUE | B31: 1.7 | C31: Vorschreibung Verbandsanteil | E31: =H31+I31 -> 0 | H31: =SUMIF(BÜB!$J$30:$J$78,$B31,BÜB!T$30:T$78) -> 0 | I31: =SUMIF(BÜB!$J$30:$J$78,$B31,BÜB!U$30:U$78) -> 0
A32: TRUE
A33: TRUE
A34: TRUE | B34: 2. | C34: Kapitalkosten | E34: =SUM(H34:J34) -> 0 | H34: =SUM(H35:H46)-H38 -> 0 | I34: =SUM(I35:I46)-I38 -> 0 | J34: =SUM(J35:J46)-J38 -> 0
A35: TRUE
A36: TRUE | B36: 2.1 | C36: Kalkulatorische Anlagenabschreibung | E36: =H36+I36+J36 -> 0 | H36: =SUMIF(BÜB!$J$30:$J$113,$B36,BÜB!T$30:T$113) -> 0 | I36: =SUMIF(BÜB!$J$30:$J$113,$B36,BÜB!U$30:U$113) -> 0 | J36: =SUMIF(BÜB!$J$30:$J$113,$B36,BÜB!V$30:V$113) -> 0
A37: TRUE
A38: TRUE | B38: 2.2 | C38: Kalkulatorische Zinsen | E38: =H38+I38+J38 -> 0 | H38: =H40+H42 -> 0 | I38: =I40+I42 -> 0 | J38: =J40+J42 -> 0
A39: TRUE
A40: TRUE | B40: 2.2.1 | C40: Eigenkapitalzinsen | E40: =H40+I40+J40 -> 0 | H40: =SUMIF(BÜB!$J$30:$J$113,$B40,BÜB!T$30:T$113) -> 0 | I40: =SUMIF(BÜB!$J$30:$J$113,$B40,BÜB!U$30:U$113) -> 0 | J40: =SUMIF(BÜB!$J$30:$J$113,$B40,BÜB!V$30:V$113) -> 0
A41: TRUE
A42: TRUE | B42: 2.2.2 | C42: Fremdkapitalzinsen | E42: =H42+I42+J42 -> 0 | H42: =SUMIF(BÜB!$J$30:$J$113,$B42,BÜB!T$30:T$113) -> 0 | I42: =SUMIF(BÜB!$J$30:$J$113,$B42,BÜB!U$30:U$113) -> 0 | J42: =SUMIF(BÜB!$J$30:$J$113,$B42,BÜB!V$30:V$113) -> 0
A43: TRUE
A44: TRUE | B44: 2.3 | C44: Kalkulatorische Wagnisse | E44: =H44+I44+J44 -> 0 | H44: =SUMIF(BÜB!$J$30:$J$113,$B44,BÜB!T$30:T$113) -> 0 | I44: =SUMIF(BÜB!$J$30:$J$113,$B44,BÜB!U$30:U$113) -> 0 | J44: =SUMIF(BÜB!$J$30:$J$113,$B44,BÜB!V$30:V$113) -> 0
A45: TRUE
A46: TRUE | B46: 2.4 | C46: Sonstige kalkulatorischen Kosten | E46: =H46+I46+J46 -> 0 | H46: =SUMIF(BÜB!$J$30:$J$113,$B46,BÜB!T$30:T$113) -> 0 | I46: =SUMIF(BÜB!$J$30:$J$113,$B46,BÜB!U$30:U$113) -> 0 | J46: =SUMIF(BÜB!$J$30:$J$113,$B46,BÜB!V$30:V$113) -> 0
A47: TRUE
A48: TRUE
A49: TRUE | B49: 3. | C49: Kostenauflösung / Kostenkorrektur | E49: =SUM(H49:J49) -> 0 | H49: =SUM(H50:H53) -> 0 | I49: =SUM(I50:I53) -> 0 | J49: =SUM(J50:J53) -> 0
A50: TRUE
A51: TRUE | B51: 3.1 | C51: Auflösung Subventionen - Korrektur Anlagenabschreibung | E51: =H51+I51+J51 -> 0 | H51: =IF($E$36=0,0,SUMIF(BÜB!$J$30:$J$113,$B51,BÜB!T$30:T$113)-(SUMIF(BÜB!$J$12:$J$26,$B51,BÜB!$I$12:$I$26)*H$36/$E$36)) -> 0 | I51: =IF($E$36=0,0,SUMIF(BÜB!$J$30:$J$113,$B51,BÜB!U$30:U$113)-(SUMIF(BÜB!$J$12:$J$26,$B51,BÜB!$I$12:$I$26)*I$36/$E$36)) -> 0 | J51: =IF($E$36=0,0,SUMIF(BÜB!$J$30:$J$113,$B51,BÜB!V$30:V$113)-(SUMIF(BÜB!$J$12:$J$26,$B51,BÜB!$I$12:$I$26)*J$36/$E$36)) -> 0
A52: TRUE
A53: TRUE | B53: 3.2 | C53: Auflösung Beiträge - Korrektur Anlagenabschreibung | E53: =H53+I53+J53 -> 0 | H53: =IF($E$36=0,0,SUMIF(BÜB!$J$30:$J$113,$B53,BÜB!T$30:T$113)-(SUMIF(BÜB!$J$12:$J$26,$B53,BÜB!$I$12:$I$26)*H$36/$E$36)) -> 0 | I53: =IF($E$36=0,0,SUMIF(BÜB!$J$30:$J$113,$B53,BÜB!U$30:U$113)-(SUMIF(BÜB!$J$12:$J$26,$B53,BÜB!$I$12:$I$26)*I$36/$E$36)) -> 0 | J53: =IF($E$36=0,0,SUMIF(BÜB!$J$30:$J$113,$B53,BÜB!V$30:V$113)-(SUMIF(BÜB!$J$12:$J$26,$B53,BÜB!$I$12:$I$26)*J$36/$E$36)) -> 0
A54: TRUE
A55: TRUE | B55: GESAMTKOSTEN vor Umlage Verwaltung | E55: =E49+E34+E16 -> 0 | H55: =H49+H34+H16 -> 0 | I55: =I49+I34+I16 -> 0 | J55: =J49+J34+J16 -> 0
A56: TRUE
A57: TRUE | B57: Umlage Verwaltungskosten | H57: =IF((H55+I55)*H55=0,0,(J55/(H55+I55)*H55)) -> 0 | I57: =IF((H55+I55)*I55=0,0,(J55/(H55+I55)*I55)) -> 0
A58: TRUE
A59: TRUE | B59: GESAMTKOSTEN nach Umlage Verwaltung | E59: =H59+I59 -> 0 | H59: =H55+H57 -> 0 | I59: =I55+I57 -> 0
A60: TRUE
A61: TRUE | E61: =IF(E59=0,"",E59/E59) ->  | H61: =IF(E59=0,"",H59/E59) ->  | I61: =IF(E59=0,"",I59/E59) -> 
A62: TRUE
A63: TRUE | E63: Summe
A64: TRUE
A65: TRUE | B65: 4. | C65: Erlöse | E65: =SUM(E67:F69) -> 0 | H65: 5. Allgemeine Angaben
A66: TRUE
A67: TRUE | B67: 4.1 | C67: Laufende Erlöse | E67: =SUMIF(BÜB!$J$12:$J$26,$B67,BÜB!I$12:I$26) -> 0 | F67: =SUMIF(BÜB!$J$30:$J$78,$B67,BÜB!P$30:P$78) -> 0 | H67: Wassermenge [m³]
A68: TRUE
A69: TRUE | B69: 4.2 | C69: Sonstige Erlöse | E69: =SUMIF(BÜB!$J$12:$J$26,$B69,BÜB!I$12:I$26) -> 0 | F69: =SUMIF(BÜB!$J$30:$J$78,$B69,BÜB!P$30:P$78) -> 0 | H69: Anschlussgrad [%]
A70: TRUE
A71: TRUE | B71: 6. | C71: Ergebnis
A72: TRUE
A73: TRUE | C73: Berechneter kostendeckender Wasserpreis (EUR/m³) | E73: =IF(J67=0,"",E59/J67) ->  | H73: Kostendeckungsgrad (%) | J73: =IF(E59=0,"",E65/E59) -> 
A74: TRUE
A75: TRUE
A76: TRUE | B76: 7. | C76: Anmerkungen
A77: TRUE | C77: Sonstige Anmerkungen zur Leistungsstruktur
C78: Betrieb und Wartung für Leitungen, Pumpwerke, Behälter und Sonderbauwerke durch:
A79: TRUE | C79: eigene Wassergewinnung / Wasserbezug von Dritten durch:
A80: TRUE | C80: Betrieb und Wartung für Gewinnung und Aufbereitung durch:
A81: TRUE | C81: Sonstige Anmerkungen
A82: TRUE
A83: TRUE
A84: Ende

Sheet Anlagen
A1: FALSE | B1: Ende
A2: FALSE | B2: Anlagen | C2: 001.00
A3: FALSE | B3: Ende
A4: TRUE | B4: =CONCATENATE(TEXT(wST.Ansatz,"000")&", Anlagen-, Subventions- und Interessentenbeitragsnachweis Wasserversorgung per "&TEXT(wST.PeriodeEnde,"T. MMMM JJJJ")&" KLR-Ebene: "&wST.ORT) -> 850, Anlagen-, Subventions- und Interessentenbeitragsnachweis Wasserversorgung per 31. Dezember 2021 KLR-Ebene:
A5: TRUE | AB5: AfA | AE5: =W6 -> Buchwert 31.12.2021
A6: TRUE | B6: Konto | C6: Ansatz | D6: Kurzbezeichnung (zB Bauabschnitt) | E6: Bezeichnung (textl. Erläuterung) | F6: Anlagenart | G6: Datum der Inbetriebnahme TT.MM.JJJJ | H6: Nutzungs-dauer | I6: ="AK/HK / Subv. & Beiträge bis "&TEXT(wST.PeriodeAnfang,"T.M.JJJJ") -> AK/HK / Subv. & Beiträge bis 1.1.2021 | J6: ="Zugänge im Jahr "&TEXT(wST.PeriodeAnfang,"JJJJ") -> Zugänge im Jahr 2021 | K6: ="Abgänge im Jahr "&TEXT(wST.PeriodeAnfang,"JJJJ") -> Abgänge im Jahr 2021 | L6: Kostenstelle für KLR | M6: Kontrolle Kostenstellen | N6: ="Wert bis "&TEXT(wST.PeriodeEnde,"T.M.JJJJ") -> Wert bis 31.12.2021 | O6: ="kumulierte Abschreibung bis "&TEXT(wST.PeriodeAnfang,"T.M.JJ") -> kumulierte Abschreibung bis 1.1.21 | P6: verbleibender Anteil nach Abgang | Q6: ="Restbuchwert vor Afa" -> Restbuchwert vor Afa | R6: Restnutzungsdauer | S6: Abschreibung / Auflösung Haushaltsjahr | T6: Abschreibung Haushaltsjahr ohne Abgang | U6: Restbuch- wert- abschreibung | V6: ="kumulierte Abschreibung / Auflösung bis "&TEXT(wST.PeriodeEnde,"T.M.JJJJ") -> kumulierte Abschreibung / Auflösung bis 31.12.2021 | W6: ="Buchwert "&TEXT(wST.PeriodeEnde,"T.M.JJJJ") -> Buchwert 31.12.2021 | AB6: Verteilung | AC6: Gewinnung | AD6: Verwaltung | AE6: Verteilung | AF6: Gewinnung | AG6: Verwaltung
A7: =N7>0 -> FALSE | B7: ="00" -> 00 | C7: GRUNDSTÜCKE | I7: =SUM(I8,I15,I20,I26,I63) -> 0 | J7: =SUM(J8,J15,J20,J26,J63) -> 0 | K7: =SUM(K8,K15,K20,K26,K63) -> 0 | N7: =SUM(N8,N15,N20,N26,N63) -> 0 | O7: =SUM(O8,O15,O20,O26,O63) -> 0 | S7: =SUM(S8,S15,S20,S26,S63) -> 0 | V7: =SUM(V8,V15,V20,V26,V63) -> 0 | W7: =SUM(W8,W15,W20,W26,W63) -> 0
A8: =N8>0 -> FALSE | B8: ="000" -> 000 | C8: Bebaute Grundstücke | I8: =SUMPRODUCT(I9:I14,$X9:$X14) -> 0 | J8: =SUMPRODUCT(J9:J14,$X9:$X14) -> 0 | K8: =SUMPRODUCT(K9:K14,$X9:$X14) -> 0 | N8: =SUMPRODUCT(N9:N14,$X9:$X14) -> 0 | O8: =SUMPRODUCT(O9:O14,$X9:$X14) -> 0 | S8: =SUMPRODUCT(S9:S14,$X9:$X14) -> 0 | T8: =SUMPRODUCT(T9:T14,$X9:$X14) -> 0 | V8: =SUMPRODUCT(V9:V14,$X9:$X14) -> 0 | W8: =SUMPRODUCT(W9:W14,$X9:$X14) -> 0 | Z8: =SUM(Z9:Z14) -> 0
A9: =X9>0 -> FALSE | M9: =IF(AND(L9="",C9=""),"",IF(AND(C9<>"",L9=""),"Keine Zuordnung",IF(OR(L9=$AB$6,L9=$AC$6,L9=$AD$6),"OK","Falsche Kostenstelle"))) ->  | N9: =IF(AND(Y9+H9<=wST.Jahr,J9<>0,NOT(ISBLANK(H9))),"Zugang ungültig!",IF(Y9>wST.Jahr,0,SUM(I9,J9,-K9))) -> 0 | O9: =IF(H9=0,0,IF(Y9>=wST.Jahr,0,MAX(0,MIN(I9,I9/H9*(wST.Jahr-Y9)-I9/H9*IF(MONTH(G9)>6,0.5,0))))) -> 0 | P9: =IF(SUM(I9,J9)=0,1,1-K9/SUM(I9,J9)) -> 1 | Q9: =(J9+I9-O9)*P9 -> 0 | R9: =MAX(0,(Y9+H9-wST.Jahr+IF(AND(Y9<>wST.Jahr,MONTH(G9)>6),0.5,0))*IF(AND(Y9=wST.Jahr,MONTH(G9)>6),2,1)) -> 0 | S9: =T9+U9 -> 0 | T9: =IF(R9=0,0,IF(Y9>wST.Jahr,0,MAX(0,MIN(Q9,Q9/R9)))) -> 0 | U9: =(J9+I9-O9)*(1-P9) -> 0 | V9: =MIN(I9+J9,O9+T9+U9) -> 0 | W9: =IF(Y9>wST.Jahr,0,I9+J9-V9) -> 0 | X9: =IF(C9=0,0,IF(VALUE(LEFT(C9,3))=wST.Ansatz,1,0)) -> 0 | Y9: =YEAR(G9) -> 1900 | Z9: =IF(Y9>wST.Jahr-1,0,I9*X9) -> 0 | AB9: =IF($L9=AB$6,$S9,) -> 0 | AC9: 0 | AD9: 0 | AE9: =IF($L9=AE$6,$W9,) -> 0 | AF9: 0 | AG9: 0
A10: FALSE | N10: 0 | O10: 0 | P10: 1 | Q10: 0 | R10: 0 | S10: 0 | T10: 0 | U10: 0 | V10: 0 | W10: 0 | X10: 0 | Y10: 1900 | Z10: 0 | AB10: 0 | AC10: 0 | AD10: 0 | AE10: 0 | AF10: 0 | AG10: 0
A11: FALSE | N11: 0 | O11: 0 | P11: 1 | Q11: 0 | R11: 0 | S11: 0 | T11: 0 | U11: 0 | V11: 0 | W11: 0 | X11: 0 | Y11: 1900 | Z11: 0 | AB11: 0 | AC11: 0 | AD11: 0 | AE11: 0 | AF11: 0 | AG11: 0
A12: FALSE | N12: 0 | O12: 0 | P12: 1 | Q12: 0 | R12: 0 | S12: 0 | T12: 0 | U12: 0 | V12: 0 | W12: 0 | X12: 0 | Y12: 1900 | Z12: 0 | AB12: 0 | AC12: 0 | AD12: 0 | AE12: 0 | AF12: 0 | AG12: 0
A13: =X13>0 -> FALSE | M13: =IF(AND(L13="",C13=""),"",IF(AND(C13<>"",L13=""),"Keine Zuordnung",IF(OR(L13=$AB$6,L13=$AC$6,L13=$AD$6),"OK","Falsche Kostenstelle"))) ->  | N13: =IF(AND(Y13+H13<=wST.Jahr,J13<>0,NOT(ISBLANK(H13))),"Zugang ungültig!",IF(Y13>wST.Jahr,0,SUM(I13,J13,-K13))) -> 0 | O13: =IF(H13=0,0,IF(Y13>=wST.Jahr,0,MAX(0,MIN(I13,I13/H13*(wST.Jahr-Y13)-I13/H13*IF(MONTH(G13)>6,0.5,0))))) -> 0 | P13: =IF(SUM(I13,J13)=0,1,1-K13/SUM(I13,J13)) -> 1 | Q13: =(J13+I13-O13)*P13 -> 0 | R13: =MAX(0,(Y13+H13-wST.Jahr+IF(AND(Y13<>wST.Jahr,MONTH(G13)>6),0.5,0))*IF(AND(Y13=wST.Jahr,MONTH(G13)>6),2,1)) -> 0 | S13: =T13+U13 -> 0 | T13: =IF(R13=0,0,IF(Y13>wST.Jahr,0,MAX(0,MIN(Q13,Q13/R13)))) -> 0 | U13: =(J13+I13-O13)*(1-P13) -> 0 | V13: =MIN(I13+J13,O13+T13+U13) -> 0 | W13: =IF(Y13>wST.Jahr,0,I13+J13-V13) -> 0 | X13: =IF(C13=0,0,IF(VALUE(LEFT(C13,3))=wST.Ansatz,1,0)) -> 0 | Y13: =YEAR(G13) -> 1900 | Z13: =IF(Y13>wST.Jahr-1,0,I13*X13) -> 0 | AB13: 0 | AC13: 0 | AD13: 0 | AE13: 0 | AF13: 0 | AG13: 0
A14: FALSE | N14: 0 | O14: 0 | P14: 1 | Q14: 0 | R14: 0 | S14: 0 | T14: 0 | U14: 0 | V14: 0 | W14: 0 | X14: 0 | Y14: 1900 | Z14: 0 | AB14: 0 | AC14: 0 | AD14: 0 | AE14: 0 | AF14: 0 | AG14: 0
A15: =N15>0 -> FALSE | B15: 1 | C15: Unbebaute Grundstücke | I15: =SUMPRODUCT(I16:I19,$X16:$X19) -> 0 | J15: =SUMPRODUCT(J16:J19,$X16:$X19) -> 0 | K15: =SUMPRODUCT(K16:K19,$X16:$X19) -> 0 | N15: =SUMPRODUCT(N16:N19,$X16:$X19) -> 0 | O15: =SUMPRODUCT(O16:O19,$X16:$X19) -> 0 | S15: =SUMPRODUCT(S16:S19,$X16:$X19) -> 0 | T15: =SUMPRODUCT(T16:T19,$X16:$X19) -> 0 | V15: =SUMPRODUCT(V16:V19,$X16:$X19) -> 0 | W15: =SUMPRODUCT(W16:W19,$X16:$X19) -> 0 | Z15: =SUM(Z16:Z19) -> 0
A16: =X16>0 -> FALSE | M16: =IF(AND(L16="",C16=""),"",IF(AND(C16<>"",L16=""),"Keine Zuordnung",IF(OR(L16=$AB$6,L16=$AC$6,L16=$AD$6),"OK","Falsche Kostenstelle"))) ->  | N16: =IF(AND(Y16+H16<=wST.Jahr,J16<>0,NOT(ISBLANK(H16))),"Zugang ungültig!",IF(Y16>wST.Jahr,0,SUM(I16,J16,-K16))) -> 0 | O16: =IF(H16=0,0,IF(Y16>=wST.Jahr,0,MAX(0,MIN(I16,I16/H16*(wST.Jahr-Y16)-I16/H16*IF(MONTH(G16)>6,0.5,0))))) -> 0 | P16: =IF(SUM(I16,J16)=0,1,1-K16/SUM(I16,J16)) -> 1 | Q16: =(J16+I16-O16)*P16 -> 0 | R16: =MAX(0,(Y16+H16-wST.Jahr+IF(AND(Y16<>wST.Jahr,MONTH(G16)>6),0.5,0))*IF(AND(Y16=wST.Jahr,MONTH(G16)>6),2,1)) -> 0 | S16: =T16+U16 -> 0 | T16: =IF(R16=0,0,IF(Y16>wST.Jahr,0,MAX(0,MIN(Q16,Q16/R16)))) -> 0 | U16: =(J16+I16-O16)*(1-P16) -> 0 | V16: =MIN(I16+J16,O16+T16+U16) -> 0 | W16: =IF(Y16>wST.Jahr,0,I16+J16-V16) -> 0 | X16: =IF(C16=0,0,IF(VALUE(LEFT(C16,3))=wST.Ansatz,1,0)) -> 0 | Y16: =YEAR(G16) -> 1900 | Z16: =IF(Y16>wST.Jahr-1,0,I16*X16) -> 0 | AB16: =IF($L16=AB$6,$S16,) -> 0 | AC16: 0 | AD16: 0 | AE16: =IF($L16=AE$6,$W16,) -> 0 | AF16: 0 | AG16: 0
A17: =X17>0 -> FALSE | M17: =IF(AND(L17="",C17=""),"",IF(AND(C17<>"",L17=""),"Keine Zuordnung",IF(OR(L17=$AB$6,L17=$AC$6,L17=$AD$6),"OK","Falsche Kostenstelle"))) ->  | N17: =IF(AND(Y17+H17<=wST.Jahr,J17<>0,NOT(ISBLANK(H17))),"Zugang ungültig!",IF(Y17>wST.Jahr,0,SUM(I17,J17,-K17))) -> 0 | O17: =IF(H17=0,0,IF(Y17>=wST.Jahr,0,MAX(0,MIN(I17,I17/H17*(wST.Jahr-Y17)-I17/H17*IF(MONTH(G17)>6,0.5,0))))) -> 0 | P17: =IF(SUM(I17,J17)=0,1,1-K17/SUM(I17,J17)) -> 1 | Q17: =(J17+I17-O17)*P17 -> 0 | R17: =MAX(0,(Y17+H17-wST.Jahr+IF(AND(Y17<>wST.Jahr,MONTH(G17)>6),0.5,0))*IF(AND(Y17=wST.Jahr,MONTH(G17)>6),2,1)) -> 0 | S17: =T17+U17 -> 0 | T17: =IF(R17=0,0,IF(Y17>wST.Jahr,0,MAX(0,MIN(Q17,Q17/R17)))) -> 0 | U17: =(J17+I17-O17)*(1-P17) -> 0 | V17: =MIN(I17+J17,O17+T17+U17) -> 0 | W17: =IF(Y17>wST.Jahr,0,I17+J17-V17) -> 0 | X17: =IF(C17=0,0,IF(VALUE(LEFT(C17,3))=wST.Ansatz,1,0)) -> 0 | Y17: =YEAR(G17) -> 1900 | Z17: =IF(Y17>wST.Jahr-1,0,I17*X17) -> 0 | AB17: 0 | AC17: 0 | AD17: 0 | AE17: 0 | AF17: 0 | AG17: 0
A18: =X18>0 -> FALSE | M18: =IF(AND(L18="",C18=""),"",IF(AND(C18<>"",L18=""),"Keine Zuordnung",IF(OR(L18=$AB$6,L18=$AC$6,L18=$AD$6),"OK","Falsche Kostenstelle"))) ->  | N18: =IF(AND(Y18+H18<=wST.Jahr,J18<>0,NOT(ISBLANK(H18))),"Zugang ungültig!",IF(Y18>wST.Jahr,0,SUM(I18,J18,-K18))) -> 0 | O18: =IF(H18=0,0,IF(Y18>=wST.Jahr,0,MAX(0,MIN(I18,I18/H18*(wST.Jahr-Y18)-I18/H18*IF(MONTH(G18)>6,0.5,0))))) -> 0 | P18: =IF(SUM(I18,J18)=0,1,1-K18/SUM(I18,J18)) -> 1 | Q18: =(J18+I18-O18)*P18 -> 0 | R18: =MAX(0,(Y18+H18-wST.Jahr+IF(AND(Y18<>wST.Jahr,MONTH(G18)>6),0.5,0))*IF(AND(Y18=wST.Jahr,MONTH(G18)>6),2,1)) -> 0 | S18: =T18+U18 -> 0 | T18: =IF(R18=0,0,IF(Y18>wST.Jahr,0,MAX(0,MIN(Q18,Q18/R18)))) -> 0 | U18: =(J18+I18-O18)*(1-P18) -> 0 | V18: =MIN(I18+J18,O18+T18+U18) -> 0 | W18: =IF(Y18>wST.Jahr,0,I18+J18-V18) -> 0 | X18: =IF(C18=0,0,IF(VALUE(LEFT(C18,3))=wST.Ansatz,1,0)) -> 0 | Y18: =YEAR(G18) -> 1900 | Z18: =IF(Y18>wST.Jahr-1,0,I18*X18) -> 0 | AB18: 0 | AC18: 0 | AD18: 0 | AE18: 0 | AF18: 0 | AG18: 0
A19: =X19>0 -> FALSE | M19: =IF(AND(L19="",C19=""),"",IF(AND(C19<>"",L19=""),"Keine Zuordnung",IF(OR(L19=$AB$6,L19=$AC$6,L19=$AD$6),"OK","Falsche Kostenstelle"))) ->  | N19: =IF(AND(Y19+H19<=wST.Jahr,J19<>0,NOT(ISBLANK(H19))),"Zugang ungültig!",IF(Y19>wST.Jahr,0,SUM(I19,J19,-K19))) -> 0 | O19: =IF(H19=0,0,IF(Y19>=wST.Jahr,0,MAX(0,MIN(I19,I19/H19*(wST.Jahr-Y19)-I19/H19*IF(MONTH(G19)>6,0.5,0))))) -> 0 | P19: =IF(SUM(I19,J19)=0,1,1-K19/SUM(I19,J19)) -> 1 | Q19: =(J19+I19-O19)*P19 -> 0 | R19: =MAX(0,(Y19+H19-wST.Jahr+IF(AND(Y19<>wST.Jahr,MONTH(G19)>6),0.5,0))*IF(AND(Y19=wST.Jahr,MONTH(G19)>6),2,1)) -> 0 | S19: =T19+U19 -> 0 | T19: =IF(R19=0,0,IF(Y19>wST.Jahr,0,MAX(0,MIN(Q19,Q19/R19)))) -> 0 | U19: =(J19+I19-O19)*(1-P19) -> 0 | V19: =MIN(I19+J19,O19+T19+U19) -> 0 | W19: =IF(Y19>wST.Jahr,0,I19+J19-V19) -> 0 | X19: =IF(C19=0,0,IF(VALUE(LEFT(C19,3))=wST.Ansatz,1,0)) -> 0 | Y19: =YEAR(G19) -> 1900 | Z19: =IF(Y19>wST.Jahr-1,0,I19*X19) -> 0 | AB19: 0 | AC19: 0 | AD19: 0 | AE19: 0 | AF19: 0 | AG19: 0
A20: =N20>0 -> FALSE | B20: 2 | C20: Straßenbauten | I20: =SUMPRODUCT(I21:I25,$X21:$X25) -> 0 | J20: =SUMPRODUCT(J21:J25,$X21:$X25) -> 0 | K20: =SUMPRODUCT(K21:K25,$X21:$X25) -> 0 | N20: =SUMPRODUCT(N21:N25,$X21:$X25) -> 0 | O20: =SUMPRODUCT(O21:O25,$X21:$X25) -> 0 | S20: =SUMPRODUCT(S21:S25,$X21:$X25) -> 0 | T20: =SUMPRODUCT(T21:T25,$X21:$X25) -> 0 | V20: =SUMPRODUCT(V21:V25,$X21:$X25) -> 0 | W20: =SUMPRODUCT(W21:W25,$X21:$X25) -> 0 | Z20: =SUM(Z21:Z25) -> 0
A21: =X21>0 -> FALSE | M21: =IF(AND(L21="",C21=""),"",IF(AND(C21<>"",L21=""),"Keine Zuordnung",IF(OR(L21=$AB$6,L21=$AC$6,L21=$AD$6),"OK","Falsche Kostenstelle"))) ->  | N21: =IF(AND(Y21+H21<=wST.Jahr,J21<>0,NOT(ISBLANK(H21))),"Zugang ungültig!",IF(Y21>wST.Jahr,0,SUM(I21,J21,-K21))) -> 0 | O21: =IF(H21=0,0,IF(Y21>=wST.Jahr,0,MAX(0,MIN(I21,I21/H21*(wST.Jahr-Y21)-I21/H21*IF(MONTH(G21)>6,0.5,0))))) -> 0 | P21: =IF(SUM(I21,J21)=0,1,1-K21/SUM(I21,J21)) -> 1 | Q21: =(J21+I21-O21)*P21 -> 0 | R21: =MAX(0,(Y21+H21-wST.Jahr+IF(AND(Y21<>wST.Jahr,MONTH(G21)>6),0.5,0))*IF(AND(Y21=wST.Jahr,MONTH(G21)>6),2,1)) -> 0 | S21: =T21+U21 -> 0 | T21: =IF(R21=0,0,IF(Y21>wST.Jahr,0,MAX(0,MIN(Q21,Q21/R21)))) -> 0 | U21: =(J21+I21-O21)*(1-P21) -> 0 | V21: =MIN(I21+J21,O21+T21+U21) -> 0 | W21: =IF(Y21>wST.Jahr,0,I21+J21-V21) -> 0 | X21: =IF(C21=0,0,IF(VALUE(LEFT(C21,3))=wST.Ansatz,1,0)) -> 0 | Y21: =YEAR(G21) -> 1900 | Z21: =IF(Y21>wST.Jahr-1,0,I21*X21) -> 0 | AB21: =IF($L21=AB$6,$S21,) -> 0 | AC21: 0 | AD21: 0 | AE21: =IF($L21=AE$6,$W21,) -> 0 | AF21: 0 | AG21: 0
A22: =X22>0 -> FALSE | M22: =IF(AND(L22="",C22=""),"",IF(AND(C22<>"",L22=""),"Keine Zuordnung",IF(OR(L22=$AB$6,L22=$AC$6,L22=$AD$6),"OK","Falsche Kostenstelle"))) ->  | N22: =IF(AND(Y22+H22<=wST.Jahr,J22<>0,NOT(ISBLANK(H22))),"Zugang ungültig!",IF(Y22>wST.Jahr,0,SUM(I22,J22,-K22))) -> 0 | O22: =IF(H22=0,0,IF(Y22>=wST.Jahr,0,MAX(0,MIN(I22,I22/H22*(wST.Jahr-Y22)-I22/H22*IF(MONTH(G22)>6,0.5,0))))) -> 0 | P22: =IF(SUM(I22,J22)=0,1,1-K22/SUM(I22,J22)) -> 1 | Q22: =(J22+I22-O22)*P22 -> 0 | R22: =MAX(0,(Y22+H22-wST.Jahr+IF(AND(Y22<>wST.Jahr,MONTH(G22)>6),0.5,0))*IF(AND(Y22=wST.Jahr,MONTH(G22)>6),2,1)) -> 0 | S22: =T22+U22 -> 0 | T22: =IF(R22=0,0,IF(Y22>wST.Jahr,0,MAX(0,MIN(Q22,Q22/R22)))) -> 0 | U22: =(J22+I22-O22)*(1-P22) -> 0 | V22: =MIN(I22+J22,O22+T22+U22) -> 0 | W22: =IF(Y22>wST.Jahr,0,I22+J22-V22) -> 0 | X22: =IF(C22=0,0,IF(VALUE(LEFT(C22,3))=wST.Ansatz,1,0)) -> 0 | Y22: =YEAR(G22) -> 1900 | Z22: =IF(Y22>wST.Jahr-1,0,I22*X22) -> 0 | AB22: 0 | AC22: 0 | AD22: 0 | AE22: 0 | AF22: 0 | AG22: 0
A23: =X23>0 -> FALSE | M23: =IF(AND(L23="",C23=""),"",IF(AND(C23<>"",L23=""),"Keine Zuordnung",IF(OR(L23=$AB$6,L23=$AC$6,L23=$AD$6),"OK","Falsche Kostenstelle"))) ->  | N23: =IF(AND(Y23+H23<=wST.Jahr,J23<>0,NOT(ISBLANK(H23))),"Zugang ungültig!",IF(Y23>wST.Jahr,0,SUM(I23,J23,-K23))) -> 0 | O23: =IF(H23=0,0,IF(Y23>=wST.Jahr,0,MAX(0,MIN(I23,I23/H23*(wST.Jahr-Y23)-I23/H23*IF(MONTH(G23)>6,0.5,0))))) -> 0 | P23: =IF(SUM(I23,J23)=0,1,1-K23/SUM(I23,J23)) -> 1 | Q23: =(J23+I23-O23)*P23 -> 0 | R23: =MAX(0,(Y23+H23-wST.Jahr+IF(AND(Y23<>wST.Jahr,MONTH(G23)>6),0.5,0))*IF(AND(Y23=wST.Jahr,MONTH(G23)>6),2,1)) -> 0 | S23: =T23+U23 -> 0 | T23: =IF(R23=0,0,IF(Y23>wST.Jahr,0,MAX(0,MIN(Q23,Q23/R23)))) -> 0 | U23: =(J23+I23-O23)*(1-P23) -> 0 | V23: =MIN(I23+J23,O23+T23+U23) -> 0 | W23: =IF(Y23>wST.Jahr,0,I23+J23-V23) -> 0 | X23: =IF(C23=0,0,IF(VALUE(LEFT(C23,3))=wST.Ansatz,1,0)) -> 0 | Y23: =YEAR(G23) -> 1900 | Z23: =IF(Y23>wST.Jahr-1,0,I23*X23) -> 0 | AB23: 0 | AC23: 0 | AD23: 0 | AE23: 0 | AF23: 0 | AG23: 0
A24: =X24>0 -> FALSE | M24: =IF(AND(L24="",C24=""),"",IF(AND(C24<>"",L24=""),"Keine Zuordnung",IF(OR(L24=$AB$6,L24=$AC$6,L24=$AD$6),"OK","Falsche Kostenstelle"))) ->  | N24: =IF(AND(Y24+H24<=wST.Jahr,J24<>0,NOT(ISBLANK(H24))),"Zugang ungültig!",IF(Y24>wST.Jahr,0,SUM(I24,J24,-K24))) -> 0 | O24: =IF(H24=0,0,IF(Y24>=wST.Jahr,0,MAX(0,MIN(I24,I24/H24*(wST.Jahr-Y24)-I24/H24*IF(MONTH(G24)>6,0.5,0))))) -> 0 | P24: =IF(SUM(I24,J24)=0,1,1-K24/SUM(I24,J24)) -> 1 | Q24: =(J24+I24-O24)*P24 -> 0 | R24: =MAX(0,(Y24+H24-wST.Jahr+IF(AND(Y24<>wST.Jahr,MONTH(G24)>6),0.5,0))*IF(AND(Y24=wST.Jahr,MONTH(G24)>6),2,1)) -> 0 | S24: =T24+U24 -> 0 | T24: =IF(R24=0,0,IF(Y24>wST.Jahr,0,MAX(0,MIN(Q24,Q24/R24)))) -> 0 | U24: =(J24+I24-O24)*(1-P24) -> 0 | V24: =MIN(I24+J24,O24+T24+U24) -> 0 | W24: =IF(Y24>wST.Jahr,0,I24+J24-V24) -> 0 | X24: =IF(C24=0,0,IF(VALUE(LEFT(C24,3))=wST.Ansatz,1,0)) -> 0 | Y24: =YEAR(G24) -> 1900 | Z24: =IF(Y24>wST.Jahr-1,0,I24*X24) -> 0 | AB24: 0 | AC24: 0 | AD24: 0 | AE24: 0 | AF24: 0 | AG24: 0
A25: =X25>0 -> FALSE | M25: =IF(AND(L25="",C25=""),"",IF(AND(C25<>"",L25=""),"Keine Zuordnung",IF(OR(L25=$AB$6,L25=$AC$6,L25=$AD$6),"OK","Falsche Kostenstelle"))) ->  | N25: =IF(AND(Y25+H25<=wST.Jahr,J25<>0,NOT(ISBLANK(H25))),"Zugang ungültig!",IF(Y25>wST.Jahr,0,SUM(I25,J25,-K25))) -> 0 | O25: =IF(H25=0,0,IF(Y25>=wST.Jahr,0,MAX(0,MIN(I25,I25/H25*(wST.Jahr-Y25)-I25/H25*IF(MONTH(G25)>6,0.5,0))))) -> 0 | P25: =IF(SUM(I25,J25)=0,1,1-K25/SUM(I25,J25)) -> 1 | Q25: =(J25+I25-O25)*P25 -> 0 | R25: =MAX(0,(Y25+H25-wST.Jahr+IF(AND(Y25<>wST.Jahr,MONTH(G25)>6),0.5,0))*IF(AND(Y25=wST.Jahr,MONTH(G25)>6),2,1)) -> 0 | S25: =T25+U25 -> 0 | T25: =IF(R25=0,0,IF(Y25>wST.Jahr,0,MAX(0,MIN(Q25,Q25/R25)))) -> 0 | U25: =(J25+I25-O25)*(1-P25) -> 0 | V25: =MIN(I25+J25,O25+T25+U25) -> 0 | W25: =IF(Y25>wST.Jahr,0,I25+J25-V25) -> 0 | X25: =IF(C25=0,0,IF(VALUE(LEFT(C25,3))=wST.Ansatz,1,0)) -> 0 | Y25: =YEAR(G25) -> 1900 | Z25: =IF(Y25>wST.Jahr-1,0,I25*X25) -> 0 | AB25: 0 | AC25: 0 | AD25: 0 | AE25: 0 | AF25: 0 | AG25: 0
A26: =N26>0 -> FALSE | B26: 4 | C26: Wasser- und Abwasserbauten- und anlagen | I26: =SUMPRODUCT(I27:I62,$X27:$X62) -> 0 | J26: =SUMPRODUCT(J27:J62,$X27:$X62) -> 0 | K26: =SUMPRODUCT(K27:K62,$X27:$X62) -> 0 | N26: =SUMPRODUCT(N27:N62,$X27:$X62) -> 0 | O26: =SUMPRODUCT(O27:O62,$X27:$X62) -> 0 | S26: =SUMPRODUCT(S27:S62,$X27:$X62) -> 0 | T26: =SUMPRODUCT(T27:T62,$X27:$X62) -> 0 | V26: =SUMPRODUCT(V27:V62,$X27:$X62) -> 0 | W26: =SUMPRODUCT(W27:W62,$X27:$X62) -> 0 | Z26: =SUM(Z27:Z62) -> 0
A27: =X27>0 -> FALSE | M27: =IF(AND(L27="",C27=""),"",IF(AND(C27<>"",L27=""),"Keine Zuordnung",IF(OR(L27=$AB$6,L27=$AC$6,L27=$AD$6),"OK","Falsche Kostenstelle"))) ->  | N27: =IF(AND(Y27+H27<=wST.Jahr,J27<>0,NOT(ISBLANK(H27))),"Zugang ungültig!",IF(Y27>wST.Jahr,0,SUM(I27,J27,-K27))) -> 0 | O27: =IF(H27=0,0,IF(Y27>=wST.Jahr,0,MAX(0,MIN(I27,I27/H27*(wST.Jahr-Y27)-I27/H27*IF(MONTH(G27)>6,0.5,0))))) -> 0 | P27: =IF(SUM(I27,J27)=0,1,1-K27/SUM(I27,J27)) -> 1 | Q27: =(J27+I27-O27)*P27 -> 0 | R27: =MAX(0,(Y27+H27-wST.Jahr+IF(AND(Y27<>wST.Jahr,MONTH(G27)>6),0.5,0))*IF(AND(Y27=wST.Jahr,MONTH(G27)>6),2,1)) -> 0 | S27: =T27+U27 -> 0 | T27: =IF(R27=0,0,IF(Y27>wST.Jahr,0,MAX(0,MIN(Q27,Q27/R27)))) -> 0 | U27: =(J27+I27-O27)*(1-P27) -> 0 | V27: =MIN(I27+J27,O27+T27+U27) -> 0 | W27: =IF(Y27>wST.Jahr,0,I27+J27-V27) -> 0 | X27: =IF(C27=0,0,IF(VALUE(LEFT(C27,3))=wST.Ansatz,1,0)) -> 0 | Y27: =YEAR(G27) -> 1900 | Z27: =IF(Y27>wST.Jahr-1,0,I27*X27) -> 0 | AB27: =IF($L27=AB$6,$S27,) -> 0 | AC27: 0 | AD27: 0 | AE27: =IF($L27=AE$6,$W27,) -> 0 | AF27: 0 | AG27: 0
A28: FALSE | N28: 0 | O28: 0 | P28: 1 | Q28: 0 | R28: 0 | S28: 0 | T28: 0 | U28: 0 | V28: 0 | W28: 0 | X28: 0 | Y28: 1900 | Z28: 0 | AB28: 0 | AC28: 0 | AD28: 0 | AE28: 0 | AF28: 0 | AG28: 0
A29: =X29>0 -> FALSE | N29: 0 | O29: 0 | P29: 1 | Q29: 0 | R29: 0 | S29: =T29+U29 -> 0 | T29: 0 | U29: 0 | V29: 0 | W29: 0 | X29: 0 | Y29: 1900 | Z29: 0 | AB29: 0 | AC29: 0 | AD29: 0 | AE29: 0 | AF29: 0 | AG29: 0
A30: =X30>0 -> FALSE | N30: 0 | O30: 0 | P30: 1 | Q30: 0 | R30: 0 | S30: =T30+U30 -> 0 | T30: 0 | U30: 0 | V30: 0 | W30: 0 | X30: 0 | Y30: 1900 | Z30: 0 | AB30: 0 | AC30: 0 | AD30: 0 | AE30: 0 | AF30: 0 | AG30: 0
A31: =X31>0 -> FALSE | N31: 0 | O31: 0 | P31: 1 | Q31: 0 | R31: 0 | S31: =T31+U31 -> 0 | T31: 0 | U31: 0 | V31: 0 | W31: 0 | X31: 0 | Y31: 1900 | Z31: 0 | AB31: 0 | AC31: 0 | AD31: 0 | AE31: 0 | AF31: 0 | AG31: 0
A32: =X32>0 -> FALSE | N32: 0 | O32: 0 | P32: 1 | Q32: 0 | R32: 0 | S32: =T32+U32 -> 0 | T32: 0 | U32: 0 | V32: 0 | W32: 0 | X32: 0 | Y32: 1900 | Z32: 0 | AB32: 0 | AC32: 0 | AD32: 0 | AE32: 0 | AF32: 0 | AG32: 0
A33: =X33>0 -> FALSE | N33: 0 | O33: 0 | P33: 1 | Q33: 0 | R33: 0 | S33: =T33+U33 -> 0 | T33: 0 | U33: 0 | V33: 0 | W33: 0 | X33: 0 | Y33: 1900 | Z33: 0 | AB33: 0 | AC33: 0 | AD33: 0 | AE33: 0 | AF33: 0 | AG33: 0
A34: =X34>0 -> FALSE | N34: 0 | O34: 0 | P34: 1 | Q34: 0 | R34: 0 | S34: =T34+U34 -> 0 | T34: 0 | U34: 0 | V34: 0 | W34: 0 | X34: 0 | Y34: 1900 | Z34: 0 | AB34: 0 | AC34: 0 | AD34: 0 | AE34: 0 | AF34: 0 | AG34: 0
A35: =X35>0 -> FALSE | N35: 0 | O35: 0 | P35: 1 | Q35: 0 | R35: 0 | S35: =T35+U35 -> 0 | T35: 0 | U35: 0 | V35: 0 | W35: 0 | X35: 0 | Y35: 1900 | Z35: 0 | AB35: 0 | AC35: 0 | AD35: 0 | AE35: 0 | AF35: 0 | AG35: 0
A36: =X36>0 -> FALSE | N36: 0 | O36: 0 | P36: 1 | Q36: 0 | R36: 0 | S36: =T36+U36 -> 0 | T36: 0 | U36: 0 | V36: 0 | W36: 0 | X36: 0 | Y36: 1900 | Z36: 0 | AB36: 0 | AC36: 0 | AD36: 0 | AE36: 0 | AF36: 0 | AG36: 0
A37: =X37>0 -> FALSE | N37: 0 | O37: 0 | P37: 1 | Q37: 0 | R37: 0 | S37: =T37+U37 -> 0 | T37: 0 | U37: 0 | V37: 0 | W37: 0 | X37: 0 | Y37: 1900 | Z37: 0 | AB37: 0 | AC37: 0 | AD37: 0 | AE37: 0 | AF37: 0 | AG37: 0
A38: =X38>0 -> FALSE | N38: 0 | O38: 0 | P38: 1 | Q38: 0 | R38: 0 | S38: =T38+U38 -> 0 | T38: 0 | U38: 0 | V38: 0 | W38: 0 | X38: 0 | Y38: 1900 | Z38: 0 | AB38: 0 | AC38: 0 | AD38: 0 | AE38: 0 | AF38: 0 | AG38: 0
A39: =X39>0 -> FALSE | N39: 0 | O39: 0 | P39: 1 | Q39: 0 | R39: 0 | S39: =T39+U39 -> 0 | T39: 0 | U39: 0 | V39: 0 | W39: 0 | X39: 0 | Y39: 1900 | Z39: 0 | AB39: 0 | AC39: 0 | AD39: 0 | AE39: 0 | AF39: 0 | AG39: 0
A40: =X40>0 -> FALSE | N40: 0 | O40: 0 | P40: 1 | Q40: 0 | R40: 0 | S40: =T40+U40 -> 0 | T40: 0 | U40: 0 | V40: 0 | W40: 0 | X40: 0 | Y40: 1900 | Z40: 0 | AB40: 0 | AC40: 0 | AD40: 0 | AE40: 0 | AF40: 0 | AG40: 0
A41: =X41>0 -> FALSE | N41: 0 | O41: 0 | P41: 1 | Q41: 0 | R41: 0 | S41: =T41+U41 -> 0 | T41: 0 | U41: 0 | V41: 0 | W41: 0 | X41: 0 | Y41: 1900 | Z41: 0 | AB41: 0 | AC41: 0 | AD41: 0 | AE41: 0 | AF41: 0 | AG41: 0
A42: =X42>0 -> FALSE | N42: 0 | O42: 0 | P42: 1 | Q42: 0 | R42: 0 | S42: =T42+U42 -> 0 | T42: 0 | U42: 0 | V42: 0 | W42: 0 | X42: 0 | Y42: 1900 | Z42: 0 | AB42: 0 | AC42: 0 | AD42: 0 | AE42: 0 | AF42: 0 | AG42: 0
A43: =X43>0 -> FALSE | N43: 0 | O43: 0 | P43: 1 | Q43: 0 | R43: 0 | S43: =T43+U43 -> 0 | T43: 0 | U43: 0 | V43: 0 | W43: 0 | X43: 0 | Y43: 1900 | Z43: 0 | AB43: 0 | AC43: 0 | AD43: 0 | AE43: 0 | AF43: 0 | AG43: 0
A44: =X44>0 -> FALSE | N44: 0 | O44: 0 | P44: 1 | Q44: 0 | R44: 0 | S44: =T44+U44 -> 0 | T44: 0 | U44: 0 | V44: 0 | W44: 0 | X44: 0 | Y44: 1900 | Z44: 0 | AB44: 0 | AC44: 0 | AD44: 0 | AE44: 0 | AF44: 0 | AG44: 0
A45: =X45>0 -> FALSE | N45: 0 | O45: 0 | P45: 1 | Q45: 0 | R45: 0 | S45: =T45+U45 -> 0 | T45: 0 | U45: 0 | V45: 0 | W45: 0 | X45: 0 | Y45: 1900 | Z45: 0 | AB45: 0 | AC45: 0 | AD45: 0 | AE45: 0 | AF45: 0 | AG45: 0
A46: =X46>0 -> FALSE | N46: 0 | O46: 0 | P46: 1 | Q46: 0 | R46: 0 | S46: =T46+U46 -> 0 | T46: =IF(R46=0,0,IF(Y46>wST.Jahr,0,MAX(0,MIN(Q46,Q46/R46)))) -> 0 | U46: 0 | V46: 0 | W46: 0 | X46: 0 | Y46: 1900 | Z46: 0 | AB46: 0 | AC46: 0 | AD46: 0 | AE46: 0 | AF46: 0 | AG46: 0
A47: =X47>0 -> FALSE | N47: 0 | O47: 0 | P47: 1 | Q47: 0 | R47: 0 | S47: =T47+U47 -> 0 | T47: =IF(R47=0,0,IF(Y47>wST.Jahr,0,MAX(0,MIN(Q47,Q47/R47)))) -> 0 | U47: 0 | V47: 0 | W47: 0 | X47: 0 | Y47: 1900 | Z47: 0 | AB47: =IF($L47=AB$6,$S47,) -> 0 | AC47: 0 | AD47: 0 | AE47: =IF($L47=AE$6,$W47,) -> 0 | AF47: 0 | AG47: 0
A48: =X48>0 -> FALSE | N48: 0 | O48: 0 | P48: 1 | Q48: 0 | R48: 0 | S48: =T48+U48 -> 0 | T48: =IF(R48=0,0,IF(Y48>wST.Jahr,0,MAX(0,MIN(Q48,Q48/R48)))) -> 0 | U48: 0 | V48: 0 | W48: 0 | X48: 0 | Y48: 1900 | Z48: 0 | AB48: 0 | AC48: 0 | AD48: 0 | AE48: 0 | AF48: 0 | AG48: 0
A49: =X49>0 -> FALSE | N49: 0 | O49: 0 | P49: 1 | Q49: 0 | R49: 0 | S49: =T49+U49 -> 0 | T49: =IF(R49=0,0,IF(Y49>wST.Jahr,0,MAX(0,MIN(Q49,Q49/R49)))) -> 0 | U49: 0 | V49: 0 | W49: 0 | X49: 0 | Y49: 1900 | Z49: 0 | AB49: 0 | AC49: 0 | AD49: 0 | AE49: 0 | AF49: 0 | AG49: 0
A50: =X50>0 -> FALSE | N50: 0 | O50: 0 | P50: 1 | Q50: 0 | R50: 0 | S50: =T50+U50 -> 0 | T50: =IF(R50=0,0,IF(Y50>wST.Jahr,0,MAX(0,MIN(Q50,Q50/R50)))) -> 0 | U50: 0 | V50: 0 | W50: 0 | X50: 0 | Y50: 1900 | Z50: 0 | AB50: 0 | AC50: 0 | AD50: 0 | AE50: 0 | AF50: 0 | AG50: 0
A51: =X51>0 -> FALSE | N51: 0 | O51: 0 | P51: 1 | Q51: 0 | R51: 0 | S51: =T51+U51 -> 0 | T51: =IF(R51=0,0,IF(Y51>wST.Jahr,0,MAX(0,MIN(Q51,Q51/R51)))) -> 0 | U51: 0 | V51: 0 | W51: 0 | X51: 0 | Y51: 1900 | Z51: 0 | AB51: 0 | AC51: 0 | AD51: 0 | AE51: 0 | AF51: 0 | AG51: 0
A52: =X52>0 -> FALSE | N52: 0 | O52: 0 | P52: 1 | Q52: 0 | R52: 0 | S52: =T52+U52 -> 0 | T52: =IF(R52=0,0,IF(Y52>wST.Jahr,0,MAX(0,MIN(Q52,Q52/R52)))) -> 0 | U52: 0 | V52: 0 | W52: 0 | X52: 0 | Y52: 1900 | Z52: 0 | AB52: 0 | AC52: 0 | AD52: 0 | AE52: 0 | AF52: 0 | AG52: 0
A53: =X53>0 -> FALSE | N53: 0 | O53: 0 | P53: 1 | Q53: 0 | R53: 0 | S53: =T53+U53 -> 0 | T53: =IF(R53=0,0,IF(Y53>wST.Jahr,0,MAX(0,MIN(Q53,Q53/R53)))) -> 0 | U53: 0 | V53: 0 | W53: 0 | X53: 0 | Y53: 1900 | Z53: 0 | AB53: 0 | AC53: 0 | AD53: 0 | AE53: 0 | AF53: 0 | AG53: 0
A54: =X54>0 -> FALSE | N54: 0 | O54: 0 | P54: 1 | Q54: 0 | R54: 0 | S54: =T54+U54 -> 0 | T54: =IF(R54=0,0,IF(Y54>wST.Jahr,0,MAX(0,MIN(Q54,Q54/R54)))) -> 0 | U54: 0 | V54: 0 | W54: 0 | X54: 0 | Y54: 1900 | Z54: 0 | AB54: 0 | AC54: 0 | AD54: 0 | AE54: 0 | AF54: 0 | AG54: 0
A55: =X55>0 -> FALSE | N55: 0 | O55: 0 | P55: 1 | Q55: 0 | R55: 0 | S55: =T55+U55 -> 0 | T55: =IF(R55=0,0,IF(Y55>wST.Jahr,0,MAX(0,MIN(Q55,Q55/R55)))) -> 0 | U55: 0 | V55: 0 | W55: 0 | X55: 0 | Y55: 1900 | Z55: 0 | AB55: 0 | AC55: 0 | AD55: 0 | AE55: 0 | AF55: 0 | AG55: 0
A56: =X56>0 -> FALSE | N56: 0 | O56: 0 | P56: 1 | Q56: 0 | R56: 0 | S56: =T56+U56 -> 0 | T56: =IF(R56=0,0,IF(Y56>wST.Jahr,0,MAX(0,MIN(Q56,Q56/R56)))) -> 0 | U56: 0 | V56: 0 | W56: 0 | X56: 0 | Y56: 1900 | Z56: 0 | AB56: 0 | AC56: 0 | AD56: 0 | AE56: 0 | AF56: 0 | AG56: 0
A57: =X57>0 -> FALSE | N57: 0 | O57: 0 | P57: 1 | Q57: 0 | R57: 0 | S57: =T57+U57 -> 0 | T57: =IF(R57=0,0,IF(Y57>wST.Jahr,0,MAX(0,MIN(Q57,Q57/R57)))) -> 0 | U57: 0 | V57: 0 | W57: 0 | X57: 0 | Y57: 1900 | Z57: 0 | AB57: 0 | AC57: 0 | AD57: 0 | AE57: 0 | AF57: 0 | AG57: 0
A58: =X58>0 -> FALSE | N58: 0 | O58: 0 | P58: 1 | Q58: 0 | R58: 0 | S58: =T58+U58 -> 0 | T58: =IF(R58=0,0,IF(Y58>wST.Jahr,0,MAX(0,MIN(Q58,Q58/R58)))) -> 0 | U58: 0 | V58: 0 | W58: 0 | X58: 0 | Y58: 1900 | Z58: 0 | AB58: 0 | AC58: 0 | AD58: 0 | AE58: 0 | AF58: 0 | AG58: 0
A59: =X59>0 -> FALSE | N59: 0 | O59: 0 | P59: 1 | Q59: 0 | R59: 0 | S59: =T59+U59 -> 0 | T59: =IF(R59=0,0,IF(Y59>wST.Jahr,0,MAX(0,MIN(Q59,Q59/R59)))) -> 0 | U59: 0 | V59: 0 | W59: 0 | X59: 0 | Y59: 1900 | Z59: 0 | AB59: 0 | AC59: 0 | AD59: 0 | AE59: 0 | AF59: 0 | AG59: 0
A60: =X60>0 -> FALSE | N60: 0 | O60: 0 | P60: 1 | Q60: 0 | R60: 0 | S60: =T60+U60 -> 0 | T60: =IF(R60=0,0,IF(Y60>wST.Jahr,0,MAX(0,MIN(Q60,Q60/R60)))) -> 0 | U60: 0 | V60: 0 | W60: 0 | X60: 0 | Y60: 1900 | Z60: 0 | AB60: 0 | AC60: 0 | AD60: 0 | AE60: 0 | AF60: 0 | AG60: 0
A61: =X61>0 -> FALSE | N61: 0 | O61: 0 | P61: 1 | Q61: 0 | R61: 0 | S61: =T61+U61 -> 0 | T61: =IF(R61=0,0,IF(Y61>wST.Jahr,0,MAX(0,MIN(Q61,Q61/R61)))) -> 0 | U61: 0 | V61: 0 | W61: 0 | X61: 0 | Y61: 1900 | Z61: 0 | AB61: 0 | AC61: 0 | AD61: 0 | AE61: 0 | AF61: 0 | AG61: 0
A62: =X62>0 -> FALSE | N62: 0 | O62: 0 | P62: 1 | Q62: 0 | R62: 0 | S62: =T62+U62 -> 0 | T62: 0 | U62: 0 | V62: 0 | W62: 0 | X62: 0 | Y62: 1900 | Z62: 0 | AB62: 0 | AC62: 0 | AD62: 0 | AE62: 0 | AF62: 0 | AG62: 0
A63: =N63>0 -> FALSE | B63: 6 | C63: Sonstige Grundstückseinrichtungen | I63: =SUMPRODUCT(I64:I67,$X64:$X67) -> 0 | J63: =SUMPRODUCT(J64:J67,$X64:$X67) -> 0 | K63: =SUMPRODUCT(K64:K67,$X64:$X67) -> 0 | N63: =SUMPRODUCT(N64:N67,$X64:$X67) -> 0 | O63: =SUMPRODUCT(O64:O67,$X64:$X67) -> 0 | S63: =SUMPRODUCT(S64:S67,$X64:$X67) -> 0 | T63: =SUMPRODUCT(T64:T67,$X64:$X67) -> 0 | V63: =SUMPRODUCT(V64:V67,$X64:$X67) -> 0 | W63: =SUMPRODUCT(W64:W67,$X64:$X67) -> 0 | Z63: =SUM(Z64:Z67) -> 0
A64: =X64>0 -> FALSE | M64: =IF(AND(L64="",C64=""),"",IF(AND(C64<>"",L64=""),"Keine Zuordnung",IF(OR(L64=$AB$6,L64=$AC$6,L64=$AD$6),"OK","Falsche Kostenstelle"))) ->  | N64: =IF(AND(Y64+H64<=wST.Jahr,J64<>0,NOT(ISBLANK(H64))),"Zugang ungültig!",IF(Y64>wST.Jahr,0,SUM(I64,J64,-K64))) -> 0 | O64: =IF(H64=0,0,IF(Y64>=wST.Jahr,0,MAX(0,MIN(I64,I64/H64*(wST.Jahr-Y64)-I64/H64*IF(MONTH(G64)>6,0.5,0))))) -> 0 | P64: =IF(SUM(I64,J64)=0,1,1-K64/SUM(I64,J64)) -> 1 | Q64: =(J64+I64-O64)*P64 -> 0 | R64: =MAX(0,(Y64+H64-wST.Jahr+IF(AND(Y64<>wST.Jahr,MONTH(G64)>6),0.5,0))*IF(AND(Y64=wST.Jahr,MONTH(G64)>6),2,1)) -> 0 | S64: =T64+U64 -> 0 | T64: =IF(R64=0,0,IF(Y64>wST.Jahr,0,MAX(0,MIN(Q64,Q64/R64)))) -> 0 | U64: =(J64+I64-O64)*(1-P64) -> 0 | V64: =MIN(I64+J64,O64+T64+U64) -> 0 | W64: =IF(Y64>wST.Jahr,0,I64+J64-V64) -> 0 | X64: =IF(C64=0,0,IF(VALUE(LEFT(C64,3))=wST.Ansatz,1,0)) -> 0 | Y64: =YEAR(G64) -> 1900 | Z64: =IF(Y64>wST.Jahr-1,0,I64*X64) -> 0 | AB64: =IF($L64=AB$6,$S64,) -> 0 | AC64: 0 | AD64: 0 | AE64: =IF($L64=AE$6,$W64,) -> 0 | AF64: 0 | AG64: 0
A65: =X65>0 -> FALSE | M65: =IF(AND(L65="",C65=""),"",IF(AND(C65<>"",L65=""),"Keine Zuordnung",IF(OR(L65=$AB$6,L65=$AC$6,L65=$AD$6),"OK","Falsche Kostenstelle"))) ->  | N65: =IF(AND(Y65+H65<=wST.Jahr,J65<>0,NOT(ISBLANK(H65))),"Zugang ungültig!",IF(Y65>wST.Jahr,0,SUM(I65,J65,-K65))) -> 0 | O65: =IF(H65=0,0,IF(Y65>=wST.Jahr,0,MAX(0,MIN(I65,I65/H65*(wST.Jahr-Y65)-I65/H65*IF(MONTH(G65)>6,0.5,0))))) -> 0 | P65: =IF(SUM(I65,J65)=0,1,1-K65/SUM(I65,J65)) -> 1 | Q65: =(J65+I65-O65)*P65 -> 0 | R65: =MAX(0,(Y65+H65-wST.Jahr+IF(AND(Y65<>wST.Jahr,MONTH(G65)>6),0.5,0))*IF(AND(Y65=wST.Jahr,MONTH(G65)>6),2,1)) -> 0 | S65: =T65+U65 -> 0 | T65: =IF(R65=0,0,IF(Y65>wST.Jahr,0,MAX(0,MIN(Q65,Q65/R65)))) -> 0 | U65: =(J65+I65-O65)*(1-P65) -> 0 | V65: =MIN(I65+J65,O65+T65+U65) -> 0 | W65: =IF(Y65>wST.Jahr,0,I65+J65-V65) -> 0 | X65: =IF(C65=0,0,IF(VALUE(LEFT(C65,3))=wST.Ansatz,1,0)) -> 0 | Y65: =YEAR(G65) -> 1900 | Z65: =IF(Y65>wST.Jahr-1,0,I65*X65) -> 0 | AB65: 0 | AC65: 0 | AD65: 0 | AE65: 0 | AF65: 0 | AG65: 0
A66: =X66>0 -> FALSE | M66: =IF(AND(L66="",C66=""),"",IF(AND(C66<>"",L66=""),"Keine Zuordnung",IF(OR(L66=$AB$6,L66=$AC$6,L66=$AD$6),"OK","Falsche Kostenstelle"))) ->  | N66: =IF(AND(Y66+H66<=wST.Jahr,J66<>0,NOT(ISBLANK(H66))),"Zugang ungültig!",IF(Y66>wST.Jahr,0,SUM(I66,J66,-K66))) -> 0 | O66: =IF(H66=0,0,IF(Y66>=wST.Jahr,0,MAX(0,MIN(I66,I66/H66*(wST.Jahr-Y66)-I66/H66*IF(MONTH(G66)>6,0.5,0))))) -> 0 | P66: =IF(SUM(I66,J66)=0,1,1-K66/SUM(I66,J66)) -> 1 | Q66: =(J66+I66-O66)*P66 -> 0 | R66: =MAX(0,(Y66+H66-wST.Jahr+IF(AND(Y66<>wST.Jahr,MONTH(G66)>6),0.5,0))*IF(AND(Y66=wST.Jahr,MONTH(G66)>6),2,1)) -> 0 | S66: =T66+U66 -> 0 | T66: =IF(R66=0,0,IF(Y66>wST.Jahr,0,MAX(0,MIN(Q66,Q66/R66)))) -> 0 | U66: =(J66+I66-O66)*(1-P66) -> 0 | V66: =MIN(I66+J66,O66+T66+U66) -> 0 | W66: =IF(Y66>wST.Jahr,0,I66+J66-V66) -> 0 | X66: =IF(C66=0,0,IF(VALUE(LEFT(C66,3))=wST.Ansatz,1,0)) -> 0 | Y66: =YEAR(G66) -> 1900 | Z66: =IF(Y66>wST.Jahr-1,0,I66*X66) -> 0 | AB66: 0 | AC66: 0 | AD66: 0 | AE66: 0 | AF66: 0 | AG66: 0
A67: =X67>0 -> FALSE | M67: =IF(AND(L67="",C67=""),"",IF(AND(C67<>"",L67=""),"Keine Zuordnung",IF(OR(L67=$AB$6,L67=$AC$6,L67=$AD$6),"OK","Falsche Kostenstelle"))) ->  | N67: =IF(AND(Y67+H67<=wST.Jahr,J67<>0,NOT(ISBLANK(H67))),"Zugang ungültig!",IF(Y67>wST.Jahr,0,SUM(I67,J67,-K67))) -> 0 | O67: =IF(H67=0,0,IF(Y67>=wST.Jahr,0,MAX(0,MIN(I67,I67/H67*(wST.Jahr-Y67)-I67/H67*IF(MONTH(G67)>6,0.5,0))))) -> 0 | P67: =IF(SUM(I67,J67)=0,1,1-K67/SUM(I67,J67)) -> 1 | Q67: =(J67+I67-O67)*P67 -> 0 | R67: =MAX(0,(Y67+H67-wST.Jahr+IF(AND(Y67<>wST.Jahr,MONTH(G67)>6),0.5,0))*IF(AND(Y67=wST.Jahr,MONTH(G67)>6),2,1)) -> 0 | S67: =T67+U67 -> 0 | T67: =IF(R67=0,0,IF(Y67>wST.Jahr,0,MAX(0,MIN(Q67,Q67/R67)))) -> 0 | U67: =(J67+I67-O67)*(1-P67) -> 0 | V67: =MIN(I67+J67,O67+T67+U67) -> 0 | W67: =IF(Y67>wST.Jahr,0,I67+J67-V67) -> 0 | X67: =IF(C67=0,0,IF(VALUE(LEFT(C67,3))=wST.Ansatz,1,0)) -> 0 | Y67: =YEAR(G67) -> 1900 | Z67: =IF(Y67>wST.Jahr-1,0,I67*X67) -> 0 | AB67: 0 | AC67: 0 | AD67: 0 | AE67: 0 | AF67: 0 | AG67: 0
A68: =A7 -> FALSE | X68: =IF(C68=0,0,IF(VALUE(LEFT(C68,3))=wST.Ansatz,1,0)) -> 0
A69: =N69>0 -> FALSE | B69: 1 | C69: GEBÄUDE UND BAUTEN | I69: =I70 -> 0 | J69: =J70 -> 0 | K69: =K70 -> 0 | N69: =N70 -> 0 | O69: =O70 -> 0 | S69: =S70 -> 0 | T69: =T70 -> 0 | V69: =V70 -> 0 | W69: =W70 -> 0
A70: =N70>0 -> FALSE | B70: 10 | C70: Gebäude und Bauten | I70: =SUMPRODUCT(I71:I74,$X71:$X74) -> 0 | J70: =SUMPRODUCT(J71:J74,$X71:$X74) -> 0 | K70: =SUMPRODUCT(K71:K74,$X71:$X74) -> 0 | N70: =SUMPRODUCT(N71:N74,$X71:$X74) -> 0 | O70: =SUMPRODUCT(O71:O74,$X71:$X74) -> 0 | S70: =SUMPRODUCT(S71:S74,$X71:$X74) -> 0 | T70: =SUMPRODUCT(T71:T74,$X71:$X74) -> 0 | V70: =SUMPRODUCT(V71:V74,$X71:$X74) -> 0 | W70: =SUMPRODUCT(W71:W74,$X71:$X74) -> 0 | Z70: =SUM(Z71:Z74) -> 0
A71: =X71>0 -> FALSE | M71: =IF(AND(L71="",C71=""),"",IF(AND(C71<>"",L71=""),"Keine Zuordnung",IF(OR(L71=$AB$6,L71=$AC$6,L71=$AD$6),"OK","Falsche Kostenstelle"))) ->  | N71: =IF(AND(Y71+H71<=wST.Jahr,J71<>0,NOT(ISBLANK(H71))),"Zugang ungültig!",IF(Y71>wST.Jahr,0,SUM(I71,J71,-K71))) -> 0 | O71: =IF(H71=0,0,IF(Y71>=wST.Jahr,0,MAX(0,MIN(I71,I71/H71*(wST.Jahr-Y71)-I71/H71*IF(MONTH(G71)>6,0.5,0))))) -> 0 | P71: =IF(SUM(I71,J71)=0,1,1-K71/SUM(I71,J71)) -> 1 | Q71: =(J71+I71-O71)*P71 -> 0 | R71: =MAX(0,(Y71+H71-wST.Jahr+IF(AND(Y71<>wST.Jahr,MONTH(G71)>6),0.5,0))*IF(AND(Y71=wST.Jahr,MONTH(G71)>6),2,1)) -> 0 | S71: =T71+U71 -> 0 | T71: =IF(R71=0,0,IF(Y71>wST.Jahr,0,MAX(0,MIN(Q71,Q71/R71)))) -> 0 | U71: =(J71+I71-O71)*(1-P71) -> 0 | V71: =MIN(I71+J71,O71+T71+U71) -> 0 | W71: =IF(Y71>wST.Jahr,0,I71+J71-V71) -> 0 | X71: =IF(C71=0,0,IF(VALUE(LEFT(C71,3))=wST.Ansatz,1,0)) -> 0 | Y71: =YEAR(G71) -> 1900 | Z71: =IF(Y71>wST.Jahr-1,0,I71*X71) -> 0 | AB71: =IF($L71=AB$6,$S71,) -> 0 | AC71: 0 | AD71: 0 | AE71: =IF($L71=AE$6,$W71,) -> 0 | AF71: 0 | AG71: 0
A72: FALSE | M72: =IF(AND(L72="",C72=""),"",IF(AND(C72<>"",L72=""),"Keine Zuordnung",IF(OR(L72=$AB$6,L72=$AC$6,L72=$AD$6),"OK","Falsche Kostenstelle"))) ->  | N72: =IF(AND(Y72+H72<=wST.Jahr,J72<>0,NOT(ISBLANK(H72))),"Zugang ungültig!",IF(Y72>wST.Jahr,0,SUM(I72,J72,-K72))) -> 0 | O72: =IF(H72=0,0,IF(Y72>=wST.Jahr,0,MAX(0,MIN(I72,I72/H72*(wST.Jahr-Y72)-I72/H72*IF(MONTH(G72)>6,0.5,0))))) -> 0 | P72: =IF(SUM(I72,J72)=0,1,1-K72/SUM(I72,J72)) -> 1 | Q72: =(J72+I72-O72)*P72 -> 0 | R72: =MAX(0,(Y72+H72-wST.Jahr+IF(AND(Y72<>wST.Jahr,MONTH(G72)>6),0.5,0))*IF(AND(Y72=wST.Jahr,MONTH(G72)>6),2,1)) -> 0 | S72: 0 | T72: =IF(R72=0,0,IF(Y72>wST.Jahr,0,MAX(0,MIN(Q72,Q72/R72)))) -> 0 | U72: =(J72+I72-O72)*(1-P72) -> 0 | V72: =MIN(I72+J72,O72+T72+U72) -> 0 | W72: =IF(Y72>wST.Jahr,0,I72+J72-V72) -> 0 | X72: =IF(C72=0,0,IF(VALUE(LEFT(C72,3))=wST.Ansatz,1,0)) -> 0 | Y72: =YEAR(G72) -> 1900 | Z72: =IF(Y72>wST.Jahr-1,0,I72*X72) -> 0 | AB72: 0 | AC72: 0 | AD72: 0 | AE72: 0 | AF72: 0 | AG72: 0
A73: =X73>0 -> FALSE | M73: =IF(AND(L73="",C73=""),"",IF(AND(C73<>"",L73=""),"Keine Zuordnung",IF(OR(L73=$AB$6,L73=$AC$6,L73=$AD$6),"OK","Falsche Kostenstelle"))) ->  | N73: =IF(AND(Y73+H73<=wST.Jahr,J73<>0,NOT(ISBLANK(H73))),"Zugang ungültig!",IF(Y73>wST.Jahr,0,SUM(I73,J73,-K73))) -> 0 | O73: =IF(H73=0,0,IF(Y73>=wST.Jahr,0,MAX(0,MIN(I73,I73/H73*(wST.Jahr-Y73)-I73/H73*IF(MONTH(G73)>6,0.5,0))))) -> 0 | P73: =IF(SUM(I73,J73)=0,1,1-K73/SUM(I73,J73)) -> 1 | Q73: =(J73+I73-O73)*P73 -> 0 | R73: =MAX(0,(Y73+H73-wST.Jahr+IF(AND(Y73<>wST.Jahr,MONTH(G73)>6),0.5,0))*IF(AND(Y73=wST.Jahr,MONTH(G73)>6),2,1)) -> 0 | S73: =T73+U73 -> 0 | T73: =IF(R73=0,0,IF(Y73>wST.Jahr,0,MAX(0,MIN(Q73,Q73/R73)))) -> 0 | U73: =(J73+I73-O73)*(1-P73) -> 0 | V73: =MIN(I73+J73,O73+T73+U73) -> 0 | W73: =IF(Y73>wST.Jahr,0,I73+J73-V73) -> 0 | X73: =IF(C73=0,0,IF(VALUE(LEFT(C73,3))=wST.Ansatz,1,0)) -> 0 | Y73: =YEAR(G73) -> 1900 | Z73: =IF(Y73>wST.Jahr-1,0,I73*X73) -> 0 | AB73: 0 | AC73: 0 | AD73: 0 | AE73: 0 | AF73: 0 | AG73: 0
A74: FALSE | M74: =IF(AND(L74="",C74=""),"",IF(AND(C74<>"",L74=""),"Keine Zuordnung",IF(OR(L74=$AB$6,L74=$AC$6,L74=$AD$6),"OK","Falsche Kostenstelle"))) ->  | N74: =IF(AND(Y74+H74<=wST.Jahr,J74<>0,NOT(ISBLANK(H74))),"Zugang ungültig!",IF(Y74>wST.Jahr,0,SUM(I74,J74,-K74))) -> 0 | O74: =IF(H74=0,0,IF(Y74>=wST.Jahr,0,MAX(0,MIN(I74,I74/H74*(wST.Jahr-Y74)-I74/H74*IF(MONTH(G74)>6,0.5,0))))) -> 0 | P74: =IF(SUM(I74,J74)=0,1,1-K74/SUM(I74,J74)) -> 1 | Q74: =(J74+I74-O74)*P74 -> 0 | R74: =MAX(0,(Y74+H74-wST.Jahr+IF(AND(Y74<>wST.Jahr,MONTH(G74)>6),0.5,0))*IF(AND(Y74=wST.Jahr,MONTH(G74)>6),2,1)) -> 0 | S74: 0 | T74: =IF(R74=0,0,IF(Y74>wST.Jahr,0,MAX(0,MIN(Q74,Q74/R74)))) -> 0 | U74: =(J74+I74-O74)*(1-P74) -> 0 | V74: =MIN(I74+J74,O74+T74+U74) -> 0 | W74: =IF(Y74>wST.Jahr,0,I74+J74-V74) -> 0 | X74: =IF(C74=0,0,IF(VALUE(LEFT(C74,3))=wST.Ansatz,1,0)) -> 0 | Y74: =YEAR(G74) -> 1900 | Z74: =IF(Y74>wST.Jahr-1,0,I74*X74) -> 0 | AB74: 0 | AC74: 0 | AD74: 0 | AE74: 0 | AF74: 0 | AG74: 0
A75: =A69 -> FALSE | X75: =IF(C75=0,0,IF(VALUE(LEFT(C75,3))=wST.Ansatz,1,0)) -> 0
A76: =N76>0 -> FALSE | B76: 2 | C76: MASCHINEN UND MASCHINELLE ANLAGEN | I76: =I77 -> 0 | J76: =J77 -> 0 | K76: =K77 -> 0 | N76: =N77 -> 0 | O76: =O77 -> 0 | S76: =S77 -> 0 | T76: =T77 -> 0 | V76: =V77 -> 0 | W76: =W77 -> 0
A77: =N77>0 -> FALSE | B77: 20 | C77: Maschinen und maschinelle Anlagen | I77: =SUMPRODUCT(I78:I88,$X78:$X88) -> 0 | J77: =SUMPRODUCT(J78:J88,$X78:$X88) -> 0 | K77: =SUMPRODUCT(K78:K88,$X78:$X88) -> 0 | N77: =SUMPRODUCT(N78:N88,$X78:$X88) -> 0 | O77: =SUMPRODUCT(O78:O88,$X78:$X88) -> 0 | S77: =SUMPRODUCT(S78:S88,$X78:$X88) -> 0 | T77: =SUMPRODUCT(T78:T88,$X78:$X88) -> 0 | V77: =SUMPRODUCT(V78:V88,$X78:$X88) -> 0 | W77: =SUMPRODUCT(W78:W88,$X78:$X88) -> 0 | Z77: =SUM(Z78:Z88) -> 0
A78: =N78>0 -> FALSE | M78: =IF(AND(L78="",C78=""),"",IF(AND(C78<>"",L78=""),"Keine Zuordnung",IF(OR(L78=$AB$6,L78=$AC$6,L78=$AD$6),"OK","Falsche Kostenstelle"))) ->  | N78: =IF(AND(Y78+H78<=wST.Jahr,J78<>0,NOT(ISBLANK(H78))),"Zugang ungültig!",IF(Y78>wST.Jahr,0,SUM(I78,J78,-K78))) -> 0 | O78: =IF(H78=0,0,IF(Y78>=wST.Jahr,0,MAX(0,MIN(I78,I78/H78*(wST.Jahr-Y78)-I78/H78*IF(MONTH(G78)>6,0.5,0))))) -> 0 | P78: =IF(SUM(I78,J78)=0,1,1-K78/SUM(I78,J78)) -> 1 | Q78: =(J78+I78-O78)*P78 -> 0 | R78: =MAX(0,(Y78+H78-wST.Jahr+IF(AND(Y78<>wST.Jahr,MONTH(G78)>6),0.5,0))*IF(AND(Y78=wST.Jahr,MONTH(G78)>6),2,1)) -> 0 | S78: =T78+U78 -> 0 | T78: =IF(R78=0,0,IF(Y78>wST.Jahr,0,MAX(0,MIN(Q78,Q78/R78)))) -> 0 | U78: =(J78+I78-O78)*(1-P78) -> 0 | V78: =MIN(I78+J78,O78+T78+U78) -> 0 | W78: =IF(Y78>wST.Jahr,0,I78+J78-V78) -> 0 | X78: =IF(C78=0,0,IF(VALUE(LEFT(C78,3))=wST.Ansatz,1,0)) -> 0 | Y78: =YEAR(G78) -> 1900 | Z78: =IF(Y78>wST.Jahr-1,0,I78*X78) -> 0 | AB78: =IF($L78=AB$6,$S78,) -> 0 | AC78: 0 | AD78: 0 | AE78: =IF($L78=AE$6,$W78,) -> 0 | AF78: 0 | AG78: 0
A79: FALSE | N79: 0 | O79: 0 | P79: 1 | Q79: 0 | R79: 0 | S79: 0 | T79: 0 | U79: 0 | V79: 0 | W79: 0 | X79: 0 | Y79: 1900 | Z79: 0 | AB79: 0 | AC79: 0 | AD79: 0 | AE79: 0 | AF79: 0 | AG79: 0
A80: FALSE | N80: 0 | O80: 0 | P80: 1 | Q80: 0 | R80: 0 | S80: =T80+U80 -> 0 | T80: 0 | U80: 0 | V80: 0 | W80: 0 | X80: 0 | Y80: 1900 | Z80: 0 | AB80: 0 | AC80: 0 | AD80: 0 | AE80: 0 | AF80: 0 | AG80: 0
A81: FALSE | N81: 0 | O81: 0 | P81: 1 | Q81: 0 | R81: 0 | S81: =T81+U81 -> 0 | T81: 0 | U81: 0 | V81: 0 | W81: 0 | X81: 0 | Y81: 1900 | Z81: 0 | AB81: 0 | AC81: 0 | AD81: 0 | AE81: 0 | AF81: 0 | AG81: 0
A82: =N82>0 -> FALSE | N82: 0 | O82: 0 | P82: 1 | Q82: 0 | R82: 0 | S82: =T82+U82 -> 0 | T82: 0 | U82: 0 | V82: 0 | W82: 0 | X82: 0 | Y82: 1900 | Z82: 0 | AB82: 0 | AC82: 0 | AD82: 0 | AE82: 0 | AF82: 0 | AG82: 0
A83: =N83>0 -> FALSE | N83: 0 | O83: 0 | P83: 1 | Q83: 0 | R83: 0 | S83: =T83+U83 -> 0 | T83: 0 | U83: 0 | V83: 0 | W83: 0 | X83: 0 | Y83: 1900 | Z83: 0 | AB83: 0 | AC83: 0 | AD83: 0 | AE83: 0 | AF83: 0 | AG83: 0
A84: =N84>0 -> FALSE | N84: 0 | O84: 0 | P84: 1 | Q84: 0 | R84: 0 | S84: =T84+U84 -> 0 | T84: 0 | U84: 0 | V84: 0 | W84: 0 | X84: 0 | Y84: 1900 | Z84: 0 | AB84: 0 | AC84: 0 | AD84: 0 | AE84: 0 | AF84: 0 | AG84: 0
A85: =N85>0 -> FALSE | N85: 0 | O85: 0 | P85: 1 | Q85: 0 | R85: 0 | S85: =T85+U85 -> 0 | T85: 0 | U85: 0 | V85: 0 | W85: 0 | X85: 0 | Y85: 1900 | Z85: 0 | AB85: 0 | AC85: 0 | AD85: 0 | AE85: 0 | AF85: 0 | AG85: 0
A86: =N86>0 -> FALSE | N86: 0 | O86: 0 | P86: 1 | Q86: 0 | R86: 0 | S86: =T86+U86 -> 0 | T86: 0 | U86: 0 | V86: 0 | W86: 0 | X86: 0 | Y86: 1900 | Z86: 0 | AB86: 0 | AC86: 0 | AD86: 0 | AE86: 0 | AF86: 0 | AG86: 0
A87: =N87>0 -> FALSE | N87: 0 | O87: 0 | P87: 1 | Q87: 0 | R87: 0 | S87: =T87+U87 -> 0 | T87: =IF(R87=0,0,IF(Y87>wST.Jahr,0,MAX(0,MIN(Q87,Q87/R87)))) -> 0 | U87: 0 | V87: 0 | W87: 0 | X87: 0 | Y87: 1900 | Z87: 0 | AB87: 0 | AC87: 0 | AD87: 0 | AE87: 0 | AF87: 0 | AG87: 0
A88: FALSE | N88: 0 | O88: 0 | P88: 1 | Q88: 0 | R88: 0 | S88: =T88+U88 -> 0 | T88: 0 | U88: 0 | V88: 0 | W88: 0 | X88: 0 | Y88: 1900 | Z88: 0 | AB88: 0 | AC88: 0 | AD88: 0 | AE88: 0 | AF88: 0 | AG88: 0
A89: =A76 -> FALSE | X89: 0
A90: =N90>0 -> FALSE | B90: 3 | C90: WERKZEUGE U. SONSTIGE ERZEUGUNGSMITTEL | I90: =I91 -> 0 | J90: =J91 -> 0 | K90: =K91 -> 0 | N90: =N91 -> 0 | O90: =O91 -> 0 | S90: =S91 -> 0 | T90: =T91 -> 0 | V90: =V91 -> 0 | W90: =W91 -> 0
A91: =N91>0 -> FALSE | B91: 30 | C91: Werkzeuge und sonstige Erzeugungsmittel | I91: =SUMPRODUCT(I92:I95,$X92:$X95) -> 0 | J91: =SUMPRODUCT(J92:J95,$X92:$X95) -> 0 | K91: =SUMPRODUCT(K92:K95,$X92:$X95) -> 0 | N91: =SUMPRODUCT(N92:N95,$X92:$X95) -> 0 | O91: =SUMPRODUCT(O92:O95,$X92:$X95) -> 0 | S91: =SUMPRODUCT(S92:S95,$X92:$X95) -> 0 | T91: =SUMPRODUCT(T92:T95,$X92:$X95) -> 0 | V91: =SUMPRODUCT(V92:V95,$X92:$X95) -> 0 | W91: =SUMPRODUCT(W92:W95,$X92:$X95) -> 0 | Z91: =SUM(Z92:Z95) -> 0
A92: =X92>0 -> FALSE | M92: =IF(AND(L92="",C92=""),"",IF(AND(C92<>"",L92=""),"Keine Zuordnung",IF(OR(L92=$AB$6,L92=$AC$6,L92=$AD$6),"OK","Falsche Kostenstelle"))) ->  | N92: =IF(AND(Y92+H92<=wST.Jahr,J92<>0,NOT(ISBLANK(H92))),"Zugang ungültig!",IF(Y92>wST.Jahr,0,SUM(I92,J92,-K92))) -> 0 | O92: =IF(H92=0,0,IF(Y92>=wST.Jahr,0,MAX(0,MIN(I92,I92/H92*(wST.Jahr-Y92)-I92/H92*IF(MONTH(G92)>6,0.5,0))))) -> 0 | P92: =IF(SUM(I92,J92)=0,1,1-K92/SUM(I92,J92)) -> 1 | Q92: =(J92+I92-O92)*P92 -> 0 | R92: =MAX(0,(Y92+H92-wST.Jahr+IF(AND(Y92<>wST.Jahr,MONTH(G92)>6),0.5,0))*IF(AND(Y92=wST.Jahr,MONTH(G92)>6),2,1)) -> 0 | S92: =T92+U92 -> 0 | T92: =IF(R92=0,0,IF(Y92>wST.Jahr,0,MAX(0,MIN(Q92,Q92/R92)))) -> 0 | U92: =(J92+I92-O92)*(1-P92) -> 0 | V92: =MIN(I92+J92,O92+T92+U92) -> 0 | W92: =IF(Y92>wST.Jahr,0,I92+J92-V92) -> 0 | X92: =IF(C92=0,0,IF(VALUE(LEFT(C92,3))=wST.Ansatz,1,0)) -> 0 | Y92: =YEAR(G92) -> 1900 | Z92: =IF(Y92>wST.Jahr-1,0,I92*X92) -> 0 | AB92: =IF($L92=AB$6,$S92,) -> 0 | AC92: 0 | AD92: 0 | AE92: =IF($L92=AE$6,$W92,) -> 0 | AF92: 0 | AG92: 0
A93: FALSE | M93: =IF(AND(L93="",C93=""),"",IF(AND(C93<>"",L93=""),"Keine Zuordnung",IF(OR(L93=$AB$6,L93=$AC$6,L93=$AD$6),"OK","Falsche Kostenstelle"))) ->  | N93: =IF(AND(Y93+H93<=wST.Jahr,J93<>0,NOT(ISBLANK(H93))),"Zugang ungültig!",IF(Y93>wST.Jahr,0,SUM(I93,J93,-K93))) -> 0 | O93: =IF(H93=0,0,IF(Y93>=wST.Jahr,0,MAX(0,MIN(I93,I93/H93*(wST.Jahr-Y93)-I93/H93*IF(MONTH(G93)>6,0.5,0))))) -> 0 | P93: =IF(SUM(I93,J93)=0,1,1-K93/SUM(I93,J93)) -> 1 | Q93: =(J93+I93-O93)*P93 -> 0 | R93: =MAX(0,(Y93+H93-wST.Jahr+IF(AND(Y93<>wST.Jahr,MONTH(G93)>6),0.5,0))*IF(AND(Y93=wST.Jahr,MONTH(G93)>6),2,1)) -> 0 | S93: 0 | T93: =IF(R93=0,0,IF(Y93>wST.Jahr,0,MAX(0,MIN(Q93,Q93/R93)))) -> 0 | U93: =(J93+I93-O93)*(1-P93) -> 0 | V93: =MIN(I93+J93,O93+T93+U93) -> 0 | W93: =IF(Y93>wST.Jahr,0,I93+J93-V93) -> 0 | X93: =IF(C93=0,0,IF(VALUE(LEFT(C93,3))=wST.Ansatz,1,0)) -> 0 | Y93: =YEAR(G93) -> 1900 | Z93: =IF(Y93>wST.Jahr-1,0,I93*X93) -> 0 | AB93: 0 | AC93: 0 | AD93: 0 | AE93: 0 | AF93: 0 | AG93: 0
A94: =X94>0 -> FALSE | M94: =IF(AND(L94="",C94=""),"",IF(AND(C94<>"",L94=""),"Keine Zuordnung",IF(OR(L94=$AB$6,L94=$AC$6,L94=$AD$6),"OK","Falsche Kostenstelle"))) ->  | N94: =IF(AND(Y94+H94<=wST.Jahr,J94<>0,NOT(ISBLANK(H94))),"Zugang ungültig!",IF(Y94>wST.Jahr,0,SUM(I94,J94,-K94))) -> 0 | O94: =IF(H94=0,0,IF(Y94>=wST.Jahr,0,MAX(0,MIN(I94,I94/H94*(wST.Jahr-Y94)-I94/H94*IF(MONTH(G94)>6,0.5,0))))) -> 0 | P94: =IF(SUM(I94,J94)=0,1,1-K94/SUM(I94,J94)) -> 1 | Q94: =(J94+I94-O94)*P94 -> 0 | R94: =MAX(0,(Y94+H94-wST.Jahr+IF(AND(Y94<>wST.Jahr,MONTH(G94)>6),0.5,0))*IF(AND(Y94=wST.Jahr,MONTH(G94)>6),2,1)) -> 0 | S94: =T94+U94 -> 0 | T94: =IF(R94=0,0,IF(Y94>wST.Jahr,0,MAX(0,MIN(Q94,Q94/R94)))) -> 0 | U94: =(J94+I94-O94)*(1-P94) -> 0 | V94: =MIN(I94+J94,O94+T94+U94) -> 0 | W94: =IF(Y94>wST.Jahr,0,I94+J94-V94) -> 0 | X94: =IF(C94=0,0,IF(VALUE(LEFT(C94,3))=wST.Ansatz,1,0)) -> 0 | Y94: =YEAR(G94) -> 1900 | Z94: =IF(Y94>wST.Jahr-1,0,I94*X94) -> 0 | AB94: 0 | AC94: 0 | AD94: 0 | AE94: 0 | AF94: 0 | AG94: 0
A95: FALSE | M95: =IF(AND(L95="",C95=""),"",IF(AND(C95<>"",L95=""),"Keine Zuordnung",IF(OR(L95=$AB$6,L95=$AC$6,L95=$AD$6),"OK","Falsche Kostenstelle"))) ->  | N95: =IF(AND(Y95+H95<=wST.Jahr,J95<>0,NOT(ISBLANK(H95))),"Zugang ungültig!",IF(Y95>wST.Jahr,0,SUM(I95,J95,-K95))) -> 0 | O95: =IF(H95=0,0,IF(Y95>=wST.Jahr,0,MAX(0,MIN(I95,I95/H95*(wST.Jahr-Y95)-I95/H95*IF(MONTH(G95)>6,0.5,0))))) -> 0 | P95: =IF(SUM(I95,J95)=0,1,1-K95/SUM(I95,J95)) -> 1 | Q95: =(J95+I95-O95)*P95 -> 0 | R95: =MAX(0,(Y95+H95-wST.Jahr+IF(AND(Y95<>wST.Jahr,MONTH(G95)>6),0.5,0))*IF(AND(Y95=wST.Jahr,MONTH(G95)>6),2,1)) -> 0 | S95: 0 | T95: =IF(R95=0,0,IF(Y95>wST.Jahr,0,MAX(0,MIN(Q95,Q95/R95)))) -> 0 | U95: =(J95+I95-O95)*(1-P95) -> 0 | V95: =MIN(I95+J95,O95+T95+U95) -> 0 | W95: =IF(Y95>wST.Jahr,0,I95+J95-V95) -> 0 | X95: =IF(C95=0,0,IF(VALUE(LEFT(C95,3))=wST.Ansatz,1,0)) -> 0 | Y95: =YEAR(G95) -> 1900 | Z95: =IF(Y95>wST.Jahr-1,0,I95*X95) -> 0 | AB95: 0 | AC95: 0 | AD95: 0 | AE95: 0 | AF95: 0 | AG95: 0
A96: =A90 -> FALSE | X96: =IF(C96=0,0,IF(VALUE(LEFT(C96,3))=wST.Ansatz,1,0)) -> 0
A97: =N97>0 -> FALSE | B97: 4 | C97: AMTS-, BETRIEBS- U. GESCHÄFTSAUSSTATTUNG | I97: =SUM(I98,I104) -> 0 | J97: =SUM(J98,J104) -> 0 | K97: =SUM(K98,K104) -> 0 | N97: =SUM(N98,N104) -> 0 | O97: =SUM(O98,O104) -> 0 | S97: =SUM(S98,S104) -> 0 | T97: =SUM(T98,T104) -> 0 | V97: =SUM(V98,V104) -> 0 | W97: =SUM(W98,W104) -> 0
A98: =N98>0 -> FALSE | B98: 40 | C98: Fahrzeuge | I98: =SUMPRODUCT(I99:I103,$X99:$X103) -> 0 | J98: =SUMPRODUCT(J99:J103,$X99:$X103) -> 0 | K98: =SUMPRODUCT(K99:K103,$X99:$X103) -> 0 | N98: =SUMPRODUCT(N99:N103,$X99:$X103) -> 0 | O98: =SUMPRODUCT(O99:O103,$X99:$X103) -> 0 | S98: =SUMPRODUCT(S99:S103,$X99:$X103) -> 0 | T98: =SUMPRODUCT(T99:T103,$X99:$X103) -> 0 | V98: =SUMPRODUCT(V99:V103,$X99:$X103) -> 0 | W98: =SUMPRODUCT(W99:W103,$X99:$X103) -> 0 | Z98: =SUM(Z99:Z103) -> 0
A99: =X99>0 -> FALSE | M99: =IF(AND(L99="",C99=""),"",IF(AND(C99<>"",L99=""),"Keine Zuordnung",IF(OR(L99=$AB$6,L99=$AC$6,L99=$AD$6),"OK","Falsche Kostenstelle"))) ->  | N99: =IF(AND(Y99+H99<=wST.Jahr,J99<>0,NOT(ISBLANK(H99))),"Zugang ungültig!",IF(Y99>wST.Jahr,0,SUM(I99,J99,-K99))) -> 0 | O99: =IF(H99=0,0,IF(Y99>=wST.Jahr,0,MAX(0,MIN(I99,I99/H99*(wST.Jahr-Y99)-I99/H99*IF(MONTH(G99)>6,0.5,0))))) -> 0 | P99: =IF(SUM(I99,J99)=0,1,1-K99/SUM(I99,J99)) -> 1 | Q99: =(J99+I99-O99)*P99 -> 0 | R99: =MAX(0,(Y99+H99-wST.Jahr+IF(AND(Y99<>wST.Jahr,MONTH(G99)>6),0.5,0))*IF(AND(Y99=wST.Jahr,MONTH(G99)>6),2,1)) -> 0 | S99: =T99+U99 -> 0 | T99: =IF(R99=0,0,IF(Y99>wST.Jahr,0,MAX(0,MIN(Q99,Q99/R99)))) -> 0 | U99: =(J99+I99-O99)*(1-P99) -> 0 | V99: =MIN(I99+J99,O99+T99+U99) -> 0 | W99: =IF(Y99>wST.Jahr,0,I99+J99-V99) -> 0 | X99: =IF(C99=0,0,IF(VALUE(LEFT(C99,3))=wST.Ansatz,1,0)) -> 0 | Y99: =YEAR(G99) -> 1900 | Z99: =IF(Y99>wST.Jahr-1,0,I99*X99) -> 0 | AB99: =IF($L99=AB$6,$S99,) -> 0 | AC99: 0 | AD99: 0 | AE99: =IF($L99=AE$6,$W99,) -> 0 | AF99: 0 | AG99: 0
A100: FALSE | M100: =IF(AND(L100="",C100=""),"",IF(AND(C100<>"",L100=""),"Keine Zuordnung",IF(OR(L100=$AB$6,L100=$AC$6,L100=$AD$6),"OK","Falsche Kostenstelle"))) ->  | N100: =IF(AND(Y100+H100<=wST.Jahr,J100<>0,NOT(ISBLANK(H100))),"Zugang ungültig!",IF(Y100>wST.Jahr,0,SUM(I100,J100,-K100))) -> 0 | O100: =IF(H100=0,0,IF(Y100>=wST.Jahr,0,MAX(0,MIN(I100,I100/H100*(wST.Jahr-Y100)-I100/H100*IF(MONTH(G100)>6,0.5,0))))) -> 0 | P100: =IF(SUM(I100,J100)=0,1,1-K100/SUM(I100,J100)) -> 1 | Q100: =(J100+I100-O100)*P100 -> 0 | R100: =MAX(0,(Y100+H100-wST.Jahr+IF(AND(Y100<>wST.Jahr,MONTH(G100)>6),0.5,0))*IF(AND(Y100=wST.Jahr,MONTH(G100)>6),2,1)) -> 0 | S100: 0 | T100: =IF(R100=0,0,IF(Y100>wST.Jahr,0,MAX(0,MIN(Q100,Q100/R100)))) -> 0 | U100: =(J100+I100-O100)*(1-P100) -> 0 | V100: =MIN(I100+J100,O100+T100+U100) -> 0 | W100: =IF(Y100>wST.Jahr,0,I100+J100-V100) -> 0 | X100: =IF(C100=0,0,IF(VALUE(LEFT(C100,3))=wST.Ansatz,1,0)) -> 0 | Y100: =YEAR(G100) -> 1900 | Z100: =IF(Y100>wST.Jahr-1,0,I100*X100) -> 0 | AB100: 0 | AC100: 0 | AD100: 0 | AE100: 0 | AF100: 0 | AG100: 0
A101: =X101>0 -> FALSE | M101: =IF(AND(L101="",C101=""),"",IF(AND(C101<>"",L101=""),"Keine Zuordnung",IF(OR(L101=$AB$6,L101=$AC$6,L101=$AD$6),"OK","Falsche Kostenstelle"))) ->  | N101: =IF(AND(Y101+H101<=wST.Jahr,J101<>0,NOT(ISBLANK(H101))),"Zugang ungültig!",IF(Y101>wST.Jahr,0,SUM(I101,J101,-K101))) -> 0 | O101: =IF(H101=0,0,IF(Y101>=wST.Jahr,0,MAX(0,MIN(I101,I101/H101*(wST.Jahr-Y101)-I101/H101*IF(MONTH(G101)>6,0.5,0))))) -> 0 | P101: =IF(SUM(I101,J101)=0,1,1-K101/SUM(I101,J101)) -> 1 | Q101: =(J101+I101-O101)*P101 -> 0 | R101: =MAX(0,(Y101+H101-wST.Jahr+IF(AND(Y101<>wST.Jahr,MONTH(G101)>6),0.5,0))*IF(AND(Y101=wST.Jahr,MONTH(G101)>6),2,1)) -> 0 | S101: =T101+U101 -> 0 | T101: =IF(R101=0,0,IF(Y101>wST.Jahr,0,MAX(0,MIN(Q101,Q101/R101)))) -> 0 | U101: =(J101+I101-O101)*(1-P101) -> 0 | V101: =MIN(I101+J101,O101+T101+U101) -> 0 | W101: =IF(Y101>wST.Jahr,0,I101+J101-V101) -> 0 | X101: =IF(C101=0,0,IF(VALUE(LEFT(C101,3))=wST.Ansatz,1,0)) -> 0 | Y101: =YEAR(G101) -> 1900 | Z101: =IF(Y101>wST.Jahr-1,0,I101*X101) -> 0 | AB101: 0 | AC101: 0 | AD101: 0 | AE101: 0 | AF101: 0 | AG101: 0
A102: =X102>0 -> FALSE | M102: =IF(AND(L102="",C102=""),"",IF(AND(C102<>"",L102=""),"Keine Zuordnung",IF(OR(L102=$AB$6,L102=$AC$6,L102=$AD$6),"OK","Falsche Kostenstelle"))) ->  | N102: =IF(AND(Y102+H102<=wST.Jahr,J102<>0,NOT(ISBLANK(H102))),"Zugang ungültig!",IF(Y102>wST.Jahr,0,SUM(I102,J102,-K102))) -> 0 | O102: =IF(H102=0,0,IF(Y102>=wST.Jahr,0,MAX(0,MIN(I102,I102/H102*(wST.Jahr-Y102)-I102/H102*IF(MONTH(G102)>6,0.5,0))))) -> 0 | P102: =IF(SUM(I102,J102)=0,1,1-K102/SUM(I102,J102)) -> 1 | Q102: =(J102+I102-O102)*P102 -> 0 | R102: =MAX(0,(Y102+H102-wST.Jahr+IF(AND(Y102<>wST.Jahr,MONTH(G102)>6),0.5,0))*IF(AND(Y102=wST.Jahr,MONTH(G102)>6),2,1)) -> 0 | S102: =T102+U102 -> 0 | T102: =IF(R102=0,0,IF(Y102>wST.Jahr,0,MAX(0,MIN(Q102,Q102/R102)))) -> 0 | U102: =(J102+I102-O102)*(1-P102) -> 0 | V102: =MIN(I102+J102,O102+T102+U102) -> 0 | W102: =IF(Y102>wST.Jahr,0,I102+J102-V102) -> 0 | X102: =IF(C102=0,0,IF(VALUE(LEFT(C102,3))=wST.Ansatz,1,0)) -> 0 | Y102: =YEAR(G102) -> 1900 | Z102: =IF(Y102>wST.Jahr-1,0,I102*X102) -> 0 | AB102: 0 | AC102: 0 | AD102: 0 | AE102: 0 | AF102: 0 | AG102: 0
A103: =X103>0 -> FALSE | M103: =IF(AND(L103="",C103=""),"",IF(AND(C103<>"",L103=""),"Keine Zuordnung",IF(OR(L103=$AB$6,L103=$AC$6,L103=$AD$6),"OK","Falsche Kostenstelle"))) ->  | N103: =IF(AND(Y103+H103<=wST.Jahr,J103<>0,NOT(ISBLANK(H103))),"Zugang ungültig!",IF(Y103>wST.Jahr,0,SUM(I103,J103,-K103))) -> 0 | O103: =IF(H103=0,0,IF(Y103>=wST.Jahr,0,MAX(0,MIN(I103,I103/H103*(wST.Jahr-Y103)-I103/H103*IF(MONTH(G103)>6,0.5,0))))) -> 0 | P103: =IF(SUM(I103,J103)=0,1,1-K103/SUM(I103,J103)) -> 1 | Q103: =(J103+I103-O103)*P103 -> 0 | R103: =MAX(0,(Y103+H103-wST.Jahr+IF(AND(Y103<>wST.Jahr,MONTH(G103)>6),0.5,0))*IF(AND(Y103=wST.Jahr,MONTH(G103)>6),2,1)) -> 0 | S103: =T103+U103 -> 0 | T103: =IF(R103=0,0,IF(Y103>wST.Jahr,0,MAX(0,MIN(Q103,Q103/R103)))) -> 0 | U103: =(J103+I103-O103)*(1-P103) -> 0 | V103: =MIN(I103+J103,O103+T103+U103) -> 0 | W103: =IF(Y103>wST.Jahr,0,I103+J103-V103) -> 0 | X103: =IF(C103=0,0,IF(VALUE(LEFT(C103,3))=wST.Ansatz,1,0)) -> 0 | Y103: =YEAR(G103) -> 1900 | Z103: =IF(Y103>wST.Jahr-1,0,I103*X103) -> 0 | AB103: 0 | AC103: 0 | AD103: 0 | AE103: 0 | AF103: 0 | AG103: 0
A104: =N104>0 -> FALSE | B104: 42 | C104: Amts-, Betriebs- u. Geschäftsausstattung | I104: =SUMPRODUCT(I105:I108,$X105:$X108) -> 0 | J104: =SUMPRODUCT(J105:J108,$X105:$X108) -> 0 | K104: =SUMPRODUCT(K105:K108,$X105:$X108) -> 0 | N104: =SUMPRODUCT(N105:N108,$X105:$X108) -> 0 | O104: =SUMPRODUCT(O105:O108,$X105:$X108) -> 0 | S104: =SUMPRODUCT(S105:S108,$X105:$X108) -> 0 | T104: =SUMPRODUCT(T105:T108,$X105:$X108) -> 0 | V104: =SUMPRODUCT(V105:V108,$X105:$X108) -> 0 | W104: =SUMPRODUCT(W105:W108,$X105:$X108) -> 0 | Z104: =SUM(Z105:Z108) -> 0
A105: =X105>0 -> FALSE | M105: =IF(AND(L105="",C105=""),"",IF(AND(C105<>"",L105=""),"Keine Zuordnung",IF(OR(L105=$AB$6,L105=$AC$6,L105=$AD$6),"OK","Falsche Kostenstelle"))) ->  | N105: =IF(AND(Y105+H105<=wST.Jahr,J105<>0,NOT(ISBLANK(H105))),"Zugang ungültig!",IF(Y105>wST.Jahr,0,SUM(I105,J105,-K105))) -> 0 | O105: =IF(H105=0,0,IF(Y105>=wST.Jahr,0,MAX(0,MIN(I105,I105/H105*(wST.Jahr-Y105)-I105/H105*IF(MONTH(G105)>6,0.5,0))))) -> 0 | P105: =IF(SUM(I105,J105)=0,1,1-K105/SUM(I105,J105)) -> 1 | Q105: =(J105+I105-O105)*P105 -> 0 | R105: =MAX(0,(Y105+H105-wST.Jahr+IF(AND(Y105<>wST.Jahr,MONTH(G105)>6),0.5,0))*IF(AND(Y105=wST.Jahr,MONTH(G105)>6),2,1)) -> 0 | S105: =T105+U105 -> 0 | T105: =IF(R105=0,0,IF(Y105>wST.Jahr,0,MAX(0,MIN(Q105,Q105/R105)))) -> 0 | U105: =(J105+I105-O105)*(1-P105) -> 0 | V105: =MIN(I105+J105,O105+T105+U105) -> 0 | W105: =IF(Y105>wST.Jahr,0,I105+J105-V105) -> 0 | X105: =IF(C105=0,0,IF(VALUE(LEFT(C105,3))=wST.Ansatz,1,0)) -> 0 | Y105: =YEAR(G105) -> 1900 | Z105: =IF(Y105>wST.Jahr-1,0,I105*X105) -> 0 | AB105: =IF($L105=AB$6,$S105,) -> 0 | AC105: 0 | AD105: 0 | AE105: =IF($L105=AE$6,$W105,) -> 0 | AF105: 0 | AG105: 0
A106: FALSE | M106: =IF(AND(L106="",C106=""),"",IF(AND(C106<>"",L106=""),"Keine Zuordnung",IF(OR(L106=$AB$6,L106=$AC$6,L106=$AD$6),"OK","Falsche Kostenstelle"))) ->  | N106: =IF(AND(Y106+H106<=wST.Jahr,J106<>0,NOT(ISBLANK(H106))),"Zugang ungültig!",IF(Y106>wST.Jahr,0,SUM(I106,J106,-K106))) -> 0 | O106: =IF(H106=0,0,IF(Y106>=wST.Jahr,0,MAX(0,MIN(I106,I106/H106*(wST.Jahr-Y106)-I106/H106*IF(MONTH(G106)>6,0.5,0))))) -> 0 | P106: =IF(SUM(I106,J106)=0,1,1-K106/SUM(I106,J106)) -> 1 | Q106: =(J106+I106-O106)*P106 -> 0 | R106: =MAX(0,(Y106+H106-wST.Jahr+IF(AND(Y106<>wST.Jahr,MONTH(G106)>6),0.5,0))*IF(AND(Y106=wST.Jahr,MONTH(G106)>6),2,1)) -> 0 | S106: 0 | T106: =IF(R106=0,0,IF(Y106>wST.Jahr,0,MAX(0,MIN(Q106,Q106/R106)))) -> 0 | U106: =(J106+I106-O106)*(1-P106) -> 0 | V106: =MIN(I106+J106,O106+T106+U106) -> 0 | W106: =IF(Y106>wST.Jahr,0,I106+J106-V106) -> 0 | X106: =IF(C106=0,0,IF(VALUE(LEFT(C106,3))=wST.Ansatz,1,0)) -> 0 | Y106: =YEAR(G106) -> 1900 | Z106: =IF(Y106>wST.Jahr-1,0,I106*X106) -> 0 | AB106: 0 | AC106: 0 | AD106: 0 | AE106: 0 | AF106: 0 | AG106: 0
A107: =X107>0 -> FALSE | M107: =IF(AND(L107="",C107=""),"",IF(AND(C107<>"",L107=""),"Keine Zuordnung",IF(OR(L107=$AB$6,L107=$AC$6,L107=$AD$6),"OK","Falsche Kostenstelle"))) ->  | N107: =IF(AND(Y107+H107<=wST.Jahr,J107<>0,NOT(ISBLANK(H107))),"Zugang ungültig!",IF(Y107>wST.Jahr,0,SUM(I107,J107,-K107))) -> 0 | O107: =IF(H107=0,0,IF(Y107>=wST.Jahr,0,MAX(0,MIN(I107,I107/H107*(wST.Jahr-Y107)-I107/H107*IF(MONTH(G107)>6,0.5,0))))) -> 0 | P107: =IF(SUM(I107,J107)=0,1,1-K107/SUM(I107,J107)) -> 1 | Q107: =(J107+I107-O107)*P107 -> 0 | R107: =MAX(0,(Y107+H107-wST.Jahr+IF(AND(Y107<>wST.Jahr,MONTH(G107)>6),0.5,0))*IF(AND(Y107=wST.Jahr,MONTH(G107)>6),2,1)) -> 0 | S107: =T107+U107 -> 0 | T107: =IF(R107=0,0,IF(Y107>wST.Jahr,0,MAX(0,MIN(Q107,Q107/R107)))) -> 0 | U107: =(J107+I107-O107)*(1-P107) -> 0 | V107: =MIN(I107+J107,O107+T107+U107) -> 0 | W107: =IF(Y107>wST.Jahr,0,I107+J107-V107) -> 0 | X107: =IF(C107=0,0,IF(VALUE(LEFT(C107,3))=wST.Ansatz,1,0)) -> 0 | Y107: =YEAR(G107) -> 1900 | Z107: =IF(Y107>wST.Jahr-1,0,I107*X107) -> 0 | AB107: 0 | AC107: 0 | AD107: 0 | AE107: 0 | AF107: 0 | AG107: 0
A108: FALSE | M108: =IF(AND(L108="",C108=""),"",IF(AND(C108<>"",L108=""),"Keine Zuordnung",IF(OR(L108=$AB$6,L108=$AC$6,L108=$AD$6),"OK","Falsche Kostenstelle"))) ->  | N108: =IF(AND(Y108+H108<=wST.Jahr,J108<>0,NOT(ISBLANK(H108))),"Zugang ungültig!",IF(Y108>wST.Jahr,0,SUM(I108,J108,-K108))) -> 0 | O108: =IF(H108=0,0,IF(Y108>=wST.Jahr,0,MAX(0,MIN(I108,I108/H108*(wST.Jahr-Y108)-I108/H108*IF(MONTH(G108)>6,0.5,0))))) -> 0 | P108: =IF(SUM(I108,J108)=0,1,1-K108/SUM(I108,J108)) -> 1 | Q108: =(J108+I108-O108)*P108 -> 0 | R108: =MAX(0,(Y108+H108-wST.Jahr+IF(AND(Y108<>wST.Jahr,MONTH(G108)>6),0.5,0))*IF(AND(Y108=wST.Jahr,MONTH(G108)>6),2,1)) -> 0 | S108: 0 | T108: =IF(R108=0,0,IF(Y108>wST.Jahr,0,MAX(0,MIN(Q108,Q108/R108)))) -> 0 | U108: =(J108+I108-O108)*(1-P108) -> 0 | V108: =MIN(I108+J108,O108+T108+U108) -> 0 | W108: =IF(Y108>wST.Jahr,0,I108+J108-V108) -> 0 | X108: =IF(C108=0,0,IF(VALUE(LEFT(C108,3))=wST.Ansatz,1,0)) -> 0 | Y108: =YEAR(G108) -> 1900 | Z108: =IF(Y108>wST.Jahr-1,0,I108*X108) -> 0 | AB108: 0 | AC108: 0 | AD108: 0 | AE108: 0 | AF108: 0 | AG108: 0
A109: =N109>0 -> FALSE | B109: 7 | C109: Aktivierungsfähige Rechte (immaterielle Vermögenswerte) | I109: =I110 -> 0 | J109: =J110 -> 0 | K109: =K110 -> 0 | N109: =N110 -> 0 | O109: =O110 -> 0 | S109: =S110 -> 0 | T109: =T110 -> 0 | V109: =V110 -> 0 | W109: =W110 -> 0
A110: =N110>0 -> FALSE | B110: 70 | C110: Aktivierungsfähige Rechte (immaterielle Vermögenswerte) | I110: =SUMPRODUCT(I111:I115,$X111:$X115) -> 0 | J110: =SUMPRODUCT(J111:J115,$X111:$X115) -> 0 | K110: =SUMPRODUCT(K111:K115,$X111:$X115) -> 0 | N110: =SUMPRODUCT(N111:N115,$X111:$X115) -> 0 | O110: =SUMPRODUCT(O111:O115,$X111:$X115) -> 0 | S110: =SUMPRODUCT(S111:S115,$X111:$X115) -> 0 | T110: =SUMPRODUCT(T111:T115,$X111:$X115) -> 0 | V110: =SUMPRODUCT(V111:V115,$X111:$X115) -> 0 | W110: =SUMPRODUCT(W111:W115,$X111:$X115) -> 0 | Z110: =SUM(Z111:Z115) -> 0
A111: =X111>0 -> FALSE | M111: =IF(AND(L111="",C111=""),"",IF(AND(C111<>"",L111=""),"Keine Zuordnung",IF(OR(L111=$AB$6,L111=$AC$6,L111=$AD$6),"OK","Falsche Kostenstelle"))) ->  | N111: =IF(AND(Y111+H111<=wST.Jahr,J111<>0,NOT(ISBLANK(H111))),"Zugang ungültig!",IF(Y111>wST.Jahr,0,SUM(I111,J111,-K111))) -> 0 | O111: =IF(H111=0,0,IF(Y111>=wST.Jahr,0,MAX(0,MIN(I111,I111/H111*(wST.Jahr-Y111)-I111/H111*IF(MONTH(G111)>6,0.5,0))))) -> 0 | P111: =IF(SUM(I111,J111)=0,1,1-K111/SUM(I111,J111)) -> 1 | Q111: =(J111+I111-O111)*P111 -> 0 | R111: =MAX(0,(Y111+H111-wST.Jahr+IF(AND(Y111<>wST.Jahr,MONTH(G111)>6),0.5,0))*IF(AND(Y111=wST.Jahr,MONTH(G111)>6),2,1)) -> 0 | S111: =T111+U111 -> 0 | T111: =IF(R111=0,0,IF(Y111>wST.Jahr,0,MAX(0,MIN(Q111,Q111/R111)))) -> 0 | U111: =(J111+I111-O111)*(1-P111) -> 0 | V111: =MIN(I111+J111,O111+T111+U111) -> 0 | W111: =IF(Y111>wST.Jahr,0,I111+J111-V111) -> 0 | X111: =IF(C111=0,0,IF(VALUE(LEFT(C111,3))=wST.Ansatz,1,0)) -> 0 | Y111: =YEAR(G111) -> 1900 | Z111: =IF(Y111>wST.Jahr-1,0,I111*X111) -> 0 | AB111: =IF($L111=AB$6,$S111,) -> 0 | AC111: 0 | AD111: 0 | AE111: =IF($L111=AE$6,$W111,) -> 0 | AF111: 0 | AG111: 0
A112: FALSE | M112: =IF(AND(L112="",C112=""),"",IF(AND(C112<>"",L112=""),"Keine Zuordnung",IF(OR(L112=$AB$6,L112=$AC$6,L112=$AD$6),"OK","Falsche Kostenstelle"))) ->  | N112: =IF(AND(Y112+H112<=wST.Jahr,J112<>0,NOT(ISBLANK(H112))),"Zugang ungültig!",IF(Y112>wST.Jahr,0,SUM(I112,J112,-K112))) -> 0 | O112: =IF(H112=0,0,IF(Y112>=wST.Jahr,0,MAX(0,MIN(I112,I112/H112*(wST.Jahr-Y112)-I112/H112*IF(MONTH(G112)>6,0.5,0))))) -> 0 | P112: =IF(SUM(I112,J112)=0,1,1-K112/SUM(I112,J112)) -> 1 | Q112: =(J112+I112-O112)*P112 -> 0 | R112: =MAX(0,(Y112+H112-wST.Jahr+IF(AND(Y112<>wST.Jahr,MONTH(G112)>6),0.5,0))*IF(AND(Y112=wST.Jahr,MONTH(G112)>6),2,1)) -> 0 | S112: 0 | T112: =IF(R112=0,0,IF(Y112>wST.Jahr,0,MAX(0,MIN(Q112,Q112/R112)))) -> 0 | U112: =(J112+I112-O112)*(1-P112) -> 0 | V112: =MIN(I112+J112,O112+T112+U112) -> 0 | W112: =IF(Y112>wST.Jahr,0,I112+J112-V112) -> 0 | X112: 0 | Y112: =YEAR(G112) -> 1900 | Z112: =IF(Y112>wST.Jahr-1,0,I112*X112) -> 0 | AB112: 0 | AC112: 0 | AD112: 0 | AE112: 0 | AF112: 0 | AG112: 0
A113: =X113>0 -> FALSE | M113: =IF(AND(L113="",C113=""),"",IF(AND(C113<>"",L113=""),"Keine Zuordnung",IF(OR(L113=$AB$6,L113=$AC$6,L113=$AD$6),"OK","Falsche Kostenstelle"))) ->  | N113: =IF(AND(Y113+H113<=wST.Jahr,J113<>0,NOT(ISBLANK(H113))),"Zugang ungültig!",IF(Y113>wST.Jahr,0,SUM(I113,J113,-K113))) -> 0 | O113: =IF(H113=0,0,IF(Y113>=wST.Jahr,0,MAX(0,MIN(I113,I113/H113*(wST.Jahr-Y113)-I113/H113*IF(MONTH(G113)>6,0.5,0))))) -> 0 | P113: =IF(SUM(I113,J113)=0,1,1-K113/SUM(I113,J113)) -> 1 | Q113: =(J113+I113-O113)*P113 -> 0 | R113: =MAX(0,(Y113+H113-wST.Jahr+IF(AND(Y113<>wST.Jahr,MONTH(G113)>6),0.5,0))*IF(AND(Y113=wST.Jahr,MONTH(G113)>6),2,1)) -> 0 | S113: =T113+U113 -> 0 | T113: =IF(R113=0,0,IF(Y113>wST.Jahr,0,MAX(0,MIN(Q113,Q113/R113)))) -> 0 | U113: =(J113+I113-O113)*(1-P113) -> 0 | V113: =MIN(I113+J113,O113+T113+U113) -> 0 | W113: =IF(Y113>wST.Jahr,0,I113+J113-V113) -> 0 | X113: 0 | Y113: =YEAR(G113) -> 1900 | Z113: =IF(Y113>wST.Jahr-1,0,I113*X113) -> 0 | AB113: 0 | AC113: 0 | AD113: 0 | AE113: 0 | AF113: 0 | AG113: 0
A114: =X114>0 -> FALSE | M114: =IF(AND(L114="",C114=""),"",IF(AND(C114<>"",L114=""),"Keine Zuordnung",IF(OR(L114=$AB$6,L114=$AC$6,L114=$AD$6),"OK","Falsche Kostenstelle"))) ->  | N114: =IF(AND(Y114+H114<=wST.Jahr,J114<>0,NOT(ISBLANK(H114))),"Zugang ungültig!",IF(Y114>wST.Jahr,0,SUM(I114,J114,-K114))) -> 0 | O114: =IF(H114=0,0,IF(Y114>=wST.Jahr,0,MAX(0,MIN(I114,I114/H114*(wST.Jahr-Y114)-I114/H114*IF(MONTH(G114)>6,0.5,0))))) -> 0 | P114: =IF(SUM(I114,J114)=0,1,1-K114/SUM(I114,J114)) -> 1 | Q114: =(J114+I114-O114)*P114 -> 0 | R114: =MAX(0,(Y114+H114-wST.Jahr+IF(AND(Y114<>wST.Jahr,MONTH(G114)>6),0.5,0))*IF(AND(Y114=wST.Jahr,MONTH(G114)>6),2,1)) -> 0 | S114: =T114+U114 -> 0 | T114: =IF(R114=0,0,IF(Y114>wST.Jahr,0,MAX(0,MIN(Q114,Q114/R114)))) -> 0 | U114: =(J114+I114-O114)*(1-P114) -> 0 | V114: =MIN(I114+J114,O114+T114+U114) -> 0 | W114: =IF(Y114>wST.Jahr,0,I114+J114-V114) -> 0 | X114: 0 | Y114: =YEAR(G114) -> 1900 | Z114: =IF(Y114>wST.Jahr-1,0,I114*X114) -> 0 | AB114: 0 | AC114: 0 | AD114: 0 | AE114: 0 | AF114: 0 | AG114: 0
A115: =X115>0 -> FALSE | M115: =IF(AND(L115="",C115=""),"",IF(AND(C115<>"",L115=""),"Keine Zuordnung",IF(OR(L115=$AB$6,L115=$AC$6,L115=$AD$6),"OK","Falsche Kostenstelle"))) ->  | N115: =IF(AND(Y115+H115<=wST.Jahr,J115<>0,NOT(ISBLANK(H115))),"Zugang ungültig!",IF(Y115>wST.Jahr,0,SUM(I115,J115,-K115))) -> 0 | O115: =IF(H115=0,0,IF(Y115>=wST.Jahr,0,MAX(0,MIN(I115,I115/H115*(wST.Jahr-Y115)-I115/H115*IF(MONTH(G115)>6,0.5,0))))) -> 0 | P115: =IF(SUM(I115,J115)=0,1,1-K115/SUM(I115,J115)) -> 1 | Q115: =(J115+I115-O115)*P115 -> 0 | R115: =MAX(0,(Y115+H115-wST.Jahr+IF(AND(Y115<>wST.Jahr,MONTH(G115)>6),0.5,0))*IF(AND(Y115=wST.Jahr,MONTH(G115)>6),2,1)) -> 0 | S115: =T115+U115 -> 0 | T115: =IF(R115=0,0,IF(Y115>wST.Jahr,0,MAX(0,MIN(Q115,Q115/R115)))) -> 0 | U115: =(J115+I115-O115)*(1-P115) -> 0 | V115: =MIN(I115+J115,O115+T115+U115) -> 0 | W115: =IF(Y115>wST.Jahr,0,I115+J115-V115) -> 0 | X115: 0 | Y115: =YEAR(G115) -> 1900 | Z115: =IF(Y115>wST.Jahr-1,0,I115*X115) -> 0 | AB115: 0 | AC115: 0 | AD115: 0 | AE115: 0 | AF115: 0 | AG115: 0
A116: =A109 -> FALSE | X116: 0
A117: =N117>0 -> FALSE | B117: INVESTITIONSZUSCHÜSSE und FINANZIERUNGSZUSCHÜSSE | I117: =I118 -> 0 | J117: =J118 -> 0 | K117: =K118 -> 0 | N117: =N118 -> 0 | O117: =O118 -> 0 | S117: =S118 -> 0 | T117: =T118 -> 0 | V117: =V118 -> 0 | W117: =W118 -> 0
A118: =N118>0 -> FALSE | B118: Investitionskostenzuschüsse und Vertragsbarwerte der Finanzierungszuschüsse | I118: =SUMPRODUCT(I119:I167,$X119:$X167) -> 0 | J118: =SUMPRODUCT(J119:J167,$X119:$X167) -> 0 | K118: =SUMPRODUCT(K119:K167,$X119:$X167) -> 0 | N118: =SUMPRODUCT(N119:N167,$X119:$X167) -> 0 | O118: =SUMPRODUCT(O119:O167,$X119:$X167) -> 0 | S118: =SUMPRODUCT(S119:S167,$X119:$X167) -> 0 | T118: =SUMPRODUCT(T119:T167,$X119:$X167) -> 0 | V118: =SUMPRODUCT(V119:V167,$X119:$X167) -> 0 | W118: =SUMPRODUCT(W119:W167,$X119:$X167) -> 0 | Z118: =SUM(Z119:Z167) -> 0
A119: =X119>0 -> FALSE | M119: =IF(AND(L119="",C119=""),"",IF(AND(C119<>"",L119=""),"Keine Zuordnung",IF(OR(L119=$AB$6,L119=$AC$6,L119=$AD$6),"OK","Falsche Kostenstelle"))) ->  | N119: =IF(AND(Y119+H119<=wST.Jahr,J119<>0,NOT(ISBLANK(H119))),"Zugang ungültig!",IF(Y119>wST.Jahr,0,SUM(I119,J119,-K119))) -> 0 | O119: =IF(H119=0,0,IF(Y119>=wST.Jahr,0,MAX(0,MIN(I119,I119/H119*(wST.Jahr-Y119)-I119/H119*IF(MONTH(G119)>6,0.5,0))))) -> 0 | P119: =IF(SUM(I119,J119)=0,1,1-K119/SUM(I119,J119)) -> 1 | Q119: =(J119+I119-O119)*P119 -> 0 | R119: =MAX(0,(Y119+H119-wST.Jahr+IF(AND(Y119<>wST.Jahr,MONTH(G119)>6),0.5,0))*IF(AND(Y119=wST.Jahr,MONTH(G119)>6),2,1)) -> 0 | S119: =T119+U119 -> 0 | T119: =IF(R119=0,0,IF(Y119>wST.Jahr,0,MAX(0,MIN(Q119,Q119/R119)))) -> 0 | U119: =(J119+I119-O119)*(1-P119) -> 0 | V119: =MIN(I119+J119,O119+T119+U119) -> 0 | W119: =IF(Y119>wST.Jahr,0,I119+J119-V119) -> 0 | X119: =IF(C119=0,0,IF(VALUE(LEFT(C119,3))=wST.Ansatz,1,0)) -> 0 | Y119: =YEAR(G119) -> 1900 | Z119: =IF(Y119>wST.Jahr-1,0,I119*X119) -> 0 | AB119: =IF($L119=AB$6,$S119,) -> 0 | AC119: 0 | AD119: 0 | AE119: =IF($L119=AE$6,$W119,) -> 0 | AF119: 0 | AG119: 0
A120: FALSE | N120: 0 | O120: 0 | P120: 1 | Q120: 0 | R120: 0 | S120: =T120+U120 -> 0 | T120: 0 | U120: 0 | V120: 0 | W120: 0 | X120: 0 | Y120: 1900 | Z120: 0 | AB120: 0 | AC120: 0 | AD120: 0 | AE120: 0 | AF120: 0 | AG120: 0
A121: FALSE | N121: 0 | O121: 0 | P121: 1 | Q121: 0 | R121: 0 | S121: 0 | T121: 0 | U121: 0 | V121: 0 | W121: 0 | X121: 0 | Y121: 1900 | Z121: 0 | AB121: 0 | AC121: 0 | AD121: 0 | AE121: 0 | AF121: 0 | AG121: 0
A122: =X122>0 -> FALSE | N122: 0 | O122: 0 | P122: 1 | Q122: 0 | R122: 0 | S122: 0 | T122: 0 | U122: 0 | V122: 0 | W122: 0 | X122: 0 | Y122: 1900 | Z122: 0 | AB122: 0 | AC122: 0 | AD122: 0 | AE122: 0 | AF122: 0 | AG122: 0
A123: =X123>0 -> FALSE | N123: 0 | O123: 0 | P123: 1 | Q123: 0 | R123: 0 | S123: 0 | T123: 0 | U123: 0 | V123: 0 | W123: 0 | X123: 0 | Y123: 1900 | Z123: 0 | AB123: 0 | AC123: 0 | AD123: 0 | AE123: 0 | AF123: 0 | AG123: 0
A124: =X124>0 -> FALSE | N124: 0 | O124: 0 | P124: 1 | Q124: 0 | R124: 0 | S124: 0 | T124: 0 | U124: 0 | V124: 0 | W124: 0 | X124: 0 | Y124: 1900 | Z124: 0 | AB124: 0 | AC124: 0 | AD124: 0 | AE124: 0 | AF124: 0 | AG124: 0
A125: =X125>0 -> FALSE | N125: 0 | O125: 0 | P125: 1 | Q125: 0 | R125: 0 | S125: =T125+U125 -> 0 | T125: 0 | U125: 0 | V125: 0 | W125: 0 | X125: 0 | Y125: 1900 | Z125: 0 | AB125: 0 | AC125: 0 | AD125: 0 | AE125: 0 | AF125: 0 | AG125: 0
A126: =X126>0 -> FALSE | N126: 0 | O126: 0 | P126: 1 | Q126: 0 | R126: 0 | S126: =T126+U126 -> 0 | T126: 0 | U126: 0 | V126: 0 | W126: 0 | X126: 0 | Y126: 1900 | Z126: 0 | AB126: 0 | AC126: 0 | AD126: 0 | AE126: 0 | AF126: 0 | AG126: 0
A127: =X127>0 -> FALSE | N127: 0 | O127: 0 | P127: 1 | Q127: 0 | R127: 0 | S127: =T127+U127 -> 0 | T127: 0 | U127: 0 | V127: 0 | W127: 0 | X127: 0 | Y127: 1900 | Z127: 0 | AB127: 0 | AC127: 0 | AD127: 0 | AE127: 0 | AF127: 0 | AG127: 0
A128: =X128>0 -> FALSE | N128: 0 | O128: 0 | P128: 1 | Q128: 0 | R128: 0 | S128: =T128+U128 -> 0 | T128: 0 | U128: 0 | V128: 0 | W128: 0 | X128: 0 | Y128: 1900 | Z128: 0 | AB128: 0 | AC128: 0 | AD128: 0 | AE128: 0 | AF128: 0 | AG128: 0
A129: =X129>0 -> FALSE | N129: 0 | O129: 0 | P129: 1 | Q129: 0 | R129: 0 | S129: =T129+U129 -> 0 | T129: 0 | U129: 0 | V129: 0 | W129: 0 | X129: 0 | Y129: 1900 | Z129: 0 | AB129: 0 | AC129: 0 | AD129: 0 | AE129: 0 | AF129: 0 | AG129: 0
A130: =X130>0 -> FALSE | N130: 0 | O130: 0 | P130: 1 | Q130: 0 | R130: 0 | S130: =T130+U130 -> 0 | T130: 0 | U130: 0 | V130: 0 | W130: 0 | X130: 0 | Y130: 1900 | Z130: 0 | AB130: 0 | AC130: 0 | AD130: 0 | AE130: 0 | AF130: 0 | AG130: 0
A131: =X131>0 -> FALSE | N131: 0 | O131: 0 | P131: 1 | Q131: 0 | R131: 0 | S131: =T131+U131 -> 0 | T131: 0 | U131: 0 | V131: 0 | W131: 0 | X131: 0 | Y131: 1900 | Z131: 0 | AB131: 0 | AC131: 0 | AD131: 0 | AE131: 0 | AF131: 0 | AG131: 0
A132: =X132>0 -> FALSE | N132: 0 | O132: 0 | P132: 1 | Q132: 0 | R132: 0 | S132: =T132+U132 -> 0 | T132: 0 | U132: 0 | V132: 0 | W132: 0 | X132: 0 | Y132: 1900 | Z132: 0 | AB132: 0 | AC132: 0 | AD132: 0 | AE132: 0 | AF132: 0 | AG132: 0
A133: =X133>0 -> FALSE | N133: 0 | O133: 0 | P133: 1 | Q133: 0 | R133: 0 | S133: =T133+U133 -> 0 | T133: 0 | U133: 0 | V133: 0 | W133: 0 | X133: 0 | Y133: 1900 | Z133: 0 | AB133: 0 | AC133: 0 | AD133: 0 | AE133: 0 | AF133: 0 | AG133: 0
A134: =X134>0 -> FALSE | N134: 0 | O134: 0 | P134: 1 | Q134: 0 | R134: 0 | S134: =T134+U134 -> 0 | T134: 0 | U134: 0 | V134: 0 | W134: 0 | X134: 0 | Y134: 1900 | Z134: 0 | AB134: 0 | AC134: 0 | AD134: 0 | AE134: 0 | AF134: 0 | AG134: 0
A135: =X135>0 -> FALSE | N135: 0 | O135: 0 | P135: 1 | Q135: 0 | R135: 0 | S135: =T135+U135 -> 0 | T135: 0 | U135: 0 | V135: 0 | W135: 0 | X135: 0 | Y135: 1900 | Z135: 0 | AB135: 0 | AC135: 0 | AD135: 0 | AE135: 0 | AF135: 0 | AG135: 0
A136: =X136>0 -> FALSE | N136: 0 | O136: 0 | P136: 1 | Q136: 0 | R136: 0 | S136: =T136+U136 -> 0 | T136: 0 | U136: 0 | V136: 0 | W136: 0 | X136: 0 | Y136: 1900 | Z136: 0 | AB136: 0 | AC136: 0 | AD136: 0 | AE136: 0 | AF136: 0 | AG136: 0
A137: =X137>0 -> FALSE | N137: 0 | O137: 0 | P137: 1 | Q137: 0 | R137: 0 | S137: =T137+U137 -> 0 | T137: 0 | U137: 0 | V137: 0 | W137: 0 | X137: 0 | Y137: 1900 | Z137: 0 | AB137: 0 | AC137: 0 | AD137: 0 | AE137: 0 | AF137: 0 | AG137: 0
A138: =X138>0 -> FALSE | N138: 0 | O138: 0 | P138: 1 | Q138: 0 | R138: 0 | S138: =T138+U138 -> 0 | T138: 0 | U138: 0 | V138: 0 | W138: 0 | X138: 0 | Y138: 1900 | Z138: 0 | AB138: 0 | AC138: 0 | AD138: 0 | AE138: 0 | AF138: 0 | AG138: 0
A139: =X139>0 -> FALSE | N139: 0 | O139: 0 | P139: 1 | Q139: 0 | R139: 0 | S139: =T139+U139 -> 0 | T139: 0 | U139: 0 | V139: 0 | W139: 0 | X139: 0 | Y139: 1900 | Z139: 0 | AB139: =IF($L139=AB$6,$S139,) -> 0 | AC139: 0 | AD139: 0 | AE139: =IF($L139=AE$6,$W139,) -> 0 | AF139: 0 | AG139: 0
A140: =X140>0 -> FALSE | N140: 0 | O140: 0 | P140: 1 | Q140: 0 | R140: 0 | S140: =T140+U140 -> 0 | T140: 0 | U140: 0 | V140: 0 | W140: 0 | X140: 0 | Y140: 1900 | Z140: 0 | AB140: 0 | AC140: 0 | AD140: 0 | AE140: 0 | AF140: 0 | AG140: 0
A141: =X141>0 -> FALSE | N141: 0 | O141: 0 | P141: 1 | Q141: 0 | R141: 0 | S141: =T141+U141 -> 0 | T141: 0 | U141: 0 | V141: 0 | W141: 0 | X141: 0 | Y141: 1900 | Z141: 0 | AB141: 0 | AC141: 0 | AD141: 0 | AE141: 0 | AF141: 0 | AG141: 0
A142: =X142>0 -> FALSE | N142: 0 | O142: 0 | P142: 1 | Q142: 0 | R142: 0 | S142: =T142+U142 -> 0 | T142: 0 | U142: 0 | V142: 0 | W142: 0 | X142: 0 | Y142: 1900 | Z142: 0 | AB142: 0 | AC142: 0 | AD142: 0 | AE142: 0 | AF142: 0 | AG142: 0
A143: =X143>0 -> FALSE | N143: 0 | O143: 0 | P143: 1 | Q143: 0 | R143: 0 | S143: =T143+U143 -> 0 | T143: 0 | U143: 0 | V143: 0 | W143: 0 | X143: 0 | Y143: 1900 | Z143: 0 | AB143: 0 | AC143: 0 | AD143: 0 | AE143: 0 | AF143: 0 | AG143: 0
A144: =X144>0 -> FALSE | N144: 0 | O144: 0 | P144: 1 | Q144: 0 | R144: 0 | S144: =T144+U144 -> 0 | T144: 0 | U144: 0 | V144: 0 | W144: 0 | X144: 0 | Y144: 1900 | Z144: 0 | AB144: 0 | AC144: 0 | AD144: 0 | AE144: 0 | AF144: 0 | AG144: 0
A145: =X145>0 -> FALSE | N145: 0 | O145: 0 | P145: 1 | Q145: 0 | R145: 0 | S145: =T145+U145 -> 0 | T145: 0 | U145: 0 | V145: 0 | W145: 0 | X145: 0 | Y145: 1900 | Z145: 0 | AB145: 0 | AC145: 0 | AD145: 0 | AE145: 0 | AF145: 0 | AG145: 0
A146: =X146>0 -> FALSE | N146: 0 | O146: 0 | P146: 1 | Q146: 0 | R146: 0 | S146: =T146+U146 -> 0 | T146: 0 | U146: 0 | V146: 0 | W146: 0 | X146: 0 | Y146: 1900 | Z146: 0 | AB146: 0 | AC146: 0 | AD146: 0 | AE146: 0 | AF146: 0 | AG146: 0
A147: =X147>0 -> FALSE | N147: 0 | O147: 0 | P147: 1 | Q147: 0 | R147: 0 | S147: =T147+U147 -> 0 | T147: 0 | U147: 0 | V147: 0 | W147: 0 | X147: 0 | Y147: 1900 | Z147: 0 | AB147: 0 | AC147: 0 | AD147: 0 | AE147: 0 | AF147: 0 | AG147: 0
A148: =X148>0 -> FALSE | N148: 0 | O148: 0 | P148: 1 | Q148: 0 | R148: 0 | S148: =T148+U148 -> 0 | T148: 0 | U148: 0 | V148: 0 | W148: 0 | X148: 0 | Y148: 1900 | Z148: 0 | AB148: 0 | AC148: 0 | AD148: 0 | AE148: 0 | AF148: 0 | AG148: 0
A149: =X149>0 -> FALSE | N149: 0 | O149: 0 | P149: 1 | Q149: 0 | R149: 0 | S149: =T149+U149 -> 0 | T149: 0 | U149: 0 | V149: 0 | W149: 0 | X149: 0 | Y149: 1900 | Z149: 0 | AB149: 0 | AC149: 0 | AD149: 0 | AE149: 0 | AF149: 0 | AG149: 0
A150: =X150>0 -> FALSE | N150: 0 | O150: 0 | P150: 1 | Q150: 0 | R150: 0 | S150: =T150+U150 -> 0 | T150: 0 | U150: 0 | V150: 0 | W150: 0 | X150: 0 | Y150: 1900 | Z150: 0 | AB150: 0 | AC150: 0 | AD150: 0 | AE150: 0 | AF150: 0 | AG150: 0
A151: =X151>0 -> FALSE | M151: =IF(AND(L151="",C151=""),"",IF(AND(C151<>"",L151=""),"Keine Zuordnung",IF(OR(L151=$AB$6,L151=$AC$6,L151=$AD$6),"OK","Falsche Kostenstelle"))) ->  | N151: =IF(AND(Y151+H151<=wST.Jahr,J151<>0,NOT(ISBLANK(H151))),"Zugang ungültig!",IF(Y151>wST.Jahr,0,SUM(I151,J151,-K151))) -> 0 | O151: =IF(H151=0,0,IF(Y151>=wST.Jahr,0,MAX(0,MIN(I151,I151/H151*(wST.Jahr-Y151)-I151/H151*IF(MONTH(G151)>6,0.5,0))))) -> 0 | P151: =IF(SUM(I151,J151)=0,1,1-K151/SUM(I151,J151)) -> 1 | Q151: =(J151+I151-O151)*P151 -> 0 | R151: =MAX(0,(Y151+H151-wST.Jahr+IF(AND(Y151<>wST.Jahr,MONTH(G151)>6),0.5,0))*IF(AND(Y151=wST.Jahr,MONTH(G151)>6),2,1)) -> 0 | S151: =T151+U151 -> 0 | T151: 0 | U151: =(J151+I151-O151)*(1-P151) -> 0 | V151: =MIN(I151+J151,O151+T151+U151) -> 0 | W151: =IF(Y151>wST.Jahr,0,I151+J151-V151) -> 0 | X151: =IF(C151=0,0,IF(VALUE(LEFT(C151,3))=wST.Ansatz,1,0)) -> 0 | Y151: =YEAR(G151) -> 1900 | Z151: =IF(Y151>wST.Jahr-1,0,I151*X151) -> 0 | AB151: 0 | AC151: 0 | AD151: 0 | AE151: 0 | AF151: 0 | AG151: 0
A152: =X152>0 -> FALSE | N152: 0 | O152: 0 | P152: 1 | Q152: 0 | R152: 0 | S152: =T152+U152 -> 0 | T152: 0 | U152: 0 | V152: 0 | W152: 0 | X152: 0 | Y152: 1900 | Z152: 0 | AB152: 0 | AC152: 0 | AD152: 0 | AE152: 0 | AF152: 0 | AG152: 0
A153: =X153>0 -> FALSE | N153: 0 | O153: 0 | P153: 1 | Q153: 0 | R153: 0 | S153: =T153+U153 -> 0 | T153: 0 | U153: 0 | V153: 0 | W153: 0 | X153: 0 | Y153: 1900 | Z153: 0 | AB153: 0 | AC153: 0 | AD153: 0 | AE153: 0 | AF153: 0 | AG153: 0
A154: =X154>0 -> FALSE | N154: 0 | O154: 0 | P154: 1 | Q154: 0 | R154: 0 | S154: =T154+U154 -> 0 | T154: 0 | U154: 0 | V154: 0 | W154: 0 | X154: 0 | Y154: 1900 | Z154: 0 | AB154: 0 | AC154: 0 | AD154: 0 | AE154: 0 | AF154: 0 | AG154: 0
A155: =X155>0 -> FALSE | N155: 0 | O155: 0 | P155: 1 | Q155: 0 | R155: 0 | S155: =T155+U155 -> 0 | T155: 0 | U155: 0 | V155: 0 | W155: 0 | X155: 0 | Y155: 1900 | Z155: 0 | AB155: 0 | AC155: 0 | AD155: 0 | AE155: 0 | AF155: 0 | AG155: 0
A156: =X156>0 -> FALSE | N156: 0 | O156: 0 | P156: 1 | Q156: 0 | R156: 0 | S156: =T156+U156 -> 0 | T156: 0 | U156: 0 | V156: 0 | W156: 0 | X156: 0 | Y156: 1900 | Z156: 0 | AB156: 0 | AC156: 0 | AD156: 0 | AE156: 0 | AF156: 0 | AG156: 0
A157: =X157>0 -> FALSE | N157: 0 | O157: 0 | P157: 1 | Q157: 0 | R157: 0 | S157: =T157+U157 -> 0 | T157: 0 | U157: 0 | V157: 0 | W157: 0 | X157: 0 | Y157: 1900 | Z157: 0 | AB157: 0 | AC157: 0 | AD157: 0 | AE157: 0 | AF157: 0 | AG157: 0
A158: =X158>0 -> FALSE | N158: 0 | O158: 0 | P158: 1 | Q158: 0 | R158: 0 | S158: =T158+U158 -> 0 | T158: 0 | U158: 0 | V158: 0 | W158: 0 | X158: 0 | Y158: 1900 | Z158: 0 | AB158: 0 | AC158: 0 | AD158: 0 | AE158: 0 | AF158: 0 | AG158: 0
A159: =X159>0 -> FALSE | N159: 0 | O159: 0 | P159: 1 | Q159: 0 | R159: 0 | S159: =T159+U159 -> 0 | T159: 0 | U159: 0 | V159: 0 | W159: 0 | X159: 0 | Y159: 1900 | Z159: 0 | AB159: =IF($L159=AB$6,$S159,) -> 0 | AC159: 0 | AD159: 0 | AE159: =IF($L159=AE$6,$W159,) -> 0 | AF159: 0 | AG159: 0
A160: =X160>0 -> FALSE | N160: 0 | O160: 0 | P160: 1 | Q160: 0 | R160: 0 | S160: =T160+U160 -> 0 | T160: 0 | U160: 0 | V160: 0 | W160: 0 | X160: 0 | Y160: 1900 | Z160: 0 | AB160: 0 | AC160: 0 | AD160: 0 | AE160: 0 | AF160: 0 | AG160: 0
A161: =X161>0 -> FALSE | N161: 0 | O161: 0 | P161: 1 | Q161: 0 | R161: 0 | S161: =T161+U161 -> 0 | T161: 0 | U161: 0 | V161: 0 | W161: 0 | X161: 0 | Y161: 1900 | Z161: 0 | AB161: 0 | AC161: 0 | AD161: 0 | AE161: 0 | AF161: 0 | AG161: 0
A162: =X162>0 -> FALSE | N162: 0 | O162: 0 | P162: 1 | Q162: 0 | R162: 0 | S162: =T162+U162 -> 0 | T162: 0 | U162: 0 | V162: 0 | W162: 0 | X162: 0 | Y162: 1900 | Z162: 0 | AB162: 0 | AC162: 0 | AD162: 0 | AE162: 0 | AF162: 0 | AG162: 0
A163: =X163>0 -> FALSE | N163: 0 | O163: 0 | P163: 1 | Q163: 0 | R163: 0 | S163: =T163+U163 -> 0 | T163: 0 | U163: 0 | V163: 0 | W163: 0 | X163: 0 | Y163: 1900 | Z163: 0 | AB163: 0 | AC163: 0 | AD163: 0 | AE163: 0 | AF163: 0 | AG163: 0
A164: =X164>0 -> FALSE | N164: 0 | O164: 0 | P164: 1 | Q164: 0 | R164: 0 | S164: =T164+U164 -> 0 | T164: 0 | U164: 0 | V164: 0 | W164: 0 | X164: 0 | Y164: 1900 | Z164: 0 | AB164: 0 | AC164: 0 | AD164: 0 | AE164: 0 | AF164: 0 | AG164: 0
A165: =X165>0 -> FALSE | N165: 0 | O165: 0 | P165: 1 | Q165: 0 | R165: 0 | S165: =T165+U165 -> 0 | T165: 0 | U165: 0 | V165: 0 | W165: 0 | X165: 0 | Y165: 1900 | Z165: 0 | AB165: 0 | AC165: 0 | AD165: 0 | AE165: 0 | AF165: 0 | AG165: 0
A166: =X166>0 -> FALSE | N166: 0 | O166: 0 | P166: 1 | Q166: 0 | R166: 0 | S166: =T166+U166 -> 0 | T166: =IF(R166=0,0,IF(Y166>wST.Jahr,0,MAX(0,MIN(Q166,Q166/R166)))) -> 0 | U166: 0 | V166: 0 | W166: 0 | X166: 0 | Y166: 1900 | Z166: 0 | AB166: 0 | AC166: 0 | AD166: 0 | AE166: 0 | AF166: 0 | AG166: 0
A167: FALSE | N167: 0 | O167: 0 | P167: 1 | Q167: 0 | R167: 0 | S167: 0 | T167: 0 | U167: 0 | V167: 0 | W167: 0 | X167: 0 | Y167: 1900 | Z167: 0 | AB167: 0 | AC167: 0 | AD167: 0 | AE167: 0 | AF167: 0 | AG167: 0
A168: =A117 -> FALSE
A169: =N169>0 -> FALSE | B169: INTERESSENTENBEITRÄGE | I169: =I170 -> 0 | J169: =J170 -> 0 | K169: =K170 -> 0 | N169: =N170 -> 0 | O169: =O170 -> 0 | S169: =S170 -> 0 | T169: =T170 -> 0 | V169: =V170 -> 0 | W169: =W170 -> 0
A170: =N170>0 -> FALSE | B170: Interessentenbeiträge | I170: =SUMPRODUCT(I171:I209,$X171:$X209) -> 0 | J170: =SUMPRODUCT(J171:J209,$X171:$X209) -> 0 | K170: =SUMPRODUCT(K171:K209,$X171:$X209) -> 0 | N170: =SUMPRODUCT(N171:N209,$X171:$X209) -> 0 | O170: =SUMPRODUCT(O171:O209,$X171:$X209) -> 0 | S170: =SUMPRODUCT(S171:S209,$X171:$X209) -> 0 | T170: =SUMPRODUCT(T171:T209,$X171:$X209) -> 0 | V170: =SUMPRODUCT(V171:V209,$X171:$X209) -> 0 | W170: =SUMPRODUCT(W171:W209,$X171:$X209) -> 0 | X170: =IF(C170=0,0,IF(VALUE(LEFT(C170,3))=wST.Ansatz,1,0)) -> 0 | Z170: =SUM(Z171:Z209) -> 0
A171: =X171>0 -> FALSE | M171: =IF(AND(L171="",C171=""),"",IF(AND(C171<>"",L171=""),"Keine Zuordnung",IF(OR(L171=$AB$6,L171=$AC$6,L171=$AD$6),"OK","Falsche Kostenstelle"))) ->  | N171: =IF(AND(Y171+H171<=wST.Jahr,J171<>0,NOT(ISBLANK(H171))),"Zugang ungültig!",IF(Y171>wST.Jahr,0,SUM(I171,J171,-K171))) -> 0 | O171: =IF(H171=0,0,IF(Y171>=wST.Jahr,0,MAX(0,MIN(I171,I171/H171*(wST.Jahr-Y171)-I171/H171*IF(MONTH(G171)>6,0.5,0))))) -> 0 | P171: =IF(SUM(I171,J171)=0,1,1-K171/SUM(I171,J171)) -> 1 | Q171: =(J171+I171-O171)*P171 -> 0 | R171: =MAX(0,(Y171+H171-wST.Jahr+IF(AND(Y171<>wST.Jahr,MONTH(G171)>6),0.5,0))*IF(AND(Y171=wST.Jahr,MONTH(G171)>6),2,1)) -> 0 | S171: =T171+U171 -> 0 | T171: =IF(R171=0,0,IF(Y171>wST.Jahr,0,MAX(0,MIN(Q171,Q171/R171)))) -> 0 | U171: =(J171+I171-O171)*(1-P171) -> 0 | V171: =MIN(I171+J171,O171+T171+U171) -> 0 | W171: =IF(Y171>wST.Jahr,0,I171+J171-V171) -> 0 | X171: 0 | Y171: =YEAR(G171) -> 1900 | Z171: =IF(Y171>wST.Jahr-1,0,I171*X171) -> 0 | AB171: =IF($L171=AB$6,$S171,) -> 0 | AC171: 0 | AD171: 0 | AE171: =IF($L171=AE$6,$W171,) -> 0 | AF171: 0 | AG171: 0
A172: FALSE | N172: 0 | O172: 0 | P172: 1 | Q172: 0 | R172: 0 | S172: 0 | T172: 0 | U172: 0 | V172: 0 | W172: 0 | X172: 0 | Y172: 1900 | Z172: 0 | AB172: 0 | AC172: 0 | AD172: 0 | AE172: 0 | AF172: 0 | AG172: 0
A173: FALSE | N173: 0 | O173: 0 | P173: 1 | Q173: 0 | R173: 0 | S173: 0 | T173: 0 | U173: 0 | V173: 0 | W173: 0 | X173: 0 | Y173: 1900 | Z173: 0 | AB173: 0 | AC173: 0 | AD173: 0 | AE173: 0 | AF173: 0 | AG173: 0
A174: FALSE | N174: 0 | O174: 0 | P174: 1 | Q174: 0 | R174: 0 | S174: =T174+U174 -> 0 | T174: 0 | U174: 0 | V174: 0 | W174: 0 | X174: 0 | Y174: 1900 | Z174: 0 | AB174: 0 | AC174: 0 | AD174: 0 | AE174: 0 | AF174: 0 | AG174: 0
A175: FALSE | N175: 0 | O175: 0 | P175: 1 | Q175: 0 | R175: 0 | S175: =T175+U175 -> 0 | T175: 0 | U175: 0 | V175: 0 | W175: 0 | X175: 0 | Y175: 1900 | Z175: 0 | AB175: 0 | AC175: 0 | AD175: 0 | AE175: 0 | AF175: 0 | AG175: 0
A176: FALSE | N176: 0 | O176: 0 | P176: 1 | Q176: 0 | R176: 0 | S176: =T176+U176 -> 0 | T176: 0 | U176: 0 | V176: 0 | W176: 0 | X176: 0 | Y176: 1900 | Z176: 0 | AB176: 0 | AC176: 0 | AD176: 0 | AE176: 0 | AF176: 0 | AG176: 0
A177: FALSE | N177: 0 | O177: 0 | P177: 1 | Q177: 0 | R177: 0 | S177: =T177+U177 -> 0 | T177: 0 | U177: 0 | V177: 0 | W177: 0 | X177: 0 | Y177: 1900 | Z177: 0 | AB177: 0 | AC177: 0 | AD177: 0 | AE177: 0 | AF177: 0 | AG177: 0
A178: FALSE | N178: 0 | O178: 0 | P178: 1 | Q178: 0 | R178: 0 | S178: =T178+U178 -> 0 | T178: 0 | U178: 0 | V178: 0 | W178: 0 | X178: 0 | Y178: 1900 | Z178: 0 | AB178: 0 | AC178: 0 | AD178: 0 | AE178: 0 | AF178: 0 | AG178: 0
A179: FALSE | N179: 0 | O179: 0 | P179: 1 | Q179: 0 | R179: 0 | S179: =T179+U179 -> 0 | T179: 0 | U179: 0 | V179: 0 | W179: 0 | X179: 0 | Y179: 1900 | Z179: 0 | AB179: 0 | AC179: 0 | AD179: 0 | AE179: 0 | AF179: 0 | AG179: 0
A180: =X180>0 -> FALSE | N180: 0 | O180: 0 | P180: 1 | Q180: 0 | R180: 0 | S180: =T180+U180 -> 0 | T180: 0 | U180: 0 | V180: 0 | W180: 0 | X180: 0 | Y180: 1900 | Z180: 0 | AB180: 0 | AC180: 0 | AD180: 0 | AE180: 0 | AF180: 0 | AG180: 0
A181: =X181>0 -> FALSE | N181: 0 | O181: 0 | P181: 1 | Q181: 0 | R181: 0 | S181: =T181+U181 -> 0 | T181: 0 | U181: 0 | V181: 0 | W181: 0 | X181: 0 | Y181: 1900 | Z181: 0 | AB181: 0 | AC181: 0 | AD181: 0 | AE181: 0 | AF181: 0 | AG181: 0
A182: =X182>0 -> FALSE | N182: 0 | O182: 0 | P182: 1 | Q182: 0 | R182: 0 | S182: =T182+U182 -> 0 | T182: 0 | U182: 0 | V182: 0 | W182: 0 | X182: 0 | Y182: 1900 | Z182: 0 | AB182: 0 | AC182: 0 | AD182: 0 | AE182: 0 | AF182: 0 | AG182: 0
A183: =X183>0 -> FALSE | N183: 0 | O183: 0 | P183: 1 | Q183: 0 | R183: 0 | S183: =T183+U183 -> 0 | T183: 0 | U183: 0 | V183: 0 | W183: 0 | X183: 0 | Y183: 1900 | Z183: 0 | AB183: 0 | AC183: 0 | AD183: 0 | AE183: 0 | AF183: 0 | AG183: 0
A184: =X184>0 -> FALSE | N184: 0 | O184: 0 | P184: 1 | Q184: 0 | R184: 0 | S184: =T184+U184 -> 0 | T184: 0 | U184: 0 | V184: 0 | W184: 0 | X184: 0 | Y184: 1900 | Z184: 0 | AB184: 0 | AC184: 0 | AD184: 0 | AE184: 0 | AF184: 0 | AG184: 0
A185: =X185>0 -> FALSE | N185: 0 | O185: 0 | P185: 1 | Q185: 0 | R185: 0 | S185: =T185+U185 -> 0 | T185: 0 | U185: 0 | V185: 0 | W185: 0 | X185: 0 | Y185: 1900 | Z185: 0 | AB185: 0 | AC185: 0 | AD185: 0 | AE185: 0 | AF185: 0 | AG185: 0
A186: =X186>0 -> FALSE | N186: 0 | O186: 0 | P186: 1 | Q186: 0 | R186: 0 | S186: =T186+U186 -> 0 | T186: 0 | U186: 0 | V186: 0 | W186: 0 | X186: 0 | Y186: 1900 | Z186: 0 | AB186: 0 | AC186: 0 | AD186: 0 | AE186: 0 | AF186: 0 | AG186: 0
A187: =X187>0 -> FALSE | N187: 0 | O187: 0 | P187: 1 | Q187: 0 | R187: 0 | S187: =T187+U187 -> 0 | T187: 0 | U187: 0 | V187: 0 | W187: 0 | X187: 0 | Y187: 1900 | Z187: 0 | AB187: 0 | AC187: 0 | AD187: 0 | AE187: 0 | AF187: 0 | AG187: 0
A188: =X188>0 -> FALSE | N188: 0 | O188: 0 | P188: 1 | Q188: 0 | R188: 0 | S188: =T188+U188 -> 0 | T188: 0 | U188: 0 | V188: 0 | W188: 0 | X188: 0 | Y188: 1900 | Z188: 0 | AB188: 0 | AC188: 0 | AD188: 0 | AE188: 0 | AF188: 0 | AG188: 0
A189: =X189>0 -> FALSE | N189: 0 | O189: 0 | P189: 1 | Q189: 0 | R189: 0 | S189: =T189+U189 -> 0 | T189: 0 | U189: 0 | V189: 0 | W189: 0 | X189: 0 | Y189: 1900 | Z189: 0 | AB189: 0 | AC189: 0 | AD189: 0 | AE189: 0 | AF189: 0 | AG189: 0
A190: =X190>0 -> FALSE | N190: 0 | O190: 0 | P190: 1 | Q190: 0 | R190: 0 | S190: =T190+U190 -> 0 | T190: 0 | U190: 0 | V190: 0 | W190: 0 | X190: 0 | Y190: 1900 | Z190: 0 | AB190: 0 | AC190: 0 | AD190: 0 | AE190: 0 | AF190: 0 | AG190: 0
A191: =X191>0 -> FALSE | N191: 0 | O191: 0 | P191: 1 | Q191: 0 | R191: 0 | S191: =T191+U191 -> 0 | T191: 0 | U191: 0 | V191: 0 | W191: 0 | X191: 0 | Y191: 1900 | Z191: 0 | AB191: =IF($L191=AB$6,$S191,) -> 0 | AC191: 0 | AD191: 0 | AE191: =IF($L191=AE$6,$W191,) -> 0 | AF191: 0 | AG191: 0
A192: =X192>0 -> FALSE | N192: 0 | O192: 0 | P192: 1 | Q192: 0 | R192: 0 | S192: =T192+U192 -> 0 | T192: 0 | U192: 0 | V192: 0 | W192: 0 | X192: 0 | Y192: 1900 | Z192: 0 | AB192: 0 | AC192: 0 | AD192: 0 | AE192: 0 | AF192: 0 | AG192: 0
A193: =X193>0 -> FALSE | N193: 0 | O193: 0 | P193: 1 | Q193: 0 | R193: 0 | S193: =T193+U193 -> 0 | T193: 0 | U193: 0 | V193: 0 | W193: 0 | X193: 0 | Y193: 1900 | Z193: 0 | AB193: 0 | AC193: 0 | AD193: 0 | AE193: 0 | AF193: 0 | AG193: 0
A194: =X194>0 -> FALSE | N194: 0 | O194: 0 | P194: 1 | Q194: 0 | R194: 0 | S194: =T194+U194 -> 0 | T194: =IF(R194=0,0,IF(Y194>wST.Jahr,0,MAX(0,MIN(Q194,Q194/R194)))) -> 0 | U194: 0 | V194: 0 | W194: 0 | X194: 0 | Y194: 1900 | Z194: 0 | AB194: 0 | AC194: 0 | AD194: 0 | AE194: 0 | AF194: 0 | AG194: 0
A195: =X195>0 -> FALSE | N195: 0 | O195: 0 | P195: 1 | Q195: 0 | R195: 0 | S195: =T195+U195 -> 0 | T195: =IF(R195=0,0,IF(Y195>wST.Jahr,0,MAX(0,MIN(Q195,Q195/R195)))) -> 0 | U195: 0 | V195: 0 | W195: 0 | X195: 0 | Y195: 1900 | Z195: 0 | AB195: 0 | AC195: 0 | AD195: 0 | AE195: 0 | AF195: 0 | AG195: 0
A196: =X196>0 -> FALSE | N196: 0 | O196: 0 | P196: 1 | Q196: 0 | R196: 0 | S196: =T196+U196 -> 0 | T196: =IF(R196=0,0,IF(Y196>wST.Jahr,0,MAX(0,MIN(Q196,Q196/R196)))) -> 0 | U196: 0 | V196: 0 | W196: 0 | X196: 0 | Y196: 1900 | Z196: 0 | AB196: 0 | AC196: 0 | AD196: 0 | AE196: 0 | AF196: 0 | AG196: 0
A197: =X197>0 -> FALSE | N197: 0 | O197: 0 | P197: 1 | Q197: 0 | R197: 0 | S197: =T197+U197 -> 0 | T197: =IF(R197=0,0,IF(Y197>wST.Jahr,0,MAX(0,MIN(Q197,Q197/R197)))) -> 0 | U197: 0 | V197: 0 | W197: 0 | X197: 0 | Y197: 1900 | Z197: 0 | AB197: 0 | AC197: 0 | AD197: 0 | AE197: 0 | AF197: 0 | AG197: 0
A198: =X198>0 -> FALSE | N198: 0 | O198: 0 | P198: 1 | Q198: 0 | R198: 0 | S198: =T198+U198 -> 0 | T198: =IF(R198=0,0,IF(Y198>wST.Jahr,0,MAX(0,MIN(Q198,Q198/R198)))) -> 0 | U198: 0 | V198: 0 | W198: 0 | X198: 0 | Y198: 1900 | Z198: 0 | AB198: 0 | AC198: 0 | AD198: 0 | AE198: 0 | AF198: 0 | AG198: 0
A199: =X199>0 -> FALSE | N199: 0 | O199: 0 | P199: 1 | Q199: 0 | R199: 0 | S199: =T199+U199 -> 0 | T199: =IF(R199=0,0,IF(Y199>wST.Jahr,0,MAX(0,MIN(Q199,Q199/R199)))) -> 0 | U199: 0 | V199: 0 | W199: 0 | X199: 0 | Y199: 1900 | Z199: 0 | AB199: 0 | AC199: 0 | AD199: 0 | AE199: 0 | AF199: 0 | AG199: 0
A200: =X200>0 -> FALSE | N200: 0 | O200: 0 | P200: 1 | Q200: 0 | R200: 0 | S200: =T200+U200 -> 0 | T200: =IF(R200=0,0,IF(Y200>wST.Jahr,0,MAX(0,MIN(Q200,Q200/R200)))) -> 0 | U200: 0 | V200: 0 | W200: 0 | X200: 0 | Y200: 1900 | Z200: 0 | AB200: 0 | AC200: 0 | AD200: 0 | AE200: 0 | AF200: 0 | AG200: 0
... 16 more rows

Sheet Schulden
A1: FALSE | B1: TRUE | C1: Ende
A2: FALSE | B2: Anlagen | C2: 001.00
A3: FALSE | B3: Ende
A4: TRUE | B4: =CONCATENATE("Nachweis über den Schuldenstand Wasserversorgung per "&TEXT(wST.PeriodeEnde,"T. MMMM JJJJ")&" KLR-Ebene: "&wST.ORT) -> Nachweis über den Schuldenstand Wasserversorgung per 31. Dezember 2021 KLR-Ebene:
A5: TRUE
A6: TRUE | B6: Konto | C6: Ansatz | D6: Bezeichnung / Zweck / Darlehensgeber / Darlehensnummer | E6: Laufzeitende (TT.MM.JJJJ) | F6: Darlehensbetrag bei Aufnahme | G6: ="Schuldenstand per "&TEXT(wST.PeriodeAnfang-1,"T.M.JJJJ") -> Schuldenstand per 31.12.2020 | H6: ="Zugänge im Jahr "&TEXT(wST.PeriodeAnfang,"JJJJ") -> Zugänge im Jahr 2021 | I6: ="Abgänge im Jahr "&TEXT(wST.PeriodeAnfang,"JJJJ") -> Abgänge im Jahr 2021 | J6: Kostenstelle für KLR | K6: Kontrolle Kosten-stelle | L6: ="Schuldenstand per "&TEXT(wST.PeriodeEnde,"T.M.JJJJ") -> Schuldenstand per 31.12.2021 | P6: Zuordnung Anlagen-zusammenfassung | Q6: Tilgung | T6: Schuldenstand
A7: TRUE | Q7: Verteilung | R7: Gewinnung | S7: Verwaltung | T7: Verteilung | U7: Gewinnung | V7: Verwaltung
A8: =OR(A9,A13,A17,A21,A25,A29,A33,A49,A53,A58) -> FALSE | B8: 31 | C8: LEASING | F8: =SUM(F9,F13) -> 0 | G8: =SUM(G9,G13) -> 0 | H8: =SUM(H9,H13) -> 0 | I8: =SUM(I9,I13) -> 0 | L8: =SUM(L9,L13) -> 0
A9: =OR(A10:A12) -> FALSE | B9: 310 | C9: Verbindlichkeiten aus Finanzierungsleasing | F9: =SUMPRODUCT(F10:F12,$M10:$M12) -> 0 | G9: =SUMPRODUCT(G10:G12,$M10:$M12) -> 0 | H9: =SUMPRODUCT(H10:H12,$M10:$M12) -> 0 | I9: =SUMPRODUCT(I10:I12,$M10:$M12) -> 0 | L9: =SUM(G9,H9,-I9) -> 0
A10: =M10>0 -> FALSE | G10: 0 | K10: =IF(AND(J10="",C10=""),"",IF(AND(C10<>"",J10=""),"Keine Zuordnung",IF(OR(J10=$Q$7,J10=$R$7,J10=$S$7),"OK","Falsche Kostenstelle"))) ->  | L10: 0 | M10: =IF(C10=0,0,IF(VALUE(LEFT(C10,3))=wST.Ansatz,1,0)) -> 0 | N10: =IF(C10=0,0,VALUE(LEFT(C10,3))) -> 0 | Q10: =IF($J10=Q$7,$I10-$H10,) -> 0 | R10: 0 | S10: 0 | T10: =IF($J10=T$7,$L10,) -> 0 | U10: 0 | V10: 0
A11: =M11>0 -> FALSE | K11: =IF(AND(J11="",C11=""),"",IF(AND(C11<>"",J11=""),"Keine Zuordnung",IF(OR(J11=$Q$7,J11=$R$7,J11=$S$7),"OK","Falsche Kostenstelle"))) ->  | L11: =SUM(G11,H11,-I11) -> 0 | M11: =IF(C11=0,0,IF(VALUE(LEFT(C11,3))=wST.Ansatz,1,0)) -> 0 | N11: =IF(C11=0,0,VALUE(LEFT(C11,3))) -> 0 | P11: Caddy | Q11: 0 | R11: 0 | S11: 0 | T11: 0 | U11: 0 | V11: 0
A12: =M12>0 -> FALSE | G12: 0 | K12: =IF(AND(J12="",C12=""),"",IF(AND(C12<>"",J12=""),"Keine Zuordnung",IF(OR(J12=$Q$7,J12=$R$7,J12=$S$7),"OK","Falsche Kostenstelle"))) ->  | L12: 0 | M12: =IF(C12=0,0,IF(VALUE(LEFT(C12,3))=wST.Ansatz,1,0)) -> 0 | N12: =IF(C12=0,0,VALUE(LEFT(C12,3))) -> 0 | Q12: 0 | R12: 0 | S12: 0 | T12: 0 | U12: 0 | V12: 0
A13: =OR(A14:A16) -> FALSE | B13: 311 | C13: Forderungskauf (Schuldeinlösung) | F13: =SUMPRODUCT(F14:F16,$M14:$M16) -> 0 | G13: =SUMPRODUCT(G14:G16,$M14:$M16) -> 0 | H13: =SUMPRODUCT(H14:H16,$M14:$M16) -> 0 | I13: =SUMPRODUCT(I14:I16,$M14:$M16) -> 0 | L13: 0
A14: =M14>0 -> FALSE | K14: =IF(AND(J14="",C14=""),"",IF(AND(C14<>"",J14=""),"Keine Zuordnung",IF(OR(J14=$Q$7,J14=$R$7,J14=$S$7),"OK","Falsche Kostenstelle"))) ->  | L14: 0 | M14: =IF(C14=0,0,IF(VALUE(LEFT(C14,3))=wST.Ansatz,1,0)) -> 0 | N14: =IF(C14=0,0,VALUE(LEFT(C14,3))) -> 0 | Q14: =IF($J14=Q$7,$I14-$H14,) -> 0 | R14: 0 | S14: 0 | T14: =IF($J14=T$7,$L14,) -> 0 | U14: 0 | V14: 0
A15: FALSE | K15: =IF(AND(J15="",C15=""),"",IF(AND(C15<>"",J15=""),"Keine Zuordnung",IF(OR(J15=$Q$7,J15=$R$7,J15=$S$7),"OK","Falsche Kostenstelle"))) ->  | L15: 0 | M15: 0 | N15: 0 | Q15: 0 | R15: 0 | S15: 0 | T15: 0 | U15: 0 | V15: 0
A16: FALSE | K16: =IF(AND(J16="",C16=""),"",IF(AND(C16<>"",J16=""),"Keine Zuordnung",IF(OR(J16=$Q$7,J16=$R$7,J16=$S$7),"OK","Falsche Kostenstelle"))) ->  | L16: 0 | M16: 0 | N16: 0 | Q16: 0 | R16: 0 | S16: 0 | T16: 0 | U16: 0 | V16: 0
A17: =OR(A18,A22,A26,A30,A34,A38,A42,A59,A63,A67) -> FALSE | B17: 34 | C17: INVESTITIONSDARLEHEN | F17: =SUM(F18,F22,F26,F30,F34,F38,F42,F59,F63,F67) -> 0 | G17: =SUM(G18,G22,G26,G30,G34,G38,G42,G59,G63,G67) -> 0 | H17: =SUM(H18,H22,H26,H30,H34,H38,H42,H59,H63,H67) -> 0 | I17: =SUM(I18,I22,I26,I30,I34,I38,I42,I59,I63,I67) -> 0 | L17: =SUM(L18,L22,L26,L30,L34,L38,L42,L59,L63,L67) -> 0
A18: =OR(A19:A21) -> FALSE | B18: 340 | C18: Investitionsdarlehen von Bund, Bundesfonds und Bundeskammern | F18: =SUMPRODUCT(F19:F21,$M19:$M21) -> 0 | G18: =SUMPRODUCT(G19:G21,$M19:$M21) -> 0 | H18: =SUMPRODUCT(H19:H21,$M19:$M21) -> 0 | I18: =SUMPRODUCT(I19:I21,$M19:$M21) -> 0 | L18: =SUM(G18,H18,-I18) -> 0
A19: =M19>0 -> FALSE | G19: 0 | K19: =IF(AND(J19="",C19=""),"",IF(AND(C19<>"",J19=""),"Keine Zuordnung",IF(OR(J19=$Q$7,J19=$R$7,J19=$S$7),"OK","Falsche Kostenstelle"))) ->  | L19: 0 | M19: =IF(C19=0,0,IF(VALUE(LEFT(C19,3))=wST.Ansatz,1,0)) -> 0 | N19: =IF(C19=0,0,VALUE(LEFT(C19,3))) -> 0 | Q19: =IF($J19=Q$7,$I19-$H19,) -> 0 | R19: 0 | S19: 0 | T19: =IF($J19=T$7,$L19,) -> 0 | U19: 0 | V19: 0
A20: =M20>0 -> FALSE | G20: 0 | K20: =IF(AND(J20="",C20=""),"",IF(AND(C20<>"",J20=""),"Keine Zuordnung",IF(OR(J20=$Q$7,J20=$R$7,J20=$S$7),"OK","Falsche Kostenstelle"))) ->  | L20: =SUM(G20,H20,-I20) -> 0 | M20: =IF(C20=0,0,IF(VALUE(LEFT(C20,3))=wST.Ansatz,1,0)) -> 0 | N20: =IF(C20=0,0,VALUE(LEFT(C20,3))) -> 0 | Q20: 0 | R20: 0 | S20: 0 | T20: 0 | U20: 0 | V20: 0
A21: =M21>0 -> FALSE | G21: 0 | K21: =IF(AND(J21="",C21=""),"",IF(AND(C21<>"",J21=""),"Keine Zuordnung",IF(OR(J21=$Q$7,J21=$R$7,J21=$S$7),"OK","Falsche Kostenstelle"))) ->  | L21: 0 | M21: =IF(C21=0,0,IF(VALUE(LEFT(C21,3))=wST.Ansatz,1,0)) -> 0 | N21: =IF(C21=0,0,VALUE(LEFT(C21,3))) -> 0 | Q21: 0 | R21: 0 | S21: 0 | T21: 0 | U21: 0 | V21: 0
A22: =OR(A23:A25) -> FALSE | B22: 341 | C22: Investitionsdarlehen von Ländern, Landesfonds und Landeskammern | F22: =SUMPRODUCT(F23:F25,$M23:$M25) -> 0 | G22: =SUMPRODUCT(G23:G25,$M23:$M25) -> 0 | H22: =SUMPRODUCT(H23:H25,$M23:$M25) -> 0 | I22: =SUMPRODUCT(I23:I25,$M23:$M25) -> 0 | L22: 0
A23: =M23>0 -> FALSE | K23: =IF(AND(J23="",C23=""),"",IF(AND(C23<>"",J23=""),"Keine Zuordnung",IF(OR(J23=$Q$7,J23=$R$7,J23=$S$7),"OK","Falsche Kostenstelle"))) ->  | L23: 0 | M23: =IF(C23=0,0,IF(VALUE(LEFT(C23,3))=wST.Ansatz,1,0)) -> 0 | N23: =IF(C23=0,0,VALUE(LEFT(C23,3))) -> 0 | Q23: =IF($J23=Q$7,$I23-$H23,) -> 0 | R23: 0 | S23: 0 | T23: =IF($J23=T$7,$L23,) -> 0 | U23: 0 | V23: 0
A24: FALSE | K24: =IF(AND(J24="",C24=""),"",IF(AND(C24<>"",J24=""),"Keine Zuordnung",IF(OR(J24=$Q$7,J24=$R$7,J24=$S$7),"OK","Falsche Kostenstelle"))) ->  | L24: 0 | M24: 0 | N24: 0 | Q24: 0 | R24: 0 | S24: 0 | T24: 0 | U24: 0 | V24: 0
A25: FALSE | K25: =IF(AND(J25="",C25=""),"",IF(AND(C25<>"",J25=""),"Keine Zuordnung",IF(OR(J25=$Q$7,J25=$R$7,J25=$S$7),"OK","Falsche Kostenstelle"))) ->  | L25: 0 | M25: 0 | N25: 0 | Q25: 0 | R25: 0 | S25: 0 | T25: 0 | U25: 0 | V25: 0
A26: =OR(A27:A29) -> FALSE | B26: 342 | C26: Investitionsdarlehen v. Gemeinden, Gdeverb. (o. marktb. Tätigk.) und Gdefonds | F26: =SUMPRODUCT(F27:F29,$M27:$M29) -> 0 | G26: =SUMPRODUCT(G27:G29,$M27:$M29) -> 0 | H26: =SUMPRODUCT(H27:H29,$M27:$M29) -> 0 | I26: =SUMPRODUCT(I27:I29,$M27:$M29) -> 0 | L26: 0
A27: =M27>0 -> FALSE | G27: 0 | K27: =IF(AND(J27="",C27=""),"",IF(AND(C27<>"",J27=""),"Keine Zuordnung",IF(OR(J27=$Q$7,J27=$R$7,J27=$S$7),"OK","Falsche Kostenstelle"))) ->  | L27: 0 | M27: =IF(C27=0,0,IF(VALUE(LEFT(C27,3))=wST.Ansatz,1,0)) -> 0 | N27: =IF(C27=0,0,VALUE(LEFT(C27,3))) -> 0 | Q27: =IF($J27=Q$7,$I27-$H27,) -> 0 | R27: 0 | S27: 0 | T27: =IF($J27=T$7,$L27,) -> 0 | U27: 0 | V27: 0
A28: =M28>0 -> FALSE | G28: 0 | K28: =IF(AND(J28="",C28=""),"",IF(AND(C28<>"",J28=""),"Keine Zuordnung",IF(OR(J28=$Q$7,J28=$R$7,J28=$S$7),"OK","Falsche Kostenstelle"))) ->  | L28: 0 | M28: =IF(C28=0,0,IF(VALUE(LEFT(C28,3))=wST.Ansatz,1,0)) -> 0 | N28: =IF(C28=0,0,VALUE(LEFT(C28,3))) -> 0 | Q28: 0 | R28: 0 | S28: 0 | T28: 0 | U28: 0 | V28: 0
A29: =M29>0 -> FALSE | G29: 0 | K29: =IF(AND(J29="",C29=""),"",IF(AND(C29<>"",J29=""),"Keine Zuordnung",IF(OR(J29=$Q$7,J29=$R$7,J29=$S$7),"OK","Falsche Kostenstelle"))) ->  | L29: 0 | M29: =IF(C29=0,0,IF(VALUE(LEFT(C29,3))=wST.Ansatz,1,0)) -> 0 | N29: =IF(C29=0,0,VALUE(LEFT(C29,3))) -> 0 | Q29: 0 | R29: 0 | S29: 0 | T29: 0 | U29: 0 | V29: 0
A30: =OR(A31:A33) -> FALSE | B30: 343 | C30: Investitionsdarlehen von Sozialversicherungsträgern | F30: =SUMPRODUCT(F31:F33,$M31:$M33) -> 0 | G30: =SUMPRODUCT(G31:G33,$M31:$M33) -> 0 | H30: =SUMPRODUCT(H31:H33,$M31:$M33) -> 0 | I30: =SUMPRODUCT(I31:I33,$M31:$M33) -> 0 | L30: 0
A31: =M31>0 -> FALSE | G31: 0 | K31: =IF(AND(J31="",C31=""),"",IF(AND(C31<>"",J31=""),"Keine Zuordnung",IF(OR(J31=$Q$7,J31=$R$7,J31=$S$7),"OK","Falsche Kostenstelle"))) ->  | L31: 0 | M31: =IF(C31=0,0,IF(VALUE(LEFT(C31,3))=wST.Ansatz,1,0)) -> 0 | N31: =IF(C31=0,0,VALUE(LEFT(C31,3))) -> 0 | Q31: =IF($J31=Q$7,$I31-$H31,) -> 0 | R31: 0 | S31: 0 | T31: =IF($J31=T$7,$L31,) -> 0 | U31: 0 | V31: 0
A32: =M32>0 -> FALSE | G32: 0 | K32: =IF(AND(J32="",C32=""),"",IF(AND(C32<>"",J32=""),"Keine Zuordnung",IF(OR(J32=$Q$7,J32=$R$7,J32=$S$7),"OK","Falsche Kostenstelle"))) ->  | L32: 0 | M32: =IF(C32=0,0,IF(VALUE(LEFT(C32,3))=wST.Ansatz,1,0)) -> 0 | N32: =IF(C32=0,0,VALUE(LEFT(C32,3))) -> 0 | Q32: 0 | R32: 0 | S32: 0 | T32: 0 | U32: 0 | V32: 0
A33: =M33>0 -> FALSE | G33: 0 | K33: =IF(AND(J33="",C33=""),"",IF(AND(C33<>"",J33=""),"Keine Zuordnung",IF(OR(J33=$Q$7,J33=$R$7,J33=$S$7),"OK","Falsche Kostenstelle"))) ->  | L33: 0 | M33: =IF(C33=0,0,IF(VALUE(LEFT(C33,3))=wST.Ansatz,1,0)) -> 0 | N33: =IF(C33=0,0,VALUE(LEFT(C33,3))) -> 0 | Q33: 0 | R33: 0 | S33: 0 | T33: 0 | U33: 0 | V33: 0
A34: =OR(A35:A37) -> FALSE | B34: 344 | C34: Investitionsdarlehen von sonstigen Trägern des öffentlichen Rechtes | F34: =SUMPRODUCT(F35:F37,$M35:$M37) -> 0 | G34: =SUMPRODUCT(G35:G37,$M35:$M37) -> 0 | H34: =SUMPRODUCT(H35:H37,$M35:$M37) -> 0 | I34: =SUMPRODUCT(I35:I37,$M35:$M37) -> 0 | L34: 0
A35: =M35>0 -> FALSE | G35: 0 | K35: =IF(AND(J35="",C35=""),"",IF(AND(C35<>"",J35=""),"Keine Zuordnung",IF(OR(J35=$Q$7,J35=$R$7,J35=$S$7),"OK","Falsche Kostenstelle"))) ->  | L35: 0 | M35: =IF(C35=0,0,IF(VALUE(LEFT(C35,3))=wST.Ansatz,1,0)) -> 0 | N35: =IF(C35=0,0,VALUE(LEFT(C35,3))) -> 0 | Q35: =IF($J35=Q$7,$I35-$H35,) -> 0 | R35: 0 | S35: 0 | T35: =IF($J35=T$7,$L35,) -> 0 | U35: 0 | V35: 0
A36: =M36>0 -> FALSE | G36: 0 | K36: =IF(AND(J36="",C36=""),"",IF(AND(C36<>"",J36=""),"Keine Zuordnung",IF(OR(J36=$Q$7,J36=$R$7,J36=$S$7),"OK","Falsche Kostenstelle"))) ->  | L36: 0 | M36: =IF(C36=0,0,IF(VALUE(LEFT(C36,3))=wST.Ansatz,1,0)) -> 0 | N36: =IF(C36=0,0,VALUE(LEFT(C36,3))) -> 0 | Q36: 0 | R36: 0 | S36: 0 | T36: 0 | U36: 0 | V36: 0
A37: =M37>0 -> FALSE | G37: 0 | K37: =IF(AND(J37="",C37=""),"",IF(AND(C37<>"",J37=""),"Keine Zuordnung",IF(OR(J37=$Q$7,J37=$R$7,J37=$S$7),"OK","Falsche Kostenstelle"))) ->  | L37: 0 | M37: =IF(C37=0,0,IF(VALUE(LEFT(C37,3))=wST.Ansatz,1,0)) -> 0 | N37: =IF(C37=0,0,VALUE(LEFT(C37,3))) -> 0 | Q37: 0 | R37: 0 | S37: 0 | T37: 0 | U37: 0 | V37: 0
A38: =OR(A39:A41) -> FALSE | B38: 345 | C38: Investitionsdarlehen von Beteiligungen | F38: =SUMPRODUCT(F39:F41,$M39:$M41) -> 0 | G38: =SUMPRODUCT(G39:G41,$M39:$M41) -> 0 | H38: =SUMPRODUCT(H39:H41,$M39:$M41) -> 0 | I38: =SUMPRODUCT(I39:I41,$M39:$M41) -> 0 | L38: 0
A39: =M39>0 -> FALSE | G39: 0 | K39: =IF(AND(J39="",C39=""),"",IF(AND(C39<>"",J39=""),"Keine Zuordnung",IF(OR(J39=$Q$7,J39=$R$7,J39=$S$7),"OK","Falsche Kostenstelle"))) ->  | L39: 0 | M39: =IF(C39=0,0,IF(VALUE(LEFT(C39,3))=wST.Ansatz,1,0)) -> 0 | N39: =IF(C39=0,0,VALUE(LEFT(C39,3))) -> 0 | Q39: =IF($J39=Q$7,$I39-$H39,) -> 0 | R39: 0 | S39: 0 | T39: =IF($J39=T$7,$L39,) -> 0 | U39: 0 | V39: 0
A40: =M40>0 -> FALSE | G40: 0 | K40: =IF(AND(J40="",C40=""),"",IF(AND(C40<>"",J40=""),"Keine Zuordnung",IF(OR(J40=$Q$7,J40=$R$7,J40=$S$7),"OK","Falsche Kostenstelle"))) ->  | L40: 0 | M40: =IF(C40=0,0,IF(VALUE(LEFT(C40,3))=wST.Ansatz,1,0)) -> 0 | N40: =IF(C40=0,0,VALUE(LEFT(C40,3))) -> 0 | Q40: 0 | R40: 0 | S40: 0 | T40: 0 | U40: 0 | V40: 0
A41: =M41>0 -> FALSE | G41: 0 | K41: =IF(AND(J41="",C41=""),"",IF(AND(C41<>"",J41=""),"Keine Zuordnung",IF(OR(J41=$Q$7,J41=$R$7,J41=$S$7),"OK","Falsche Kostenstelle"))) ->  | L41: 0 | M41: =IF(C41=0,0,IF(VALUE(LEFT(C41,3))=wST.Ansatz,1,0)) -> 0 | N41: =IF(C41=0,0,VALUE(LEFT(C41,3))) -> 0 | Q41: 0 | R41: 0 | S41: 0 | T41: 0 | U41: 0 | V41: 0
A42: =OR(A43:A58) -> FALSE | B42: 346 | C42: Investitionsdarlehen von Finanzunternehmen | F42: =SUMPRODUCT(F43:F58,$M43:$M58) -> 0 | G42: =SUMPRODUCT(G43:G58,$M43:$M58) -> 0 | H42: =SUMPRODUCT(H43:H58,$M43:$M58) -> 0 | I42: =SUMPRODUCT(I43:I58,$M43:$M58) -> 0 | L42: 0
A43: =M43>0 -> FALSE | K43: =IF(AND(J43="",C43=""),"",IF(AND(C43<>"",J43=""),"Keine Zuordnung",IF(OR(J43=$Q$7,J43=$R$7,J43=$S$7),"OK","Falsche Kostenstelle"))) ->  | L43: 0 | M43: =IF(C43=0,0,IF(VALUE(LEFT(C43,3))=wST.Ansatz,1,0)) -> 0 | N43: =IF(C43=0,0,VALUE(LEFT(C43,3))) -> 0 | Q43: =IF($J43=Q$7,$I43-$H43,) -> 0 | R43: 0 | S43: 0 | T43: =IF($J43=T$7,$L43,) -> 0 | U43: 0 | V43: 0
A44: FALSE | L44: 0 | M44: 0 | N44: 0 | P44: BA 01 | Q44: 0 | R44: 0 | S44: 0 | T44: 0 | U44: 0 | V44: 0
A45: FALSE | L45: 0 | M45: 0 | N45: 0 | P45: BA 02 | Q45: 0 | R45: 0 | S45: 0 | T45: 0 | U45: 0 | V45: 0
A46: FALSE | L46: 0 | M46: 0 | N46: 0 | P46: BA 03 | Q46: 0 | R46: 0 | S46: 0 | T46: 0 | U46: 0 | V46: 0
A47: FALSE | L47: 0 | M47: 0 | N47: 0 | P47: BA 04 | Q47: 0 | R47: 0 | S47: 0 | T47: 0 | U47: 0 | V47: 0
A48: FALSE | L48: 0 | M48: 0 | N48: 0 | P48: BA 05 | Q48: 0 | R48: 0 | S48: 0 | T48: 0 | U48: 0 | V48: 0
A49: FALSE | L49: 0 | M49: 0 | N49: 0 | P49: BA 06 | Q49: 0 | R49: 0 | S49: 0 | T49: 0 | U49: 0 | V49: 0
A50: FALSE | L50: 0 | M50: 0 | N50: 0 | P50: BA 07 | Q50: 0 | R50: 0 | S50: 0 | T50: 0 | U50: 0 | V50: 0
A51: =M51>0 -> FALSE | L51: 0 | M51: =IF(C51=0,0,IF(VALUE(LEFT(C51,3))=wST.Ansatz,1,0)) -> 0 | N51: =IF(C51=0,0,VALUE(LEFT(C51,3))) -> 0 | P51: BA 08 | Q51: 0 | R51: 0 | S51: 0 | T51: 0 | U51: 0 | V51: 0
A52: FALSE | L52: 0 | M52: 0 | N52: 0 | P52: BA 09 | Q52: 0 | R52: 0 | S52: 0 | T52: 0 | U52: 0 | V52: 0
A53: =M53>0 -> FALSE | L53: =SUM(G53,H53,-I53) -> 0 | M53: =IF(C53=0,0,IF(VALUE(LEFT(C53,3))=wST.Ansatz,1,0)) -> 0 | N53: =IF(C53=0,0,VALUE(LEFT(C53,3))) -> 0 | Q53: 0 | R53: 0 | S53: 0 | T53: 0 | U53: 0 | V53: 0
A54: =M54>0 -> FALSE | G54: 0 | L54: =SUM(G54,H54,-I54) -> 0 | M54: =IF(C54=0,0,IF(VALUE(LEFT(C54,3))=wST.Ansatz,1,0)) -> 0 | N54: =IF(C54=0,0,VALUE(LEFT(C54,3))) -> 0 | Q54: 0 | R54: 0 | S54: 0 | T54: 0 | U54: 0 | V54: 0
A55: =M55>0 -> FALSE | G55: 0 | L55: =SUM(G55,H55,-I55) -> 0 | M55: =IF(C55=0,0,IF(VALUE(LEFT(C55,3))=wST.Ansatz,1,0)) -> 0 | N55: =IF(C55=0,0,VALUE(LEFT(C55,3))) -> 0 | Q55: 0 | R55: 0 | S55: 0 | T55: 0 | U55: 0 | V55: 0
A56: =M56>0 -> FALSE | G56: 0 | L56: =SUM(G56,H56,-I56) -> 0 | M56: =IF(C56=0,0,IF(VALUE(LEFT(C56,3))=wST.Ansatz,1,0)) -> 0 | N56: =IF(C56=0,0,VALUE(LEFT(C56,3))) -> 0 | Q56: 0 | R56: 0 | S56: 0 | T56: 0 | U56: 0 | V56: 0
A57: =M57>0 -> FALSE | G57: 0 | L57: =SUM(G57,H57,-I57) -> 0 | M57: =IF(C57=0,0,IF(VALUE(LEFT(C57,3))=wST.Ansatz,1,0)) -> 0 | N57: =IF(C57=0,0,VALUE(LEFT(C57,3))) -> 0 | Q57: 0 | R57: 0 | S57: 0 | T57: 0 | U57: 0 | V57: 0
A58: =M58>0 -> FALSE | G58: 0 | L58: 0 | M58: =IF(C58=0,0,IF(VALUE(LEFT(C58,3))=wST.Ansatz,1,0)) -> 0 | N58: =IF(C58=0,0,VALUE(LEFT(C58,3))) -> 0 | Q58: 0 | R58: 0 | S58: 0 | T58: 0 | U58: 0 | V58: 0
A59: =OR(A60:A62) -> FALSE | B59: 347 | C59: Investitionsdarlehen von Unternehmen (ohne Finanzunternehmen) und anderen | F59: =SUMPRODUCT(F60:F62,$M60:$M62) -> 0 | G59: =SUMPRODUCT(G60:G62,$M60:$M62) -> 0 | H59: =SUMPRODUCT(H60:H62,$M60:$M62) -> 0 | I59: =SUMPRODUCT(I60:I62,$M60:$M62) -> 0 | L59: =SUM(G59,H59,-I59) -> 0
A60: =M60>0 -> FALSE | F60: 0 | G60: 0 | K60: =IF(AND(J60="",C60=""),"",IF(AND(C60<>"",J60=""),"Keine Zuordnung",IF(OR(J60=$Q$7,J60=$R$7,J60=$S$7),"OK","Falsche Kostenstelle"))) ->  | L60: 0 | M60: =IF(C60=0,0,IF(VALUE(LEFT(C60,3))=wST.Ansatz,1,0)) -> 0 | N60: =IF(C60=0,0,VALUE(LEFT(C60,3))) -> 0 | Q60: =IF($J60=Q$7,$I60-$H60,) -> 0 | R60: 0 | S60: 0 | T60: =IF($J60=T$7,$L60,) -> 0 | U60: 0 | V60: 0
A61: =M61>0 -> FALSE | F61: 0 | G61: 0 | K61: =IF(AND(J61="",C61=""),"",IF(AND(C61<>"",J61=""),"Keine Zuordnung",IF(OR(J61=$Q$7,J61=$R$7,J61=$S$7),"OK","Falsche Kostenstelle"))) ->  | L61: =SUM(G61,H61,-I61) -> 0 | M61: =IF(C61=0,0,IF(VALUE(LEFT(C61,3))=wST.Ansatz,1,0)) -> 0 | N61: =IF(C61=0,0,VALUE(LEFT(C61,3))) -> 0 | Q61: 0 | R61: 0 | S61: 0 | T61: 0 | U61: 0 | V61: 0
A62: =M62>0 -> FALSE | F62: 0 | G62: 0 | K62: =IF(AND(J62="",C62=""),"",IF(AND(C62<>"",J62=""),"Keine Zuordnung",IF(OR(J62=$Q$7,J62=$R$7,J62=$S$7),"OK","Falsche Kostenstelle"))) ->  | L62: 0 | M62: =IF(C62=0,0,IF(VALUE(LEFT(C62,3))=wST.Ansatz,1,0)) -> 0 | N62: =IF(C62=0,0,VALUE(LEFT(C62,3))) -> 0 | Q62: 0 | R62: 0 | S62: 0 | T62: 0 | U62: 0 | V62: 0
A63: =OR(A64:A66) -> FALSE | B63: 348 | C63: Auslandsanleihen für Investitionszwecke | F63: =SUMPRODUCT(F64:F66,$M64:$M66) -> 0 | G63: =SUMPRODUCT(G64:G66,$M64:$M66) -> 0 | H63: =SUMPRODUCT(H64:H66,$M64:$M66) -> 0 | I63: =SUMPRODUCT(I64:I66,$M64:$M66) -> 0 | L63: 0
A64: =M64>0 -> FALSE | F64: 0 | G64: 0 | K64: =IF(AND(J64="",C64=""),"",IF(AND(C64<>"",J64=""),"Keine Zuordnung",IF(OR(J64=$Q$7,J64=$R$7,J64=$S$7),"OK","Falsche Kostenstelle"))) ->  | L64: 0 | M64: =IF(C64=0,0,IF(VALUE(LEFT(C64,3))=wST.Ansatz,1,0)) -> 0 | N64: =IF(C64=0,0,VALUE(LEFT(C64,3))) -> 0 | Q64: =IF($J64=Q$7,$I64-$H64,) -> 0 | R64: 0 | S64: 0 | T64: =IF($J64=T$7,$L64,) -> 0 | U64: 0 | V64: 0
A65: =M65>0 -> FALSE | F65: 0 | G65: 0 | K65: =IF(AND(J65="",C65=""),"",IF(AND(C65<>"",J65=""),"Keine Zuordnung",IF(OR(J65=$Q$7,J65=$R$7,J65=$S$7),"OK","Falsche Kostenstelle"))) ->  | L65: 0 | M65: =IF(C65=0,0,IF(VALUE(LEFT(C65,3))=wST.Ansatz,1,0)) -> 0 | N65: =IF(C65=0,0,VALUE(LEFT(C65,3))) -> 0 | Q65: 0 | R65: 0 | S65: 0 | T65: 0 | U65: 0 | V65: 0
A66: =M66>0 -> FALSE | F66: 0 | G66: 0 | K66: =IF(AND(J66="",C66=""),"",IF(AND(C66<>"",J66=""),"Keine Zuordnung",IF(OR(J66=$Q$7,J66=$R$7,J66=$S$7),"OK","Falsche Kostenstelle"))) ->  | L66: 0 | M66: =IF(C66=0,0,IF(VALUE(LEFT(C66,3))=wST.Ansatz,1,0)) -> 0 | N66: =IF(C66=0,0,VALUE(LEFT(C66,3))) -> 0 | Q66: 0 | R66: 0 | S66: 0 | T66: 0 | U66: 0 | V66: 0
A67: =OR(A68:A70) -> FALSE | B67: 349 | C67: Inlandsanleihen für Investitionszwecke | F67: =SUMPRODUCT(F68:F70,$M68:$M70) -> 0 | G67: =SUMPRODUCT(G68:G70,$M68:$M70) -> 0 | H67: =SUMPRODUCT(H68:H70,$M68:$M70) -> 0 | I67: =SUMPRODUCT(I68:I70,$M68:$M70) -> 0 | L67: 0
A68: =M68>0 -> FALSE | F68: 0 | G68: 0 | K68: =IF(AND(J68="",C68=""),"",IF(AND(C68<>"",J68=""),"Keine Zuordnung",IF(OR(J68=$Q$7,J68=$R$7,J68=$S$7),"OK","Falsche Kostenstelle"))) ->  | L68: 0 | M68: =IF(C68=0,0,IF(VALUE(LEFT(C68,3))=wST.Ansatz,1,0)) -> 0 | N68: =IF(C68=0,0,VALUE(LEFT(C68,3))) -> 0 | Q68: =IF($J68=Q$7,$I68-$H68,) -> 0 | R68: 0 | S68: 0 | T68: =IF($J68=T$7,$L68,) -> 0 | U68: 0 | V68: 0
A69: =M69>0 -> FALSE | F69: 0 | G69: 0 | K69: =IF(AND(J69="",C69=""),"",IF(AND(C69<>"",J69=""),"Keine Zuordnung",IF(OR(J69=$Q$7,J69=$R$7,J69=$S$7),"OK","Falsche Kostenstelle"))) ->  | L69: =SUM(G69,H69,-I69) -> 0 | M69: =IF(C69=0,0,IF(VALUE(LEFT(C69,3))=wST.Ansatz,1,0)) -> 0 | N69: =IF(C69=0,0,VALUE(LEFT(C69,3))) -> 0 | Q69: 0 | R69: 0 | S69: 0 | T69: 0 | U69: 0 | V69: 0
A70: =M70>0 -> FALSE | F70: 0 | G70: 0 | K70: =IF(AND(J70="",C70=""),"",IF(AND(C70<>"",J70=""),"Keine Zuordnung",IF(OR(J70=$Q$7,J70=$R$7,J70=$S$7),"OK","Falsche Kostenstelle"))) ->  | L70: 0 | M70: =IF(C70=0,0,IF(VALUE(LEFT(C70,3))=wST.Ansatz,1,0)) -> 0 | N70: =IF(C70=0,0,VALUE(LEFT(C70,3))) -> 0 | Q70: 0 | R70: 0 | S70: 0 | T70: 0 | U70: 0 | V70: 0
A71: =OR(A72,A76,A80,A84,A88,A92,A96,A100,A104,A108,) -> FALSE | B71: 35 | C71: AUFNAHME LANGFRISTIGER UND KURZFRISTIGER FINANZSCHULDEN | F71: =SUM(F72,F76,F80,F84,F88,F92,F96,F100,F104,F108) -> 0 | G71: =SUM(G72,G76,G80,G84,G88,G92,G96,G100,G104,G108) -> 0 | H71: =SUM(H72,H76,H80,H84,H88,H92,H96,H100,H104,H108) -> 0 | I71: =SUM(I72,I76,I80,I84,I88,I92,I96,I100,I104,I108) -> 0 | L71: =SUM(L72,L76,L80,L84,L88,L92,L96,L100,L104,L108) -> 0
A72: =OR(A73:A75) -> FALSE | B72: 350 | C72: Finanzschulden in Euro gegenüber Bund, Bundesfonds und Bundeskammern | F72: =SUMPRODUCT(F73:F75,$M73:$M75) -> 0 | G72: =SUMPRODUCT(G73:G75,$M73:$M75) -> 0 | H72: =SUMPRODUCT(H73:H75,$M73:$M75) -> 0 | I72: =SUMPRODUCT(I73:I75,$M73:$M75) -> 0 | L72: =SUM(G72,H72,-I72) -> 0
A73: =M73>0 -> FALSE | F73: 0 | G73: 0 | L73: 0 | M73: =IF(C73=0,0,IF(VALUE(LEFT(C73,3))=wST.Ansatz,1,0)) -> 0 | N73: =IF(C73=0,0,VALUE(LEFT(C73,3))) -> 0
A74: =M74>0 -> FALSE | F74: 0 | G74: 0 | L74: 0 | M74: =IF(C74=0,0,IF(VALUE(LEFT(C74,3))=wST.Ansatz,1,0)) -> 0 | N74: =IF(C74=0,0,VALUE(LEFT(C74,3))) -> 0
A75: =M75>0 -> FALSE | F75: 0 | G75: 0 | L75: 0 | M75: =IF(C75=0,0,IF(VALUE(LEFT(C75,3))=wST.Ansatz,1,0)) -> 0 | N75: =IF(C75=0,0,VALUE(LEFT(C75,3))) -> 0
A76: =OR(A77:A79) -> FALSE | B76: 351 | C76: Finanzschulden in Euro gegenüber Ländern, Landesfonds und Landeskammern | F76: =SUMPRODUCT(F77:F79,$M77:$M79) -> 0 | G76: =SUMPRODUCT(G77:G79,$M77:$M79) -> 0 | H76: =SUMPRODUCT(H77:H79,$M77:$M79) -> 0 | I76: =SUMPRODUCT(I77:I79,$M77:$M79) -> 0 | L76: 0
A77: =M77>0 -> FALSE | F77: 0 | G77: 0 | L77: 0 | M77: =IF(C77=0,0,IF(VALUE(LEFT(C77,3))=wST.Ansatz,1,0)) -> 0 | N77: =IF(C77=0,0,VALUE(LEFT(C77,3))) -> 0
A78: =M78>0 -> FALSE | F78: 0 | G78: 0 | L78: 0 | M78: =IF(C78=0,0,IF(VALUE(LEFT(C78,3))=wST.Ansatz,1,0)) -> 0 | N78: =IF(C78=0,0,VALUE(LEFT(C78,3))) -> 0
A79: =M79>0 -> FALSE | F79: 0 | G79: 0 | L79: 0 | M79: =IF(C79=0,0,IF(VALUE(LEFT(C79,3))=wST.Ansatz,1,0)) -> 0 | N79: =IF(C79=0,0,VALUE(LEFT(C79,3))) -> 0
A80: =OR(A81:A83) -> FALSE | B80: 352 | C80: Finanzschulden in Euro geg. Gde, Gdeverb. (o. marktb. Tät.) u. Gdefonds inkl. innerer Darlehen | F80: =SUMPRODUCT(F81:F83,$M81:$M83) -> 0 | G80: =SUMPRODUCT(G81:G83,$M81:$M83) -> 0 | H80: =SUMPRODUCT(H81:H83,$M81:$M83) -> 0 | I80: =SUMPRODUCT(I81:I83,$M81:$M83) -> 0 | L80: 0
A81: =M81>0 -> FALSE | F81: 0 | G81: 0 | L81: 0 | M81: =IF(C81=0,0,IF(VALUE(LEFT(C81,3))=wST.Ansatz,1,0)) -> 0 | N81: =IF(C81=0,0,VALUE(LEFT(C81,3))) -> 0
A82: =M82>0 -> FALSE | F82: 0 | G82: 0 | L82: 0 | M82: =IF(C82=0,0,IF(VALUE(LEFT(C82,3))=wST.Ansatz,1,0)) -> 0 | N82: =IF(C82=0,0,VALUE(LEFT(C82,3))) -> 0
A83: =M83>0 -> FALSE | F83: 0 | G83: 0 | L83: 0 | M83: =IF(C83=0,0,IF(VALUE(LEFT(C83,3))=wST.Ansatz,1,0)) -> 0 | N83: =IF(C83=0,0,VALUE(LEFT(C83,3))) -> 0
A84: =OR(A85:A87) -> FALSE | B84: 353 | C84: Finanzschulden in Euro gegenüber Sozialversicherungsträgern | F84: =SUMPRODUCT(F85:F87,$M85:$M87) -> 0 | G84: =SUMPRODUCT(G85:G87,$M85:$M87) -> 0 | H84: =SUMPRODUCT(H85:H87,$M85:$M87) -> 0 | I84: =SUMPRODUCT(I85:I87,$M85:$M87) -> 0 | L84: 0
A85: =M85>0 -> FALSE | F85: 0 | G85: 0 | L85: 0 | M85: =IF(C85=0,0,IF(VALUE(LEFT(C85,3))=wST.Ansatz,1,0)) -> 0 | N85: =IF(C85=0,0,VALUE(LEFT(C85,3))) -> 0
A86: =M86>0 -> FALSE | F86: 0 | G86: 0 | L86: 0 | M86: =IF(C86=0,0,IF(VALUE(LEFT(C86,3))=wST.Ansatz,1,0)) -> 0 | N86: =IF(C86=0,0,VALUE(LEFT(C86,3))) -> 0
A87: =M87>0 -> FALSE | F87: 0 | G87: 0 | L87: 0 | M87: =IF(C87=0,0,IF(VALUE(LEFT(C87,3))=wST.Ansatz,1,0)) -> 0 | N87: =IF(C87=0,0,VALUE(LEFT(C87,3))) -> 0
A88: =OR(A89:A91) -> FALSE | B88: 354 | C88: Finanzschulden in Euro gegenüber sonst. Trägern des öffentlichen Rechtes | F88: =SUMPRODUCT(F89:F91,$M89:$M91) -> 0 | G88: =SUMPRODUCT(G89:G91,$M89:$M91) -> 0 | H88: =SUMPRODUCT(H89:H91,$M89:$M91) -> 0 | I88: =SUMPRODUCT(I89:I91,$M89:$M91) -> 0 | L88: 0
A89: =M89>0 -> FALSE | F89: 0 | G89: 0 | L89: 0 | M89: =IF(C89=0,0,IF(VALUE(LEFT(C89,3))=wST.Ansatz,1,0)) -> 0 | N89: =IF(C89=0,0,VALUE(LEFT(C89,3))) -> 0
A90: =M90>0 -> FALSE | F90: 0 | G90: 0 | L90: 0 | M90: =IF(C90=0,0,IF(VALUE(LEFT(C90,3))=wST.Ansatz,1,0)) -> 0 | N90: =IF(C90=0,0,VALUE(LEFT(C90,3))) -> 0
A91: =M91>0 -> FALSE | F91: 0 | G91: 0 | L91: 0 | M91: =IF(C91=0,0,IF(VALUE(LEFT(C91,3))=wST.Ansatz,1,0)) -> 0 | N91: =IF(C91=0,0,VALUE(LEFT(C91,3))) -> 0
A92: =OR(A93:A95) -> FALSE | B92: 355 | C92: Finanzschulden in Euro gegenüber Beteiligungen | F92: =SUMPRODUCT(F93:F95,$M93:$M95) -> 0 | G92: =SUMPRODUCT(G93:G95,$M93:$M95) -> 0 | H92: =SUMPRODUCT(H93:H95,$M93:$M95) -> 0 | I92: =SUMPRODUCT(I93:I95,$M93:$M95) -> 0 | L92: 0
A93: =M93>0 -> FALSE | F93: 0 | G93: 0 | L93: 0 | M93: =IF(C93=0,0,IF(VALUE(LEFT(C93,3))=wST.Ansatz,1,0)) -> 0 | N93: =IF(C93=0,0,VALUE(LEFT(C93,3))) -> 0
A94: =M94>0 -> FALSE | F94: 0 | G94: 0 | L94: 0 | M94: =IF(C94=0,0,IF(VALUE(LEFT(C94,3))=wST.Ansatz,1,0)) -> 0 | N94: =IF(C94=0,0,VALUE(LEFT(C94,3))) -> 0
A95: =M95>0 -> FALSE | F95: 0 | G95: 0 | L95: 0 | M95: =IF(C95=0,0,IF(VALUE(LEFT(C95,3))=wST.Ansatz,1,0)) -> 0 | N95: =IF(C95=0,0,VALUE(LEFT(C95,3))) -> 0
A96: =OR(A97:A99) -> FALSE | B96: 356 | C96: Finanzschulden in Euro gegenüber Finanzunternehmen | F96: =SUMPRODUCT(F97:F99,$M97:$M99) -> 0 | G96: =SUMPRODUCT(G97:G99,$M97:$M99) -> 0 | H96: =SUMPRODUCT(H97:H99,$M97:$M99) -> 0 | I96: =SUMPRODUCT(I97:I99,$M97:$M99) -> 0 | L96: 0
A97: =M97>0 -> FALSE | F97: 0 | G97: 0 | L97: 0 | M97: =IF(C97=0,0,IF(VALUE(LEFT(C97,3))=wST.Ansatz,1,0)) -> 0 | N97: =IF(C97=0,0,VALUE(LEFT(C97,3))) -> 0
A98: =M98>0 -> FALSE | F98: 0 | G98: 0 | L98: 0 | M98: =IF(C98=0,0,IF(VALUE(LEFT(C98,3))=wST.Ansatz,1,0)) -> 0 | N98: =IF(C98=0,0,VALUE(LEFT(C98,3))) -> 0
A99: =M99>0 -> FALSE | F99: 0 | G99: 0 | L99: 0 | M99: =IF(C99=0,0,IF(VALUE(LEFT(C99,3))=wST.Ansatz,1,0)) -> 0 | N99: =IF(C99=0,0,VALUE(LEFT(C99,3))) -> 0
A100: =OR(A101:A103) -> FALSE | B100: 357 | C100: Finanzschulden in Euro gegenüber Unternehmen (ohne Finanzunternehmen) und anderen | F100: =SUMPRODUCT(F101:F103,$M101:$M103) -> 0 | G100: =SUMPRODUCT(G101:G103,$M101:$M103) -> 0 | H100: =SUMPRODUCT(H101:H103,$M101:$M103) -> 0 | I100: =SUMPRODUCT(I101:I103,$M101:$M103) -> 0 | L100: 0
A101: =M101>0 -> FALSE | F101: 0 | G101: 0 | L101: 0 | M101: =IF(C101=0,0,IF(VALUE(LEFT(C101,3))=wST.Ansatz,1,0)) -> 0 | N101: =IF(C101=0,0,VALUE(LEFT(C101,3))) -> 0
A102: =M102>0 -> FALSE | F102: 0 | G102: 0 | L102: 0 | M102: =IF(C102=0,0,IF(VALUE(LEFT(C102,3))=wST.Ansatz,1,0)) -> 0 | N102: =IF(C102=0,0,VALUE(LEFT(C102,3))) -> 0
A103: =M103>0 -> FALSE | F103: 0 | G103: 0 | L103: 0 | M103: =IF(C103=0,0,IF(VALUE(LEFT(C103,3))=wST.Ansatz,1,0)) -> 0 | N103: =IF(C103=0,0,VALUE(LEFT(C103,3))) -> 0
A104: =OR(A105:A107) -> FALSE | B104: 358 | C104: Kurzfristige Finanzschulden aus Barvorlagen | F104: =SUMPRODUCT(F105:F107,$M105:$M107) -> 0 | G104: =SUMPRODUCT(G105:G107,$M105:$M107) -> 0 | H104: =SUMPRODUCT(H105:H107,$M105:$M107) -> 0 | I104: =SUMPRODUCT(I105:I107,$M105:$M107) -> 0 | L104: 0
A105: =M105>0 -> FALSE | F105: 0 | G105: 0 | L105: 0 | M105: =IF(C105=0,0,IF(VALUE(LEFT(C105,3))=wST.Ansatz,1,0)) -> 0 | N105: =IF(C105=0,0,VALUE(LEFT(C105,3))) -> 0
A106: =M106>0 -> FALSE | F106: 0 | G106: 0 | L106: 0 | M106: =IF(C106=0,0,IF(VALUE(LEFT(C106,3))=wST.Ansatz,1,0)) -> 0 | N106: =IF(C106=0,0,VALUE(LEFT(C106,3))) -> 0
A107: =M107>0 -> FALSE | F107: 0 | G107: 0 | L107: 0 | M107: =IF(C107=0,0,IF(VALUE(LEFT(C107,3))=wST.Ansatz,1,0)) -> 0 | N107: =IF(C107=0,0,VALUE(LEFT(C107,3))) -> 0
A108: =OR(A109:A111) -> FALSE | B108: 359 | C108: Sonstige kurzfristige Finanzschulden | F108: =SUMPRODUCT(F109:F111,$M109:$M111) -> 0 | G108: =SUMPRODUCT(G109:G111,$M109:$M111) -> 0 | H108: =SUMPRODUCT(H109:H111,$M109:$M111) -> 0 | I108: =SUMPRODUCT(I109:I111,$M109:$M111) -> 0 | L108: 0
A109: =M109>0 -> FALSE | F109: 0 | G109: 0 | L109: 0 | M109: =IF(C109=0,0,IF(VALUE(LEFT(C109,3))=wST.Ansatz,1,0)) -> 0 | N109: =IF(C109=0,0,VALUE(LEFT(C109,3))) -> 0
A110: =M110>0 -> FALSE | F110: 0 | G110: 0 | L110: 0 | M110: =IF(C110=0,0,IF(VALUE(LEFT(C110,3))=wST.Ansatz,1,0)) -> 0 | N110: =IF(C110=0,0,VALUE(LEFT(C110,3))) -> 0
A111: =M111>0 -> FALSE | F111: 0 | G111: 0 | L111: 0 | M111: =IF(C111=0,0,IF(VALUE(LEFT(C111,3))=wST.Ansatz,1,0)) -> 0 | N111: =IF(C111=0,0,VALUE(LEFT(C111,3))) -> 0
A112: Ende
C115: TEILERGEBNIS | F115: =SUBTOTAL(9,F19:F21,F23:F25,F27:F29,F31:F33,F35:F37,F39:F41,F43:F58,F60:F62,F64:F66,F68:F70,F73:F75,F77:F79,F81:F83,F85:F87,F89:F91,F93:F95,F97:F99,F101:F103,F105:F107,F109:F111) -> 0 | G115: =SUBTOTAL(9,G19:G21,G23:G25,G27:G29,G31:G33,G35:G37,G39:G41,G43:G58,G60:G62,G64:G66,G68:G70,G73:G75,G77:G79,G81:G83,G85:G87,G89:G91,G93:G95,G97:G99,G101:G103,G105:G107,G109:G111) -> 0 | H115: =SUBTOTAL(9,H19:H21,H23:H25,H27:H29,H31:H33,H35:H37,H39:H41,H43:H58,H60:H62,H64:H66,H68:H70,H73:H75,H77:H79,H81:H83,H85:H87,H89:H91,H93:H95,H97:H99,H101:H103,H105:H107,H109:H111) -> 0 | I115: =SUM(I8,I17,I71) -> 0 | L115: =SUM(L8,L17,L71) -> 0

Sheet Anlagenzusammenfassung (hidden)
A1: FALSE | K1: IZ | P1: BZ | U1: FZ
A2: FALSE
A3: TRUE | B3: =CONCATENATE("Anlagenzusammenfassung Abwasserentsorgung Rechnungsabschluss "&BAB!J12," KLR-Ebene: "&Info!C17) -> Anlagenzusammenfassung Abwasserentsorgung Rechnungsabschluss 2021 KLR-Ebene:
A5: TRUE | B5: Zuordnung Anlagen-zusammen-fassung | C5: Anschaffungswert | G5: AfA | K5: Schlüssige Finanzierung
A6: TRUE | C6: Anfangsbestand | D6: Zugang | E6: Abgang | F6: Endbestand | G6: ="im Jahr "&YEAR(wST.PeriodeEnde) -> im Jahr 2021 | H6: kum. AfA | I6: Restbuchwert | J6: Anschaffungs-kosten | K6: Investitions-zuschüsse | L6: Interessenten - beiträge | M6: Darlehen (Nominale) | N6: Inneres Darlehen (Nominale) | O6: Finanzierungs-Leasing und Forderungskauf (Nominale) | P6: Investitionsbe-zogene Bedarfs-zuweisungen | Q6: Zweckgebundene und allgemeine Haus-haltsrücklagen | R6: Mittel aus Geldfluss aus der operativen Gebarung GOG | S6: Aktivierte Eigenleistungen | T6: Ausgelaufene Darlehen (Nominale) | U6: Finanzierungs-zuschüsse (Barwert) | V6: SALDO (ohne Finanzie- rungszuschüsse) | W6: Kommentar
A7: =B7<>"" -> FALSE | C7: =SUMIF(Anlagen!#REF!,$B7,Anlagen!$I$7:$I$115) ->  | D7: =SUMIF(Anlagen!#REF!,$B7,Anlagen!$J$7:$J$115) ->  | E7: =SUMIF(Anlagen!#REF!,$B7,Anlagen!$K$7:$K$115) ->  | F7: =C7+D7-E7 ->  | G7: =SUMIF(Anlagen!#REF!,$B7,Anlagen!$S$7:$S$115) ->  | H7: =SUMIF(Anlagen!#REF!,$B7,Anlagen!$V$7:$V$115) ->  | I7: =SUMIF(Anlagen!#REF!,$B7,Anlagen!$W$7:$W$115) ->  | J7: =F7 ->  | K7: =SUMIFS(Anlagen!$N$119:$N$167,Anlagen!#REF!,B7,Anlagen!#REF!,$K$1) ->  | L7: =SUMIF(Anlagen!#REF!,$B7,Anlagen!$N$171:$N$209) ->  | M7: =SUMIF(Schulden!P:P,$B7,Schulden!F:F)-N7-O7 -> 0 | N7: =SUMIF(Schulden!$P$27:$P$29,$B7,Schulden!$F$27:$F$29)+SUMIF(Schulden!$P$81:$P$83,$B7,Schulden!$F$81:$F$83) -> 0 | O7: =SUMIF(Schulden!$P$10:$P$16,$B7,Schulden!$F$10:$F$16) -> 0 | P7: =SUMIFS(Anlagen!$N$119:$N$167,Anlagen!#REF!,B7,Anlagen!#REF!,$P$1) ->  | U7: =SUMIFS(Anlagen!$N$119:$N$167,Anlagen!#REF!,B7,Anlagen!#REF!,$U$1) ->  | V7: =(K7+L7+M7+N7+O7+P7+R7+T7)-J7 ->  | Z7: =IF(V7>=0,V7,"") ->  | AA7: =IF(Z7="",V7,"") -> 
A8: =B8<>"" -> TRUE | B8: RWK I | C8: =SUMIF(Anlagen!#REF!,$B8,Anlagen!$I$7:$I$115) ->  | D8: =SUMIF(Anlagen!#REF!,$B8,Anlagen!$J$7:$J$115) ->  | E8: =SUMIF(Anlagen!#REF!,$B8,Anlagen!$K$7:$K$115) ->  | F8: =C8+D8-E8 ->  | G8: =SUMIF(Anlagen!#REF!,$B8,Anlagen!$S$7:$S$115) ->  | H8: =SUMIF(Anlagen!#REF!,$B8,Anlagen!$V$7:$V$115) ->  | I8: =SUMIF(Anlagen!#REF!,$B8,Anlagen!$W$7:$W$115) ->  | J8: =F8 ->  | K8: =SUMIFS(Anlagen!$N$119:$N$167,Anlagen!#REF!,B8,Anlagen!#REF!,$K$1) ->  | L8: =SUMIF(Anlagen!#REF!,$B8,Anlagen!$N$171:$N$209) ->  | M8: =SUMIF(Schulden!P:P,$B8,Schulden!F:F)-N8-O8 -> 0 | N8: =SUMIF(Schulden!$P$27:$P$29,$B8,Schulden!$F$27:$F$29)+SUMIF(Schulden!$P$81:$P$83,$B8,Schulden!$F$81:$F$83) -> 0 | O8: =SUMIF(Schulden!$P$10:$P$16,$B8,Schulden!$F$10:$F$16) -> 0 | P8: =SUMIFS(Anlagen!$N$119:$N$167,Anlagen!#REF!,B8,Anlagen!#REF!,$P$1) ->  | U8: =SUMIFS(Anlagen!$N$119:$N$167,Anlagen!#REF!,B8,Anlagen!#REF!,$U$1) ->  | Z8: =IF(V8>=0,V8,"") ->  | AA8: =IF(Z8="",V8,"") -> 
A9: TRUE | B9: BA 01 | C9: =SUMIF(Anlagen!#REF!,$B9,Anlagen!$I$7:$I$115) ->  | D9: =SUMIF(Anlagen!#REF!,$B9,Anlagen!$J$7:$J$115) ->  | E9: =SUMIF(Anlagen!#REF!,$B9,Anlagen!$K$7:$K$115) ->  | G9: =SUMIF(Anlagen!#REF!,$B9,Anlagen!$S$7:$S$115) ->  | H9: =SUMIF(Anlagen!#REF!,$B9,Anlagen!$V$7:$V$115) ->  | I9: =SUMIF(Anlagen!#REF!,$B9,Anlagen!$W$7:$W$115) ->  | K9: =SUMIFS(Anlagen!$N$119:$N$167,Anlagen!#REF!,B9,Anlagen!#REF!,$K$1) ->  | L9: =SUMIF(Anlagen!#REF!,$B9,Anlagen!$N$171:$N$209) ->  | M9: =SUMIF(Schulden!P:P,$B9,Schulden!F:F)-N9-O9 -> 0 | N9: =SUMIF(Schulden!$P$27:$P$29,$B9,Schulden!$F$27:$F$29)+SUMIF(Schulden!$P$81:$P$83,$B9,Schulden!$F$81:$F$83) -> 0 | O9: =SUMIF(Schulden!$P$10:$P$16,$B9,Schulden!$F$10:$F$16) -> 0 | P9: =SUMIFS(Anlagen!$N$119:$N$167,Anlagen!#REF!,B9,Anlagen!#REF!,$P$1) ->  | Q9: 7662.4 | U9: =SUMIFS(Anlagen!$N$119:$N$167,Anlagen!#REF!,B9,Anlagen!#REF!,$U$1) ->  | Z9: =IF(V9>=0,V9,"") -> 
A10: =B10<>"" -> TRUE | B10: BA 02 | C10: =SUMIF(Anlagen!#REF!,$B10,Anlagen!$I$7:$I$115) ->  | D10: =SUMIF(Anlagen!#REF!,$B10,Anlagen!$J$7:$J$115) ->  | E10: =SUMIF(Anlagen!#REF!,$B10,Anlagen!$K$7:$K$115) ->  | F10: =C10+D10-E10 ->  | G10: =SUMIF(Anlagen!#REF!,$B10,Anlagen!$S$7:$S$115) ->  | H10: =SUMIF(Anlagen!#REF!,$B10,Anlagen!$V$7:$V$115) ->  | I10: =SUMIF(Anlagen!#REF!,$B10,Anlagen!$W$7:$W$115) ->  | J10: =F10 ->  | K10: =SUMIFS(Anlagen!$N$119:$N$167,Anlagen!#REF!,B10,Anlagen!#REF!,$K$1) ->  | L10: =SUMIF(Anlagen!#REF!,$B10,Anlagen!$N$171:$N$209) ->  | M10: =SUMIF(Schulden!P:P,$B10,Schulden!F:F)-N10-O10 -> 0 | N10: =SUMIF(Schulden!$P$27:$P$29,$B10,Schulden!$F$27:$F$29)+SUMIF(Schulden!$P$81:$P$83,$B10,Schulden!$F$81:$F$83) -> 0 | O10: =SUMIF(Schulden!$P$10:$P$16,$B10,Schulden!$F$10:$F$16) -> 0 | P10: =SUMIFS(Anlagen!$N$119:$N$167,Anlagen!#REF!,B10,Anlagen!#REF!,$P$1) ->  | Q10: 7930.6 | U10: =SUMIFS(Anlagen!$N$119:$N$167,Anlagen!#REF!,B10,Anlagen!#REF!,$U$1) -> 
A11: =B11<>"" -> TRUE | B11: BA 03 | C11: =SUMIF(Anlagen!#REF!,$B11,Anlagen!$I$7:$I$115) ->  | D11: =SUMIF(Anlagen!#REF!,$B11,Anlagen!$J$7:$J$115) ->  | E11: =SUMIF(Anlagen!#REF!,$B11,Anlagen!$K$7:$K$115) ->  | G11: =SUMIF(Anlagen!#REF!,$B11,Anlagen!$S$7:$S$115) ->  | H11: =SUMIF(Anlagen!#REF!,$B11,Anlagen!$V$7:$V$115) ->  | I11: =SUMIF(Anlagen!#REF!,$B11,Anlagen!$W$7:$W$115) ->  | J11: =F11 ->  | K11: =SUMIFS(Anlagen!$N$119:$N$167,Anlagen!#REF!,B11,Anlagen!#REF!,$K$1) ->  | L11: =SUMIF(Anlagen!#REF!,$B11,Anlagen!$N$171:$N$209) ->  | M11: =SUMIF(Schulden!P:P,$B11,Schulden!F:F)-N11-O11 -> 0 | N11: =SUMIF(Schulden!$P$27:$P$29,$B11,Schulden!$F$27:$F$29)+SUMIF(Schulden!$P$81:$P$83,$B11,Schulden!$F$81:$F$83) -> 0 | O11: =SUMIF(Schulden!$P$10:$P$16,$B11,Schulden!$F$10:$F$16) -> 0 | P11: =SUMIFS(Anlagen!$N$119:$N$167,Anlagen!#REF!,B11,Anlagen!#REF!,$P$1) ->  | Q11: 31808.6 | U11: =SUMIFS(Anlagen!$N$119:$N$167,Anlagen!#REF!,B11,Anlagen!#REF!,$U$1) -> 
A12: =B12<>"" -> TRUE | B12: BA 04 | C12: =SUMIF(Anlagen!#REF!,$B12,Anlagen!$I$7:$I$115) ->  | D12: =SUMIF(Anlagen!#REF!,$B12,Anlagen!$J$7:$J$115) ->  | E12: =SUMIF(Anlagen!#REF!,$B12,Anlagen!$K$7:$K$115) ->  | G12: =SUMIF(Anlagen!#REF!,$B12,Anlagen!$S$7:$S$115) ->  | H12: =SUMIF(Anlagen!#REF!,$B12,Anlagen!$V$7:$V$115) ->  | I12: =SUMIF(Anlagen!#REF!,$B12,Anlagen!$W$7:$W$115) ->  | J12: =F12 ->  | K12: =SUMIFS(Anlagen!$N$119:$N$167,Anlagen!#REF!,B12,Anlagen!#REF!,$K$1) ->  | L12: =SUMIF(Anlagen!#REF!,$B12,Anlagen!$N$171:$N$209) ->  | M12: =SUMIF(Schulden!P:P,$B12,Schulden!F:F)-N12-O12 -> 0 | N12: =SUMIF(Schulden!$P$27:$P$29,$B12,Schulden!$F$27:$F$29)+SUMIF(Schulden!$P$81:$P$83,$B12,Schulden!$F$81:$F$83) -> 0 | O12: =SUMIF(Schulden!$P$10:$P$16,$B12,Schulden!$F$10:$F$16) -> 0 | P12: =SUMIFS(Anlagen!$N$119:$N$167,Anlagen!#REF!,B12,Anlagen!#REF!,$P$1) ->  | Q12: 45224.8 | T12: 181682 | U12: =SUMIFS(Anlagen!$N$119:$N$167,Anlagen!#REF!,B12,Anlagen!#REF!,$U$1) -> 
A13: =B13<>"" -> TRUE | B13: BA 05 | C13: =SUMIF(Anlagen!#REF!,$B13,Anlagen!$I$7:$I$115) ->  | D13: =SUMIF(Anlagen!#REF!,$B13,Anlagen!$J$7:$J$115) ->  | E13: =SUMIF(Anlagen!#REF!,$B13,Anlagen!$K$7:$K$115) ->  | G13: =SUMIF(Anlagen!#REF!,$B13,Anlagen!$S$7:$S$115) ->  | H13: =SUMIF(Anlagen!#REF!,$B13,Anlagen!$V$7:$V$115) ->  | I13: =SUMIF(Anlagen!#REF!,$B13,Anlagen!$W$7:$W$115) ->  | J13: =F13 ->  | K13: =SUMIFS(Anlagen!$N$119:$N$167,Anlagen!#REF!,B13,Anlagen!#REF!,$K$1) ->  | L13: =SUMIF(Anlagen!#REF!,$B13,Anlagen!$N$171:$N$209) ->  | M13: =SUMIF(Schulden!P:P,$B13,Schulden!F:F)-N13-O13 -> 0 | N13: =SUMIF(Schulden!$P$27:$P$29,$B13,Schulden!$F$27:$F$29)+SUMIF(Schulden!$P$81:$P$83,$B13,Schulden!$F$81:$F$83) -> 0 | O13: =SUMIF(Schulden!$P$10:$P$16,$B13,Schulden!$F$10:$F$16) -> 0 | P13: =SUMIFS(Anlagen!$N$119:$N$167,Anlagen!#REF!,B13,Anlagen!#REF!,$P$1) ->  | Q13: 65634 | U13: =SUMIFS(Anlagen!$N$119:$N$167,Anlagen!#REF!,B13,Anlagen!#REF!,$U$1) -> 
A14: =B14<>"" -> TRUE | B14: BA 06 | C14: =SUMIF(Anlagen!#REF!,$B14,Anlagen!$I$7:$I$115) ->  | D14: =SUMIF(Anlagen!#REF!,$B14,Anlagen!$J$7:$J$115) ->  | E14: =SUMIF(Anlagen!#REF!,$B14,Anlagen!$K$7:$K$115) ->  | G14: =SUMIF(Anlagen!#REF!,$B14,Anlagen!$S$7:$S$115) ->  | H14: =SUMIF(Anlagen!#REF!,$B14,Anlagen!$V$7:$V$115) ->  | I14: =SUMIF(Anlagen!#REF!,$B14,Anlagen!$W$7:$W$115) ->  | J14: =F14 ->  | K14: =SUMIFS(Anlagen!$N$119:$N$167,Anlagen!#REF!,B14,Anlagen!#REF!,$K$1) ->  | L14: =SUMIF(Anlagen!#REF!,$B14,Anlagen!$N$171:$N$209) ->  | M14: =SUMIF(Schulden!P:P,$B14,Schulden!F:F)-N14-O14 -> 0 | N14: =SUMIF(Schulden!$P$27:$P$29,$B14,Schulden!$F$27:$F$29)+SUMIF(Schulden!$P$81:$P$83,$B14,Schulden!$F$81:$F$83) -> 0 | O14: =SUMIF(Schulden!$P$10:$P$16,$B14,Schulden!$F$10:$F$16) -> 0 | P14: =SUMIFS(Anlagen!$N$119:$N$167,Anlagen!#REF!,B14,Anlagen!#REF!,$P$1) ->  | U14: =SUMIFS(Anlagen!$N$119:$N$167,Anlagen!#REF!,B14,Anlagen!#REF!,$U$1) -> 
A15: =B15<>"" -> TRUE | B15: BA 07 | C15: =SUMIF(Anlagen!#REF!,$B15,Anlagen!$I$7:$I$115) ->  | D15: =SUMIF(Anlagen!#REF!,$B15,Anlagen!$J$7:$J$115) ->  | E15: =SUMIF(Anlagen!#REF!,$B15,Anlagen!$K$7:$K$115) ->  | G15: =SUMIF(Anlagen!#REF!,$B15,Anlagen!$S$7:$S$115) ->  | H15: =SUMIF(Anlagen!#REF!,$B15,Anlagen!$V$7:$V$115) ->  | I15: =SUMIF(Anlagen!#REF!,$B15,Anlagen!$W$7:$W$115) ->  | J15: =F15 ->  | K15: =SUMIFS(Anlagen!$N$119:$N$167,Anlagen!#REF!,B15,Anlagen!#REF!,$K$1) ->  | L15: =SUMIF(Anlagen!#REF!,$B15,Anlagen!$N$171:$N$209) ->  | M15: =SUMIF(Schulden!P:P,$B15,Schulden!F:F)-N15-O15 -> 0 | N15: =SUMIF(Schulden!$P$27:$P$29,$B15,Schulden!$F$27:$F$29)+SUMIF(Schulden!$P$81:$P$83,$B15,Schulden!$F$81:$F$83) -> 0 | O15: =SUMIF(Schulden!$P$10:$P$16,$B15,Schulden!$F$10:$F$16) -> 0 | P15: =SUMIFS(Anlagen!$N$119:$N$167,Anlagen!#REF!,B15,Anlagen!#REF!,$P$1) ->  | Q15: 20768.8 | U15: =SUMIFS(Anlagen!$N$119:$N$167,Anlagen!#REF!,B15,Anlagen!#REF!,$U$1) -> 
A16: =B16<>"" -> TRUE | B16: BA 08 | C16: =SUMIF(Anlagen!#REF!,$B16,Anlagen!$I$7:$I$115) ->  | D16: =SUMIF(Anlagen!#REF!,$B16,Anlagen!$J$7:$J$115) ->  | E16: =SUMIF(Anlagen!#REF!,$B16,Anlagen!$K$7:$K$115) ->  | G16: =SUMIF(Anlagen!#REF!,$B16,Anlagen!$S$7:$S$115) ->  | H16: =SUMIF(Anlagen!#REF!,$B16,Anlagen!$V$7:$V$115) ->  | I16: =SUMIF(Anlagen!#REF!,$B16,Anlagen!$W$7:$W$115) ->  | J16: =F16 ->  | K16: =SUMIFS(Anlagen!$N$119:$N$167,Anlagen!#REF!,B16,Anlagen!#REF!,$K$1) ->  | L16: =SUMIF(Anlagen!#REF!,$B16,Anlagen!$N$171:$N$209) ->  | M16: =SUMIF(Schulden!P:P,$B16,Schulden!F:F)-N16-O16 -> 0 | N16: =SUMIF(Schulden!$P$27:$P$29,$B16,Schulden!$F$27:$F$29)+SUMIF(Schulden!$P$81:$P$83,$B16,Schulden!$F$81:$F$83) -> 0 | O16: =SUMIF(Schulden!$P$10:$P$16,$B16,Schulden!$F$10:$F$16) -> 0 | P16: =SUMIFS(Anlagen!$N$119:$N$167,Anlagen!#REF!,B16,Anlagen!#REF!,$P$1) ->  | U16: =SUMIFS(Anlagen!$N$119:$N$167,Anlagen!#REF!,B16,Anlagen!#REF!,$U$1) -> 
A17: =B17<>"" -> TRUE | B17: BA 09 | C17: =SUMIF(Anlagen!#REF!,$B17,Anlagen!$I$7:$I$115) ->  | D17: =SUMIF(Anlagen!#REF!,$B17,Anlagen!$J$7:$J$115) ->  | E17: =SUMIF(Anlagen!#REF!,$B17,Anlagen!$K$7:$K$115) ->  | F17: =C17+D17-E17 ->  | G17: =SUMIF(Anlagen!#REF!,$B17,Anlagen!$S$7:$S$115) ->  | H17: =SUMIF(Anlagen!#REF!,$B17,Anlagen!$V$7:$V$115) ->  | I17: =SUMIF(Anlagen!#REF!,$B17,Anlagen!$W$7:$W$115) ->  | J17: =F17 ->  | K17: =SUMIFS(Anlagen!$N$119:$N$167,Anlagen!#REF!,B17,Anlagen!#REF!,$K$1) ->  | L17: =SUMIF(Anlagen!#REF!,$B17,Anlagen!$N$171:$N$209) ->  | M17: =SUMIF(Schulden!P:P,$B17,Schulden!F:F)-N17-O17 -> 0 | N17: =SUMIF(Schulden!$P$27:$P$29,$B17,Schulden!$F$27:$F$29)+SUMIF(Schulden!$P$81:$P$83,$B17,Schulden!$F$81:$F$83) -> 0 | O17: =SUMIF(Schulden!$P$10:$P$16,$B17,Schulden!$F$10:$F$16) -> 0 | P17: =SUMIFS(Anlagen!$N$119:$N$167,Anlagen!#REF!,B17,Anlagen!#REF!,$P$1) ->  | U17: =SUMIFS(Anlagen!$N$119:$N$167,Anlagen!#REF!,B17,Anlagen!#REF!,$U$1) ->  | Z17: =IF(V17>=0,V17,"") ->  | AA17: =IF(Z17="",V17,"") -> 
A18: TRUE | B18: BA 10 | C18: =SUMIF(Anlagen!#REF!,$B18,Anlagen!$I$7:$I$115) ->  | D18: =SUMIF(Anlagen!#REF!,$B18,Anlagen!$J$7:$J$115) ->  | E18: =SUMIF(Anlagen!#REF!,$B18,Anlagen!$K$7:$K$115) ->  | G18: =SUMIF(Anlagen!#REF!,$B18,Anlagen!$S$7:$S$115) ->  | H18: =SUMIF(Anlagen!#REF!,$B18,Anlagen!$V$7:$V$115) ->  | I18: =SUMIF(Anlagen!#REF!,$B18,Anlagen!$W$7:$W$115) ->  | K18: =SUMIFS(Anlagen!$N$119:$N$167,Anlagen!#REF!,B18,Anlagen!#REF!,$K$1) ->  | L18: =SUMIF(Anlagen!#REF!,$B18,Anlagen!$N$171:$N$209) ->  | M18: =SUMIF(Schulden!P:P,$B18,Schulden!F:F)-N18-O18 -> 0 | N18: =SUMIF(Schulden!$P$27:$P$29,$B18,Schulden!$F$27:$F$29)+SUMIF(Schulden!$P$81:$P$83,$B18,Schulden!$F$81:$F$83) -> 0 | O18: =SUMIF(Schulden!$P$10:$P$16,$B18,Schulden!$F$10:$F$16) -> 0 | P18: =SUMIFS(Anlagen!$N$119:$N$167,Anlagen!#REF!,B18,Anlagen!#REF!,$P$1) ->  | U18: =SUMIFS(Anlagen!$N$119:$N$167,Anlagen!#REF!,B18,Anlagen!#REF!,$U$1) -> 
A19: TRUE | B19: BA 11 | C19: =SUMIF(Anlagen!#REF!,$B19,Anlagen!$I$7:$I$115) ->  | D19: =SUMIF(Anlagen!#REF!,$B19,Anlagen!$J$7:$J$115) ->  | E19: =SUMIF(Anlagen!#REF!,$B19,Anlagen!$K$7:$K$115) ->  | G19: =SUMIF(Anlagen!#REF!,$B19,Anlagen!$S$7:$S$115) ->  | H19: =SUMIF(Anlagen!#REF!,$B19,Anlagen!$V$7:$V$115) ->  | I19: =SUMIF(Anlagen!#REF!,$B19,Anlagen!$W$7:$W$115) ->  | K19: =SUMIFS(Anlagen!$N$119:$N$167,Anlagen!#REF!,B19,Anlagen!#REF!,$K$1) ->  | L19: =SUMIF(Anlagen!#REF!,$B19,Anlagen!$N$171:$N$209) ->  | M19: =SUMIF(Schulden!P:P,$B19,Schulden!F:F)-N19-O19 -> 0 | N19: =SUMIF(Schulden!$P$27:$P$29,$B19,Schulden!$F$27:$F$29)+SUMIF(Schulden!$P$81:$P$83,$B19,Schulden!$F$81:$F$83) -> 0 | O19: =SUMIF(Schulden!$P$10:$P$16,$B19,Schulden!$F$10:$F$16) -> 0 | P19: =SUMIFS(Anlagen!$N$119:$N$167,Anlagen!#REF!,B19,Anlagen!#REF!,$P$1) ->  | U19: =SUMIFS(Anlagen!$N$119:$N$167,Anlagen!#REF!,B19,Anlagen!#REF!,$U$1) -> 
A20: TRUE | B20: BA 12 | C20: =SUMIF(Anlagen!#REF!,$B20,Anlagen!$I$7:$I$115) ->  | D20: =SUMIF(Anlagen!#REF!,$B20,Anlagen!$J$7:$J$115) ->  | E20: =SUMIF(Anlagen!#REF!,$B20,Anlagen!$K$7:$K$115) ->  | G20: =SUMIF(Anlagen!#REF!,$B20,Anlagen!$S$7:$S$115) ->  | H20: =SUMIF(Anlagen!#REF!,$B20,Anlagen!$V$7:$V$115) ->  | I20: =SUMIF(Anlagen!#REF!,$B20,Anlagen!$W$7:$W$115) ->  | K20: =SUMIFS(Anlagen!$N$119:$N$167,Anlagen!#REF!,B20,Anlagen!#REF!,$K$1) ->  | L20: =SUMIF(Anlagen!#REF!,$B20,Anlagen!$N$171:$N$209) ->  | M20: =SUMIF(Schulden!P:P,$B20,Schulden!F:F)-N20-O20 -> 0 | N20: =SUMIF(Schulden!$P$27:$P$29,$B20,Schulden!$F$27:$F$29)+SUMIF(Schulden!$P$81:$P$83,$B20,Schulden!$F$81:$F$83) -> 0 | O20: =SUMIF(Schulden!$P$10:$P$16,$B20,Schulden!$F$10:$F$16) -> 0 | P20: =SUMIFS(Anlagen!$N$119:$N$167,Anlagen!#REF!,B20,Anlagen!#REF!,$P$1) ->  | U20: =SUMIFS(Anlagen!$N$119:$N$167,Anlagen!#REF!,B20,Anlagen!#REF!,$U$1) -> 
A21: TRUE | B21: BA 100 | C21: =SUMIF(Anlagen!#REF!,$B21,Anlagen!$I$7:$I$115) ->  | D21: =SUMIF(Anlagen!#REF!,$B21,Anlagen!$J$7:$J$115) ->  | E21: =SUMIF(Anlagen!#REF!,$B21,Anlagen!$K$7:$K$115) ->  | G21: =SUMIF(Anlagen!#REF!,$B21,Anlagen!$S$7:$S$115) ->  | H21: =SUMIF(Anlagen!#REF!,$B21,Anlagen!$V$7:$V$115) ->  | I21: =SUMIF(Anlagen!#REF!,$B21,Anlagen!$W$7:$W$115) ->  | K21: =SUMIFS(Anlagen!$N$119:$N$167,Anlagen!#REF!,B21,Anlagen!#REF!,$K$1) ->  | L21: =SUMIF(Anlagen!#REF!,$B21,Anlagen!$N$171:$N$209) ->  | M21: =SUMIF(Schulden!P:P,$B21,Schulden!F:F)-N21-O21 -> 0 | N21: =SUMIF(Schulden!$P$27:$P$29,$B21,Schulden!$F$27:$F$29)+SUMIF(Schulden!$P$81:$P$83,$B21,Schulden!$F$81:$F$83) -> 0 | O21: =SUMIF(Schulden!$P$10:$P$16,$B21,Schulden!$F$10:$F$16) -> 0 | P21: =SUMIFS(Anlagen!$N$119:$N$167,Anlagen!#REF!,B21,Anlagen!#REF!,$P$1) ->  | R21: 136270 | U21: =SUMIFS(Anlagen!$N$119:$N$167,Anlagen!#REF!,B21,Anlagen!#REF!,$U$1) -> 
A22: =B22<>"" -> TRUE | B22: Caddy | C22: =SUMIF(Anlagen!#REF!,$B22,Anlagen!$I$7:$I$115) ->  | D22: =SUMIF(Anlagen!#REF!,$B22,Anlagen!$J$7:$J$115) ->  | E22: =SUMIF(Anlagen!#REF!,$B22,Anlagen!$K$7:$K$115) ->  | G22: =SUMIF(Anlagen!#REF!,$B22,Anlagen!$S$7:$S$115) ->  | H22: =SUMIF(Anlagen!#REF!,$B22,Anlagen!$V$7:$V$115) ->  | I22: =SUMIF(Anlagen!#REF!,$B22,Anlagen!$W$7:$W$115) ->  | J22: =F22 ->  | K22: =SUMIFS(Anlagen!$N$119:$N$167,Anlagen!#REF!,B22,Anlagen!#REF!,$K$1) ->  | L22: =SUMIF(Anlagen!#REF!,$B22,Anlagen!$N$171:$N$209) ->  | M22: =SUMIF(Schulden!P:P,$B22,Schulden!F:F)-N22-O22 -> 0 | N22: =SUMIF(Schulden!$P$27:$P$29,$B22,Schulden!$F$27:$F$29)+SUMIF(Schulden!$P$81:$P$83,$B22,Schulden!$F$81:$F$83) -> 0 | O22: =SUMIF(Schulden!$P$10:$P$16,$B22,Schulden!$F$10:$F$16) -> 0 | P22: =SUMIFS(Anlagen!$N$119:$N$167,Anlagen!#REF!,B22,Anlagen!#REF!,$P$1) ->  | U22: =SUMIFS(Anlagen!$N$119:$N$167,Anlagen!#REF!,B22,Anlagen!#REF!,$U$1) -> 
A23: =B23<>"" -> TRUE | B23: IB 2006 | C23: =SUMIF(Anlagen!#REF!,$B23,Anlagen!$I$7:$I$115) ->  | D23: =SUMIF(Anlagen!#REF!,$B23,Anlagen!$J$7:$J$115) ->  | E23: =SUMIF(Anlagen!#REF!,$B23,Anlagen!$K$7:$K$115) ->  | G23: =SUMIF(Anlagen!#REF!,$B23,Anlagen!$S$7:$S$115) ->  | H23: =SUMIF(Anlagen!#REF!,$B23,Anlagen!$V$7:$V$115) ->  | I23: =SUMIF(Anlagen!#REF!,$B23,Anlagen!$W$7:$W$115) ->  | J23: =F23 ->  | K23: =SUMIFS(Anlagen!$N$119:$N$167,Anlagen!#REF!,B23,Anlagen!#REF!,$K$1) ->  | L23: =SUMIF(Anlagen!#REF!,$B23,Anlagen!$N$171:$N$209) ->  | M23: =SUMIF(Schulden!P:P,$B23,Schulden!F:F)-N23-O23 -> 0 | N23: =SUMIF(Schulden!$P$27:$P$29,$B23,Schulden!$F$27:$F$29)+SUMIF(Schulden!$P$81:$P$83,$B23,Schulden!$F$81:$F$83) -> 0 | O23: =SUMIF(Schulden!$P$10:$P$16,$B23,Schulden!$F$10:$F$16) -> 0 | P23: =SUMIFS(Anlagen!$N$119:$N$167,Anlagen!#REF!,B23,Anlagen!#REF!,$P$1) ->  | U23: =SUMIFS(Anlagen!$N$119:$N$167,Anlagen!#REF!,B23,Anlagen!#REF!,$U$1) -> 
A24: =B24<>"" -> TRUE | B24: IB 2007 | C24: =SUMIF(Anlagen!#REF!,$B24,Anlagen!$I$7:$I$115) ->  | D24: =SUMIF(Anlagen!#REF!,$B24,Anlagen!$J$7:$J$115) ->  | E24: =SUMIF(Anlagen!#REF!,$B24,Anlagen!$K$7:$K$115) ->  | G24: =SUMIF(Anlagen!#REF!,$B24,Anlagen!$S$7:$S$115) ->  | H24: =SUMIF(Anlagen!#REF!,$B24,Anlagen!$V$7:$V$115) ->  | I24: =SUMIF(Anlagen!#REF!,$B24,Anlagen!$W$7:$W$115) ->  | J24: =F24 ->  | K24: =SUMIFS(Anlagen!$N$119:$N$167,Anlagen!#REF!,B24,Anlagen!#REF!,$K$1) ->  | L24: =SUMIF(Anlagen!#REF!,$B24,Anlagen!$N$171:$N$209) ->  | M24: =SUMIF(Schulden!P:P,$B24,Schulden!F:F)-N24-O24 -> 0 | N24: =SUMIF(Schulden!$P$27:$P$29,$B24,Schulden!$F$27:$F$29)+SUMIF(Schulden!$P$81:$P$83,$B24,Schulden!$F$81:$F$83) -> 0 | O24: =SUMIF(Schulden!$P$10:$P$16,$B24,Schulden!$F$10:$F$16) -> 0 | P24: =SUMIFS(Anlagen!$N$119:$N$167,Anlagen!#REF!,B24,Anlagen!#REF!,$P$1) ->  | U24: =SUMIFS(Anlagen!$N$119:$N$167,Anlagen!#REF!,B24,Anlagen!#REF!,$U$1) -> 
A25: =B25<>"" -> TRUE | B25: IB 2008 | C25: =SUMIF(Anlagen!#REF!,$B25,Anlagen!$I$7:$I$115) ->  | D25: =SUMIF(Anlagen!#REF!,$B25,Anlagen!$J$7:$J$115) ->  | E25: =SUMIF(Anlagen!#REF!,$B25,Anlagen!$K$7:$K$115) ->  | F25: =C25+D25-E25 ->  | G25: =SUMIF(Anlagen!#REF!,$B25,Anlagen!$S$7:$S$115) ->  | H25: =SUMIF(Anlagen!#REF!,$B25,Anlagen!$V$7:$V$115) ->  | I25: =SUMIF(Anlagen!#REF!,$B25,Anlagen!$W$7:$W$115) ->  | J25: =F25 ->  | K25: =SUMIFS(Anlagen!$N$119:$N$167,Anlagen!#REF!,B25,Anlagen!#REF!,$K$1) ->  | L25: =SUMIF(Anlagen!#REF!,$B25,Anlagen!$N$171:$N$209) ->  | M25: =SUMIF(Schulden!P:P,$B25,Schulden!F:F)-N25-O25 -> 0 | N25: =SUMIF(Schulden!$P$27:$P$29,$B25,Schulden!$F$27:$F$29)+SUMIF(Schulden!$P$81:$P$83,$B25,Schulden!$F$81:$F$83) -> 0 | O25: =SUMIF(Schulden!$P$10:$P$16,$B25,Schulden!$F$10:$F$16) -> 0 | P25: =SUMIFS(Anlagen!$N$119:$N$167,Anlagen!#REF!,B25,Anlagen!#REF!,$P$1) ->  | U25: =SUMIFS(Anlagen!$N$119:$N$167,Anlagen!#REF!,B25,Anlagen!#REF!,$U$1) ->  | V25: =(K25+L25+M25+N25+O25+P25+R25+T25)-J25 ->  | Z25: =IF(V25>=0,V25,"") ->  | AA25: =IF(Z25="",V25,"") -> 
A26: TRUE | B26: IB 2009 | C26: =SUMIF(Anlagen!#REF!,$B26,Anlagen!$I$7:$I$115) ->  | D26: =SUMIF(Anlagen!#REF!,$B26,Anlagen!$J$7:$J$115) ->  | E26: =SUMIF(Anlagen!#REF!,$B26,Anlagen!$K$7:$K$115) ->  | G26: =SUMIF(Anlagen!#REF!,$B26,Anlagen!$S$7:$S$115) ->  | H26: =SUMIF(Anlagen!#REF!,$B26,Anlagen!$V$7:$V$115) ->  | I26: =SUMIF(Anlagen!#REF!,$B26,Anlagen!$W$7:$W$115) ->  | K26: =SUMIFS(Anlagen!$N$119:$N$167,Anlagen!#REF!,B26,Anlagen!#REF!,$K$1) ->  | L26: =SUMIF(Anlagen!#REF!,$B26,Anlagen!$N$171:$N$209) ->  | M26: =SUMIF(Schulden!P:P,$B26,Schulden!F:F)-N26-O26 -> 0 | N26: =SUMIF(Schulden!$P$27:$P$29,$B26,Schulden!$F$27:$F$29)+SUMIF(Schulden!$P$81:$P$83,$B26,Schulden!$F$81:$F$83) -> 0 | O26: =SUMIF(Schulden!$P$10:$P$16,$B26,Schulden!$F$10:$F$16) -> 0 | P26: =SUMIFS(Anlagen!$N$119:$N$167,Anlagen!#REF!,B26,Anlagen!#REF!,$P$1) ->  | U26: =SUMIFS(Anlagen!$N$119:$N$167,Anlagen!#REF!,B26,Anlagen!#REF!,$U$1) -> 
A27: =B27<>"" -> TRUE | B27: IB 2010 | C27: =SUMIF(Anlagen!#REF!,$B27,Anlagen!$I$7:$I$115) ->  | D27: =SUMIF(Anlagen!#REF!,$B27,Anlagen!$J$7:$J$115) ->  | E27: =SUMIF(Anlagen!#REF!,$B27,Anlagen!$K$7:$K$115) ->  | F27: =C27+D27-E27 ->  | G27: =SUMIF(Anlagen!#REF!,$B27,Anlagen!$S$7:$S$115) ->  | H27: =SUMIF(Anlagen!#REF!,$B27,Anlagen!$V$7:$V$115) ->  | I27: =SUMIF(Anlagen!#REF!,$B27,Anlagen!$W$7:$W$115) ->  | J27: =F27 ->  | K27: =SUMIFS(Anlagen!$N$119:$N$167,Anlagen!#REF!,B27,Anlagen!#REF!,$K$1) ->  | L27: =SUMIF(Anlagen!#REF!,$B27,Anlagen!$N$171:$N$209) ->  | M27: =SUMIF(Schulden!P:P,$B27,Schulden!F:F)-N27-O27 -> 0 | N27: =SUMIF(Schulden!$P$27:$P$29,$B27,Schulden!$F$27:$F$29)+SUMIF(Schulden!$P$81:$P$83,$B27,Schulden!$F$81:$F$83) -> 0 | O27: =SUMIF(Schulden!$P$10:$P$16,$B27,Schulden!$F$10:$F$16) -> 0 | P27: =SUMIFS(Anlagen!$N$119:$N$167,Anlagen!#REF!,B27,Anlagen!#REF!,$P$1) ->  | U27: =SUMIFS(Anlagen!$N$119:$N$167,Anlagen!#REF!,B27,Anlagen!#REF!,$U$1) ->  | V27: =(K27+L27+M27+N27+O27+P27+R27+T27)-J27 ->  | Z27: =IF(V27>=0,V27,"") ->  | AA27: =IF(Z27="",V27,"") -> 
A28: TRUE | B28: IB 2011 | C28: =SUMIF(Anlagen!#REF!,$B28,Anlagen!$I$7:$I$115) ->  | D28: =SUMIF(Anlagen!#REF!,$B28,Anlagen!$J$7:$J$115) ->  | E28: =SUMIF(Anlagen!#REF!,$B28,Anlagen!$K$7:$K$115) ->  | G28: =SUMIF(Anlagen!#REF!,$B28,Anlagen!$S$7:$S$115) ->  | H28: =SUMIF(Anlagen!#REF!,$B28,Anlagen!$V$7:$V$115) ->  | I28: =SUMIF(Anlagen!#REF!,$B28,Anlagen!$W$7:$W$115) ->  | K28: =SUMIFS(Anlagen!$N$119:$N$167,Anlagen!#REF!,B28,Anlagen!#REF!,$K$1) ->  | L28: =SUMIF(Anlagen!#REF!,$B28,Anlagen!$N$171:$N$209) ->  | M28: =SUMIF(Schulden!P:P,$B28,Schulden!F:F)-N28-O28 -> 0 | N28: =SUMIF(Schulden!$P$27:$P$29,$B28,Schulden!$F$27:$F$29)+SUMIF(Schulden!$P$81:$P$83,$B28,Schulden!$F$81:$F$83) -> 0 | O28: =SUMIF(Schulden!$P$10:$P$16,$B28,Schulden!$F$10:$F$16) -> 0 | P28: =SUMIFS(Anlagen!$N$119:$N$167,Anlagen!#REF!,B28,Anlagen!#REF!,$P$1) ->  | U28: =SUMIFS(Anlagen!$N$119:$N$167,Anlagen!#REF!,B28,Anlagen!#REF!,$U$1) -> 
A29: TRUE | B29: IB 2012 | C29: =SUMIF(Anlagen!#REF!,$B29,Anlagen!$I$7:$I$115) ->  | D29: =SUMIF(Anlagen!#REF!,$B29,Anlagen!$J$7:$J$115) ->  | E29: =SUMIF(Anlagen!#REF!,$B29,Anlagen!$K$7:$K$115) ->  | G29: =SUMIF(Anlagen!#REF!,$B29,Anlagen!$S$7:$S$115) ->  | H29: =SUMIF(Anlagen!#REF!,$B29,Anlagen!$V$7:$V$115) ->  | I29: =SUMIF(Anlagen!#REF!,$B29,Anlagen!$W$7:$W$115) ->  | K29: =SUMIFS(Anlagen!$N$119:$N$167,Anlagen!#REF!,B29,Anlagen!#REF!,$K$1) ->  | L29: =SUMIF(Anlagen!#REF!,$B29,Anlagen!$N$171:$N$209) ->  | M29: =SUMIF(Schulden!P:P,$B29,Schulden!F:F)-N29-O29 -> 0 | N29: =SUMIF(Schulden!$P$27:$P$29,$B29,Schulden!$F$27:$F$29)+SUMIF(Schulden!$P$81:$P$83,$B29,Schulden!$F$81:$F$83) -> 0 | O29: =SUMIF(Schulden!$P$10:$P$16,$B29,Schulden!$F$10:$F$16) -> 0 | P29: =SUMIFS(Anlagen!$N$119:$N$167,Anlagen!#REF!,B29,Anlagen!#REF!,$P$1) ->  | U29: =SUMIFS(Anlagen!$N$119:$N$167,Anlagen!#REF!,B29,Anlagen!#REF!,$U$1) -> 
A30: TRUE | B30: IB 2013 | C30: =SUMIF(Anlagen!#REF!,$B30,Anlagen!$I$7:$I$115) ->  | D30: =SUMIF(Anlagen!#REF!,$B30,Anlagen!$J$7:$J$115) ->  | E30: =SUMIF(Anlagen!#REF!,$B30,Anlagen!$K$7:$K$115) ->  | G30: =SUMIF(Anlagen!#REF!,$B30,Anlagen!$S$7:$S$115) ->  | H30: =SUMIF(Anlagen!#REF!,$B30,Anlagen!$V$7:$V$115) ->  | I30: =SUMIF(Anlagen!#REF!,$B30,Anlagen!$W$7:$W$115) ->  | K30: =SUMIFS(Anlagen!$N$119:$N$167,Anlagen!#REF!,B30,Anlagen!#REF!,$K$1) ->  | L30: =SUMIF(Anlagen!#REF!,$B30,Anlagen!$N$171:$N$209) ->  | M30: =SUMIF(Schulden!P:P,$B30,Schulden!F:F)-N30-O30 -> 0 | N30: =SUMIF(Schulden!$P$27:$P$29,$B30,Schulden!$F$27:$F$29)+SUMIF(Schulden!$P$81:$P$83,$B30,Schulden!$F$81:$F$83) -> 0 | O30: =SUMIF(Schulden!$P$10:$P$16,$B30,Schulden!$F$10:$F$16) -> 0 | P30: =SUMIFS(Anlagen!$N$119:$N$167,Anlagen!#REF!,B30,Anlagen!#REF!,$P$1) ->  | U30: =SUMIFS(Anlagen!$N$119:$N$167,Anlagen!#REF!,B30,Anlagen!#REF!,$U$1) -> 
A31: =B31<>"" -> TRUE | B31: IB 2014 | C31: =SUMIF(Anlagen!#REF!,$B31,Anlagen!$I$7:$I$115) ->  | D31: =SUMIF(Anlagen!#REF!,$B31,Anlagen!$J$7:$J$115) ->  | E31: =SUMIF(Anlagen!#REF!,$B31,Anlagen!$K$7:$K$115) ->  | F31: =C31+D31-E31 ->  | G31: =SUMIF(Anlagen!#REF!,$B31,Anlagen!$S$7:$S$115) ->  | H31: =SUMIF(Anlagen!#REF!,$B31,Anlagen!$V$7:$V$115) ->  | I31: =SUMIF(Anlagen!#REF!,$B31,Anlagen!$W$7:$W$115) ->  | J31: =F31 ->  | K31: =SUMIFS(Anlagen!$N$119:$N$167,Anlagen!#REF!,B31,Anlagen!#REF!,$K$1) ->  | L31: =SUMIF(Anlagen!#REF!,$B31,Anlagen!$N$171:$N$209) ->  | M31: =SUMIF(Schulden!P:P,$B31,Schulden!F:F)-N31-O31 -> 0 | N31: =SUMIF(Schulden!$P$27:$P$29,$B31,Schulden!$F$27:$F$29)+SUMIF(Schulden!$P$81:$P$83,$B31,Schulden!$F$81:$F$83) -> 0 | O31: =SUMIF(Schulden!$P$10:$P$16,$B31,Schulden!$F$10:$F$16) -> 0 | P31: =SUMIFS(Anlagen!$N$119:$N$167,Anlagen!#REF!,B31,Anlagen!#REF!,$P$1) ->  | U31: =SUMIFS(Anlagen!$N$119:$N$167,Anlagen!#REF!,B31,Anlagen!#REF!,$U$1) ->  | V31: =(K31+L31+M31+N31+O31+P31+R31+T31)-J31 ->  | Z31: =IF(V31>=0,V31,"") ->  | AA31: =IF(Z31="",V31,"") -> 
A32: TRUE | B32: IB 2015 | C32: =SUMIF(Anlagen!#REF!,$B32,Anlagen!$I$7:$I$115) ->  | D32: =SUMIF(Anlagen!#REF!,$B32,Anlagen!$J$7:$J$115) ->  | E32: =SUMIF(Anlagen!#REF!,$B32,Anlagen!$K$7:$K$115) ->  | G32: =SUMIF(Anlagen!#REF!,$B32,Anlagen!$S$7:$S$115) ->  | H32: =SUMIF(Anlagen!#REF!,$B32,Anlagen!$V$7:$V$115) ->  | I32: =SUMIF(Anlagen!#REF!,$B32,Anlagen!$W$7:$W$115) ->  | K32: =SUMIFS(Anlagen!$N$119:$N$167,Anlagen!#REF!,B32,Anlagen!#REF!,$K$1) ->  | L32: =SUMIF(Anlagen!#REF!,$B32,Anlagen!$N$171:$N$209) ->  | M32: =SUMIF(Schulden!P:P,$B32,Schulden!F:F)-N32-O32 -> 0 | N32: =SUMIF(Schulden!$P$27:$P$29,$B32,Schulden!$F$27:$F$29)+SUMIF(Schulden!$P$81:$P$83,$B32,Schulden!$F$81:$F$83) -> 0 | O32: =SUMIF(Schulden!$P$10:$P$16,$B32,Schulden!$F$10:$F$16) -> 0 | P32: =SUMIFS(Anlagen!$N$119:$N$167,Anlagen!#REF!,B32,Anlagen!#REF!,$P$1) ->  | U32: =SUMIFS(Anlagen!$N$119:$N$167,Anlagen!#REF!,B32,Anlagen!#REF!,$U$1) -> 
A33: TRUE | B33: IB 2016 | C33: =SUMIF(Anlagen!#REF!,$B33,Anlagen!$I$7:$I$115) ->  | D33: =SUMIF(Anlagen!#REF!,$B33,Anlagen!$J$7:$J$115) ->  | E33: =SUMIF(Anlagen!#REF!,$B33,Anlagen!$K$7:$K$115) ->  | G33: =SUMIF(Anlagen!#REF!,$B33,Anlagen!$S$7:$S$115) ->  | H33: =SUMIF(Anlagen!#REF!,$B33,Anlagen!$V$7:$V$115) ->  | I33: =SUMIF(Anlagen!#REF!,$B33,Anlagen!$W$7:$W$115) ->  | K33: =SUMIFS(Anlagen!$N$119:$N$167,Anlagen!#REF!,B33,Anlagen!#REF!,$K$1) ->  | L33: =SUMIF(Anlagen!#REF!,$B33,Anlagen!$N$171:$N$209) ->  | M33: =SUMIF(Schulden!P:P,$B33,Schulden!F:F)-N33-O33 -> 0 | N33: =SUMIF(Schulden!$P$27:$P$29,$B33,Schulden!$F$27:$F$29)+SUMIF(Schulden!$P$81:$P$83,$B33,Schulden!$F$81:$F$83) -> 0 | O33: =SUMIF(Schulden!$P$10:$P$16,$B33,Schulden!$F$10:$F$16) -> 0 | P33: =SUMIFS(Anlagen!$N$119:$N$167,Anlagen!#REF!,B33,Anlagen!#REF!,$P$1) ->  | U33: =SUMIFS(Anlagen!$N$119:$N$167,Anlagen!#REF!,B33,Anlagen!#REF!,$U$1) -> 
A34: TRUE | B34: IB 2017 | C34: =SUMIF(Anlagen!#REF!,$B34,Anlagen!$I$7:$I$115) ->  | D34: =SUMIF(Anlagen!#REF!,$B34,Anlagen!$J$7:$J$115) ->  | E34: =SUMIF(Anlagen!#REF!,$B34,Anlagen!$K$7:$K$115) ->  | G34: =SUMIF(Anlagen!#REF!,$B34,Anlagen!$S$7:$S$115) ->  | H34: =SUMIF(Anlagen!#REF!,$B34,Anlagen!$V$7:$V$115) ->  | I34: =SUMIF(Anlagen!#REF!,$B34,Anlagen!$W$7:$W$115) ->  | K34: =SUMIFS(Anlagen!$N$119:$N$167,Anlagen!#REF!,B34,Anlagen!#REF!,$K$1) ->  | L34: =SUMIF(Anlagen!#REF!,$B34,Anlagen!$N$171:$N$209) ->  | M34: =SUMIF(Schulden!P:P,$B34,Schulden!F:F)-N34-O34 -> 0 | N34: =SUMIF(Schulden!$P$27:$P$29,$B34,Schulden!$F$27:$F$29)+SUMIF(Schulden!$P$81:$P$83,$B34,Schulden!$F$81:$F$83) -> 0 | O34: =SUMIF(Schulden!$P$10:$P$16,$B34,Schulden!$F$10:$F$16) -> 0 | P34: =SUMIFS(Anlagen!$N$119:$N$167,Anlagen!#REF!,B34,Anlagen!#REF!,$P$1) ->  | U34: =SUMIFS(Anlagen!$N$119:$N$167,Anlagen!#REF!,B34,Anlagen!#REF!,$U$1) -> 
A35: TRUE | B35: IB 2018 | C35: =SUMIF(Anlagen!#REF!,$B35,Anlagen!$I$7:$I$115) ->  | D35: =SUMIF(Anlagen!#REF!,$B35,Anlagen!$J$7:$J$115) ->  | E35: =SUMIF(Anlagen!#REF!,$B35,Anlagen!$K$7:$K$115) ->  | G35: =SUMIF(Anlagen!#REF!,$B35,Anlagen!$S$7:$S$115) ->  | H35: =SUMIF(Anlagen!#REF!,$B35,Anlagen!$V$7:$V$115) ->  | I35: =SUMIF(Anlagen!#REF!,$B35,Anlagen!$W$7:$W$115) ->  | K35: =SUMIFS(Anlagen!$N$119:$N$167,Anlagen!#REF!,B35,Anlagen!#REF!,$K$1) ->  | L35: =SUMIF(Anlagen!#REF!,$B35,Anlagen!$N$171:$N$209) ->  | M35: =SUMIF(Schulden!P:P,$B35,Schulden!F:F)-N35-O35 -> 0 | N35: =SUMIF(Schulden!$P$27:$P$29,$B35,Schulden!$F$27:$F$29)+SUMIF(Schulden!$P$81:$P$83,$B35,Schulden!$F$81:$F$83) -> 0 | O35: =SUMIF(Schulden!$P$10:$P$16,$B35,Schulden!$F$10:$F$16) -> 0 | P35: =SUMIFS(Anlagen!$N$119:$N$167,Anlagen!#REF!,B35,Anlagen!#REF!,$P$1) ->  | U35: =SUMIFS(Anlagen!$N$119:$N$167,Anlagen!#REF!,B35,Anlagen!#REF!,$U$1) -> 
A36: TRUE | B36: IB 2019 | C36: =SUMIF(Anlagen!#REF!,$B36,Anlagen!$I$7:$I$115) ->  | D36: =SUMIF(Anlagen!#REF!,$B36,Anlagen!$J$7:$J$115) ->  | E36: =SUMIF(Anlagen!#REF!,$B36,Anlagen!$K$7:$K$115) ->  | G36: =SUMIF(Anlagen!#REF!,$B36,Anlagen!$S$7:$S$115) ->  | H36: =SUMIF(Anlagen!#REF!,$B36,Anlagen!$V$7:$V$115) ->  | I36: =SUMIF(Anlagen!#REF!,$B36,Anlagen!$W$7:$W$115) ->  | K36: =SUMIFS(Anlagen!$N$119:$N$167,Anlagen!#REF!,B36,Anlagen!#REF!,$K$1) ->  | L36: =SUMIF(Anlagen!#REF!,$B36,Anlagen!$N$171:$N$209) ->  | M36: =SUMIF(Schulden!P:P,$B36,Schulden!F:F)-N36-O36 -> 0 | N36: =SUMIF(Schulden!$P$27:$P$29,$B36,Schulden!$F$27:$F$29)+SUMIF(Schulden!$P$81:$P$83,$B36,Schulden!$F$81:$F$83) -> 0 | O36: =SUMIF(Schulden!$P$10:$P$16,$B36,Schulden!$F$10:$F$16) -> 0 | P36: =SUMIFS(Anlagen!$N$119:$N$167,Anlagen!#REF!,B36,Anlagen!#REF!,$P$1) ->  | U36: =SUMIFS(Anlagen!$N$119:$N$167,Anlagen!#REF!,B36,Anlagen!#REF!,$U$1) -> 
A37: TRUE | B37: IB 2020 | C37: =SUMIF(Anlagen!#REF!,$B37,Anlagen!$I$7:$I$115) ->  | D37: =SUMIF(Anlagen!#REF!,$B37,Anlagen!$J$7:$J$115) ->  | E37: =SUMIF(Anlagen!#REF!,$B37,Anlagen!$K$7:$K$115) ->  | G37: =SUMIF(Anlagen!#REF!,$B37,Anlagen!$S$7:$S$115) ->  | H37: =SUMIF(Anlagen!#REF!,$B37,Anlagen!$V$7:$V$115) ->  | I37: =SUMIF(Anlagen!#REF!,$B37,Anlagen!$W$7:$W$115) ->  | K37: =SUMIFS(Anlagen!$N$119:$N$167,Anlagen!#REF!,B37,Anlagen!#REF!,$K$1) ->  | L37: =SUMIF(Anlagen!#REF!,$B37,Anlagen!$N$171:$N$209) ->  | M37: =SUMIF(Schulden!P:P,$B37,Schulden!F:F)-N37-O37 -> 0 | N37: =SUMIF(Schulden!$P$27:$P$29,$B37,Schulden!$F$27:$F$29)+SUMIF(Schulden!$P$81:$P$83,$B37,Schulden!$F$81:$F$83) -> 0 | O37: =SUMIF(Schulden!$P$10:$P$16,$B37,Schulden!$F$10:$F$16) -> 0 | P37: =SUMIFS(Anlagen!$N$119:$N$167,Anlagen!#REF!,B37,Anlagen!#REF!,$P$1) ->  | U37: =SUMIFS(Anlagen!$N$119:$N$167,Anlagen!#REF!,B37,Anlagen!#REF!,$U$1) -> 
A38: FALSE | C38: =SUMIF(Anlagen!#REF!,$B38,Anlagen!$I$7:$I$115) ->  | D38: =SUMIF(Anlagen!#REF!,$B38,Anlagen!$J$7:$J$115) ->  | E38: =SUMIF(Anlagen!#REF!,$B38,Anlagen!$K$7:$K$115) ->  | G38: =SUMIF(Anlagen!#REF!,$B38,Anlagen!$S$7:$S$115) ->  | H38: =SUMIF(Anlagen!#REF!,$B38,Anlagen!$V$7:$V$115) ->  | I38: =SUMIF(Anlagen!#REF!,$B38,Anlagen!$W$7:$W$115) ->  | K38: =SUMIFS(Anlagen!$N$119:$N$167,Anlagen!#REF!,B38,Anlagen!#REF!,$K$1) ->  | L38: =SUMIF(Anlagen!#REF!,$B38,Anlagen!$N$171:$N$209) ->  | M38: =SUMIF(Schulden!P:P,$B38,Schulden!F:F)-N38-O38 -> 0 | N38: =SUMIF(Schulden!$P$27:$P$29,$B38,Schulden!$F$27:$F$29)+SUMIF(Schulden!$P$81:$P$83,$B38,Schulden!$F$81:$F$83) -> 0 | O38: =SUMIF(Schulden!$P$10:$P$16,$B38,Schulden!$F$10:$F$16) -> 0 | P38: =SUMIFS(Anlagen!$N$119:$N$167,Anlagen!#REF!,B38,Anlagen!#REF!,$P$1) ->  | U38: =SUMIFS(Anlagen!$N$119:$N$167,Anlagen!#REF!,B38,Anlagen!#REF!,$U$1) -> 
A39: =B39<>"" -> FALSE | C39: =SUMIF(Anlagen!#REF!,$B39,Anlagen!$I$7:$I$115) ->  | D39: =SUMIF(Anlagen!#REF!,$B39,Anlagen!$J$7:$J$115) ->  | E39: =SUMIF(Anlagen!#REF!,$B39,Anlagen!$K$7:$K$115) ->  | F39: =C39+D39-E39 ->  | G39: =SUMIF(Anlagen!#REF!,$B39,Anlagen!$S$7:$S$115) ->  | H39: =SUMIF(Anlagen!#REF!,$B39,Anlagen!$V$7:$V$115) ->  | I39: =SUMIF(Anlagen!#REF!,$B39,Anlagen!$W$7:$W$115) ->  | J39: =F39 ->  | K39: =SUMIFS(Anlagen!$N$119:$N$167,Anlagen!#REF!,B39,Anlagen!#REF!,$K$1) ->  | L39: =SUMIF(Anlagen!#REF!,$B39,Anlagen!$N$171:$N$209) ->  | M39: =SUMIF(Schulden!P:P,$B39,Schulden!F:F)-N39-O39 -> 0 | N39: =SUMIF(Schulden!$P$27:$P$29,$B39,Schulden!$F$27:$F$29)+SUMIF(Schulden!$P$81:$P$83,$B39,Schulden!$F$81:$F$83) -> 0 | O39: =SUMIF(Schulden!$P$10:$P$16,$B39,Schulden!$F$10:$F$16) -> 0 | P39: =SUMIFS(Anlagen!$N$119:$N$167,Anlagen!#REF!,B39,Anlagen!#REF!,$P$1) ->  | U39: =SUMIFS(Anlagen!$N$119:$N$167,Anlagen!#REF!,B39,Anlagen!#REF!,$U$1) ->  | V39: =(K39+L39+M39+N39+O39+P39+R39+T39)-J39 ->  | Z39: =IF(V39>=0,V39,"") ->  | AA39: =IF(Z39="",V39,"") -> 
A40: =B40<>"" -> FALSE | C40: =SUMIF(Anlagen!#REF!,$B40,Anlagen!$I$7:$I$115) ->  | D40: =SUMIF(Anlagen!#REF!,$B40,Anlagen!$J$7:$J$115) ->  | E40: =SUMIF(Anlagen!#REF!,$B40,Anlagen!$K$7:$K$115) ->  | F40: =C40+D40-E40 ->  | G40: =SUMIF(Anlagen!#REF!,$B40,Anlagen!$S$7:$S$115) ->  | H40: =SUMIF(Anlagen!#REF!,$B40,Anlagen!$V$7:$V$115) ->  | I40: =SUMIF(Anlagen!#REF!,$B40,Anlagen!$W$7:$W$115) ->  | J40: =F40 ->  | K40: =SUMIFS(Anlagen!$N$119:$N$167,Anlagen!#REF!,B40,Anlagen!#REF!,$K$1) ->  | L40: =SUMIF(Anlagen!#REF!,$B40,Anlagen!$N$171:$N$209) ->  | M40: =SUMIF(Schulden!P:P,$B40,Schulden!F:F)-N40-O40 -> 0 | N40: =SUMIF(Schulden!$P$27:$P$29,$B40,Schulden!$F$27:$F$29)+SUMIF(Schulden!$P$81:$P$83,$B40,Schulden!$F$81:$F$83) -> 0 | O40: =SUMIF(Schulden!$P$10:$P$16,$B40,Schulden!$F$10:$F$16) -> 0 | P40: =SUMIFS(Anlagen!$N$119:$N$167,Anlagen!#REF!,B40,Anlagen!#REF!,$P$1) ->  | U40: =SUMIFS(Anlagen!$N$119:$N$167,Anlagen!#REF!,B40,Anlagen!#REF!,$U$1) -> 
A41: FALSE | C41: =SUMIF(Anlagen!#REF!,$B41,Anlagen!$I$7:$I$115) ->  | D41: =SUMIF(Anlagen!#REF!,$B41,Anlagen!$J$7:$J$115) ->  | E41: =SUMIF(Anlagen!#REF!,$B41,Anlagen!$K$7:$K$115) ->  | G41: =SUMIF(Anlagen!#REF!,$B41,Anlagen!$S$7:$S$115) ->  | H41: =SUMIF(Anlagen!#REF!,$B41,Anlagen!$V$7:$V$115) ->  | I41: =SUMIF(Anlagen!#REF!,$B41,Anlagen!$W$7:$W$115) ->  | K41: =SUMIFS(Anlagen!$N$119:$N$167,Anlagen!#REF!,B41,Anlagen!#REF!,$K$1) ->  | L41: =SUMIF(Anlagen!#REF!,$B41,Anlagen!$N$171:$N$209) ->  | M41: =SUMIF(Schulden!P:P,$B41,Schulden!F:F)-N41-O41 -> 0 | N41: =SUMIF(Schulden!$P$27:$P$29,$B41,Schulden!$F$27:$F$29)+SUMIF(Schulden!$P$81:$P$83,$B41,Schulden!$F$81:$F$83) -> 0 | O41: =SUMIF(Schulden!$P$10:$P$16,$B41,Schulden!$F$10:$F$16) -> 0 | P41: =SUMIFS(Anlagen!$N$119:$N$167,Anlagen!#REF!,B41,Anlagen!#REF!,$P$1) ->  | U41: =SUMIFS(Anlagen!$N$119:$N$167,Anlagen!#REF!,B41,Anlagen!#REF!,$U$1) -> 
A42: TRUE | B42: Summe mit Zuordnung | C42: =SUM(C7:C41) ->  | M42: 0 | N42: 0 | O42: 0 | Q42: =SUM(Q7:Q41) -> 179029.2 | R42: 136270 | S42: 0 | T42: 181682
A43: TRUE | B43: Summe ohne Zuordnung | C43: =Anlagen!I212-C42 ->  | D43: =Anlagen!J212-D42 ->  | E43: =Anlagen!K212-E42 ->  | F43: =Anlagen!N212-F42 ->  | G43: =Anlagen!S212-G42 ->  | H43: =Anlagen!V212-H42 ->  | I43: =Anlagen!W212-I42 ->  | J43: =C43 -> 
A44: TRUE | B44: Summe aller Anlagen | C44: =C42+C43 ->  | D44: =D42+D43 ->  | J44: =C44 -> 
A45: Ende | P45: Schlüssige Finanzierung der Anlagen mit Zuordnung gegeben
P46: Summe der Überfinanzierungen der Analgen mit Zuordnung | V46: =SUM(Z7:Z41) -> 
P47: Summe der Unterfinanzierungen der Anlagen mit Zuordnung | V47: =SUM(AA7:AA41) -> 
P48: SALDO der Finanzierung der Anlagen mit Zuordnung | V48: =SUM(V7:V41) -> 

Sheet Wertpapiere (hidden)
A1: FALSE | B1: Ende
A2: FALSE | B2: Beteiligungen und Wertpapiere | C2: 001.00
A3: FALSE | B3: Ende
A4: TRUE | B4: =TEXT(wST.Ansatz,"000")&", BETEILIGUNGEN UND WERTPAPIERE per "&TEXT(wST.PeriodeEnde,"T. MMMM JJJJ") -> 850, BETEILIGUNGEN UND WERTPAPIERE per 31. Dezember 2021 | H4: =wST.ORT -> 0
A5: TRUE
A6: TRUE | B6: Posten- | E6: Buchwert | F6: Zugänge | G6: Abgänge | H6: Buchwert
A7: TRUE | B7: gruppe | C7: Teilabschnitt | D7: Bezeichnung | E7: =TEXT(wST.PeriodeAnfang-1,"T.M.JJJJ") -> 31.12.2020 | F7: ="im Jahr "&TEXT(wST.PeriodeAnfang,"JJJJ") -> im Jahr 2021 | G7: ="im Jahr "&TEXT(wST.PeriodeAnfang,"JJJJ") -> im Jahr 2021 | H7: =TEXT(wST.PeriodeEnde,"T.M.JJJJ") -> 31.12.2021
A8: TRUE
A9: =OR(A10,A14) -> FALSE | B9: 8 | C9: BETEILIGUNGEN UND ANLAGEWERTPAPIERE | E9: =SUM(E10,E14) -> 0 | F9: =SUM(F10,F14) -> 0 | G9: =SUM(G10,G14) -> 0 | H9: =SUM(H10,H14) -> 0
A10: =OR(A11:A13) -> FALSE | B10: 80 | C10: Beteiligungen | E10: =SUMPRODUCT(E11:E13,$I11:$I13) -> 0 | F10: =SUMPRODUCT(F11:F13,$I11:$I13) -> 0 | G10: =SUMPRODUCT(G11:G13,$I11:$I13) -> 0 | H10: =SUMPRODUCT(H11:H13,$I11:$I13) -> 0
A11: =I11>0 -> FALSE | E11: 0 | H11: =E11+F11-G11 -> 0 | I11: =IF(C11=0,0,IF(VALUE(LEFT(C11,3))=wST.Ansatz,1,0)) -> 0
A12: =I12>0 -> FALSE | E12: 0 | H12: =E12+F12-G12 -> 0 | I12: =IF(C12=0,0,IF(VALUE(LEFT(C12,3))=wST.Ansatz,1,0)) -> 0
A13: =I13>0 -> FALSE | E13: 0 | H13: =E13+F13-G13 -> 0 | I13: =IF(C13=0,0,IF(VALUE(LEFT(C13,3))=wST.Ansatz,1,0)) -> 0
A14: =OR(A15:A24) -> FALSE | B14: 85 | C14: Anlagewertpapiere | E14: =SUMPRODUCT(E15:E24,$I15:$I24) -> 0 | F14: =SUMPRODUCT(F15:F24,$I15:$I24) -> 0 | G14: =SUMPRODUCT(G15:G24,$I15:$I24) -> 0 | H14: =SUMPRODUCT(H15:H24,$I15:$I24) -> 0
A15: =I15>0 -> FALSE | E15: 0 | H15: =E15+F15-G15 -> 0 | I15: =IF(C15=0,0,IF(VALUE(LEFT(C15,3))=wST.Ansatz,1,0)) -> 0
A16: FALSE | H16: 0 | I16: 0
A17: FALSE | H17: 0 | I17: 0
A18: FALSE | H18: 0 | I18: 0
A19: FALSE | H19: 0 | I19: 0
A20: FALSE | H20: 0 | I20: 0
A21: FALSE | E21: 0 | H21: 0 | I21: 0
A22: FALSE | E22: 0 | H22: 0 | I22: 0
A23: FALSE | E23: 0 | H23: 0 | I23: 0
A24: FALSE | E24: 0 | H24: 0 | I24: 0
A25: =A9 -> FALSE
A26: =A27 -> FALSE | B26: 22 | C26: WERTPAPIERE DES UMLAUFVERMÖGENS | E26: =E27 -> 0 | H26: =H27 -> 0
A27: =OR(A28:A30) -> FALSE | B27: 220 | C27: Wertpapiere des Umlaufvermögens | E27: =SUMPRODUCT(E28:E30,$I28:$I30) -> 0 | F27: =SUMPRODUCT(F28:F30,$I28:$I30) -> 0 | G27: =SUMPRODUCT(G28:G30,$I28:$I30) -> 0 | H27: =SUMPRODUCT(H28:H30,$I28:$I30) -> 0
A28: =I28>0 -> FALSE | E28: 0 | H28: =E28+F28-G28 -> 0 | I28: =IF(C28=0,0,IF(VALUE(LEFT(C28,3))=wST.Ansatz,1,0)) -> 0
A29: =I29>0 -> FALSE | E29: 0 | H29: =E29+F29-G29 -> 0 | I29: =IF(C29=0,0,IF(VALUE(LEFT(C29,3))=wST.Ansatz,1,0)) -> 0
A30: =I30>0 -> FALSE | E30: 0 | H30: =E30+F30-G30 -> 0 | I30: =IF(C30=0,0,IF(VALUE(LEFT(C30,3))=wST.Ansatz,1,0)) -> 0
A31: Ende

Sheet Vorräte (hidden)
A1: FALSE | B1: Ende
A2: FALSE | B2: Vorräte | C2: 001.00
A3: FALSE | B3: Ende
A4: TRUE | B4: =TEXT(wST.Ansatz,"000")&", VORRÄTE per "&TEXT(wST.PeriodeEnde,"T. MMMM JJJJ") -> 850, VORRÄTE per 31. Dezember 2021 | I4: =wST.ORT -> 0
A5: TRUE
A6: TRUE | B6: Posten- gruppe | C6: Teil- Abschn. | D6: Bezeichnung | E6: ="Inventur "&TEXT(wST.PeriodeAnfang-1,"T.M.JJJJ") -> Inventur 31.12.2020 | F6: ="Zugänge im Jahr "&TEXT(wST.PeriodeAnfang,"JJJJ") -> Zugänge im Jahr 2021 | G6: ="Abgänge im Jahr "&TEXT(wST.PeriodeAnfang,"JJJJ") -> Abgänge im Jahr 2021 | H6: ="Inventur "&TEXT(wST.PeriodeEnde,"T.M.JJJJ") -> Inventur 31.12.2021
A7: TRUE
A8: =A9 -> FALSE | B8: 10 | C8: ERSATZTEILE | E8: =E9 -> 0 | F8: =F9 -> 0 | G8: =G9 -> 0 | H8: =H9 -> 0
A9: =OR(A10:A12) -> FALSE | B9: 100 | C9: Ersatzteile | E9: =SUMPRODUCT(E10:E12,$J10:$J12) -> 0 | F9: =SUMPRODUCT(F10:F12,$J10:$J12) -> 0 | G9: =SUMPRODUCT(G10:G12,$J10:$J12) -> 0 | H9: =SUMPRODUCT(H10:H12,$J10:$J12) -> 0
A10: =J10<>0 -> FALSE | E10: 0 | F10: =MAX(0,H10-E10) -> 0 | G10: =MAX(0,-H10+E10) -> 0 | H10: 0 | J10: =IF(C10=0,0,IF(VALUE(LEFT(C10,3))=wST.Ansatz,1,0)) -> 0
A11: =J11<>0 -> FALSE | E11: 0 | F11: =MAX(0,H11-E11) -> 0 | G11: =MAX(0,-H11+E11) -> 0 | H11: 0 | J11: =IF(C11=0,0,IF(VALUE(LEFT(C11,3))=wST.Ansatz,1,0)) -> 0
A12: =J12<>0 -> FALSE | E12: 0 | F12: =MAX(0,H12-E12) -> 0 | G12: =MAX(0,-H12+E12) -> 0 | H12: 0 | J12: =IF(C12=0,0,IF(VALUE(LEFT(C12,3))=wST.Ansatz,1,0)) -> 0
A13: =A8 -> FALSE | E13: 0 | H13: 0
A14: =A15 -> FALSE | B14: 11 | C14: GEBRAUCHSGÜTER | E14: =E15 -> 0 | F14: =F15 -> 0 | G14: =G15 -> 0 | H14: =H15 -> 0
A15: =OR(A16:A84) -> FALSE | B15: 110 | C15: Geringwertige Wirtschaftsgüter (lt. VRV) | E15: =SUMPRODUCT(E16:E84,$J16:$J84) -> 0 | F15: =SUMPRODUCT(F16:F84,$J16:$J84) -> 0 | G15: =SUMPRODUCT(G16:G84,$J16:$J84) -> 0 | H15: =SUMPRODUCT(H16:H84,$J16:$J84) -> 0
A16: =J16<>0 -> FALSE | F16: =MAX(0,H16-E16) -> 0 | G16: =MAX(0,-H16+E16) -> 0 | J16: =IF(C16=0,0,IF(VALUE(LEFT(C16,3))=wST.Ansatz,1,0)) -> 0
A17: FALSE | F17: 0 | G17: 0 | J17: 0
A18: FALSE | F18: 0 | G18: 0 | J18: 0
A19: FALSE | F19: 0 | G19: 0 | J19: 0
A20: FALSE | F20: 0 | G20: 0 | J20: 0
A21: FALSE | F21: 0 | G21: 0 | J21: 0
A22: FALSE | F22: 0 | G22: 0 | J22: 0
A23: FALSE | F23: 0 | G23: 0 | J23: 0
A24: FALSE | F24: 0 | G24: 0 | J24: 0
A25: FALSE | F25: 0 | G25: 0 | J25: 0
A26: FALSE | F26: 0 | G26: 0 | J26: 0
A27: FALSE | F27: 0 | G27: 0 | J27: 0
A28: FALSE | F28: 0 | G28: 0 | J28: 0
A29: FALSE | F29: 0 | G29: 0 | J29: 0
A30: FALSE | F30: 0 | G30: 0 | J30: 0
A31: FALSE | F31: 0 | G31: 0 | J31: 0
A32: FALSE | F32: 0 | G32: 0 | J32: 0
A33: FALSE | F33: 0 | G33: 0 | J33: 0
A34: FALSE | F34: 0 | G34: 0 | J34: 0
A35: FALSE | F35: 0 | G35: 0 | J35: 0
A36: FALSE | F36: 0 | G36: 0 | J36: 0
A37: FALSE | F37: 0 | G37: 0 | J37: 0
A38: FALSE | F38: 0 | G38: 0 | J38: 0
A39: FALSE | F39: 0 | G39: 0 | J39: 0
A40: FALSE | F40: 0 | G40: 0 | J40: 0
A41: FALSE | F41: 0 | G41: 0 | J41: 0
A42: FALSE | F42: 0 | G42: 0 | J42: 0
A43: FALSE | F43: 0 | G43: 0 | J43: 0
A44: FALSE | F44: 0 | G44: 0 | J44: 0
A45: FALSE | F45: 0 | G45: 0 | J45: 0
A46: FALSE | F46: 0 | G46: 0 | J46: 0
A47: =J47<>0 -> FALSE | F47: =MAX(0,H47-E47) -> 0 | G47: =MAX(0,-H47+E47) -> 0 | J47: =IF(C47=0,0,IF(VALUE(LEFT(C47,3))=wST.Ansatz,1,0)) -> 0
A48: FALSE | F48: 0 | G48: 0 | J48: 0
A49: FALSE | F49: 0 | G49: 0 | J49: 0
A50: FALSE | F50: 0 | G50: 0 | J50: 0
A51: FALSE | F51: 0 | G51: 0 | J51: 0
A52: FALSE | F52: 0 | G52: 0 | J52: 0
A53: FALSE | F53: 0 | G53: 0 | J53: 0
A54: FALSE | F54: 0 | G54: 0 | J54: 0
A55: FALSE | F55: 0 | G55: 0 | J55: 0
A56: FALSE | F56: 0 | G56: 0 | J56: 0
A57: FALSE | F57: 0 | G57: 0 | J57: 0
A58: FALSE | F58: 0 | G58: 0 | J58: 0
A59: FALSE | F59: 0 | G59: 0 | J59: 0
A60: FALSE | F60: 0 | G60: 0 | J60: 0
A61: FALSE | F61: 0 | G61: 0 | J61: 0
A62: FALSE | F62: 0 | G62: 0 | J62: 0
A63: FALSE | F63: 0 | G63: 0 | J63: 0
A64: FALSE | F64: 0 | G64: 0 | J64: 0
A65: FALSE | F65: 0 | G65: 0 | J65: 0
A66: FALSE | F66: 0 | G66: 0 | J66: 0
A67: FALSE | F67: 0 | G67: 0 | J67: 0
A68: FALSE | F68: 0 | G68: 0 | J68: 0
A69: FALSE | F69: 0 | G69: 0 | J69: 0
A70: FALSE | F70: 0 | G70: 0 | J70: 0
A71: FALSE | F71: 0 | G71: 0 | J71: 0
A72: FALSE | F72: 0 | G72: 0 | J72: 0
A73: FALSE | E73: 0 | F73: 0 | G73: 0 | H73: 0 | J73: 0
A74: FALSE | E74: 0 | F74: 0 | G74: 0 | H74: 0 | J74: 0
A75: FALSE | E75: 0 | F75: 0 | G75: 0 | H75: 0 | J75: 0
A76: FALSE | E76: 0 | F76: 0 | G76: 0 | H76: 0 | J76: 0
A77: FALSE | E77: 0 | F77: 0 | G77: 0 | H77: 0 | J77: 0
A78: =J78<>0 -> FALSE | E78: 0 | F78: =MAX(0,H78-E78) -> 0 | G78: =MAX(0,-H78+E78) -> 0 | H78: 0 | J78: =IF(C78=0,0,IF(VALUE(LEFT(C78,3))=wST.Ansatz,1,0)) -> 0
A79: FALSE | E79: 0 | F79: 0 | G79: 0 | H79: 0 | J79: 0
A80: FALSE | E80: 0 | F80: 0 | G80: 0 | H80: 0 | J80: 0
A81: FALSE | E81: 0 | F81: 0 | G81: 0 | H81: 0 | J81: 0
A82: FALSE | E82: 0 | F82: 0 | G82: 0 | H82: 0 | J82: 0
A83: =J83<>0 -> FALSE | E83: 0 | F83: =MAX(0,H83-E83) -> 0 | G83: =MAX(0,-H83+E83) -> 0 | H83: 0 | J83: =IF(C83=0,0,IF(VALUE(LEFT(C83,3))=wST.Ansatz,1,0)) -> 0
A84: FALSE | E84: 0 | F84: 0 | G84: 0 | H84: 0 | J84: 0
A85: =A14 -> FALSE | E85: 0 | H85: 0
A86: =A87 -> FALSE | B86: 12 | C86: WERKSTOFFE | E86: =E87 -> 0 | F86: =F87 -> 0 | G86: =G87 -> 0 | H86: =H87 -> 0
A87: =OR(A88:A90) -> FALSE | B87: 120 | C87: Werkstoffe | E87: =SUMPRODUCT(E88:E90,$J88:$J90) -> 0 | F87: =SUMPRODUCT(F88:F90,$J88:$J90) -> 0 | G87: =SUMPRODUCT(G88:G90,$J88:$J90) -> 0 | H87: =SUMPRODUCT(H88:H90,$J88:$J90) -> 0
A88: =J88<>0 -> FALSE | E88: 0 | F88: =MAX(0,H88-E88) -> 0 | G88: =MAX(0,-H88+E88) -> 0 | H88: 0 | J88: =IF(C88=0,0,IF(VALUE(LEFT(C88,3))=wST.Ansatz,1,0)) -> 0
A89: =J89<>0 -> FALSE | E89: 0 | F89: =MAX(0,H89-E89) -> 0 | G89: =MAX(0,-H89+E89) -> 0 | H89: 0 | J89: =IF(C89=0,0,IF(VALUE(LEFT(C89,3))=wST.Ansatz,1,0)) -> 0
A90: =J90<>0 -> FALSE | E90: 0 | F90: =MAX(0,H90-E90) -> 0 | G90: =MAX(0,-H90+E90) -> 0 | H90: 0 | J90: =IF(C90=0,0,IF(VALUE(LEFT(C90,3))=wST.Ansatz,1,0)) -> 0
A91: =A86 -> FALSE | E91: 0 | H91: 0
A92: =A93 -> FALSE | B92: 13 | C92: HANDELSWAREN | E92: =E93 -> 0 | F92: =F93 -> 0 | G92: =G93 -> 0 | H92: =H93 -> 0
A93: =OR(A94:A96) -> FALSE | B93: 130 | C93: Handelswaren | E93: =SUMPRODUCT(E94:E96,$J94:$J96) -> 0 | F93: =SUMPRODUCT(F94:F96,$J94:$J96) -> 0 | G93: =SUMPRODUCT(G94:G96,$J94:$J96) -> 0 | H93: =SUMPRODUCT(H94:H96,$J94:$J96) -> 0
A94: =J94<>0 -> FALSE | F94: =MAX(0,H94-E94) -> 0 | G94: =MAX(0,-H94+E94) -> 0 | J94: =IF(C94=0,0,IF(VALUE(LEFT(C94,3))=wST.Ansatz,1,0)) -> 0
A95: =J95<>0 -> FALSE | E95: 0 | F95: =MAX(0,H95-E95) -> 0 | G95: =MAX(0,-H95+E95) -> 0 | H95: 0 | J95: =IF(C95=0,0,IF(VALUE(LEFT(C95,3))=wST.Ansatz,1,0)) -> 0
A96: =J96<>0 -> FALSE | E96: 0 | F96: =MAX(0,H96-E96) -> 0 | G96: =MAX(0,-H96+E96) -> 0 | H96: 0 | J96: =IF(C96=0,0,IF(VALUE(LEFT(C96,3))=wST.Ansatz,1,0)) -> 0
A97: =A92 -> FALSE | E97: 0 | H97: 0
A98: =A99 -> FALSE | B98: 14 | C98: VERBRAUCHSGÜTER, LEBENS- UND FUTTERMITTEL | E98: =E99 -> 0 | F98: =F99 -> 0 | G98: =G99 -> 0 | H98: =H99 -> 0
A99: =OR(A100:A102) -> FALSE | B99: 140 | C99: Verbrauchsgüter, Lebens- und Futtermittel | E99: =SUMPRODUCT(E100:E102,$J100:$J102) -> 0 | F99: =SUMPRODUCT(F100:F102,$J100:$J102) -> 0 | G99: =SUMPRODUCT(G100:G102,$J100:$J102) -> 0 | H99: =SUMPRODUCT(H100:H102,$J100:$J102) -> 0
A100: =J100<>0 -> FALSE | E100: 0 | F100: =MAX(0,H100-E100) -> 0 | G100: =MAX(0,-H100+E100) -> 0 | H100: 0 | J100: =IF(C100=0,0,IF(VALUE(LEFT(C100,3))=wST.Ansatz,1,0)) -> 0
A101: =J101<>0 -> FALSE | E101: 0 | F101: =MAX(0,H101-E101) -> 0 | G101: =MAX(0,-H101+E101) -> 0 | H101: 0 | J101: =IF(C101=0,0,IF(VALUE(LEFT(C101,3))=wST.Ansatz,1,0)) -> 0
A102: =J102<>0 -> FALSE | E102: 0 | F102: =MAX(0,H102-E102) -> 0 | G102: =MAX(0,-H102+E102) -> 0 | H102: 0 | J102: =IF(C102=0,0,IF(VALUE(LEFT(C102,3))=wST.Ansatz,1,0)) -> 0
A103: =A98 -> FALSE | E103: 0 | H103: 0
A104: =A105 -> FALSE | B104: 15 | C104: BETRIEBSSTOFFE UND SONSTIGE VERBRAUCHSGÜTER | E104: =E105 -> 0 | F104: =F105 -> 0 | G104: =G105 -> 0 | H104: =H105 -> 0
A105: =OR(A106:A108) -> FALSE | B105: 150 | C105: Betriebsstoffe und sonstige Verbrauchsgüter | E105: =SUMPRODUCT(E106:E108,$J106:$J108) -> 0 | F105: =SUMPRODUCT(F106:F108,$J106:$J108) -> 0 | G105: =SUMPRODUCT(G106:G108,$J106:$J108) -> 0 | H105: =SUMPRODUCT(H106:H108,$J106:$J108) -> 0
A106: =J106<>0 -> FALSE | E106: 0 | F106: =MAX(0,H106-E106) -> 0 | G106: =MAX(0,-H106+E106) -> 0 | H106: 0 | J106: =IF(C106=0,0,IF(VALUE(LEFT(C106,3))=wST.Ansatz,1,0)) -> 0
A107: =J107<>0 -> FALSE | E107: 0 | F107: =MAX(0,H107-E107) -> 0 | G107: =MAX(0,-H107+E107) -> 0 | H107: 0 | J107: =IF(C107=0,0,IF(VALUE(LEFT(C107,3))=wST.Ansatz,1,0)) -> 0
A108: =J108<>0 -> FALSE | E108: 0 | F108: =MAX(0,H108-E108) -> 0 | G108: =MAX(0,-H108+E108) -> 0 | H108: 0 | J108: =IF(C108=0,0,IF(VALUE(LEFT(C108,3))=wST.Ansatz,1,0)) -> 0
A109: =A104 -> FALSE | E109: 0 | H109: 0
A110: =A111 -> FALSE | B110: 16 | C110: ALTMATERIAL | E110: =E111 -> 0 | F110: =F111 -> 0 | G110: =G111 -> 0 | H110: =H111 -> 0
A111: =OR(A112:A114) -> FALSE | B111: 160 | C111: Altmaterial | E111: =SUMPRODUCT(E112:E114,$J112:$J114) -> 0 | F111: =SUMPRODUCT(F112:F114,$J112:$J114) -> 0 | G111: =SUMPRODUCT(G112:G114,$J112:$J114) -> 0 | H111: =SUMPRODUCT(H112:H114,$J112:$J114) -> 0
A112: =J112<>0 -> FALSE | E112: 0 | F112: =MAX(0,H112-E112) -> 0 | G112: =MAX(0,-H112+E112) -> 0 | H112: 0 | J112: =IF(C112=0,0,IF(VALUE(LEFT(C112,3))=wST.Ansatz,1,0)) -> 0
A113: =J113<>0 -> FALSE | E113: 0 | F113: =MAX(0,H113-E113) -> 0 | G113: =MAX(0,-H113+E113) -> 0 | H113: 0 | J113: =IF(C113=0,0,IF(VALUE(LEFT(C113,3))=wST.Ansatz,1,0)) -> 0
A114: =J114<>0 -> FALSE | E114: 0 | F114: =MAX(0,H114-E114) -> 0 | G114: =MAX(0,-H114+E114) -> 0 | H114: 0 | J114: =IF(C114=0,0,IF(VALUE(LEFT(C114,3))=wST.Ansatz,1,0)) -> 0
A115: =A110 -> FALSE | E115: 0 | H115: 0
A116: =A117 -> FALSE | B116: 17 | C116: ERZEUGNISSE | E116: =E117 -> 0 | F116: =F117 -> 0 | G116: =G117 -> 0 | H116: =H117 -> 0
A117: =OR(A118:A120) -> FALSE | B117: 170 | C117: Erzeugnisse | E117: =SUMPRODUCT(E118:E120,$J118:$J120) -> 0 | F117: =SUMPRODUCT(F118:F120,$J118:$J120) -> 0 | G117: =SUMPRODUCT(G118:G120,$J118:$J120) -> 0 | H117: =SUMPRODUCT(H118:H120,$J118:$J120) -> 0
A118: =J118<>0 -> FALSE | E118: 0 | F118: =MAX(0,H118-E118) -> 0 | G118: =MAX(0,-H118+E118) -> 0 | H118: 0 | J118: =IF(C118=0,0,IF(VALUE(LEFT(C118,3))=wST.Ansatz,1,0)) -> 0
A119: =J119<>0 -> FALSE | E119: 0 | F119: =MAX(0,H119-E119) -> 0 | G119: =MAX(0,-H119+E119) -> 0 | H119: 0 | J119: =IF(C119=0,0,IF(VALUE(LEFT(C119,3))=wST.Ansatz,1,0)) -> 0
A120: =J120<>0 -> FALSE | E120: 0 | F120: =MAX(0,H120-E120) -> 0 | G120: =MAX(0,-H120+E120) -> 0 | H120: 0 | J120: =IF(C120=0,0,IF(VALUE(LEFT(C120,3))=wST.Ansatz,1,0)) -> 0
A121: Ende

Sheet Eigenkapitalzinsen
A1: FALSE | B1: Ende
A2: FALSE | B2: Anlagen
A3: FALSE | B3: Ende
A4: TRUE | B4: =CONCATENATE("Eigenkapitalzinsen Wasserversorgung Rechnungsabschluss "&BAB!J12," KLR-Ebene: "&Info!C17) -> Eigenkapitalzinsen Wasserversorgung Rechnungsabschluss 2021 KLR-Ebene:
A5: TRUE
A6: TRUE | B6: Bestände (Aktiva, Passiva) | D6: =CONCATENATE("Bestände aus Vermögensrechnung per 31.12."&YEAR(wST.PeriodeEnde)&" exklusive Werte aus Registerblatt Anlagen *") -> Bestände aus Vermögensrechnung per 31.12.2021 exklusive Werte aus Registerblatt Anlagen * | E6: =CONCATENATE("Werte aus Registerblatt Anlagen / Schulden per 31.12."&YEAR(wST.PeriodeEnde)) -> Werte aus Registerblatt Anlagen / Schulden per 31.12.2021 | F6: Summe Bestände für Eigenkapitalverzinsung | H6: Zuordnung KLR *** | L6: Kontrolle Zuordnung
A7: TRUE | H7: Verteilung | I7: Gewinnung | J7: Verwaltung
A8: TRUE
A9: TRUE | B9: ="+ Buchwert Immaterielle Vermögenswerte und Sachanlagen " -> + Buchwert Immaterielle Vermögenswerte und Sachanlagen | E9: =Anlagen!W7+Anlagen!W69+Anlagen!W76+Anlagen!W90+Anlagen!W97+Anlagen!W109 -> 0 | F9: =+D9+E9 -> 0 | H9: =IF($E$9=0,0,$F$9*SUM(Anlagen!AE9:AE115)/$E$9) -> 0 | I9: =IF($E$9=0,0,$F$9*SUM(Anlagen!AF9:AF115)/$E$9) -> 0 | J9: =IF($E$9=0,0,$F$9*SUM(Anlagen!AG9:AG115)/$E$9) -> 0 | L9: =F9-H9-I9-J9 -> 0 | N9: =Anlagen!W97+Anlagen!W90+Anlagen!W76+Anlagen!W69+Anlagen!W7 -> 0 | O9: =Anlagen!S97+Anlagen!S90+Anlagen!S76+Anlagen!S69+Anlagen!S7 -> 0 | P9: =+O9/2+N9 -> 0
B10: ="+ Stand Forderungen Barwerte Finanzierungszuschüsse" -> + Stand Forderungen Barwerte Finanzierungszuschüsse | F10: =+D10+E10 -> 0 | H10: =IF(SUM($H$9:$J$9)=0,0,$F$10*H9/SUM($H$9:$J$9)) -> 0 | I10: =IF(SUM($H$9:$J$9)=0,0,$F$10*I9/SUM($H$9:$J$9)) -> 0 | J10: 0 | L10: =F10-H10-I10-J10 -> 0
A11: TRUE | B11: =" - Buchwert IZ / FZ (Vertragsbarwerte)" -> - Buchwert IZ / FZ (Vertragsbarwerte) | E11: =-(SUM(Anlagen!W119:W167)) -> 0 | F11: =+D11+E11 -> 0 | H11: =IF($E$11=0,0,-$F$11*(SUM(Anlagen!AE119:AE167))/$E$11) -> 0 | I11: =IF($E$11=0,0,-$F$11*(SUM(Anlagen!AF119:AF167))/$E$11) -> 0 | J11: =IF($E$11=0,0,-$F$11*(SUM(Anlagen!AG119:AG167))/$E$11) -> 0 | L11: =F11-H11-I11-J11 -> 0 | N11: =SUM(Anlagen!#REF!) ->  | O11: =SUM(Anlagen!#REF!) ->  | P11: =+O11/2+N11 -> 
A12: TRUE | B12: =" - Buchwert Interessentenbeiträge" -> - Buchwert Interessentenbeiträge | E12: =-(SUM(Anlagen!W171:W209)) -> 0 | F12: =+D12+E12 -> 0 | H12: =IF($E$12=0,0,-$F$12*(SUM(Anlagen!AE171:AE209))/$E$12) -> 0 | I12: =IF($E$12=0,0,-$F$12*(SUM(Anlagen!AF171:AF209))/$E$12) -> 0 | J12: =IF($E$12=0,0,-$F$12*(SUM(Anlagen!AG171:AG209))/$E$12) -> 0 | L12: =F12-H12-I12-J12 -> 0 | N12: =SUM(Anlagen!W111:W112) -> 0 | O12: =SUM(Anlagen!S111:S112) -> 0 | P12: =+O12/2+N12 -> 0
A13: TRUE | B13: =" - Schuldenstand Investitionsdarlehen und Leasing" -> - Schuldenstand Investitionsdarlehen und Leasing | E13: =-(Schulden!L17)-(Schulden!L8) -> 0 | F13: =+D13+E13 -> 0 | H13: =IF($E$13=0,0,-$F$13*(SUM(Schulden!T10:T70))/$E$13) -> 0 | I13: =IF($E$13=0,0,-$F$13*(SUM(Schulden!U10:U70))/$E$13) -> 0 | J13: =IF($E$13=0,0,-$F$13*(SUM(Schulden!V10:V70))/$E$13) -> 0 | L13: =F13-H13-I13-J13 -> 0 | N13: =Schulden!L17 -> 0 | O13: =Schulden!I17-Schulden!H17 -> 0 | P13: =+O13/2+N13 -> 0
A14: TRUE
A15: TRUE | B15: Basis für Eigenkapitalzinsen | D15: =SUM(D9:D13) -> 0 | E15: =SUM(E9:E13) -> 0 | F15: =SUM(F9:F13) -> 0 | H15: =SUM(H9:H13) -> 0 | I15: =SUM(I9:I13) -> 0 | J15: =SUM(J9:J13) -> 0
A16: TRUE
B17: Manuelle Aufteilung des Eigenkapitals nach Kostenstellen in EURO
A18: TRUE | B18: Eigenkapitalzinssatz ** und Eigenkapitalzinsen | D18: 0.0282 | F18: =+$F$15*$D$18 -> 0 | H18: =IF(AND(H17="",ISERROR(H15)),0,IF(H17="",H15*$D$18,$D$18*H17)) -> 0 | I18: =IF(AND(I17="",ISERROR(I15)),0,IF(I17="",I15*$D$18,$D$18*I17)) -> 0 | J18: 0
A19: Ende
B20: * Im Bereich der geförderten Siedlungswasserwirtschaft in der Steiermark sind die Immateriellen Vermögenswerte und die Sachanlagen sowie die Subventionen und Interessentenbeiträge verpflichtend vollständig im Registerblatt Anlagen zu erfassen. Im Bereich der geförderten Siedlungswasserwirtschaft in der Steiermark sind die Investitionsdarlehen und Leasing im Registerblatt Schulden ebenfalls verpflichtend vollständig zu erfassen. Unter diesen Voraussetzungen ist nur der Stand der Forderungen Barwerte Finanzierungszuschüsse aus der Vermögensrechnung in diese Spalte zu übertragen. | H20: *** Kostenstellenzuordnung für Werteübernahme aus Registerblatt Anlagen / Schulden erfolgt automatisiert; sonst manuelle Zuteilung in EURO erforderlich
B25: ** Durchschnitt der Emissionsrenditen von österreichischen Bundesanleihen (jährlicher Periodendurchschnitt) der letzten 25 Jahre (ÖWAV-Arbeitsbehelf 64).

Sheet Liquiditätsplan
A1: FALSE | B1: Ende | F1: TRUE | W1: verschieben
A2: FALSE | B2: Anlagen
A3: FALSE | B3: Ende | W3: Änd. p.a.
A4: TRUE
A5: TRUE | C5: =CONCATENATE("Liquiditätsplan Wasserversorgung Rechnungsabschluss "&BAB!J12," "&Info!C17 ) -> Liquiditätsplan Wasserversorgung Rechnungsabschluss 2021 | W5: =AVERAGE(Y6:AH6) -> 
A6: TRUE
A7: TRUE | W7: =AVERAGE(Y8:AH8) -> 
A8: TRUE | D8: Liquiditätsplan inkl. zukünftiger Investitonen berechnen | F8: ="Summe "&BAB!J12 -> Summe 2021 | J8: =BAB!J12+1 -> 2022 | K8: =J8+1 -> 2023 | L8: 2024 | M8: 2025 | N8: 2026 | O8: 2027 | P8: 2028 | Q8: 2029 | R8: 2030 | S8: 2031
C9: SU 31 | D9: Summe Einzahlungen operative Gebarung (SU 31) | F9: =+F10+F12+F15+F17+F18+F19 -> 0 | J9: =+J10+J12+J15+J17+J18+J19 -> 0 | K9: 0 | L9: 0 | M9: 0 | N9: 0 | O9: 0 | P9: 0 | Q9: 0 | R9: 0 | S9: 0 | W9: =AVERAGE(Y10:AH10) -> 
C10: 4.1 | D10: Einzahlungen aus Gebühren / Entgelten ohne zukünftige Investitionen | F10: =SUMIF(BÜB!$R$12:$R$26,C10,BÜB!$Q$12:$Q$26) -> 0 | J10: =F10*(1+J11) -> 0 | K10: =J14*(1+K11) -> 0 | L10: =K14*(1+L11) -> 0 | M10: =L14*(1+M11) -> 0 | N10: 0 | O10: 0 | P10: 0 | Q10: 0 | R10: 0 | S10: =R14*(1+S11) -> 0
B11: ="%" -> % | D11: jährliche Veränderung Einnahmen aus Gebühren geg. VJ % (ohne zukünftige Investitionen) | W11: =AVERAGE(Y15:AH15) -> 
B12: Plan absolut | D12: Erforderliche Gebührenveränderung - nach Umsetzung der geplanten Investitionen - absolut | J12: =IF(F1,(F10*(1+J13))-F10,0) -> 0 | K12: =IF($F$1,(J$14*(1+K$13))-J$14,0) -> 0 | L12: =IF($F$1,(K$14*(1+L$13))-K$14,0) -> 0 | M12: 0 | N12: 0 | O12: 0 | P12: 0 | Q12: 0 | R12: 0 | S12: 0
B13: Plan relativ | D13: Erforderliche Gebühreveränderung - nach Umsetzung der geplanten Investitionen - relativ
D14: Summe Einzahlungen aus Gebühren/Entgelten | J14: =+J12+J10 -> 0 | K14: =+K12+K10 -> 0 | L14: 0 | M14: 0 | N14: 0 | O14: 0 | P14: 0 | Q14: 0 | R14: 0 | S14: 0
C15: 4.2 | D15: Sonstige Einzahlungen | F15: =SUMIF(BÜB!$R$12:$R$26,C15,BÜB!$Q$12:$Q$26) -> 0 | J15: =F15*(1+J16) -> 0 | K15: =J15*(1+K16) -> 0 | L15: 0 | M15: 0 | N15: 0 | O15: 0 | P15: 0 | Q15: 0 | R15: 0 | S15: 0
B16: ="%" -> % | D16: jährliche Veränderung sonstige Einzahlungen / Einnahmen geg. VJ %
B17: Eintrag | C17: 4.3 | D17: Einzahlungen von Beiträgen in operativer Gebarung (zB Konto 850) | F17: =SUMIF(BÜB!$R$12:$R$26,C17,BÜB!$Q$12:$Q$26) -> 0
B18: Eintrag | C18: 4.4 | D18: Einzahlungen aus Zinsenzuschüssen FZ (Konto 860, 861) - Bestand | F18: =SUMIF(BÜB!$R$12:$R$26,C18,BÜB!$Q$12:$Q$26) -> 0
B19: Plan | D19: Geplante Zinsenzuschüsse FZ (Konto 860, 861 - noch nicht zugesichert) | J19: =IF(F1,'Investition-Finanzierung'!$L$23,0) -> 0 | K19: =IF(F1,'Investition-Finanzierung'!$M$23+'Investition-Finanzierung'!$L$48,0) -> 0 | L19: =IF(F1,'Investition-Finanzierung'!$N$23+'Investition-Finanzierung'!$M$48+'Investition-Finanzierung'!$L$73,0) -> 0 | M19: =IF(F1,'Investition-Finanzierung'!$O$23+'Investition-Finanzierung'!$N$48+'Investition-Finanzierung'!$M$73+'Investition-Finanzierung'!$L$98,0) -> 0 | N19: =IF(F1,'Investition-Finanzierung'!$P$23+'Investition-Finanzierung'!$O$48+'Investition-Finanzierung'!$N$73+'Investition-Finanzierung'!$M$98+'Investition-Finanzierung'!$L$123,0) -> 0 | O19: =IF(F1,'Investition-Finanzierung'!$Q$23+'Investition-Finanzierung'!$P$48+'Investition-Finanzierung'!$O$73+'Investition-Finanzierung'!$N$98+'Investition-Finanzierung'!$M$123+'Investition-Finanzierung'!$L$148,0) -> 0 | P19: =IF(F1,'Investition-Finanzierung'!$R$23+'Investition-Finanzierung'!$Q$48+'Investition-Finanzierung'!$P$73+'Investition-Finanzierung'!$O$98+'Investition-Finanzierung'!$N$123+'Investition-Finanzierung'!$M$148+'Investition-Finanzierung'!$L$173,0) -> 0 | Q19: =IF(F1,'Investition-Finanzierung'!$S$23+'Investition-Finanzierung'!$R$48+'Investition-Finanzierung'!$Q$73+'Investition-Finanzierung'!$P$98+'Investition-Finanzierung'!$O$123+'Investition-Finanzierung'!$N$148+'Investition-Finanzierung'!$M$173+'Investition-Finanzierung'!$L$198,0) -> 0 | R19: =IF(F1,'Investition-Finanzierung'!$T$23+'Investition-Finanzierung'!$S$48+'Investition-Finanzierung'!$R$73+'Investition-Finanzierung'!$Q$98+'Investition-Finanzierung'!$P$123+'Investition-Finanzierung'!$O$148+'Investition-Finanzierung'!$N$173+'Investition-Finanzierung'!$M$198+'Investition-Finanzierung'!$L$223,0) -> 0 | S19: =IF(F1,'Investition-Finanzierung'!$U$23+'Investition-Finanzierung'!$T$48+'Investition-Finanzierung'!$S$73+'Investition-Finanzierung'!$R$98+'Investition-Finanzierung'!$Q$123+'Investition-Finanzierung'!$P$148+'Investition-Finanzierung'!$O$173+'Investition-Finanzierung'!$N$198+'Investition-Finanzierung'!$M$223+'Investition-Finanzierung'!$L$248,0) -> 0
W20: =AVERAGE(#REF!) -> 
A21: TRUE | C21: SU 32 | D21: Summe Auszahlungen operative Gebarung (SU 32) | F21: =SUM(F22:F38) -> 0 | G21: =SUM(G22:G61) -> 0 | J21: =SUM(J22,J24,J26,J28,J30,J32,J34,J35,J37,J38) -> 0 | K21: 0 | L21: 0 | M21: 0 | N21: 0 | O21: 0 | P21: 0 | Q21: 0 | R21: 0 | S21: 0 | W21: =AVERAGE(Y22:AH22) -> 
A22: TRUE | C22: 1.1 | D22: Material und Stoffe (einschließlich Vorräte) | F22: =SUMIF(BÜB!$R$30:$R$78,C22,BÜB!$Q$30:$Q$78) -> 0 | J22: =F22*(1+J23) -> 0 | K22: =J22*(1+K23) -> 0 | L22: =K22*(1+L23) -> 0 | M22: =L22*(1+M23) -> 0 | N22: 0 | O22: 0 | P22: 0 | Q22: 0 | R22: 0 | S22: 0
A23: TRUE | B23: ="%" -> % | D23: jährliche Veränderung Material und Stoffe geg. VJ % | W23: =AVERAGE(Y24:AH24) -> 
A24: TRUE | C24: 1.2 | D24: Personal | F24: =SUMIF(BÜB!$R$30:$R$78,C24,BÜB!$Q$30:$Q$78) -> 0 | J24: =F24*(1+J25) -> 0 | K24: =J24*(1+K25) -> 0 | L24: 0 | M24: 0 | N24: 0 | O24: 0 | P24: 0 | Q24: 0 | R24: 0 | S24: 0
A25: TRUE | B25: ="%" -> % | D25: jährliche Veränderung Personal geg. VJ % | W25: =AVERAGE(Y26:AH26) -> 
A26: TRUE | C26: 1.3 | D26: Leistungen durch Dritte | F26: =SUMIF(BÜB!$R$30:$R$78,C26,BÜB!$Q$30:$Q$78) -> 0 | J26: =F26*(1+J27) -> 0 | K26: =J26*(1+K27) -> 0 | L26: 0 | M26: 0 | N26: 0 | O26: 0 | P26: 0 | Q26: 0 | R26: 0 | S26: 0
A27: TRUE | B27: ="%" -> % | D27: jährliche Veränderung Leistungen durch Dritte geg. VJ % | W27: =AVERAGE(Y28:AH28) -> 
A28: TRUE | C28: 1.4 | D28: Energie | F28: =SUMIF(BÜB!$R$30:$R$78,C28,BÜB!$Q$30:$Q$78) -> 0 | J28: =F28*(1+J29) -> 0 | K28: =J28*(1+K29) -> 0 | L28: 0 | M28: 0 | N28: 0 | O28: 0 | P28: 0 | Q28: 0 | R28: 0 | S28: 0
A29: TRUE | B29: ="%" -> % | D29: jährliche Veränderung Energie geg. VJ % | W29: =AVERAGE(Y30:AH30) -> 
A30: TRUE | C30: 1.5 | D30: Wasserbezug von Dritten | F30: =SUMIF(BÜB!$R$30:$R$78,C30,BÜB!$Q$30:$Q$78) -> 0 | J30: =F30*(1+J31) -> 0 | K30: =J30*(1+K31) -> 0 | L30: 0 | M30: 0 | N30: 0 | O30: 0 | P30: 0 | Q30: 0 | R30: 0 | S30: 0
A31: TRUE | B31: ="%" -> % | D31: jährliche Veränderung Entsorgung geg. VJ % | W31: =AVERAGE(Y32:AH32) -> 
A32: TRUE | C32: 1.6 | D32: Sonstiges für den Betrieb | F32: =SUMIF(BÜB!$R$30:$R$78,C32,BÜB!$Q$30:$Q$78) -> 0 | J32: =F32*(1+J33) -> 0 | K32: =J32*(1+K33) -> 0 | L32: 0 | M32: 0 | N32: 0 | O32: 0 | P32: 0 | Q32: 0 | R32: 0 | S32: 0
A33: TRUE | B33: ="%" -> % | D33: jährliche Veränderung sonstiges für den Betrieb geg. VJ %
D34: Veränderung Betriebskosten durch geplante Investitionen | J34: =IF(F1,'Investition-Finanzierung'!L28,0) -> 0 | K34: =IF(F1,'Investition-Finanzierung'!M28+'Investition-Finanzierung'!L53,) -> 0 | L34: =IF(F1,'Investition-Finanzierung'!N28+'Investition-Finanzierung'!M53+'Investition-Finanzierung'!L78,) -> 0 | M34: =IF(F1,'Investition-Finanzierung'!O28+'Investition-Finanzierung'!N53+'Investition-Finanzierung'!M78+'Investition-Finanzierung'!L103,0) -> 0 | N34: =IF(F1,'Investition-Finanzierung'!P28+'Investition-Finanzierung'!O53+'Investition-Finanzierung'!N78+'Investition-Finanzierung'!M103+'Investition-Finanzierung'!L128,0) -> 0 | O34: =IF(F1,'Investition-Finanzierung'!Q28+'Investition-Finanzierung'!P53+'Investition-Finanzierung'!O78+'Investition-Finanzierung'!N103+'Investition-Finanzierung'!M128+'Investition-Finanzierung'!L153,0) -> 0 | P34: =IF(F1,'Investition-Finanzierung'!R28+'Investition-Finanzierung'!Q53+'Investition-Finanzierung'!P78+'Investition-Finanzierung'!O103+'Investition-Finanzierung'!N128+'Investition-Finanzierung'!M153+'Investition-Finanzierung'!L178,0) -> 0 | Q34: =IF(F1,'Investition-Finanzierung'!S28+'Investition-Finanzierung'!R53+'Investition-Finanzierung'!Q78+'Investition-Finanzierung'!P103+'Investition-Finanzierung'!O128+'Investition-Finanzierung'!N153+'Investition-Finanzierung'!M178+'Investition-Finanzierung'!L203,0) -> 0 | R34: =IF(F1,'Investition-Finanzierung'!T28+'Investition-Finanzierung'!S53+'Investition-Finanzierung'!R78+'Investition-Finanzierung'!Q103+'Investition-Finanzierung'!P128+'Investition-Finanzierung'!O153+'Investition-Finanzierung'!N178+'Investition-Finanzierung'!M203+'Investition-Finanzierung'!L228,0) -> 0 | S34: =IF(F1,'Investition-Finanzierung'!U28+'Investition-Finanzierung'!T53+'Investition-Finanzierung'!S78+'Investition-Finanzierung'!R103+'Investition-Finanzierung'!Q128+'Investition-Finanzierung'!P153+'Investition-Finanzierung'!O178+'Investition-Finanzierung'!N203+'Investition-Finanzierung'!M228+'Investition-Finanzierung'!L253,0) -> 0
A35: TRUE | C35: 1.7 | D35: Transfers (Verbandsumlagen, Umlage an Eigenbetrieb etc.) | F35: =SUMIF(BÜB!$R$30:$R$78,C35,BÜB!$Q$30:$Q$78) -> 0 | J35: =F35*(1+J36) -> 0 | K35: =J35*(1+K36) -> 0 | L35: 0 | M35: 0 | N35: 0 | O35: 0 | P35: 0 | Q35: 0 | R35: 0 | S35: 0
A36: TRUE | B36: ="%" -> % | D36: jährliche Veränderung Transfers geg. VJ %
A37: TRUE | B37: Eintrag | C37: 2.2.2 | D37: Zinsen (Fremdmittel Bestand) | F37: =SUMIF(BÜB!$R$30:$R$78,C37,BÜB!$Q$30:$Q$78) -> 0
B38: Plan | D38: Zinsen (Darlehensaufnahme neu aus Investitionsplanung) | F38: 0 | J38: =IF(F1,'Investition-Finanzierung'!L14+'Investition-Finanzierung'!L27,0) -> 0 | K38: =IF(F1,'Investition-Finanzierung'!M14+'Investition-Finanzierung'!M27+'Investition-Finanzierung'!L39+'Investition-Finanzierung'!L52,0) -> 0 | L38: =IF(F1,'Investition-Finanzierung'!N14+'Investition-Finanzierung'!N27+'Investition-Finanzierung'!M39+'Investition-Finanzierung'!M52+'Investition-Finanzierung'!L64+'Investition-Finanzierung'!L77,0) -> 0 | M38: =IF(F1,'Investition-Finanzierung'!O14+'Investition-Finanzierung'!O27+'Investition-Finanzierung'!N39+'Investition-Finanzierung'!N52+'Investition-Finanzierung'!M64+'Investition-Finanzierung'!M77+'Investition-Finanzierung'!L89+'Investition-Finanzierung'!L102,0) -> 0 | N38: =IF(F1,'Investition-Finanzierung'!P14+'Investition-Finanzierung'!P27+'Investition-Finanzierung'!O39+'Investition-Finanzierung'!O52+'Investition-Finanzierung'!N64+'Investition-Finanzierung'!N77+'Investition-Finanzierung'!M89+'Investition-Finanzierung'!M102+'Investition-Finanzierung'!L114+'Investition-Finanzierung'!L127,0) -> 0 | O38: =IF(F1,'Investition-Finanzierung'!Q14+'Investition-Finanzierung'!Q27+'Investition-Finanzierung'!P39+'Investition-Finanzierung'!P52+'Investition-Finanzierung'!O64+'Investition-Finanzierung'!O77+'Investition-Finanzierung'!N89+'Investition-Finanzierung'!N102+'Investition-Finanzierung'!M114+'Investition-Finanzierung'!M127+'Investition-Finanzierung'!L139+'Investition-Finanzierung'!L152,0) -> 0 | P38: =IF(F1,'Investition-Finanzierung'!R14+'Investition-Finanzierung'!R27+'Investition-Finanzierung'!Q39+'Investition-Finanzierung'!Q52+'Investition-Finanzierung'!P64+'Investition-Finanzierung'!P77+'Investition-Finanzierung'!O89+'Investition-Finanzierung'!O102+'Investition-Finanzierung'!N114+'Investition-Finanzierung'!N127+'Investition-Finanzierung'!M139+'Investition-Finanzierung'!M152+'Investition-Finanzierung'!L164+'Investition-Finanzierung'!L177,0) -> 0 | Q38: =IF(F1,'Investition-Finanzierung'!S14+'Investition-Finanzierung'!S27+'Investition-Finanzierung'!R39+'Investition-Finanzierung'!R52+'Investition-Finanzierung'!Q64+'Investition-Finanzierung'!Q77+'Investition-Finanzierung'!P89+'Investition-Finanzierung'!P102+'Investition-Finanzierung'!O114+'Investition-Finanzierung'!O127+'Investition-Finanzierung'!N139+'Investition-Finanzierung'!N152+'Investition-Finanzierung'!M164+'Investition-Finanzierung'!M177+'Investition-Finanzierung'!L189+'Investition-Finanzierung'!L202,0) -> 0 | R38: =IF(F1,'Investition-Finanzierung'!T14+'Investition-Finanzierung'!T27+'Investition-Finanzierung'!S39+'Investition-Finanzierung'!S52+'Investition-Finanzierung'!R64+'Investition-Finanzierung'!R77+'Investition-Finanzierung'!Q89+'Investition-Finanzierung'!Q102+'Investition-Finanzierung'!P114+'Investition-Finanzierung'!P127+'Investition-Finanzierung'!O139+'Investition-Finanzierung'!O152+'Investition-Finanzierung'!N164+'Investition-Finanzierung'!N177+'Investition-Finanzierung'!M189+'Investition-Finanzierung'!M202+'Investition-Finanzierung'!L214+'Investition-Finanzierung'!L227,0) -> 0 | S38: =IF(F1,'Investition-Finanzierung'!U14+'Investition-Finanzierung'!U27+'Investition-Finanzierung'!T39+'Investition-Finanzierung'!T52+'Investition-Finanzierung'!S64+'Investition-Finanzierung'!S77+'Investition-Finanzierung'!R89+'Investition-Finanzierung'!R102+'Investition-Finanzierung'!Q114+'Investition-Finanzierung'!Q127+'Investition-Finanzierung'!P139+'Investition-Finanzierung'!P152+'Investition-Finanzierung'!O164+'Investition-Finanzierung'!O177+'Investition-Finanzierung'!N189+'Investition-Finanzierung'!N202+'Investition-Finanzierung'!M214+'Investition-Finanzierung'!M227+'Investition-Finanzierung'!L239+'Investition-Finanzierung'!L252,0) -> 0
C40: SA 1 | D40: Saldo (1) Geldfluss aus der operativen Gebarung (31 - 32) | F40: =+F9-F21 -> 0 | G40: =SUM(G41:G85) -> 0 | J40: =+J9-J21 -> 0 | K40: 0 | L40: 0 | M40: 0 | N40: 0 | O40: 0 | P40: 0 | Q40: 0 | R40: 0 | S40: 0
A41: TRUE | C41: MVAG 361 | D41: Auszahlung aus der Tilgung von Finanzschulden | F41: =BÜB!Q86 -> 0 | J41: =J59 -> 0 | K41: =K59 -> 0 | L41: 0 | M41: 0 | N41: 0 | O41: 0 | P41: 0 | Q41: 0 | R41: 0 | S41: 0
A42: TRUE | D42: Freie Finanzspitze (SA 1 - MVAG 361) | F42: =+F40-F41 -> 0 | J42: =+J40-J41 -> 0 | K42: =+K40-K41 -> 0 | L42: 0 | M42: 0 | N42: 0 | O42: 0 | P42: 0 | Q42: 0 | R42: 0 | S42: 0
A44: TRUE | C44: SU 33 | D44: Summe Einzahlungen investive Gebarung (SU 33) | F44: =BÜB!Q82 -> 0 | G44: =SUM(G50:G85) -> 0 | J44: =SUM(J45:J49) -> 0 | K44: 0 | L44: 0 | M44: 0 | N44: 0 | O44: 0 | P44: 0 | Q44: 0 | R44: 0 | S44: 0
B45: Plan | D45: Einzahlungen aus der Investitionstätigkeit (Veräußerung) | J45: =IF(F1,'Investition-Finanzierung'!E14,0) -> 0 | K45: =IF(F1,'Investition-Finanzierung'!E39,0) -> 0 | L45: =IF(F1,'Investition-Finanzierung'!E64,0) -> 0 | M45: =IF(F1,'Investition-Finanzierung'!E89,0) -> 0 | N45: =IF(F1,'Investition-Finanzierung'!E114,0) -> 0 | O45: =IF(F1,'Investition-Finanzierung'!E139,0) -> 0 | P45: =IF(F1,'Investition-Finanzierung'!E164,0) -> 0 | Q45: =IF(F1,'Investition-Finanzierung'!E189,0) -> 0 | R45: =IF(F1,'Investition-Finanzierung'!E214,0) -> 0 | S45: =IF(F1,'Investition-Finanzierung'!E239,0) -> 0
B46: Eintrag | D46: Laufende Einzahlungen aus Rückzahlung von gewährten Darlehen (extern)
B47: Plan | D47: Einzahlung Kapitaltransfers (Investitionszuschüsse, Interessentenbeiträge, Sonstiges) | J47: =IF(F1,'Investition-Finanzierung'!E15+'Investition-Finanzierung'!E16+'Investition-Finanzierung'!E17,0) -> 0 | K47: =IF(F1,'Investition-Finanzierung'!E40+'Investition-Finanzierung'!E41+'Investition-Finanzierung'!E42,0) -> 0 | L47: =IF(F1,'Investition-Finanzierung'!E65+'Investition-Finanzierung'!E66+'Investition-Finanzierung'!E67,0) -> 0 | M47: =IF(F1,'Investition-Finanzierung'!E90+'Investition-Finanzierung'!E91+'Investition-Finanzierung'!E92,0) -> 0 | N47: =IF(F1,'Investition-Finanzierung'!E115+'Investition-Finanzierung'!E116+'Investition-Finanzierung'!E117,0) -> 0 | O47: =IF(F1,'Investition-Finanzierung'!E140+'Investition-Finanzierung'!E141+'Investition-Finanzierung'!E142,0) -> 0 | P47: =IF(F1,'Investition-Finanzierung'!E165+'Investition-Finanzierung'!E166+'Investition-Finanzierung'!E167,0) -> 0 | Q47: =IF(F1,'Investition-Finanzierung'!E190+'Investition-Finanzierung'!E191+'Investition-Finanzierung'!E192,0) -> 0 | R47: =IF(F1,'Investition-Finanzierung'!E215+'Investition-Finanzierung'!E216+'Investition-Finanzierung'!E217,0) -> 0 | S47: =IF(F1,'Investition-Finanzierung'!E240+'Investition-Finanzierung'!E241+'Investition-Finanzierung'!E242,0) -> 0
B48: Eintrag | D48: Barwertzuschüsse FZ Bestand
B49: Plan | D49: Barwertzuschüsse FZ Planung | J49: =IF(F1,'Investition-Finanzierung'!L24,0) -> 0 | K49: =IF(F1,'Investition-Finanzierung'!M24+'Investition-Finanzierung'!L49,0) -> 0 | L49: =IF(F1,'Investition-Finanzierung'!N24+'Investition-Finanzierung'!M49+'Investition-Finanzierung'!L74,0) -> 0 | M49: =IF(F1,'Investition-Finanzierung'!O24+'Investition-Finanzierung'!N49+'Investition-Finanzierung'!M74+'Investition-Finanzierung'!L99,0) -> 0 | N49: =IF(F1,'Investition-Finanzierung'!P24+'Investition-Finanzierung'!O49+'Investition-Finanzierung'!N74+'Investition-Finanzierung'!M99+'Investition-Finanzierung'!L124,0) -> 0 | O49: =IF(F1,'Investition-Finanzierung'!Q24+'Investition-Finanzierung'!P49+'Investition-Finanzierung'!O74+'Investition-Finanzierung'!N99+'Investition-Finanzierung'!M124+'Investition-Finanzierung'!L149,0) -> 0 | P49: =IF(F1,'Investition-Finanzierung'!R24+'Investition-Finanzierung'!Q49+'Investition-Finanzierung'!P74+'Investition-Finanzierung'!O99+'Investition-Finanzierung'!N124+'Investition-Finanzierung'!M149+'Investition-Finanzierung'!L174,0) -> 0 | Q49: =IF(F1,'Investition-Finanzierung'!S24+'Investition-Finanzierung'!R49+'Investition-Finanzierung'!Q74+'Investition-Finanzierung'!P99+'Investition-Finanzierung'!O124+'Investition-Finanzierung'!N149+'Investition-Finanzierung'!M174+'Investition-Finanzierung'!L199,0) -> 0 | R49: =IF(F1,'Investition-Finanzierung'!T24+'Investition-Finanzierung'!S49+'Investition-Finanzierung'!R74+'Investition-Finanzierung'!Q99+'Investition-Finanzierung'!P124+'Investition-Finanzierung'!O149+'Investition-Finanzierung'!N174+'Investition-Finanzierung'!M199+'Investition-Finanzierung'!L224,0) -> 0 | S49: =IF(F1,'Investition-Finanzierung'!U24+'Investition-Finanzierung'!T49+'Investition-Finanzierung'!S74+'Investition-Finanzierung'!R99+'Investition-Finanzierung'!Q124+'Investition-Finanzierung'!P149+'Investition-Finanzierung'!O174+'Investition-Finanzierung'!N199+'Investition-Finanzierung'!M224+'Investition-Finanzierung'!L249,0) -> 0
C50: SU 34 | D50: Summe Auszahlungen investive Gebarung (SU 34) | F50: =BÜB!Q83 -> 0 | J50: =SUM(J51:J53) -> 0 | K50: =SUM(K51:K53) -> 0 | L50: 0 | M50: 0 | N50: 0 | O50: 0 | P50: 0 | Q50: 0 | R50: 0 | S50: 0
B51: Plan | D51: Auszahlungen aus der Investitionstätigkeit | J51: =IF(F1,'Investition-Finanzierung'!$E$12,0) -> 0 | K51: =IF(F1,'Investition-Finanzierung'!E37,0) -> 0 | L51: =IF(F1,'Investition-Finanzierung'!E62,0) -> 0 | M51: =IF(F1,'Investition-Finanzierung'!E87,0) -> 0 | N51: =IF(F1,'Investition-Finanzierung'!E112,0) -> 0 | O51: =IF(F1,'Investition-Finanzierung'!E137,0) -> 0 | P51: =IF(F1,'Investition-Finanzierung'!E162,0) -> 0 | Q51: =IF(F1,'Investition-Finanzierung'!E187,0) -> 0 | R51: =IF(F1,'Investition-Finanzierung'!E212,0) -> 0 | S51: =IF(F1,'Investition-Finanzierung'!E237,0) -> 0
B52: Eintrag | D52: Auszahlungen von gewährten Darlehen / Vorschüssen (extern)
A53: TRUE | B53: Plan | D53: Auszahlungen von Kapitaltransfers (kooperative Vorhaben) | J53: =IF(F1,'Investition-Finanzierung'!$E$13,0) -> 0 | K53: =IF(F1,'Investition-Finanzierung'!E38,0) -> 0 | L53: =IF(F1,'Investition-Finanzierung'!E63,0) -> 0 | M53: =IF(F1,'Investition-Finanzierung'!E88,0) -> 0 | N53: =IF(F1,'Investition-Finanzierung'!E113,0) -> 0 | O53: =IF(F1,'Investition-Finanzierung'!E138,0) -> 0 | P53: =IF(F1,'Investition-Finanzierung'!E163,0) -> 0 | Q53: =IF(F1,'Investition-Finanzierung'!E188,0) -> 0 | R53: =IF(F1,'Investition-Finanzierung'!E213,0) -> 0 | S53: =IF(F1,'Investition-Finanzierung'!E238,0) -> 0
A54: TRUE | C54: SA 2 | D54: Saldo (2) Geldfluss aus der Investiven Gebarung (33 - 34) | F54: =+F44-F50 -> 0 | G54: =SUM(G55:G85) -> 0 | J54: =+J44-J50 -> 0 | K54: =+K44-K50 -> 0 | L54: 0 | M54: 0 | N54: 0 | O54: 0 | P54: 0 | Q54: 0 | R54: 0 | S54: 0
A55: TRUE
A56: TRUE | C56: SA 3 | D56: Saldo (3) Nettofinanzierungssaldo (SA1 + SA2) | F56: =+F40+F54 -> 0 | G56: =SUM(G57:G85) -> 0 | J56: =+J40+J54 -> 0 | K56: 0 | L56: 0 | M56: 0 | N56: 0 | O56: 0 | P56: 0 | Q56: 0 | R56: 0 | S56: 0
A57: TRUE
A58: TRUE | C58: SU 35 | D58: Summe Einzahlungen aus der Finanzierungstätigkeit (SU 35) | F58: =BÜB!Q84 -> 0 | G58: =SUM(G61:G85) -> 0 | J58: =IF(F1,'Investition-Finanzierung'!$E$22+'Investition-Finanzierung'!$E$23,0) -> 0 | K58: =IF(F1,'Investition-Finanzierung'!E47+'Investition-Finanzierung'!E48,0) -> 0 | L58: =IF(F1,'Investition-Finanzierung'!E72+'Investition-Finanzierung'!E73,0) -> 0 | M58: =IF(F1,'Investition-Finanzierung'!E97+'Investition-Finanzierung'!E98,0) -> 0 | N58: =IF(F1,'Investition-Finanzierung'!E122+'Investition-Finanzierung'!E123,0) -> 0 | O58: =IF(F1,'Investition-Finanzierung'!E147+'Investition-Finanzierung'!E148,0) -> 0 | P58: =IF(F1,'Investition-Finanzierung'!E172+'Investition-Finanzierung'!E173,0) -> 0 | Q58: =IF(F1,'Investition-Finanzierung'!E197+'Investition-Finanzierung'!E198,0) -> 0 | R58: =IF(F1,'Investition-Finanzierung'!E222+'Investition-Finanzierung'!E223,0) -> 0 | S58: =IF(F1,'Investition-Finanzierung'!E247+'Investition-Finanzierung'!E248,0) -> 0
C59: SU 36 | D59: Summe Auszahlungen aus der Finanzierungstätigkeit (SU 36) | F59: =BÜB!Q85 -> 0 | J59: =+J60+J61 -> 0 | K59: =+K60+K61 -> 0 | L59: =+L60+L61 -> 0 | M59: 0 | N59: 0 | O59: 0 | P59: 0 | Q59: 0 | R59: 0 | S59: 0
B60: Eintrag | D60: davon Auszahlungen aus bestehenden Darlehen (Tilgung Bestand)
A61: TRUE | B61: Plan | D61: davon Auszahlungen aus Darlehen NEU (Tilgung geplante Darlehen) | J61: =IF(F1,'Investition-Finanzierung'!$L$15,0) -> 0 | K61: =IF(F1,'Investition-Finanzierung'!$M$15+'Investition-Finanzierung'!$L$40,0) -> 0 | L61: =IF(F1,'Investition-Finanzierung'!$N$15+'Investition-Finanzierung'!$M$40+'Investition-Finanzierung'!$L$65,0) -> 0 | M61: =IF(F1,'Investition-Finanzierung'!$O$15+'Investition-Finanzierung'!$N$40+'Investition-Finanzierung'!$M$65+'Investition-Finanzierung'!$L$90,0) -> 0 | N61: =IF(F1,'Investition-Finanzierung'!$P$15+'Investition-Finanzierung'!$O$40+'Investition-Finanzierung'!$N$65+'Investition-Finanzierung'!$M$90+'Investition-Finanzierung'!$L$115,0) -> 0 | O61: =IF(F1,'Investition-Finanzierung'!$Q$15+'Investition-Finanzierung'!$P$40+'Investition-Finanzierung'!$O$65+'Investition-Finanzierung'!$N$90+'Investition-Finanzierung'!$M$115+'Investition-Finanzierung'!$L$140,0) -> 0 | P61: =IF(F1,'Investition-Finanzierung'!$R$15+'Investition-Finanzierung'!$Q$40+'Investition-Finanzierung'!$P$65+'Investition-Finanzierung'!$O$90+'Investition-Finanzierung'!$N$115+'Investition-Finanzierung'!$M$140+'Investition-Finanzierung'!$L$165,0) -> 0 | Q61: =IF(F1,'Investition-Finanzierung'!$S$15+'Investition-Finanzierung'!$R$40+'Investition-Finanzierung'!$Q$65+'Investition-Finanzierung'!$P$90+'Investition-Finanzierung'!$O$115+'Investition-Finanzierung'!$N$140+'Investition-Finanzierung'!$M$165+'Investition-Finanzierung'!$L$190,0) -> 0 | R61: =IF(F1,'Investition-Finanzierung'!$T$15+'Investition-Finanzierung'!$S$40+'Investition-Finanzierung'!$R$65+'Investition-Finanzierung'!$Q$90+'Investition-Finanzierung'!$P$115+'Investition-Finanzierung'!$O$140+'Investition-Finanzierung'!$N$165+'Investition-Finanzierung'!$M$190+'Investition-Finanzierung'!$L$215,0) -> 0 | S61: =IF(F1,'Investition-Finanzierung'!$U$15+'Investition-Finanzierung'!$T$40+'Investition-Finanzierung'!$S$65+'Investition-Finanzierung'!$R$90+'Investition-Finanzierung'!$Q$115+'Investition-Finanzierung'!$P$140+'Investition-Finanzierung'!$O$165+'Investition-Finanzierung'!$N$190+'Investition-Finanzierung'!$M$215+'Investition-Finanzierung'!$L$240,0) -> 0
C62: SA 4 | D62: Saldo (4) Geldfluss aus der Finanzierungstätigkeit (35 - 36) | F62: =+F58-F59 -> 0 | G62: =SUM(G63:G85) -> 0 | J62: =+J58-J59 -> 0 | K62: =+K58-K59 -> 0 | L62: =+L58-L59 -> 0 | M62: 0 | N62: 0 | O62: 0 | P62: 0 | Q62: 0 | R62: 0 | S62: 0
C64: SA 5 | D64: Saldo (5) Geldfluss aus der voranschlagswirksamen Geb. (SA3 + SA4) | F64: =+F56+F62 -> 0 | G64: =SUM(G65:G85) -> 0 | J64: =+J62+J56 -> 0 | K64: =+K62+K56 -> 0 | L64: 0 | M64: 0 | N64: 0 | O64: 0 | P64: 0 | Q64: 0 | R64: 0 | S64: 0
B66: RL Bewegung | C66: Entnahmen von zweckgebundenen HH-Rücklagen (ZMR) für Investition | F66: =BÜB!F82+BÜB!F83 -> 0 | J66: =IF(F1,'Investition-Finanzierung'!$E$19,0) -> 0 | K66: =IF(F1,'Investition-Finanzierung'!E44,0) -> 0 | L66: =IF(F1,'Investition-Finanzierung'!E69,0) -> 0 | M66: =IF(F1,'Investition-Finanzierung'!E94,0) -> 0 | N66: =IF(F1,'Investition-Finanzierung'!E119,0) -> 0 | O66: =IF(F1,'Investition-Finanzierung'!E144,0) -> 0 | P66: =IF(F1,'Investition-Finanzierung'!E169,0) -> 0 | Q66: =IF(F1,'Investition-Finanzierung'!E194,0) -> 0 | R66: =IF(F1,'Investition-Finanzierung'!E219,0) -> 0 | S66: =IF(F1,'Investition-Finanzierung'!E244,0) -> 0
B67: Eintrag | C67: Zuweisung an HH-Rücklagen (ZMR) | F67: =(BÜB!F84+BÜB!F85)*-1 -> 0
C68: SA 5 +/- Rücklagen | F68: =+F64+F66-F67 -> 0 | J68: =+J64+J66-J67 -> 0 | K68: 0 | L68: 0 | M68: 0 | N68: 0 | O68: 0 | P68: 0 | Q68: 0 | R68: 0 | S68: 0
B70: Stand RL | C70: Stand HH Rücklagen per 31.12 | F70: =BÜB!Q87 -> 0 | J70: =F70-J66+J67 -> 0 | K70: =J70-K66+K67 -> 0 | L70: =K70-L66+L67 -> 0 | M70: 0 | N70: 0 | O70: 0 | P70: 0 | Q70: 0 | R70: 0 | S70: 0
B71: Stand ZMR | C71: davon Stand ZMR (Sparbuch, Sparkonto) per 31.12. | F71: =BÜB!Q88 -> 0 | J71: =F71-J66+J67-J73+J74 -> 0 | K71: =J71-K66+K67-K73+K74 -> 0 | L71: =K71-L66+L67-L73+L74 -> 0 | M71: 0 | N71: 0 | O71: 0 | P71: 0 | Q71: 0 | R71: 0 | S71: 0
B72: Stand IDL | C72: davon Stand vergebene Innere Darlehen per 31.12. | F72: =F70-F71 -> 0 | J72: =F72+J73-J74 -> 0 | K72: =J72+K73-K74 -> 0 | L72: =K72+L73-L74 -> 0 | M72: 0 | N72: 0 | O72: 0 | P72: 0 | Q72: 0 | R72: 0 | S72: 0
B73: Eintrag | C73: Neue Vergabe / Gewährung von Inneren Darlehen
B74: Eintrag | C74: Einzahlung aus der Rückzahlung vergebener / gewährter Innerer Darlehen an ZMR
B76: Aufnahme IDL | C76: Stand aufgenommenes / erhaltenes Inneres Darlehen | J76: =F76+J77-J78 -> 0 | K76: =J76+K77-K78 -> 0 | L76: =K76+L77-L78 -> 0 | M76: 0 | N76: 0 | O76: =N76+O77-O78 -> 0 | P76: 0 | Q76: 0 | R76: 0 | S76: 0
B77: Plan | C77: Neuaufnahme Innere Darlehen (von anderen Ansätzen) | J77: =IF(F1,'Investition-Finanzierung'!$E$24,0) -> 0 | K77: =IF(F1,'Investition-Finanzierung'!E49,0) -> 0 | L77: =IF(F1,'Investition-Finanzierung'!E74,0) -> 0 | M77: =IF(F1,'Investition-Finanzierung'!E99,0) -> 0 | N77: =IF(F1,'Investition-Finanzierung'!E124,0) -> 0 | O77: =IF(F1,'Investition-Finanzierung'!E149,0) -> 0 | P77: =IF(F1,'Investition-Finanzierung'!E174,0) -> 0 | Q77: =IF(F1,'Investition-Finanzierung'!E199,0) -> 0 | R77: =IF(F1,'Investition-Finanzierung'!E224,0) -> 0 | S77: =IF(F1,'Investition-Finanzierung'!E249,0) -> 0
B78: Plan | C78: Tilgung Innere Darlehen (Rückzahlung an andere Ansätze) | J78: =IF(F1,'Investition-Finanzierung'!$L$19,0) -> 0 | K78: =IF(F1,'Investition-Finanzierung'!$M$19+'Investition-Finanzierung'!$L$44,0) -> 0 | L78: =IF(F1,'Investition-Finanzierung'!$N$19+'Investition-Finanzierung'!$M$44+'Investition-Finanzierung'!$L$69,0) -> 0 | M78: =IF(F1,'Investition-Finanzierung'!$O$19+'Investition-Finanzierung'!$N$44+'Investition-Finanzierung'!$M$69+'Investition-Finanzierung'!$L$94,0) -> 0 | N78: =IF(F1,'Investition-Finanzierung'!$P$19+'Investition-Finanzierung'!$O$44+'Investition-Finanzierung'!$N$69+'Investition-Finanzierung'!$M$94+'Investition-Finanzierung'!$L$119,0) -> 0 | O78: =IF(F1,'Investition-Finanzierung'!$Q$19+'Investition-Finanzierung'!$P$44+'Investition-Finanzierung'!$O$69+'Investition-Finanzierung'!$N$94+'Investition-Finanzierung'!$M$119+'Investition-Finanzierung'!$L$144,0) -> 0 | P78: =IF(F1,'Investition-Finanzierung'!$R$19+'Investition-Finanzierung'!$Q$44+'Investition-Finanzierung'!$P$69+'Investition-Finanzierung'!$O$94+'Investition-Finanzierung'!$N$119+'Investition-Finanzierung'!$M$144+'Investition-Finanzierung'!$L$169,0) -> 0 | Q78: =IF(F1,'Investition-Finanzierung'!$S$19+'Investition-Finanzierung'!$R$44+'Investition-Finanzierung'!$Q$69+'Investition-Finanzierung'!$P$94+'Investition-Finanzierung'!$O$119+'Investition-Finanzierung'!$N$144+'Investition-Finanzierung'!$M$169+'Investition-Finanzierung'!$L$194,0) -> 0 | R78: =IF(F1,'Investition-Finanzierung'!$T$19+'Investition-Finanzierung'!$S$44+'Investition-Finanzierung'!$R$69+'Investition-Finanzierung'!$Q$94+'Investition-Finanzierung'!$P$119+'Investition-Finanzierung'!$O$144+'Investition-Finanzierung'!$N$169+'Investition-Finanzierung'!$M$194+'Investition-Finanzierung'!$L$219,0) -> 0 | S78: =IF(F1,'Investition-Finanzierung'!$U$19+'Investition-Finanzierung'!$T$44+'Investition-Finanzierung'!$S$69+'Investition-Finanzierung'!$R$94+'Investition-Finanzierung'!$Q$119+'Investition-Finanzierung'!$P$144+'Investition-Finanzierung'!$O$169+'Investition-Finanzierung'!$N$194+'Investition-Finanzierung'!$M$219+'Investition-Finanzierung'!$L$244,0) -> 0
B79: Plan | C79: Zinsen Innere Darlehen (Zahlung an andere Ansätze) | J79: =IF(F1,'Investition-Finanzierung'!$L$18,0) -> 0 | K79: =IF(F1,'Investition-Finanzierung'!$M$18+'Investition-Finanzierung'!$L$43,0) -> 0 | L79: =IF(F1,'Investition-Finanzierung'!$N$18+'Investition-Finanzierung'!$M$43+'Investition-Finanzierung'!$L$68,0) -> 0 | M79: =IF(F1,'Investition-Finanzierung'!$O$18+'Investition-Finanzierung'!$N$43+'Investition-Finanzierung'!$M$68+'Investition-Finanzierung'!$L$93,0) -> 0 | N79: =IF(F1,'Investition-Finanzierung'!$P$18+'Investition-Finanzierung'!$O$43+'Investition-Finanzierung'!$N$68+'Investition-Finanzierung'!$M$93+'Investition-Finanzierung'!$L$118,0) -> 0 | O79: =IF(F1,'Investition-Finanzierung'!$Q$18+'Investition-Finanzierung'!$P$43+'Investition-Finanzierung'!$O$68+'Investition-Finanzierung'!$N$93+'Investition-Finanzierung'!$M$118+'Investition-Finanzierung'!$L$143,0) -> 0 | P79: =IF(F1,'Investition-Finanzierung'!$R$18+'Investition-Finanzierung'!$Q$43+'Investition-Finanzierung'!$P$68+'Investition-Finanzierung'!$O$93+'Investition-Finanzierung'!$N$118+'Investition-Finanzierung'!$M$143+'Investition-Finanzierung'!$L$168,0) -> 0 | Q79: =IF(F1,'Investition-Finanzierung'!$S$18+'Investition-Finanzierung'!$R$43+'Investition-Finanzierung'!$Q$68+'Investition-Finanzierung'!$P$93+'Investition-Finanzierung'!$O$118+'Investition-Finanzierung'!$N$143+'Investition-Finanzierung'!$M$168+'Investition-Finanzierung'!$L$193,0) -> 0 | R79: =IF(F1,'Investition-Finanzierung'!$T$18+'Investition-Finanzierung'!$S$43+'Investition-Finanzierung'!$R$68+'Investition-Finanzierung'!$Q$93+'Investition-Finanzierung'!$P$118+'Investition-Finanzierung'!$O$143+'Investition-Finanzierung'!$N$168+'Investition-Finanzierung'!$M$193+'Investition-Finanzierung'!$L$218,0) -> 0 | S79: =IF(F1,'Investition-Finanzierung'!$U$18+'Investition-Finanzierung'!$T$43+'Investition-Finanzierung'!$S$68+'Investition-Finanzierung'!$R$93+'Investition-Finanzierung'!$Q$118+'Investition-Finanzierung'!$P$143+'Investition-Finanzierung'!$O$168+'Investition-Finanzierung'!$N$193+'Investition-Finanzierung'!$M$218+'Investition-Finanzierung'!$L$243,0) -> 0
B81: Geldmittel | C81: Giro- / Geldmittelstand Ansatz 850 (ohne ZMR) per 31.12. - p.a. | F81: 0 | J81: =J68+J77-J78-J79 -> 0 | K81: =K68+K77-K78-K79 -> 0 | L81: 0 | M81: 0 | N81: 0 | O81: 0 | P81: 0 | Q81: 0 | R81: 0 | S81: 0
B82: Geldmittel | C82: Giro- / Geldmittelstand Ansatz 850 (ohne ZMR) kumulativ per 31.12. | J82: =$F$82+J81 -> 0 | K82: =J82+K81 -> 0 | L82: =K82+L81 -> 0 | M82: 0 | N82: 0 | O82: 0 | P82: 0 | Q82: 0 | R82: 0 | S82: 0
A83: TRUE
A84: TRUE | C84: Liquide Mittel Ansatz 850 per 31.12. | F84: =F71+F82 -> 0 | J84: =J71+J82 -> 0 | K84: 0 | L84: 0 | M84: 0 | N84: 0 | O84: 0 | P84: 0 | Q84: 0 | R84: 0 | S84: 0
A85: TRUE

Sheet Erläuterungen
A1: =CONCATENATE("Erläuterungen Wasserversorgung Rechnungsabschluss "&BAB!J12," KLR-Ebene: "&Info!C17 ) -> Erläuterungen Wasserversorgung Rechnungsabschluss 2021 KLR-Ebene:
A3: Text

Sheet Investition-Finanzierung
A1: FALSE | B1: Ende | Y1: verschieben
A2: FALSE | B2: Anlagen
A3: FALSE | B3: Ende | Y3: Änd. p.a.
A4: TRUE | C4: =CONCATENATE("Investition-Finanzierung Wasserversorgung Rechnungsabschluss "&BAB!J12," KLR-Ebene: "&Info!C17) -> Investition-Finanzierung Wasserversorgung Rechnungsabschluss 2021 KLR-Ebene:
A5: TRUE
A6: TRUE | C6: (Re)Investitions- und Finanzierungspläne (10 Jahre) | L6: Ermittlung Liquiditätserfordernis aus Investitions- und Finanzierungsplanung
A7: TRUE
A8: TRUE | C8: Investitions- und Finanzierungsplan | F8: =YEAR(Info!G17)+1 -> 2022 | I8: Finanzschulden | L8: =+F8 -> 2022 | M8: =L8+1 -> 2023 | N8: 2024 | O8: 2025 | P8: 2026 | Q8: 2027 | R8: 2028 | S8: 2029 | T8: 2030 | U8: 2031
A9: TRUE | C9: Neuerrichtung, Erweiterung
C10: Leitungskataster | I10: DL1 | J10: Zinsen | L10: =IF(AND(L8>$F8,L8<($F8+$F22+1)),IPMT($G22,L8-$F8,$F22,-$E22),0) -> 0 | M10: =IF(AND(M8>$F8,M8<($F8+$F22+1)),IPMT($G22,M8-$F8,$F22,-$E22),0) -> 0 | N10: =IF(AND(N8>$F8,N8<($F8+$F22+1)),IPMT($G22,N8-$F8,$F22,-$E22),0) -> 0 | O10: =IF(AND(O8>$F8,O8<($F8+$F22+1)),IPMT($G22,O8-$F8,$F22,-$E22),0) -> 0 | P10: =IF(AND(P8>$F8,P8<($F8+$F22+1)),IPMT($G22,P8-$F8,$F22,-$E22),0) -> 0 | Q10: =IF(AND(Q8>$F8,Q8<($F8+$F22+1)),IPMT($G22,Q8-$F8,$F22,-$E22),0) -> 0 | R10: 0 | S10: 0 | T10: 0 | U10: 0
C11: Sanierung / Anpassung | J11: Tilgung | L11: =IF(AND(L8>$F8,L8<($F8+$F22+1)), PPMT($G22,L8-$F8,$F22,-$E22),0) -> 0 | M11: =IF(AND(M8>$F8,M8<($F8+$F22+1)), PPMT($G22,M8-$F8,$F22,-$E22),0) -> 0 | N11: =IF(AND(N8>$F8,N8<($F8+$F22+1)), PPMT($G22,N8-$F8,$F22,-$E22),0) -> 0 | O11: =IF(AND(O8>$F8,O8<($F8+$F22+1)), PPMT($G22,O8-$F8,$F22,-$E22),0) -> 0 | P11: =IF(AND(P8>$F8,P8<($F8+$F22+1)), PPMT($G22,P8-$F8,$F22,-$E22),0) -> 0 | Q11: 0 | R11: 0 | S11: 0 | T11: 0 | U11: 0
C12: Summe Auszahlung aus der Investitonstätigkeit | E12: =SUM(E9:E11) -> 0 | I12: DL2 | J12: Zinsen | L12: =IF(AND(L8>$F8,L8<($F8+$F23+1)),IPMT($G23,L8-$F8,$F23,-$E23),0) -> 0 | M12: =IF(AND(M8>$F8,M8<($F8+$F23+1)),IPMT($G23,M8-$F8,$F23,-$E23),0) -> 0 | N12: =IF(AND(N8>$F8,N8<($F8+$F23+1)),IPMT($G23,N8-$F8,$F23,-$E23),0) -> 0 | O12: =IF(AND(O8>$F8,O8<($F8+$F23+1)),IPMT($G23,O8-$F8,$F23,-$E23),0) -> 0 | P12: 0 | Q12: 0 | R12: 0 | S12: 0 | T12: 0 | U12: 0
C13: Auszahlung von Kapitaltransfers (zB kooperative Vorhaben) | J13: Tilgung | L13: =IF(AND(L8>$F8,L8<($F8+$F23+1)),PPMT($G23,L8-$F8,$F23,-$E23),0) -> 0 | M13: =IF(AND(M8>$F8,M8<($F8+$F23+1)),PPMT($G23,M8-$F8,$F23,-$E23),0) -> 0 | N13: 0 | O13: 0 | P13: 0 | Q13: 0 | R13: 0 | S13: 0 | T13: 0 | U13: 0
C14: Einzahlung aus der Investitonstätigkeit (Veräußerungen) | I14: Summe Zinsen DL1+DL2 | L14: =+L10+L12 -> 0 | M14: =+M10+M12 -> 0 | N14: 0 | O14: 0 | P14: 0 | Q14: 0 | R14: 0 | S14: 0 | T14: 0 | U14: 0
A15: TRUE | C15: Einzahlung Kapitaltransfers (IZ Investitionszuschüsse) | I15: Summe Tilgung DL1+DL2 | L15: =+L11+L13 -> 0 | M15: 0 | N15: 0 | O15: 0 | P15: 0 | Q15: 0 | R15: 0 | S15: 0 | T15: 0 | U15: 0
C16: Einzahlung Kapitaltransfers (Interessentenbeiträge)
C17: Einzahlung Kapitaltransfers (Sonstiges) | I17: Inneres Darlehen
C18: Mittel aus OGB für Investitionen (Überschuss nach freier Finanzspitze) | I18: Zinsen Inneres Darlehen IDL | L18: =IF(AND(L8>$F8,L8<($F8+$F24+1)),IPMT($G24,L8-$F8,$F24,-$E24),0) -> 0 | M18: =IF(AND(M8>$F8,M8<($F8+$F24+1)),IPMT($G24,M8-$F8,$F24,-$E24),0) -> 0 | N18: 0 | O18: 0 | P18: 0 | Q18: 0 | R18: 0 | S18: 0 | T18: 0 | U18: 0
A19: TRUE | C19: Entnahmen aus Rücklagen (ZMR) | I19: Tilgung Inneres Darlehen IDL | L19: =IF(AND(L8>$F8,L8<($F8+$F24+1)),PPMT($G24,L8-$F8,$F24,-$E24),0) -> 0 | M19: =IF(AND(M8>$F8,M8<($F8+$F24+1)),PPMT($G24,M8-$F8,$F24,-$E24),0) -> 0 | N19: 0 | O19: 0 | P19: 0 | Q19: 0 | R19: 0 | S19: 0 | T19: 0 | U19: 0
A20: TRUE | C20: Einzahlung aus vorhandenen zweckgebundenen Girokonten
F21: LZ in J | G21: Zinssatz | I21: Finanzierungszuschüsse
C22: Einzahlung aus Darlehensaufnahme 1 (DL1) / (Finanzierungsleasing) | I22: Perioden Zahlung
A23: TRUE | C23: Einzahlung aus Darlehensaufnahme 2 (DL2) / (Finanzierungsleasing) | I23: FZ Zi | J23: Zinsenzuschuss | L23: =IF(L8>$F8,IF(ISERROR(IPMT($G27,L8-$F8,$F27,-$E27)),0,IPMT($G27,L8-$F8,$F27,-$E27)),0) -> 0 | M23: =IF(M8>$F8,IF(ISERROR(IPMT($G27,M8-$F8,$F27,-$E27)),0,IPMT($G27,M8-$F8,$F27,-$E27)),0) -> 0 | N23: =IF(N8>$F8,IF(ISERROR(IPMT($G27,N8-$F8,$F27,-$E27)),0,IPMT($G27,N8-$F8,$F27,-$E27)),0) -> 0 | O23: 0 | P23: 0 | Q23: 0 | R23: 0 | S23: 0 | T23: 0 | U23: 0
C24: Einzahlung aus Aufnahme Inneres Darlehen (IDL) | I24: FZ Bw | J24: Bw Zuschuss | L24: =IF(L8>$F8,IF(ISERROR(PPMT($G27,L8-$F8,$F27,-$E27)),0,PPMT($G27,L8-$F8,$F27,-$E27)),0) -> 0 | M24: =IF(M8>$F8,IF(ISERROR(PPMT($G27,M8-$F8,$F27,-$E27)),0,PPMT($G27,M8-$F8,$F27,-$E27)),0) -> 0 | N24: 0 | O24: 0 | P24: 0 | Q24: 0 | R24: 0 | S24: 0 | T24: 0 | U24: 0
A25: TRUE | C25: Schlüssige Finanzierung | E25: =-E12-E13+E14+E15+E16+E17+E18+E19+E20+E22+E23+E24 -> 0 | I25: Summe Zuschuss FZ | L25: =+L24+L23 -> 0 | M25: 0 | N25: 0 | O25: 0 | P25: 0 | Q25: 0 | R25: 0 | S25: 0 | T25: 0 | U25: 0
F26: LZ FZ in J | G26: Barwertzinssatz
C27: Finanzierungszusch. FZ (lt. Förderv.) - Zwischenfinanzierung erforderlich | I27: Bauzinsen (DL1 + DL2) | L27: =+F28 -> 0
C28: Bauzinsen während der Bauphase | E28: (DL1 + DL2) / 2 * Zinssatz | F28: =+(E23+E22)/2*G28 -> 0 | I28: Betriebskosten | L28: 0 | M28: =+E29 -> 0 | N28: =M28*(1+G29) -> 0 | O28: =N28*(1+G29) -> 0 | P28: =O28*(1+G29) -> 0 | Q28: =P28*(1+G29) -> 0 | R28: =Q28*(1+G29) -> 0 | S28: =R28*(1+G29) -> 0 | T28: =S28*(1+G29) -> 0 | U28: =T28*(1+G29) -> 0
A29: TRUE | C29: Betriebskostenveränderung (+/-) durch Invest. | F29: Steigerung p.a.
C31: Liquiditätserfordernis aus Investitionstätigkeit (ohne Rückzahlung Inneres Darlehen) | I31: SU | L31: =L14+L15-L25+L27+L28 -> 0 | M31: 0 | N31: 0 | O31: 0 | P31: 0 | Q31: 0 | R31: 0 | S31: 0 | T31: 0 | U31: 0
A32: TRUE
A33: TRUE | C33: Investitions- und Finanzierungsplan | F33: =F8+1 -> 2023 | I33: Finanzschulden | L33: =+F33 -> 2023 | M33: =L33+1 -> 2024 | N33: =M33+1 -> 2025 | O33: =N33+1 -> 2026 | P33: =O33+1 -> 2027 | Q33: =P33+1 -> 2028 | R33: =Q33+1 -> 2029 | S33: =R33+1 -> 2030 | T33: =S33+1 -> 2031 | U33: =T33+1 -> 2032
A34: TRUE | C34: Neuerrichtung, Erweiterung
C35: Leitungskataster | I35: DL1 | J35: Zinsen | L35: =IF(AND(L33>$F33,L33<($F33+$F47+1)),IPMT($G47,L33-$F33,$F47,-$E47),0) -> 0 | M35: =IF(AND(M33>$F33,M33<($F33+$F47+1)),IPMT($G47,M33-$F33,$F47,-$E47),0) -> 0 | N35: =IF(AND(N33>$F33,N33<($F33+$F47+1)),IPMT($G47,N33-$F33,$F47,-$E47),0) -> 0 | O35: =IF(AND(O33>$F33,O33<($F33+$F47+1)),IPMT($G47,O33-$F33,$F47,-$E47),0) -> 0 | P35: =IF(AND(P33>$F33,P33<($F33+$F47+1)),IPMT($G47,P33-$F33,$F47,-$E47),0) -> 0 | Q35: =IF(AND(Q33>$F33,Q33<($F33+$F47+1)),IPMT($G47,Q33-$F33,$F47,-$E47),0) -> 0 | R35: 0 | S35: 0 | T35: 0 | U35: 0
C36: Sanierung / Anpassung | J36: Tilgung | L36: =IF(AND(L33>$F33,L33<($F33+$F47+1)), PPMT($G47,L33-$F33,$F47,-$E47),0) -> 0 | M36: =IF(AND(M33>$F33,M33<($F33+$F47+1)), PPMT($G47,M33-$F33,$F47,-$E47),0) -> 0 | N36: =IF(AND(N33>$F33,N33<($F33+$F47+1)), PPMT($G47,N33-$F33,$F47,-$E47),0) -> 0 | O36: =IF(AND(O33>$F33,O33<($F33+$F47+1)), PPMT($G47,O33-$F33,$F47,-$E47),0) -> 0 | P36: =IF(AND(P33>$F33,P33<($F33+$F47+1)), PPMT($G47,P33-$F33,$F47,-$E47),0) -> 0 | Q36: 0 | R36: 0 | S36: 0 | T36: 0 | U36: 0
C37: Summe Auszahlung aus der Investitonstätigkeit | E37: =SUM(E34:E36) -> 0 | I37: DL2 | J37: Zinsen | L37: =IF(AND(L33>$F33,L33<($F33+$F48+1)),IPMT($G48,L33-$F33,$F48,-$E48),0) -> 0 | M37: =IF(AND(M33>$F33,M33<($F33+$F48+1)),IPMT($G48,M33-$F33,$F48,-$E48),0) -> 0 | N37: =IF(AND(N33>$F33,N33<($F33+$F48+1)),IPMT($G48,N33-$F33,$F48,-$E48),0) -> 0 | O37: =IF(AND(O33>$F33,O33<($F33+$F48+1)),IPMT($G48,O33-$F33,$F48,-$E48),0) -> 0 | P37: 0 | Q37: 0 | R37: 0 | S37: 0 | T37: 0 | U37: 0
C38: Auszahlung von Kapitaltransfers (zB kooperative Vorhaben) | J38: Tilgung | L38: =IF(AND(L33>$F33,L33<($F33+$F48+1)),PPMT($G48,L33-$F33,$F48,-$E48),0) -> 0 | M38: =IF(AND(M33>$F33,M33<($F33+$F48+1)),PPMT($G48,M33-$F33,$F48,-$E48),0) -> 0 | N38: 0 | O38: 0 | P38: 0 | Q38: 0 | R38: 0 | S38: 0 | T38: 0 | U38: 0
C39: Einzahlung aus der Investitonstätigkeit (Veräußerungen) | I39: Summe Zinsen DL1+DL2 | L39: =+L35+L37 -> 0 | M39: =+M35+M37 -> 0 | N39: 0 | O39: 0 | P39: 0 | Q39: 0 | R39: 0 | S39: 0 | T39: 0 | U39: 0
A40: TRUE | C40: Einzahlung Kapitaltransfers (IZ Investitionszuschüsse) | I40: Summe Tilgung DL1+DL2 | L40: =+L36+L38 -> 0 | M40: =+M36+M38 -> 0 | N40: 0 | O40: 0 | P40: 0 | Q40: 0 | R40: 0 | S40: 0 | T40: 0 | U40: 0
C41: Einzahlung Kapitaltransfers (Interessentenbeiträge)
C42: Einzahlung Kapitaltransfers (Sonstiges) | I42: Inneres Darlehen
C43: Mittel aus OGB für Investitionen (Überschuss nach freier Finanzspitze) | I43: Zinsen Inneres Darlehen IDL | L43: =IF(AND(L33>$F33,L33<($F33+$F49+1)),IPMT($G49,L33-$F33,$F49,-$E49),0) -> 0 | M43: =IF(AND(M33>$F33,M33<($F33+$F49+1)),IPMT($G49,M33-$F33,$F49,-$E49),0) -> 0 | N43: 0 | O43: 0 | P43: 0 | Q43: 0 | R43: 0 | S43: 0 | T43: 0 | U43: 0
A44: TRUE | C44: Entnahmen aus Rücklagen (ZMR) | I44: Tilgung Inneres Darlehen IDL | L44: =IF(AND(L33>$F33,L33<($F33+$F49+1)),PPMT($G49,L33-$F33,$F49,-$E49),0) -> 0 | M44: =IF(AND(M33>$F33,M33<($F33+$F49+1)),PPMT($G49,M33-$F33,$F49,-$E49),0) -> 0 | N44: 0 | O44: 0 | P44: 0 | Q44: 0 | R44: 0 | S44: 0 | T44: 0 | U44: 0
A45: TRUE | C45: Einzahlung aus vorhandenen zweckgebundenen Girokonten
F46: LZ in J | G46: Zinssatz | I46: Finanzierungszuschüsse
C47: Einzahlung aus Darlehensaufnahme 1 (DL1) / (Finanzierungsleasing) | I47: Perioden Zahlung
A48: TRUE | C48: Einzahlung aus Darlehensaufnahme 2 (DL2) / (Finanzierungsleasing) | I48: FZ Zi | J48: Zinsenzuschuss | L48: =IF(L33>$F33,IF(ISERROR(IPMT($G52,L33-$F33,$F52,-$E52)),0,IPMT($G52,L33-$F33,$F52,-$E52)),0) -> 0 | M48: =IF(M33>$F33,IF(ISERROR(IPMT($G52,M33-$F33,$F52,-$E52)),0,IPMT($G52,M33-$F33,$F52,-$E52)),0) -> 0 | N48: =IF(N33>$F33,IF(ISERROR(IPMT($G52,N33-$F33,$F52,-$E52)),0,IPMT($G52,N33-$F33,$F52,-$E52)),0) -> 0 | O48: 0 | P48: 0 | Q48: 0 | R48: 0 | S48: 0 | T48: 0 | U48: 0
C49: Einzahlung aus Aufnahme Inneres Darlehen (IDL) | I49: FZ Bw | J49: Bw Zuschuss | L49: =IF(L33>$F33,IF(ISERROR(PPMT($G52,L33-$F33,$F52,-$E52)),0,PPMT($G52,L33-$F33,$F52,-$E52)),0) -> 0 | M49: =IF(M33>$F33,IF(ISERROR(PPMT($G52,M33-$F33,$F52,-$E52)),0,PPMT($G52,M33-$F33,$F52,-$E52)),0) -> 0 | N49: 0 | O49: 0 | P49: 0 | Q49: 0 | R49: 0 | S49: 0 | T49: 0 | U49: 0
A50: TRUE | C50: Schlüssige Finanzierung | E50: =-E37-E38+E39+E40+E41+E42+E43+E44+E45+E47+E48+E49 -> 0 | I50: Summe Zuschuss FZ | L50: =+L49+L48 -> 0 | M50: 0 | N50: 0 | O50: 0 | P50: 0 | Q50: 0 | R50: 0 | S50: 0 | T50: 0 | U50: 0
F51: LZ FZ in J | G51: Barwertzinssatz
C52: Finanzierungszusch. FZ (lt. Förderv.) - Zwischenfinanzierung erforderlich | I52: Bauzinsen (DL1 + DL2) | L52: =+F53 -> 0
C53: Bauzinsen während der Bauphase | E53: (DL1 + DL2) / 2 * Zinssatz | F53: =+(E48+E47)/2*G53 -> 0 | I53: Betriebskosten | L53: 0 | M53: =+E54 -> 0 | N53: =M53*(1+G54) -> 0 | O53: =N53*(1+G54) -> 0 | P53: =O53*(1+G54) -> 0 | Q53: =P53*(1+G54) -> 0 | R53: =Q53*(1+G54) -> 0 | S53: =R53*(1+G54) -> 0 | T53: =S53*(1+G54) -> 0 | U53: =T53*(1+G54) -> 0
A54: TRUE | C54: Betriebskostenveränderung (+/-) durch Invest. | F54: Steigerung p.a.
C56: Liquiditätserfordernis aus Investitionstätigkeit (ohne Rückzahlung Inneres Darlehen) | I56: SU | L56: =L39+L40-L50+L52+L53 -> 0 | M56: 0 | N56: 0 | O56: 0 | P56: 0 | Q56: 0 | R56: 0 | S56: 0 | T56: 0 | U56: 0
A57: TRUE
A58: TRUE | C58: Investitions- und Finanzierungsplan | F58: =F33+1 -> 2024 | I58: Finanzschulden | L58: =+F58 -> 2024 | M58: =L58+1 -> 2025 | N58: =M58+1 -> 2026 | O58: =N58+1 -> 2027 | P58: =O58+1 -> 2028 | Q58: =P58+1 -> 2029 | R58: =Q58+1 -> 2030 | S58: =R58+1 -> 2031 | T58: =S58+1 -> 2032 | U58: =T58+1 -> 2033
A59: TRUE | C59: Neuerrichtung, Erweiterung
C60: Leitungskataster | I60: DL1 | J60: Zinsen | L60: =IF(AND(L58>$F58,L58<($F58+$F72+1)),IPMT($G72,L58-$F58,$F72,-$E72),0) -> 0 | M60: =IF(AND(M58>$F58,M58<($F58+$F72+1)),IPMT($G72,M58-$F58,$F72,-$E72),0) -> 0 | N60: =IF(AND(N58>$F58,N58<($F58+$F72+1)),IPMT($G72,N58-$F58,$F72,-$E72),0) -> 0 | O60: =IF(AND(O58>$F58,O58<($F58+$F72+1)),IPMT($G72,O58-$F58,$F72,-$E72),0) -> 0 | P60: =IF(AND(P58>$F58,P58<($F58+$F72+1)),IPMT($G72,P58-$F58,$F72,-$E72),0) -> 0 | Q60: =IF(AND(Q58>$F58,Q58<($F58+$F72+1)),IPMT($G72,Q58-$F58,$F72,-$E72),0) -> 0 | R60: 0 | S60: 0 | T60: 0 | U60: 0
C61: Sanierung / Anpassung | J61: Tilgung | L61: =IF(AND(L58>$F58,L58<($F58+$F72+1)), PPMT($G72,L58-$F58,$F72,-$E72),0) -> 0 | M61: =IF(AND(M58>$F58,M58<($F58+$F72+1)), PPMT($G72,M58-$F58,$F72,-$E72),0) -> 0 | N61: =IF(AND(N58>$F58,N58<($F58+$F72+1)), PPMT($G72,N58-$F58,$F72,-$E72),0) -> 0 | O61: =IF(AND(O58>$F58,O58<($F58+$F72+1)), PPMT($G72,O58-$F58,$F72,-$E72),0) -> 0 | P61: =IF(AND(P58>$F58,P58<($F58+$F72+1)), PPMT($G72,P58-$F58,$F72,-$E72),0) -> 0 | Q61: 0 | R61: 0 | S61: 0 | T61: 0 | U61: 0
C62: Summe Auszahlung aus der Investitonstätigkeit | E62: =SUM(E59:E61) -> 0 | I62: DL2 | J62: Zinsen | L62: =IF(AND(L58>$F58,L58<($F58+$F73+1)),IPMT($G73,L58-$F58,$F73,-$E73),0) -> 0 | M62: =IF(AND(M58>$F58,M58<($F58+$F73+1)),IPMT($G73,M58-$F58,$F73,-$E73),0) -> 0 | N62: =IF(AND(N58>$F58,N58<($F58+$F73+1)),IPMT($G73,N58-$F58,$F73,-$E73),0) -> 0 | O62: =IF(AND(O58>$F58,O58<($F58+$F73+1)),IPMT($G73,O58-$F58,$F73,-$E73),0) -> 0 | P62: 0 | Q62: 0 | R62: 0 | S62: 0 | T62: 0 | U62: 0
C63: Auszahlung von Kapitaltransfers (zB kooperative Vorhaben) | J63: Tilgung | L63: =IF(AND(L58>$F58,L58<($F58+$F73+1)),PPMT($G73,L58-$F58,$F73,-$E73),0) -> 0 | M63: =IF(AND(M58>$F58,M58<($F58+$F73+1)),PPMT($G73,M58-$F58,$F73,-$E73),0) -> 0 | N63: 0 | O63: 0 | P63: 0 | Q63: 0 | R63: 0 | S63: 0 | T63: 0 | U63: 0
C64: Einzahlung aus der Investitonstätigkeit (Veräußerungen) | I64: Summe Zinsen DL1+DL2 | L64: =+L60+L62 -> 0 | M64: =+M60+M62 -> 0 | N64: 0 | O64: 0 | P64: 0 | Q64: 0 | R64: 0 | S64: 0 | T64: 0 | U64: 0
A65: TRUE | C65: Einzahlung Kapitaltransfers (IZ Investitionszuschüsse) | I65: Summe Tilgung DL1+DL2 | L65: =+L61+L63 -> 0 | M65: =+M61+M63 -> 0 | N65: 0 | O65: 0 | P65: 0 | Q65: 0 | R65: 0 | S65: 0 | T65: 0 | U65: 0
C66: Einzahlung Kapitaltransfers (Interessentenbeiträge)
C67: Einzahlung Kapitaltransfers (Sonstiges) | I67: Inneres Darlehen
C68: Mittel aus OGB für Investitionen (Überschuss nach freier Finanzspitze) | I68: Zinsen Inneres Darlehen IDL | L68: =IF(AND(L58>$F58,L58<($F58+$F74+1)),IPMT($G74,L58-$F58,$F74,-$E74),0) -> 0 | M68: =IF(AND(M58>$F58,M58<($F58+$F74+1)),IPMT($G74,M58-$F58,$F74,-$E74),0) -> 0 | N68: 0 | O68: 0 | P68: 0 | Q68: 0 | R68: 0 | S68: 0 | T68: 0 | U68: 0
A69: TRUE | C69: Entnahmen aus Rücklagen (ZMR) | I69: Tilgung Inneres Darlehen IDL | L69: =IF(AND(L58>$F58,L58<($F58+$F74+1)),PPMT($G74,L58-$F58,$F74,-$E74),0) -> 0 | M69: =IF(AND(M58>$F58,M58<($F58+$F74+1)),PPMT($G74,M58-$F58,$F74,-$E74),0) -> 0 | N69: 0 | O69: 0 | P69: 0 | Q69: 0 | R69: 0 | S69: 0 | T69: 0 | U69: 0
A70: TRUE | C70: Einzahlung aus vorhandenen zweckgebundenen Girokonten
F71: LZ in J | G71: Zinssatz | I71: Finanzierungszuschüsse
C72: Einzahlung aus Darlehensaufnahme 1 (DL1) / (Finanzierungsleasing) | I72: Perioden Zahlung
A73: TRUE | C73: Einzahlung aus Darlehensaufnahme 2 (DL2) / (Finanzierungsleasing) | I73: FZ Zi | J73: Zinsenzuschuss | L73: =IF(L58>$F58,IF(ISERROR(IPMT($G77,L58-$F58,$F77,-$E77)),0,IPMT($G77,L58-$F58,$F77,-$E77)),0) -> 0 | M73: =IF(M58>$F58,IF(ISERROR(IPMT($G77,M58-$F58,$F77,-$E77)),0,IPMT($G77,M58-$F58,$F77,-$E77)),0) -> 0 | N73: =IF(N58>$F58,IF(ISERROR(IPMT($G77,N58-$F58,$F77,-$E77)),0,IPMT($G77,N58-$F58,$F77,-$E77)),0) -> 0 | O73: 0 | P73: 0 | Q73: 0 | R73: 0 | S73: 0 | T73: 0 | U73: 0
C74: Einzahlung aus Aufnahme Inneres Darlehen (IDL) | I74: FZ Bw | J74: Bw Zuschuss | L74: =IF(L58>$F58,IF(ISERROR(PPMT($G77,L58-$F58,$F77,-$E77)),0,PPMT($G77,L58-$F58,$F77,-$E77)),0) -> 0 | M74: =IF(M58>$F58,IF(ISERROR(PPMT($G77,M58-$F58,$F77,-$E77)),0,PPMT($G77,M58-$F58,$F77,-$E77)),0) -> 0 | N74: 0 | O74: 0 | P74: 0 | Q74: 0 | R74: 0 | S74: 0 | T74: 0 | U74: 0
A75: TRUE | C75: Schlüssige Finanzierung | E75: =-E62-E63+E64+E65+E66+E67+E68+E69+E70+E72+E73+E74 -> 0 | I75: Summe Zuschuss FZ | L75: =+L74+L73 -> 0 | M75: 0 | N75: 0 | O75: 0 | P75: 0 | Q75: 0 | R75: 0 | S75: 0 | T75: 0 | U75: 0
F76: LZ FZ in J | G76: Barwertzinssatz
C77: Finanzierungszusch. FZ (lt. Förderv.) - Zwischenfinanzierung erforderlich | I77: Bauzinsen (DL1 + DL2) | L77: =+F78 -> 0
C78: Bauzinsen während der Bauphase | E78: (DL1 + DL2) / 2 * Zinssatz | F78: =+(E73+E72)/2*G78 -> 0 | I78: Betriebskosten | L78: 0 | M78: =+E79 -> 0 | N78: =M78*(1+G79) -> 0 | O78: =N78*(1+G79) -> 0 | P78: =O78*(1+G79) -> 0 | Q78: =P78*(1+G79) -> 0 | R78: =Q78*(1+G79) -> 0 | S78: =R78*(1+G79) -> 0 | T78: =S78*(1+G79) -> 0 | U78: =T78*(1+G79) -> 0
A79: TRUE | C79: Betriebskostenveränderung (+/-) durch Invest. | F79: Steigerung p.a.
C81: Liquiditätserfordernis aus Investitionstätigkeit (ohne Rückzahlung Inneres Darlehen) | I81: SU | L81: =L64+L65-L75+L77+L78 -> 0 | M81: 0 | N81: 0 | O81: 0 | P81: 0 | Q81: 0 | R81: 0 | S81: 0 | T81: 0 | U81: 0
A82: TRUE
A83: TRUE | C83: Investitions- und Finanzierungsplan | F83: =F58+1 -> 2025 | I83: Finanzschulden | L83: =+F83 -> 2025 | M83: =L83+1 -> 2026 | N83: =M83+1 -> 2027 | O83: =N83+1 -> 2028 | P83: =O83+1 -> 2029 | Q83: =P83+1 -> 2030 | R83: =Q83+1 -> 2031 | S83: =R83+1 -> 2032 | T83: =S83+1 -> 2033 | U83: =T83+1 -> 2034
A84: TRUE | C84: Neuerrichtung, Erweiterung
C85: Leitungskataster | I85: DL1 | J85: Zinsen | L85: =IF(AND(L83>$F83,L83<($F83+$F97+1)),IPMT($G97,L83-$F83,$F97,-$E97),0) -> 0 | M85: =IF(AND(M83>$F83,M83<($F83+$F97+1)),IPMT($G97,M83-$F83,$F97,-$E97),0) -> 0 | N85: =IF(AND(N83>$F83,N83<($F83+$F97+1)),IPMT($G97,N83-$F83,$F97,-$E97),0) -> 0 | O85: =IF(AND(O83>$F83,O83<($F83+$F97+1)),IPMT($G97,O83-$F83,$F97,-$E97),0) -> 0 | P85: =IF(AND(P83>$F83,P83<($F83+$F97+1)),IPMT($G97,P83-$F83,$F97,-$E97),0) -> 0 | Q85: =IF(AND(Q83>$F83,Q83<($F83+$F97+1)),IPMT($G97,Q83-$F83,$F97,-$E97),0) -> 0 | R85: 0 | S85: 0 | T85: 0 | U85: 0
C86: Sanierung / Anpassung | J86: Tilgung | L86: =IF(AND(L83>$F83,L83<($F83+$F97+1)), PPMT($G97,L83-$F83,$F97,-$E97),0) -> 0 | M86: =IF(AND(M83>$F83,M83<($F83+$F97+1)), PPMT($G97,M83-$F83,$F97,-$E97),0) -> 0 | N86: =IF(AND(N83>$F83,N83<($F83+$F97+1)), PPMT($G97,N83-$F83,$F97,-$E97),0) -> 0 | O86: =IF(AND(O83>$F83,O83<($F83+$F97+1)), PPMT($G97,O83-$F83,$F97,-$E97),0) -> 0 | P86: =IF(AND(P83>$F83,P83<($F83+$F97+1)), PPMT($G97,P83-$F83,$F97,-$E97),0) -> 0 | Q86: 0 | R86: 0 | S86: 0 | T86: 0 | U86: 0
C87: Summe Auszahlung aus der Investitonstätigkeit | E87: =SUM(E84:E86) -> 0 | I87: DL2 | J87: Zinsen | L87: =IF(AND(L83>$F83,L83<($F83+$F98+1)),IPMT($G98,L83-$F83,$F98,-$E98),0) -> 0 | M87: =IF(AND(M83>$F83,M83<($F83+$F98+1)),IPMT($G98,M83-$F83,$F98,-$E98),0) -> 0 | N87: =IF(AND(N83>$F83,N83<($F83+$F98+1)),IPMT($G98,N83-$F83,$F98,-$E98),0) -> 0 | O87: =IF(AND(O83>$F83,O83<($F83+$F98+1)),IPMT($G98,O83-$F83,$F98,-$E98),0) -> 0 | P87: 0 | Q87: 0 | R87: 0 | S87: 0 | T87: 0 | U87: 0
C88: Auszahlung von Kapitaltransfers (zB kooperative Vorhaben) | J88: Tilgung | L88: =IF(AND(L83>$F83,L83<($F83+$F98+1)),PPMT($G98,L83-$F83,$F98,-$E98),0) -> 0 | M88: =IF(AND(M83>$F83,M83<($F83+$F98+1)),PPMT($G98,M83-$F83,$F98,-$E98),0) -> 0 | N88: 0 | O88: 0 | P88: 0 | Q88: 0 | R88: 0 | S88: 0 | T88: 0 | U88: 0
C89: Einzahlung aus der Investitonstätigkeit (Veräußerungen) | I89: Summe Zinsen DL1+DL2 | L89: =+L85+L87 -> 0 | M89: =+M85+M87 -> 0 | N89: 0 | O89: 0 | P89: 0 | Q89: 0 | R89: 0 | S89: 0 | T89: 0 | U89: 0
A90: TRUE | C90: Einzahlung Kapitaltransfers (IZ Investitionszuschüsse) | I90: Summe Tilgung DL1+DL2 | L90: =+L86+L88 -> 0 | M90: =+M86+M88 -> 0 | N90: 0 | O90: 0 | P90: 0 | Q90: 0 | R90: 0 | S90: 0 | T90: 0 | U90: 0
C91: Einzahlung Kapitaltransfers (Interessentenbeiträge)
C92: Einzahlung Kapitaltransfers (Sonstiges) | I92: Inneres Darlehen
C93: Mittel aus OGB für Investitionen (Überschuss nach freier Finanzspitze) | I93: Zinsen Inneres Darlehen IDL | L93: =IF(AND(L83>$F83,L83<($F83+$F99+1)),IPMT($G99,L83-$F83,$F99,-$E99),0) -> 0 | M93: =IF(AND(M83>$F83,M83<($F83+$F99+1)),IPMT($G99,M83-$F83,$F99,-$E99),0) -> 0 | N93: 0 | O93: 0 | P93: 0 | Q93: 0 | R93: 0 | S93: 0 | T93: 0 | U93: 0
A94: TRUE | C94: Entnahmen aus Rücklagen (ZMR) | I94: Tilgung Inneres Darlehen IDL | L94: =IF(AND(L83>$F83,L83<($F83+$F99+1)),PPMT($G99,L83-$F83,$F99,-$E99),0) -> 0 | M94: =IF(AND(M83>$F83,M83<($F83+$F99+1)),PPMT($G99,M83-$F83,$F99,-$E99),0) -> 0 | N94: 0 | O94: 0 | P94: 0 | Q94: 0 | R94: 0 | S94: 0 | T94: 0 | U94: 0
A95: TRUE | C95: Einzahlung aus vorhandenen zweckgebundenen Girokonten
F96: LZ in J | G96: Zinssatz | I96: Finanzierungszuschüsse
C97: Einzahlung aus Darlehensaufnahme 1 (DL1) / (Finanzierungsleasing) | I97: Perioden Zahlung
A98: TRUE | C98: Einzahlung aus Darlehensaufnahme 2 (DL2) / (Finanzierungsleasing) | I98: FZ Zi | J98: Zinsenzuschuss | L98: =IF(L83>$F83,IF(ISERROR(IPMT($G102,L83-$F83,$F102,-$E102)),0,IPMT($G102,L83-$F83,$F102,-$E102)),0) -> 0 | M98: =IF(M83>$F83,IF(ISERROR(IPMT($G102,M83-$F83,$F102,-$E102)),0,IPMT($G102,M83-$F83,$F102,-$E102)),0) -> 0 | N98: =IF(N83>$F83,IF(ISERROR(IPMT($G102,N83-$F83,$F102,-$E102)),0,IPMT($G102,N83-$F83,$F102,-$E102)),0) -> 0 | O98: 0 | P98: 0 | Q98: 0 | R98: 0 | S98: 0 | T98: 0 | U98: 0
C99: Einzahlung aus Aufnahme Inneres Darlehen (IDL) | I99: FZ Bw | J99: Bw Zuschuss | L99: =IF(L83>$F83,IF(ISERROR(PPMT($G102,L83-$F83,$F102,-$E102)),0,PPMT($G102,L83-$F83,$F102,-$E102)),0) -> 0 | M99: =IF(M83>$F83,IF(ISERROR(PPMT($G102,M83-$F83,$F102,-$E102)),0,PPMT($G102,M83-$F83,$F102,-$E102)),0) -> 0 | N99: 0 | O99: 0 | P99: 0 | Q99: 0 | R99: 0 | S99: 0 | T99: 0 | U99: 0
A100: TRUE | C100: Schlüssige Finanzierung | E100: =-E87-E88+E89+E90+E91+E92+E93+E94+E95+E97+E98+E99 -> 0 | I100: Summe Zuschuss FZ | L100: =+L99+L98 -> 0 | M100: 0 | N100: 0 | O100: 0 | P100: 0 | Q100: 0 | R100: 0 | S100: 0 | T100: 0 | U100: 0
F101: LZ FZ in J | G101: Barwertzinssatz
C102: Finanzierungszusch. FZ (lt. Förderv.) - Zwischenfinanzierung erforderlich | I102: Bauzinsen (DL1 + DL2) | L102: =+F103 -> 0
C103: Bauzinsen während der Bauphase | E103: (DL1 + DL2) / 2 * Zinssatz | F103: =+(E98+E97)/2*G103 -> 0 | I103: Betriebskosten | L103: 0 | M103: =+E104 -> 0 | N103: =M103*(1+G104) -> 0 | O103: =N103*(1+G104) -> 0 | P103: =O103*(1+G104) -> 0 | Q103: =P103*(1+G104) -> 0 | R103: =Q103*(1+G104) -> 0 | S103: =R103*(1+G104) -> 0 | T103: =S103*(1+G104) -> 0 | U103: =T103*(1+G104) -> 0
A104: TRUE | C104: Betriebskostenveränderung (+/-) durch Invest. | F104: Steigerung p.a.
C106: Liquiditätserfordernis aus Investitionstätigkeit (ohne Rückzahlung Inneres Darlehen) | I106: SU | L106: =L89+L90-L100+L102+L103 -> 0 | M106: 0 | N106: 0 | O106: 0 | P106: 0 | Q106: 0 | R106: 0 | S106: 0 | T106: 0 | U106: 0
A107: TRUE
A108: TRUE | C108: Investitions- und Finanzierungsplan | F108: =F83+1 -> 2026 | I108: Finanzschulden | L108: =+F108 -> 2026 | M108: =L108+1 -> 2027 | N108: =M108+1 -> 2028 | O108: =N108+1 -> 2029 | P108: =O108+1 -> 2030 | Q108: =P108+1 -> 2031 | R108: =Q108+1 -> 2032 | S108: =R108+1 -> 2033 | T108: =S108+1 -> 2034 | U108: =T108+1 -> 2035
A109: TRUE | C109: Neuerrichtung, Erweiterung
C110: Leitungskataster | I110: DL1 | J110: Zinsen | L110: =IF(AND(L108>$F108,L108<($F108+$F122+1)),IPMT($G122,L108-$F108,$F122,-$E122),0) -> 0 | M110: =IF(AND(M108>$F108,M108<($F108+$F122+1)),IPMT($G122,M108-$F108,$F122,-$E122),0) -> 0 | N110: =IF(AND(N108>$F108,N108<($F108+$F122+1)),IPMT($G122,N108-$F108,$F122,-$E122),0) -> 0 | O110: =IF(AND(O108>$F108,O108<($F108+$F122+1)),IPMT($G122,O108-$F108,$F122,-$E122),0) -> 0 | P110: =IF(AND(P108>$F108,P108<($F108+$F122+1)),IPMT($G122,P108-$F108,$F122,-$E122),0) -> 0 | Q110: =IF(AND(Q108>$F108,Q108<($F108+$F122+1)),IPMT($G122,Q108-$F108,$F122,-$E122),0) -> 0 | R110: 0 | S110: 0 | T110: 0 | U110: 0
C111: Sanierung / Anpassung | J111: Tilgung | L111: =IF(AND(L108>$F108,L108<($F108+$F122+1)), PPMT($G122,L108-$F108,$F122,-$E122),0) -> 0 | M111: =IF(AND(M108>$F108,M108<($F108+$F122+1)), PPMT($G122,M108-$F108,$F122,-$E122),0) -> 0 | N111: =IF(AND(N108>$F108,N108<($F108+$F122+1)), PPMT($G122,N108-$F108,$F122,-$E122),0) -> 0 | O111: =IF(AND(O108>$F108,O108<($F108+$F122+1)), PPMT($G122,O108-$F108,$F122,-$E122),0) -> 0 | P111: =IF(AND(P108>$F108,P108<($F108+$F122+1)), PPMT($G122,P108-$F108,$F122,-$E122),0) -> 0 | Q111: 0 | R111: 0 | S111: 0 | T111: 0 | U111: 0
C112: Summe Auszahlung aus der Investitonstätigkeit | E112: =SUM(E109:E111) -> 0 | I112: DL2 | J112: Zinsen | L112: =IF(AND(L108>$F108,L108<($F108+$F123+1)),IPMT($G123,L108-$F108,$F123,-$E123),0) -> 0 | M112: =IF(AND(M108>$F108,M108<($F108+$F123+1)),IPMT($G123,M108-$F108,$F123,-$E123),0) -> 0 | N112: =IF(AND(N108>$F108,N108<($F108+$F123+1)),IPMT($G123,N108-$F108,$F123,-$E123),0) -> 0 | O112: =IF(AND(O108>$F108,O108<($F108+$F123+1)),IPMT($G123,O108-$F108,$F123,-$E123),0) -> 0 | P112: 0 | Q112: 0 | R112: 0 | S112: 0 | T112: 0 | U112: 0
C113: Auszahlung von Kapitaltransfers (zB kooperative Vorhaben) | J113: Tilgung | L113: =IF(AND(L108>$F108,L108<($F108+$F123+1)),PPMT($G123,L108-$F108,$F123,-$E123),0) -> 0 | M113: =IF(AND(M108>$F108,M108<($F108+$F123+1)),PPMT($G123,M108-$F108,$F123,-$E123),0) -> 0 | N113: 0 | O113: 0 | P113: 0 | Q113: 0 | R113: 0 | S113: 0 | T113: 0 | U113: 0
C114: Einzahlung aus der Investitonstätigkeit (Veräußerungen) | I114: Summe Zinsen DL1+DL2 | L114: =+L110+L112 -> 0 | M114: =+M110+M112 -> 0 | N114: 0 | O114: 0 | P114: 0 | Q114: 0 | R114: 0 | S114: 0 | T114: 0 | U114: 0
A115: TRUE | C115: Einzahlung Kapitaltransfers (IZ Investitionszuschüsse) | I115: Summe Tilgung DL1+DL2 | L115: =+L111+L113 -> 0 | M115: =+M111+M113 -> 0 | N115: 0 | O115: 0 | P115: 0 | Q115: 0 | R115: 0 | S115: 0 | T115: 0 | U115: 0
C116: Einzahlung Kapitaltransfers (Interessentenbeiträge)
C117: Einzahlung Kapitaltransfers (Sonstiges) | I117: Inneres Darlehen
C118: Mittel aus OGB für Investitionen (Überschuss nach freier Finanzspitze) | I118: Zinsen Inneres Darlehen IDL | L118: =IF(AND(L108>$F108,L108<($F108+$F124+1)),IPMT($G124,L108-$F108,$F124,-$E124),0) -> 0 | M118: =IF(AND(M108>$F108,M108<($F108+$F124+1)),IPMT($G124,M108-$F108,$F124,-$E124),0) -> 0 | N118: 0 | O118: 0 | P118: 0 | Q118: 0 | R118: 0 | S118: 0 | T118: 0 | U118: 0
A119: TRUE | C119: Entnahmen aus Rücklagen (ZMR) | I119: Tilgung Inneres Darlehen IDL | L119: =IF(AND(L108>$F108,L108<($F108+$F124+1)),PPMT($G124,L108-$F108,$F124,-$E124),0) -> 0 | M119: =IF(AND(M108>$F108,M108<($F108+$F124+1)),PPMT($G124,M108-$F108,$F124,-$E124),0) -> 0 | N119: 0 | O119: 0 | P119: 0 | Q119: 0 | R119: 0 | S119: 0 | T119: 0 | U119: 0
A120: TRUE | C120: Einzahlung aus vorhandenen zweckgebundenen Girokonten
F121: LZ in J | G121: Zinssatz | I121: Finanzierungszuschüsse
C122: Einzahlung aus Darlehensaufnahme 1 (DL1) / (Finanzierungsleasing) | I122: Perioden Zahlung
A123: TRUE | C123: Einzahlung aus Darlehensaufnahme 2 (DL2) / (Finanzierungsleasing) | I123: FZ Zi | J123: Zinsenzuschuss | L123: =IF(L108>$F108,IF(ISERROR(IPMT($G127,L108-$F108,$F127,-$E127)),0,IPMT($G127,L108-$F108,$F127,-$E127)),0) -> 0 | M123: =IF(M108>$F108,IF(ISERROR(IPMT($G127,M108-$F108,$F127,-$E127)),0,IPMT($G127,M108-$F108,$F127,-$E127)),0) -> 0 | N123: =IF(N108>$F108,IF(ISERROR(IPMT($G127,N108-$F108,$F127,-$E127)),0,IPMT($G127,N108-$F108,$F127,-$E127)),0) -> 0 | O123: 0 | P123: 0 | Q123: 0 | R123: 0 | S123: 0 | T123: 0 | U123: 0
C124: Einzahlung aus Aufnahme Inneres Darlehen (IDL) | I124: FZ Bw | J124: Bw Zuschuss | L124: =IF(L108>$F108,IF(ISERROR(PPMT($G127,L108-$F108,$F127,-$E127)),0,PPMT($G127,L108-$F108,$F127,-$E127)),0) -> 0 | M124: =IF(M108>$F108,IF(ISERROR(PPMT($G127,M108-$F108,$F127,-$E127)),0,PPMT($G127,M108-$F108,$F127,-$E127)),0) -> 0 | N124: 0 | O124: 0 | P124: 0 | Q124: 0 | R124: 0 | S124: 0 | T124: 0 | U124: 0
A125: TRUE | C125: Schlüssige Finanzierung | E125: =-E112-E113+E114+E115+E116+E117+E118+E119+E120+E122+E123+E124 -> 0 | I125: Summe Zuschuss FZ | L125: =+L124+L123 -> 0 | M125: 0 | N125: 0 | O125: 0 | P125: 0 | Q125: 0 | R125: 0 | S125: 0 | T125: 0 | U125: 0
F126: LZ FZ in J | G126: Barwertzinssatz
C127: Finanzierungszusch. FZ (lt. Förderv.) - Zwischenfinanzierung erforderlich | I127: Bauzinsen (DL1 + DL2) | L127: =+F128 -> 0
C128: Bauzinsen während der Bauphase | E128: (DL1 + DL2) / 2 * Zinssatz | F128: =+(E123+E122)/2*G128 -> 0 | I128: Betriebskosten | L128: 0 | M128: =+E129 -> 0 | N128: =M128*(1+G129) -> 0 | O128: =N128*(1+G129) -> 0 | P128: =O128*(1+G129) -> 0 | Q128: =P128*(1+G129) -> 0 | R128: =Q128*(1+G129) -> 0 | S128: =R128*(1+G129) -> 0 | T128: =S128*(1+G129) -> 0 | U128: =T128*(1+G129) -> 0
A129: TRUE | C129: Betriebskostenveränderung (+/-) durch Invest. | F129: Steigerung p.a.
C131: Liquiditätserfordernis aus Investitionstätigkeit (ohne Rückzahlung Inneres Darlehen) | I131: SU | L131: =L114+L115-L125+L127+L128 -> 0 | M131: 0 | N131: 0 | O131: 0 | P131: 0 | Q131: 0 | R131: 0 | S131: 0 | T131: 0 | U131: 0
A132: TRUE
A133: TRUE | C133: Investitions- und Finanzierungsplan | F133: =F108+1 -> 2027 | I133: Finanzschulden | L133: =+F133 -> 2027 | M133: =L133+1 -> 2028 | N133: =M133+1 -> 2029 | O133: =N133+1 -> 2030 | P133: =O133+1 -> 2031 | Q133: =P133+1 -> 2032 | R133: =Q133+1 -> 2033 | S133: =R133+1 -> 2034 | T133: =S133+1 -> 2035 | U133: =T133+1 -> 2036
A134: TRUE | C134: Neuerrichtung, Erweiterung
C135: Leitungskataster | I135: DL1 | J135: Zinsen | L135: =IF(AND(L133>$F133,L133<($F133+$F147+1)),IPMT($G147,L133-$F133,$F147,-$E147),0) -> 0 | M135: =IF(AND(M133>$F133,M133<($F133+$F147+1)),IPMT($G147,M133-$F133,$F147,-$E147),0) -> 0 | N135: =IF(AND(N133>$F133,N133<($F133+$F147+1)),IPMT($G147,N133-$F133,$F147,-$E147),0) -> 0 | O135: =IF(AND(O133>$F133,O133<($F133+$F147+1)),IPMT($G147,O133-$F133,$F147,-$E147),0) -> 0 | P135: =IF(AND(P133>$F133,P133<($F133+$F147+1)),IPMT($G147,P133-$F133,$F147,-$E147),0) -> 0 | Q135: =IF(AND(Q133>$F133,Q133<($F133+$F147+1)),IPMT($G147,Q133-$F133,$F147,-$E147),0) -> 0 | R135: 0 | S135: 0 | T135: 0 | U135: 0
C136: Sanierung / Anpassung | J136: Tilgung | L136: =IF(AND(L133>$F133,L133<($F133+$F147+1)), PPMT($G147,L133-$F133,$F147,-$E147),0) -> 0 | M136: =IF(AND(M133>$F133,M133<($F133+$F147+1)), PPMT($G147,M133-$F133,$F147,-$E147),0) -> 0 | N136: =IF(AND(N133>$F133,N133<($F133+$F147+1)), PPMT($G147,N133-$F133,$F147,-$E147),0) -> 0 | O136: =IF(AND(O133>$F133,O133<($F133+$F147+1)), PPMT($G147,O133-$F133,$F147,-$E147),0) -> 0 | P136: =IF(AND(P133>$F133,P133<($F133+$F147+1)), PPMT($G147,P133-$F133,$F147,-$E147),0) -> 0 | Q136: 0 | R136: 0 | S136: 0 | T136: 0 | U136: 0
C137: Summe Auszahlung aus der Investitonstätigkeit | E137: =SUM(E134:E136) -> 0 | I137: DL2 | J137: Zinsen | L137: =IF(AND(L133>$F133,L133<($F133+$F148+1)),IPMT($G148,L133-$F133,$F148,-$E148),0) -> 0 | M137: =IF(AND(M133>$F133,M133<($F133+$F148+1)),IPMT($G148,M133-$F133,$F148,-$E148),0) -> 0 | N137: =IF(AND(N133>$F133,N133<($F133+$F148+1)),IPMT($G148,N133-$F133,$F148,-$E148),0) -> 0 | O137: =IF(AND(O133>$F133,O133<($F133+$F148+1)),IPMT($G148,O133-$F133,$F148,-$E148),0) -> 0 | P137: 0 | Q137: 0 | R137: 0 | S137: 0 | T137: 0 | U137: 0
C138: Auszahlung von Kapitaltransfers (zB kooperative Vorhaben) | J138: Tilgung | L138: =IF(AND(L133>$F133,L133<($F133+$F148+1)),PPMT($G148,L133-$F133,$F148,-$E148),0) -> 0 | M138: =IF(AND(M133>$F133,M133<($F133+$F148+1)),PPMT($G148,M133-$F133,$F148,-$E148),0) -> 0 | N138: 0 | O138: 0 | P138: 0 | Q138: 0 | R138: 0 | S138: 0 | T138: 0 | U138: 0
C139: Einzahlung aus der Investitonstätigkeit (Veräußerungen) | I139: Summe Zinsen DL1+DL2 | L139: =+L135+L137 -> 0 | M139: =+M135+M137 -> 0 | N139: 0 | O139: 0 | P139: 0 | Q139: 0 | R139: 0 | S139: 0 | T139: 0 | U139: 0
A140: TRUE | C140: Einzahlung Kapitaltransfers (IZ Investitionszuschüsse) | I140: Summe Tilgung DL1+DL2 | L140: =+L136+L138 -> 0 | M140: =+M136+M138 -> 0 | N140: 0 | O140: 0 | P140: 0 | Q140: 0 | R140: 0 | S140: 0 | T140: 0 | U140: 0
C141: Einzahlung Kapitaltransfers (Interessentenbeiträge)
C142: Einzahlung Kapitaltransfers (Sonstiges) | I142: Inneres Darlehen
C143: Mittel aus OGB für Investitionen (Überschuss nach freier Finanzspitze) | I143: Zinsen Inneres Darlehen IDL | L143: =IF(AND(L133>$F133,L133<($F133+$F149+1)),IPMT($G149,L133-$F133,$F149,-$E149),0) -> 0 | M143: =IF(AND(M133>$F133,M133<($F133+$F149+1)),IPMT($G149,M133-$F133,$F149,-$E149),0) -> 0 | N143: 0 | O143: 0 | P143: 0 | Q143: 0 | R143: 0 | S143: 0 | T143: 0 | U143: 0
A144: TRUE | C144: Entnahmen aus Rücklagen (ZMR) | I144: Tilgung Inneres Darlehen IDL | L144: =IF(AND(L133>$F133,L133<($F133+$F149+1)),PPMT($G149,L133-$F133,$F149,-$E149),0) -> 0 | M144: =IF(AND(M133>$F133,M133<($F133+$F149+1)),PPMT($G149,M133-$F133,$F149,-$E149),0) -> 0 | N144: 0 | O144: 0 | P144: 0 | Q144: 0 | R144: 0 | S144: 0 | T144: 0 | U144: 0
A145: TRUE | C145: Einzahlung aus vorhandenen zweckgebundenen Girokonten
F146: LZ in J | G146: Zinssatz | I146: Finanzierungszuschüsse
C147: Einzahlung aus Darlehensaufnahme 1 (DL1) / (Finanzierungsleasing) | I147: Perioden Zahlung
A148: TRUE | C148: Einzahlung aus Darlehensaufnahme 2 (DL2) / (Finanzierungsleasing) | I148: FZ Zi | J148: Zinsenzuschuss | L148: =IF(L133>$F133,IF(ISERROR(IPMT($G152,L133-$F133,$F152,-$E152)),0,IPMT($G152,L133-$F133,$F152,-$E152)),0) -> 0 | M148: =IF(M133>$F133,IF(ISERROR(IPMT($G152,M133-$F133,$F152,-$E152)),0,IPMT($G152,M133-$F133,$F152,-$E152)),0) -> 0 | N148: =IF(N133>$F133,IF(ISERROR(IPMT($G152,N133-$F133,$F152,-$E152)),0,IPMT($G152,N133-$F133,$F152,-$E152)),0) -> 0 | O148: 0 | P148: 0 | Q148: 0 | R148: 0 | S148: 0 | T148: 0 | U148: 0
C149: Einzahlung aus Aufnahme Inneres Darlehen (IDL) | I149: FZ Bw | J149: Bw Zuschuss | L149: =IF(L133>$F133,IF(ISERROR(PPMT($G152,L133-$F133,$F152,-$E152)),0,PPMT($G152,L133-$F133,$F152,-$E152)),0) -> 0 | M149: =IF(M133>$F133,IF(ISERROR(PPMT($G152,M133-$F133,$F152,-$E152)),0,PPMT($G152,M133-$F133,$F152,-$E152)),0) -> 0 | N149: 0 | O149: 0 | P149: 0 | Q149: 0 | R149: 0 | S149: 0 | T149: 0 | U149: 0
A150: TRUE | C150: Schlüssige Finanzierung | E150: =-E137-E138+E139+E140+E141+E142+E143+E144+E145+E147+E148+E149 -> 0 | I150: Summe Zuschuss FZ | L150: =+L149+L148 -> 0 | M150: 0 | N150: 0 | O150: 0 | P150: 0 | Q150: 0 | R150: 0 | S150: 0 | T150: 0 | U150: 0
F151: LZ FZ in J | G151: Barwertzinssatz
C152: Finanzierungszusch. FZ (lt. Förderv.) - Zwischenfinanzierung erforderlich | I152: Bauzinsen (DL1 + DL2) | L152: =+F153 -> 0
C153: Bauzinsen während der Bauphase | E153: (DL1 + DL2) / 2 * Zinssatz | F153: =+(E148+E147)/2*G153 -> 0 | I153: Betriebskosten | L153: 0 | M153: =+E154 -> 0 | N153: =M153*(1+G154) -> 0 | O153: =N153*(1+G154) -> 0 | P153: =O153*(1+G154) -> 0 | Q153: =P153*(1+G154) -> 0 | R153: =Q153*(1+G154) -> 0 | S153: =R153*(1+G154) -> 0 | T153: =S153*(1+G154) -> 0 | U153: =T153*(1+G154) -> 0
A154: TRUE | C154: Betriebskostenveränderung (+/-) durch Invest. | F154: Steigerung p.a.
C156: Liquiditätserfordernis aus Investitionstätigkeit (ohne Rückzahlung Inneres Darlehen) | I156: SU | L156: =L139+L140-L150+L152+L153 -> 0 | M156: 0 | N156: 0 | O156: 0 | P156: 0 | Q156: 0 | R156: 0 | S156: 0 | T156: 0 | U156: 0
A157: TRUE
A158: TRUE | C158: Investitions- und Finanzierungsplan | F158: =F133+1 -> 2028 | I158: Finanzschulden | L158: =+F158 -> 2028 | M158: =L158+1 -> 2029 | N158: =M158+1 -> 2030 | O158: =N158+1 -> 2031 | P158: =O158+1 -> 2032 | Q158: =P158+1 -> 2033 | R158: =Q158+1 -> 2034 | S158: =R158+1 -> 2035 | T158: =S158+1 -> 2036 | U158: =T158+1 -> 2037
A159: TRUE | C159: Neuerrichtung, Erweiterung
C160: Leitungskataster | I160: DL1 | J160: Zinsen | L160: =IF(AND(L158>$F158,L158<($F158+$F172+1)),IPMT($G172,L158-$F158,$F172,-$E172),0) -> 0 | M160: =IF(AND(M158>$F158,M158<($F158+$F172+1)),IPMT($G172,M158-$F158,$F172,-$E172),0) -> 0 | N160: =IF(AND(N158>$F158,N158<($F158+$F172+1)),IPMT($G172,N158-$F158,$F172,-$E172),0) -> 0 | O160: =IF(AND(O158>$F158,O158<($F158+$F172+1)),IPMT($G172,O158-$F158,$F172,-$E172),0) -> 0 | P160: =IF(AND(P158>$F158,P158<($F158+$F172+1)),IPMT($G172,P158-$F158,$F172,-$E172),0) -> 0 | Q160: =IF(AND(Q158>$F158,Q158<($F158+$F172+1)),IPMT($G172,Q158-$F158,$F172,-$E172),0) -> 0 | R160: 0 | S160: 0 | T160: 0 | U160: 0
C161: Sanierung / Anpassung | J161: Tilgung | L161: =IF(AND(L158>$F158,L158<($F158+$F172+1)), PPMT($G172,L158-$F158,$F172,-$E172),0) -> 0 | M161: =IF(AND(M158>$F158,M158<($F158+$F172+1)), PPMT($G172,M158-$F158,$F172,-$E172),0) -> 0 | N161: =IF(AND(N158>$F158,N158<($F158+$F172+1)), PPMT($G172,N158-$F158,$F172,-$E172),0) -> 0 | O161: =IF(AND(O158>$F158,O158<($F158+$F172+1)), PPMT($G172,O158-$F158,$F172,-$E172),0) -> 0 | P161: =IF(AND(P158>$F158,P158<($F158+$F172+1)), PPMT($G172,P158-$F158,$F172,-$E172),0) -> 0 | Q161: 0 | R161: 0 | S161: 0 | T161: 0 | U161: 0
C162: Summe Auszahlung aus der Investitonstätigkeit | E162: =SUM(E159:E161) -> 0 | I162: DL2 | J162: Zinsen | L162: =IF(AND(L158>$F158,L158<($F158+$F173+1)),IPMT($G173,L158-$F158,$F173,-$E173),0) -> 0 | M162: =IF(AND(M158>$F158,M158<($F158+$F173+1)),IPMT($G173,M158-$F158,$F173,-$E173),0) -> 0 | N162: =IF(AND(N158>$F158,N158<($F158+$F173+1)),IPMT($G173,N158-$F158,$F173,-$E173),0) -> 0 | O162: =IF(AND(O158>$F158,O158<($F158+$F173+1)),IPMT($G173,O158-$F158,$F173,-$E173),0) -> 0 | P162: 0 | Q162: 0 | R162: 0 | S162: 0 | T162: 0 | U162: 0
C163: Auszahlung von Kapitaltransfers (zB kooperative Vorhaben) | J163: Tilgung | L163: =IF(AND(L158>$F158,L158<($F158+$F173+1)),PPMT($G173,L158-$F158,$F173,-$E173),0) -> 0 | M163: =IF(AND(M158>$F158,M158<($F158+$F173+1)),PPMT($G173,M158-$F158,$F173,-$E173),0) -> 0 | N163: 0 | O163: 0 | P163: 0 | Q163: 0 | R163: 0 | S163: 0 | T163: 0 | U163: 0
C164: Einzahlung aus der Investitonstätigkeit (Veräußerungen) | I164: Summe Zinsen DL1+DL2 | L164: =+L160+L162 -> 0 | M164: =+M160+M162 -> 0 | N164: 0 | O164: 0 | P164: 0 | Q164: 0 | R164: 0 | S164: 0 | T164: 0 | U164: 0
A165: TRUE | C165: Einzahlung Kapitaltransfers (IZ Investitionszuschüsse) | I165: Summe Tilgung DL1+DL2 | L165: =+L161+L163 -> 0 | M165: =+M161+M163 -> 0 | N165: 0 | O165: 0 | P165: 0 | Q165: 0 | R165: 0 | S165: 0 | T165: 0 | U165: 0
C166: Einzahlung Kapitaltransfers (Interessentenbeiträge)
C167: Einzahlung Kapitaltransfers (Sonstiges) | I167: Inneres Darlehen
C168: Mittel aus OGB für Investitionen (Überschuss nach freier Finanzspitze) | I168: Zinsen Inneres Darlehen IDL | L168: =IF(AND(L158>$F158,L158<($F158+$F174+1)),IPMT($G174,L158-$F158,$F174,-$E174),0) -> 0 | M168: =IF(AND(M158>$F158,M158<($F158+$F174+1)),IPMT($G174,M158-$F158,$F174,-$E174),0) -> 0 | N168: 0 | O168: 0 | P168: 0 | Q168: 0 | R168: 0 | S168: 0 | T168: 0 | U168: 0
A169: TRUE | C169: Entnahmen aus Rücklagen (ZMR) | I169: Tilgung Inneres Darlehen IDL | L169: =IF(AND(L158>$F158,L158<($F158+$F174+1)),PPMT($G174,L158-$F158,$F174,-$E174),0) -> 0 | M169: =IF(AND(M158>$F158,M158<($F158+$F174+1)),PPMT($G174,M158-$F158,$F174,-$E174),0) -> 0 | N169: 0 | O169: 0 | P169: 0 | Q169: 0 | R169: 0 | S169: 0 | T169: 0 | U169: 0
A170: TRUE | C170: Einzahlung aus vorhandenen zweckgebundenen Girokonten
F171: LZ in J | G171: Zinssatz | I171: Finanzierungszuschüsse
C172: Einzahlung aus Darlehensaufnahme 1 (DL1) / (Finanzierungsleasing) | I172: Perioden Zahlung
A173: TRUE | C173: Einzahlung aus Darlehensaufnahme 2 (DL2) / (Finanzierungsleasing) | I173: FZ Zi | J173: Zinsenzuschuss | L173: =IF(L158>$F158,IF(ISERROR(IPMT($G177,L158-$F158,$F177,-$E177)),0,IPMT($G177,L158-$F158,$F177,-$E177)),0) -> 0 | M173: =IF(M158>$F158,IF(ISERROR(IPMT($G177,M158-$F158,$F177,-$E177)),0,IPMT($G177,M158-$F158,$F177,-$E177)),0) -> 0 | N173: =IF(N158>$F158,IF(ISERROR(IPMT($G177,N158-$F158,$F177,-$E177)),0,IPMT($G177,N158-$F158,$F177,-$E177)),0) -> 0 | O173: 0 | P173: 0 | Q173: 0 | R173: 0 | S173: 0 | T173: 0 | U173: 0
C174: Einzahlung aus Aufnahme Inneres Darlehen (IDL 1) | I174: FZ Bw | J174: Bw Zuschuss | L174: =IF(L158>$F158,IF(ISERROR(PPMT($G177,L158-$F158,$F177,-$E177)),0,PPMT($G177,L158-$F158,$F177,-$E177)),0) -> 0 | M174: =IF(M158>$F158,IF(ISERROR(PPMT($G177,M158-$F158,$F177,-$E177)),0,PPMT($G177,M158-$F158,$F177,-$E177)),0) -> 0 | N174: 0 | O174: 0 | P174: 0 | Q174: 0 | R174: 0 | S174: 0 | T174: 0 | U174: 0
A175: TRUE | C175: Schlüssige Finanzierung | E175: =-E162-E163+E164+E165+E166+E167+E168+E169+E170+E172+E173+E174 -> 0 | I175: Summe Zuschuss FZ | L175: =+L174+L173 -> 0 | M175: 0 | N175: 0 | O175: 0 | P175: 0 | Q175: 0 | R175: 0 | S175: 0 | T175: 0 | U175: 0
F176: LZ FZ in J | G176: Barwertzinssatz
C177: Finanzierungszusch. FZ (lt. Förderv.) - Zwischenfinanzierung erforderlich | I177: Bauzinsen (DL1 + DL2) | L177: =+F178 -> 0
C178: Bauzinsen während der Bauphase | E178: (DL1 + DL2) / 2 * Zinssatz | F178: =+(E173+E172)/2*G178 -> 0 | I178: Betriebskosten | L178: 0 | M178: =+E179 -> 0 | N178: =M178*(1+G179) -> 0 | O178: =N178*(1+G179) -> 0 | P178: =O178*(1+G179) -> 0 | Q178: =P178*(1+G179) -> 0 | R178: =Q178*(1+G179) -> 0 | S178: =R178*(1+G179) -> 0 | T178: =S178*(1+G179) -> 0 | U178: =T178*(1+G179) -> 0
A179: TRUE | C179: Betriebskostenveränderung (+/-) durch Invest. | F179: Steigerung p.a.
C181: Liquiditätserfordernis aus Investitionstätigkeit (ohne Rückzahlung Inneres Darlehen) | I181: SU | L181: =L164+L165-L175+L177+L178 -> 0 | M181: 0 | N181: 0 | O181: 0 | P181: 0 | Q181: 0 | R181: 0 | S181: 0 | T181: 0 | U181: 0
A182: TRUE
A183: TRUE | C183: Investitions- und Finanzierungsplan | F183: =F158+1 -> 2029 | I183: Finanzschulden | L183: =+F183 -> 2029 | M183: =L183+1 -> 2030 | N183: =M183+1 -> 2031 | O183: =N183+1 -> 2032 | P183: =O183+1 -> 2033 | Q183: =P183+1 -> 2034 | R183: =Q183+1 -> 2035 | S183: =R183+1 -> 2036 | T183: =S183+1 -> 2037 | U183: =T183+1 -> 2038
A184: TRUE | C184: Neuerrichtung, Erweiterung
C185: Leitungskataster | I185: DL1 | J185: Zinsen | L185: =IF(AND(L183>$F183,L183<($F183+$F197+1)),IPMT($G197,L183-$F183,$F197,-$E197),0) -> 0 | M185: =IF(AND(M183>$F183,M183<($F183+$F197+1)),IPMT($G197,M183-$F183,$F197,-$E197),0) -> 0 | N185: =IF(AND(N183>$F183,N183<($F183+$F197+1)),IPMT($G197,N183-$F183,$F197,-$E197),0) -> 0 | O185: =IF(AND(O183>$F183,O183<($F183+$F197+1)),IPMT($G197,O183-$F183,$F197,-$E197),0) -> 0 | P185: =IF(AND(P183>$F183,P183<($F183+$F197+1)),IPMT($G197,P183-$F183,$F197,-$E197),0) -> 0 | Q185: =IF(AND(Q183>$F183,Q183<($F183+$F197+1)),IPMT($G197,Q183-$F183,$F197,-$E197),0) -> 0 | R185: 0 | S185: 0 | T185: 0 | U185: 0
C186: Sanierung / Anpassung | J186: Tilgung | L186: =IF(AND(L183>$F183,L183<($F183+$F197+1)), PPMT($G197,L183-$F183,$F197,-$E197),0) -> 0 | M186: =IF(AND(M183>$F183,M183<($F183+$F197+1)), PPMT($G197,M183-$F183,$F197,-$E197),0) -> 0 | N186: =IF(AND(N183>$F183,N183<($F183+$F197+1)), PPMT($G197,N183-$F183,$F197,-$E197),0) -> 0 | O186: =IF(AND(O183>$F183,O183<($F183+$F197+1)), PPMT($G197,O183-$F183,$F197,-$E197),0) -> 0 | P186: =IF(AND(P183>$F183,P183<($F183+$F197+1)), PPMT($G197,P183-$F183,$F197,-$E197),0) -> 0 | Q186: 0 | R186: 0 | S186: 0 | T186: 0 | U186: 0
C187: Summe Auszahlung aus der Investitonstätigkeit | E187: =SUM(E184:E186) -> 0 | I187: DL2 | J187: Zinsen | L187: =IF(AND(L183>$F183,L183<($F183+$F198+1)),IPMT($G198,L183-$F183,$F198,-$E198),0) -> 0 | M187: =IF(AND(M183>$F183,M183<($F183+$F198+1)),IPMT($G198,M183-$F183,$F198,-$E198),0) -> 0 | N187: =IF(AND(N183>$F183,N183<($F183+$F198+1)),IPMT($G198,N183-$F183,$F198,-$E198),0) -> 0 | O187: =IF(AND(O183>$F183,O183<($F183+$F198+1)),IPMT($G198,O183-$F183,$F198,-$E198),0) -> 0 | P187: 0 | Q187: 0 | R187: 0 | S187: 0 | T187: 0 | U187: 0
C188: Auszahlung von Kapitaltransfers (zB kooperative Vorhaben) | J188: Tilgung | L188: =IF(AND(L183>$F183,L183<($F183+$F198+1)),PPMT($G198,L183-$F183,$F198,-$E198),0) -> 0 | M188: =IF(AND(M183>$F183,M183<($F183+$F198+1)),PPMT($G198,M183-$F183,$F198,-$E198),0) -> 0 | N188: 0 | O188: 0 | P188: 0 | Q188: 0 | R188: 0 | S188: 0 | T188: 0 | U188: 0
C189: Einzahlung aus der Investitonstätigkeit (Veräußerungen) | I189: Summe Zinsen DL1+DL2 | L189: =+L185+L187 -> 0 | M189: =+M185+M187 -> 0 | N189: 0 | O189: 0 | P189: 0 | Q189: 0 | R189: 0 | S189: 0 | T189: 0 | U189: 0
A190: TRUE | C190: Einzahlung Kapitaltransfers (IZ Investitionszuschüsse) | I190: Summe Tilgung DL1+DL2 | L190: =+L186+L188 -> 0 | M190: =+M186+M188 -> 0 | N190: 0 | O190: 0 | P190: 0 | Q190: 0 | R190: 0 | S190: 0 | T190: 0 | U190: 0
C191: Einzahlung Kapitaltransfers (Interessentenbeiträge)
C192: Einzahlung Kapitaltransfers (Sonstiges) | I192: Inneres Darlehen
C193: Mittel aus OGB für Investitionen (Überschuss nach freier Finanzspitze) | I193: Zinsen Inneres Darlehen IDL | L193: =IF(AND(L183>$F183,L183<($F183+$F199+1)),IPMT($G199,L183-$F183,$F199,-$E199),0) -> 0 | M193: =IF(AND(M183>$F183,M183<($F183+$F199+1)),IPMT($G199,M183-$F183,$F199,-$E199),0) -> 0 | N193: 0 | O193: 0 | P193: 0 | Q193: 0 | R193: 0 | S193: 0 | T193: 0 | U193: 0
A194: TRUE | C194: Entnahmen aus Rücklagen (ZMR) | I194: Tilgung Inneres Darlehen IDL | L194: =IF(AND(L183>$F183,L183<($F183+$F199+1)),PPMT($G199,L183-$F183,$F199,-$E199),0) -> 0 | M194: =IF(AND(M183>$F183,M183<($F183+$F199+1)),PPMT($G199,M183-$F183,$F199,-$E199),0) -> 0 | N194: 0 | O194: 0 | P194: 0 | Q194: 0 | R194: 0 | S194: 0 | T194: 0 | U194: 0
A195: TRUE | C195: Einzahlung aus vorhandenen zweckgebundenen Girokonten
F196: LZ in J | G196: Zinssatz | I196: Finanzierungszuschüsse
C197: Einzahlung aus Darlehensaufnahme 1 (DL1) / (Finanzierungsleasing) | I197: Perioden Zahlung
A198: TRUE | C198: Einzahlung aus Darlehensaufnahme 2 (DL2) / (Finanzierungsleasing) | I198: FZ Zi | J198: Zinsenzuschuss | L198: =IF(L183>$F183,IF(ISERROR(IPMT($G202,L183-$F183,$F202,-$E202)),0,IPMT($G202,L183-$F183,$F202,-$E202)),0) -> 0 | M198: =IF(M183>$F183,IF(ISERROR(IPMT($G202,M183-$F183,$F202,-$E202)),0,IPMT($G202,M183-$F183,$F202,-$E202)),0) -> 0 | N198: =IF(N183>$F183,IF(ISERROR(IPMT($G202,N183-$F183,$F202,-$E202)),0,IPMT($G202,N183-$F183,$F202,-$E202)),0) -> 0 | O198: 0 | P198: 0 | Q198: 0 | R198: 0 | S198: 0 | T198: 0 | U198: 0
C199: Einzahlung aus Aufnahme Inneres Darlehen (IDL) | I199: FZ Bw | J199: Bw Zuschuss | L199: =IF(L183>$F183,IF(ISERROR(PPMT($G202,L183-$F183,$F202,-$E202)),0,PPMT($G202,L183-$F183,$F202,-$E202)),0) -> 0 | M199: =IF(M183>$F183,IF(ISERROR(PPMT($G202,M183-$F183,$F202,-$E202)),0,PPMT($G202,M183-$F183,$F202,-$E202)),0) -> 0 | N199: 0 | O199: 0 | P199: 0 | Q199: 0 | R199: 0 | S199: 0 | T199: 0 | U199: 0
A200: TRUE | C200: Schlüssige Finanzierung | E200: =-E187-E188+E189+E190+E191+E192+E193+E194+E195+E197+E198+E199 -> 0 | I200: Summe Zuschuss FZ | L200: =+L199+L198 -> 0 | M200: 0 | N200: 0 | O200: 0 | P200: 0 | Q200: 0 | R200: 0 | S200: 0 | T200: 0 | U200: 0
F201: LZ FZ in J | G201: Barwertzinssatz
C202: Finanzierungszusch. FZ (lt. Förderv.) - Zwischenfinanzierung erforderlich | I202: Bauzinsen (DL1 + DL2) | L202: =+F203 -> 0
C203: Bauzinsen während der Bauphase | E203: (DL1 + DL2) / 2 * Zinssatz | F203: =+(E198+E197)/2*G203 -> 0 | I203: Betriebskosten | L203: 0 | M203: =+E204 -> 0 | N203: =M203*(1+G204) -> 0 | O203: =N203*(1+G204) -> 0 | P203: =O203*(1+G204) -> 0 | Q203: =P203*(1+G204) -> 0 | R203: =Q203*(1+G204) -> 0 | S203: =R203*(1+G204) -> 0 | T203: =S203*(1+G204) -> 0 | U203: =T203*(1+G204) -> 0
A204: TRUE | C204: Betriebskostenveränderung (+/-) durch Invest. | F204: Steigerung p.a.
C206: Liquiditätserfordernis aus Investitionstätigkeit (ohne Rückzahlung Inneres Darlehen) | I206: SU | L206: =L189+L190-L200+L202+L203 -> 0 | M206: 0 | N206: 0 | O206: 0 | P206: 0 | Q206: 0 | R206: 0 | S206: 0 | T206: 0 | U206: 0
A207: TRUE
A208: TRUE | C208: Investitions- und Finanzierungsplan | F208: =F183+1 -> 2030 | I208: Finanzschulden | L208: =+F208 -> 2030 | M208: =L208+1 -> 2031 | N208: =M208+1 -> 2032 | O208: =N208+1 -> 2033 | P208: =O208+1 -> 2034 | Q208: =P208+1 -> 2035 | R208: =Q208+1 -> 2036 | S208: =R208+1 -> 2037 | T208: =S208+1 -> 2038 | U208: =T208+1 -> 2039
... 46 more rows

Sheet Grafik Liquiditätsplan
A28: SU 31 Summe Einzahlungen operative Gebarung | H28: Saldo (5) Geldfluss aus der voranschlagswirksamen Geb. (SA3 + SA4)
A29: SU 32 Summe Auszahlungen operative Gebarung | H29: Stand HH Rücklagen per 31.12
A30: Freie Finanzspitze (SA 1 - MVAG 361) | H30: davon Stand ZMR (Sparbuch, Sparkonto) per 31.12.
A31: SU 34 Summe Auszahlungen investive Gebarung | H31: Liquide Mittel Ansatz 850 per 31.12.
A32: SU 36 Summe Auszahlungen aus der Finanzierungstätigkeit
B50: =Liquiditätsplan!J8 -> 2022 | C50: =Liquiditätsplan!K8 -> 2023 | D50: =Liquiditätsplan!L8 -> 2024 | E50: =Liquiditätsplan!M8 -> 2025 | F50: =Liquiditätsplan!N8 -> 2026 | G50: =Liquiditätsplan!O8 -> 2027 | H50: =Liquiditätsplan!P8 -> 2028 | I50: =Liquiditätsplan!Q8 -> 2029 | J50: =Liquiditätsplan!R8 -> 2030 | K50: =Liquiditätsplan!S8 -> 2031
A51: SU 31 Summe Einzahlungen operative Gebarung | B51: =Liquiditätsplan!J9 -> 0 | C51: =Liquiditätsplan!K9 -> 0 | D51: =Liquiditätsplan!L9 -> 0 | E51: =Liquiditätsplan!M9 -> 0 | F51: =Liquiditätsplan!N9 -> 0 | G51: =Liquiditätsplan!O9 -> 0 | H51: =Liquiditätsplan!P9 -> 0 | I51: =Liquiditätsplan!Q9 -> 0 | J51: =Liquiditätsplan!R9 -> 0 | K51: =Liquiditätsplan!S9 -> 0 | L51: TRUE
A52: SU 32 Summe Auszahlungen operative Gebarung | B52: =Liquiditätsplan!J21 -> 0 | C52: =Liquiditätsplan!K21 -> 0 | D52: =Liquiditätsplan!L21 -> 0 | E52: =Liquiditätsplan!M21 -> 0 | F52: =Liquiditätsplan!N21 -> 0 | G52: =Liquiditätsplan!O21 -> 0 | H52: =Liquiditätsplan!P21 -> 0 | I52: =Liquiditätsplan!Q21 -> 0 | J52: =Liquiditätsplan!R21 -> 0 | K52: =Liquiditätsplan!S21 -> 0 | L52: FALSE
A53: Freie Finanzspitze (SA 1 - MVAG 361) | B53: =Liquiditätsplan!J42 -> 0 | C53: =Liquiditätsplan!K42 -> 0 | D53: =Liquiditätsplan!L42 -> 0 | E53: =Liquiditätsplan!M42 -> 0 | F53: =Liquiditätsplan!N42 -> 0 | G53: =Liquiditätsplan!O42 -> 0 | H53: =Liquiditätsplan!P42 -> 0 | I53: =Liquiditätsplan!Q42 -> 0 | J53: =Liquiditätsplan!R42 -> 0 | K53: =Liquiditätsplan!S42 -> 0 | L53: TRUE
A54: SU 34 Summe Auszahlungen investive Gebarung | B54: =Liquiditätsplan!J50 -> 0 | C54: =Liquiditätsplan!K50 -> 0 | D54: =Liquiditätsplan!L50 -> 0 | E54: =Liquiditätsplan!M50 -> 0 | F54: =Liquiditätsplan!N50 -> 0 | G54: =Liquiditätsplan!O50 -> 0 | H54: =Liquiditätsplan!P50 -> 0 | I54: =Liquiditätsplan!Q50 -> 0 | J54: =Liquiditätsplan!R50 -> 0 | K54: =Liquiditätsplan!S50 -> 0 | L54: FALSE
A55: SU 36 Summe Auszahlungen aus der Finanzierungstätigkeit | B55: =Liquiditätsplan!J59 -> 0 | C55: =Liquiditätsplan!K59 -> 0 | D55: =Liquiditätsplan!L59 -> 0 | E55: =Liquiditätsplan!M59 -> 0 | F55: =Liquiditätsplan!N59 -> 0 | G55: =Liquiditätsplan!O59 -> 0 | H55: =Liquiditätsplan!P59 -> 0 | I55: =Liquiditätsplan!Q59 -> 0 | J55: =Liquiditätsplan!R59 -> 0 | K55: =Liquiditätsplan!S59 -> 0 | L55: TRUE
A56: Saldo (5) Geldfluss aus der voranschlagswirksamen Geb. (SA3 + SA4) | B56: =Liquiditätsplan!J64 -> 0 | C56: =Liquiditätsplan!K64 -> 0 | D56: =Liquiditätsplan!L64 -> 0 | E56: =Liquiditätsplan!M64 -> 0 | F56: =Liquiditätsplan!N64 -> 0 | G56: =Liquiditätsplan!O64 -> 0 | H56: =Liquiditätsplan!P64 -> 0 | I56: =Liquiditätsplan!Q64 -> 0 | J56: =Liquiditätsplan!R64 -> 0 | K56: =Liquiditätsplan!S64 -> 0 | L56: FALSE
A57: Stand HH Rücklagen per 31.12 | B57: =Liquiditätsplan!J70 -> 0 | C57: =Liquiditätsplan!K70 -> 0 | D57: =Liquiditätsplan!L70 -> 0 | E57: =Liquiditätsplan!M70 -> 0 | F57: =Liquiditätsplan!N70 -> 0 | G57: =Liquiditätsplan!O70 -> 0 | H57: =Liquiditätsplan!P70 -> 0 | I57: =Liquiditätsplan!Q70 -> 0 | J57: =Liquiditätsplan!R70 -> 0 | K57: =Liquiditätsplan!S70 -> 0 | L57: TRUE
A58: davon Stand ZMR (Sparbuch, Sparkonto) per 31.12. | B58: =Liquiditätsplan!J71 -> 0 | C58: =Liquiditätsplan!K71 -> 0 | D58: =Liquiditätsplan!L71 -> 0 | E58: =Liquiditätsplan!M71 -> 0 | F58: =Liquiditätsplan!N71 -> 0 | G58: =Liquiditätsplan!O71 -> 0 | H58: =Liquiditätsplan!P71 -> 0 | I58: =Liquiditätsplan!Q71 -> 0 | J58: =Liquiditätsplan!R71 -> 0 | K58: =Liquiditätsplan!S71 -> 0 | L58: FALSE
A59: Liquide Mittel Ansatz 850 per 31.12. | B59: =Liquiditätsplan!J84 -> 0 | C59: =Liquiditätsplan!K84 -> 0 | D59: =Liquiditätsplan!L84 -> 0 | E59: =Liquiditätsplan!M84 -> 0 | F59: =Liquiditätsplan!N84 -> 0 | G59: =Liquiditätsplan!O84 -> 0 | H59: =Liquiditätsplan!P84 -> 0 | I59: =Liquiditätsplan!Q84 -> 0 | J59: =Liquiditätsplan!R84 -> 0 | K59: =Liquiditätsplan!S84 -> 0 | L59: TRUE
A61: =IF(Liquiditätsplan!F1,CONCATENATE("Investitions- und Liquiditätsplan Wasserversorgung Rechnungsabschluss "&BAB!J12," "&Info!C17," inkl. zukünftiger Investitionen"),CONCATENATE("Investitions- und Liquiditätsplan Wasserversorgung Rechnungsabschluss "&BAB!J12," "&Info!C17," exkl. zukünftiger Investitionen")) -> Investitions- und Liquiditätsplan Wasserversorgung Rechnungsabschluss 2021 inkl. zukünftiger Investitionen

Sheet Baupreisindex (hidden)
B1: =CONCATENATE("Baupreisindex Abwasserentsorgung Rechnungsabschluss "&BAB!J12," KLR-Ebene: "&Info!C17 ) -> Baupreisindex Abwasserentsorgung Rechnungsabschluss 2021 KLR-Ebene:
C2: Verketteter Baupreisindex für die Inflationsbereinigung von Wasser- und Abwasserbauten und -anlagen und Anlagen
C3: der Abfallwirtschaft zur Berechnung simulierter Anschaffungskosten gemäß ÖWAV Arbeitsbehelf 61 (Voranschlags-
C4: und Rechnungsabschlussverordnung 2015 in der Abwasser-, Abfall- und Schutzwasserwirtschaft):
C5: Seit 1984 "Baupreisindex für den sonstigen Tiefbau" mit Basis 1984 = 100,
C6: 1966 bis 1983 "verlängert" mit dem "umgerechneten Verbraucherpreisindex 1966"
C7: sowie 1946 bis 1965 "verlängert" mit dem "umgerechneten Lebenshaltungskostenindex (Wert 1952 interpoliert)"
D9: umge+J28+D9:K31+D9:K32 | F9: umgerechneter | H9: Baupreisindex | J9: Baupreisindex
D10: Lebenshaltungs- | F10: Verbraucher- | H10: sonstiger Tiefbau | J10: sonstiger Tiefbau
D11: kostenindex | F11: preisindex | H11: mit Basis 1984 = 100 | J11: mit Basis 1984 = 100
D12: Jahr | E12: Index | F12: Jahr | G12: Index | H12: Jahr | I12: Index | J12: Jahr | K12: Index
D13: 1946 | E13: 4.32 | F13: 1966 | G13: 38.46 | H13: 1984 | I13: 100 | J13: 2004 | K13: 145
D14: 1947 | E14: 8.53 | F14: 1967 | G14: 40 | H14: 1985 | I14: 102 | J14: 2005 | K14: 144.8
D15: 1948 | E15: 12.99 | F15: 1968 | G15: 41.12 | H15: 1986 | I15: 107 | J15: 2006 | K15: 148.3
D16: 1949 | E16: 16.64 | F16: 1969 | G16: 42.38 | H16: 1987 | I16: 113 | J16: 2007 | K16: 153.1
D17: 1950 | E17: 18.82 | F17: 1970 | G17: 44.23 | H17: 1988 | I17: 117 | J17: 2008 | K17: 161.6
D18: 1951 | E18: 24.05 | F18: 1971 | G18: 46.31 | H18: 1989 | I18: 122 | J18: 2009 | K18: 171
D19: 1952 | E19: 25.34 | F19: 1972 | G19: 49.23 | H19: 1990 | I19: 125 | J19: 2010 | K19: 184
D20: 1953 | E20: 26.63 | F20: 1973 | G20: 52.96 | H20: 1991 | I20: 129 | J20: 2011 | K20: 191
D21: 1954 | E21: 27.61 | F21: 1974 | G21: 58 | H21: 1992 | I21: 132 | J21: 2012 | K21: 195.8
D22: 1955 | E22: 27.82 | F22: 1975 | G22: 62.88 | H22: 1993 | I22: 134 | J22: 2013 | K22: 196.5
D23: 1956 | E23: 28.79 | F23: 1976 | G23: 67.5 | H23: 1994 | I23: 137 | J23: 2014 | K23: 197.2
D24: 1957 | E24: 29.43 | F24: 1977 | G24: 71.19 | H24: 1995 | I24: 140.54 | J24: 2015 | K24: 196.7
D25: 1958 | E25: 30.1 | F25: 1978 | G25: 73.73 | H25: 1996 | I25: 144.5 | J25: 2016 | K25: 198.3
D26: 1959 | E26: 30.58 | F26: 1979 | G26: 76.46 | H26: 1997 | I26: 147.9 | J26: 2017 | K26: 200.4
D27: 1960 | E27: 31.02 | F27: 1980 | G27: 81.81 | H27: 1998 | I27: 148.8 | J27: 2018 | K27: 202.8
D28: 1961 | E28: 32.01 | F28: 1981 | G28: 86.85 | H28: 1999 | I28: 147.1 | J28: 2019
D29: 1962 | E29: 33.56 | F29: 1982 | G29: 91.58 | H29: 2000 | I29: 147
D30: 1963 | E30: 34.52 | F30: 1983 | G30: 94.62 | H30: 2001 | I30: 146.3
D31: 1964 | E31: 35.84 | H31: 2002 | I31: 145.9
D32: 1965 | E32: 37.75 | H32: 2003 | I32: 145.3
B34: Bezeichnung des Vermögenswertes und Dokumentation von Inbetriebnahmedatum, Mengenermittlung und Nutzungsdauer:
B35: Bauabschnitt Regenwasserkanal Industriegebiet (BA RWK I): Errichtung 1976, ohne Förderung mit 50% Interessentenbeitrag.
B36: Von folgenden Anlagenteilen dieses Bauabschnittes ist die Mustergemeinde wirtschaftliche Eigentümerin:
B37: Rohrkanal, Nenndurchmesser 400 mm: 809 Laufmeter gemäß digitalem Kanalkataster, Nutzungsdauer 50 Jahre gemäß VRV
B38: Eiprofilkanal 600mm/900 mm: 122 Laufmetergemäß digitalem Kanalkataster, Nutzungsdauer 50 Jahre gemäß VRV
B39: Eiprofilkanal 700mm/1050 mm: 111 Laufmetergemäß digitalem Kanalkataster, Nutzungsdauer 50 Jahre gemäß VRV
B40: Eiprofilkanal 800mm/1200 mm: 231 Laufmeter gemäß digitalem Kanalkataster, Nutzungsdauer 50 Jahre gemäß VRV
B41: Eiprofilkanal 900mm/1350 mm: 256 Laufmeter gemäß digitalem Kanalkataster, Nutzungsdauer 50 Jahre gemäß VRV
B42: Dokumentation der Grundlagen der Durchschnittspreisermittlung (oder der bestehenden Gutachten):
B43: Für den Rohrkanal DN 400 wird der Durchschnittspreis aus dem "Merkblatt Variantenuntersuchung des Amtes der Stmk. Landesreg.,
B44: A14, Version 2010", mit dem angegebenen Kostenansatz von € 205 pro Laufmeter (verbautes Gebiet) entnommen. Siehe unter:
B45: http://www.wasserwirtschaft.steiermark.at/cms/dokumente/11680451_74838155/562acfbc/Merkblatt%20VU%202010%2020120801.pdf
B46: Für Eiprofile werden die Durchschnittspreise aus tatsächlichen Herstellungskosten von drei Anlagen in vergleichbarer Lage berechnet:
B47: Anlagenteile | D47: Jahr | E47: €/Laufmeter | G47: €/Laufmeter | I47: €/Laufmeter | K47: Durchschnittspreis €/Laufmeter
B48: Eiprofil 600 / 900 | D48: 2017 | E48: 1250 | G48: 520 | I48: 890 | K48: =ROUND((E48+G48+I48)/3,0) -> 887
B49: Eiprofil 700 / 1050 | D49: 2017 | E49: 1500 | G49: 640 | I49: 1000 | K49: =ROUND((E49+G49+I49)/3,0) -> 1047
B50: Eiprofil 800 / 1200 | D50: 2017 | E50: 1600 | G50: 760 | I50: 1190 | K50: =ROUND((E50+G50+I50)/3,0) -> 1183
B51: Eiprofil 900 / 1350 | D51: 2017 | E51: 1700 | G51: 880 | I51: 1300 | K51: =ROUND((E51+G51+I51)/3,0) -> 1293
B52: Berechnung der simulierten Anschaffungskosten nach Inflationsbereinigung:
B53: Anlagenteile | D53: ermittelter | E53: Anzahl | F53: Laufmeter mal Preis | H53: Jahr der | I53: Indexzahl | J53: Jahr der | K53: Indexzahl | L53: simulierte
D54: Preis | E54: Laufmeter | H54: Preis- | I54: der Preis- | J54: Inbetrieb- | K54: Inbetrieb- | L54: Anschaffungs-
D55: € | F55: € | H55: ermittlung | I55: ermittlung | J55: nahme | K55: nahme | L55: kosten in €
B56: DN 400 mm | D56: 205 | E56: 809 | F56: =D56*E56 -> 165845 | H56: 2010 | I56: 184 | J56: 1976 | K56: 67.5 | L56: =K56*F56/I56 -> 60839.87772
B57: Eiprofil 600 / 900 | D57: 887 | E57: 122 | F57: =D57*E57 -> 108214 | H57: 2017 | I57: 200.4 | J57: 1976 | K57: 67.5 | L57: =K57*F57/I57 -> 36449.32635
B58: Eiprofil 700 / 1050 | D58: 1047 | E58: 111 | F58: 116217 | H58: 2017 | I58: 200.4 | J58: 1976 | K58: 67.5 | L58: 39144.9476
B59: Eiprofil 800 / 1200 | D59: 1183 | E59: 231 | F59: 273273 | H59: 2017 | I59: 200.4 | J59: 1976 | K59: 67.5 | L59: 92045.54641
B60: Eiprofil 900 / 1350 | D60: 1293 | E60: 256 | F60: 331008 | H60: 2017 | I60: 200.4 | J60: 1976 | K60: 67.5 | L60: 111492.2156
B61: Summe BA RWK I | L61: =SUM(L56:M60) -> 339971.9136

Sheet Andere (hidden)
A1: FALSE | B1: TRUE | C1: Ende
A2: FALSE | B2: Andere Nachweise | C2: 001.00
A3: FALSE | B3: Ende
A4: FALSE | B4: 4 | C4: 6 | D4: 42 | E4: 13 | F4: 13 | G4: 13 | H4: 13
A5: TRUE | B5: =TEXT(wST.Ansatz,"000")&", ANDERE NACHWEISE per "&TEXT(wST.PeriodeEnde,"T. MMMM JJJJ") -> 850, ANDERE NACHWEISE per 31. Dezember 2021 | H5: =wST.ORT -> 0
A6: TRUE
A7: TRUE | B7: Posten- gruppe | C7: Teil- Abschn. | D7: Bezeichnung | E7: ="Stand per "&TEXT(wST.PeriodeAnfang-1,"T.M.JJJJ") -> Stand per 31.12.2020 | F7: ="Zugänge im Jahr "&TEXT(wST.PeriodeAnfang,"JJJJ") -> Zugänge im Jahr 2021 | G7: ="Abgänge im Jahr "&TEXT(wST.PeriodeAnfang,"JJJJ") -> Abgänge im Jahr 2021 | H7: ="Stand per "&TEXT(wST.PeriodeEnde,"T.M.JJJJ") -> Stand per 31.12.2021
A8: TRUE
A9: =A10 -> FALSE | B9: 939 | C9: HAUSHALTSRÜCKLAGE | E9: =E10 -> 0 | F9: =F10 -> 0 | G9: =G10 -> 0 | H9: =H10 -> 0
A10: =OR(A11:A25) -> FALSE | B10: 939 | C10: Haushaltsrücklage (Bewegung: Post 298) | E10: =SUMPRODUCT(E11:E25,$I11:$I25) -> 0 | F10: =SUMPRODUCT(F11:F25,$I11:$I25) -> 0 | G10: =SUMPRODUCT(G11:G25,$I11:$I25) -> 0 | H10: =SUMPRODUCT(H11:H25,$I11:$I25) -> 0
A11: =I11>0 -> FALSE | H11: =SUM(E11,F11,-G11) -> 0 | I11: =IF(C11=0,0,IF(VALUE(LEFT(C11,3))=wST.Ansatz,1,0)) -> 0
A12: FALSE | H12: =SUM(E12,F12,-G12) -> 0 | I12: 0
A13: FALSE | H13: =SUM(E13,F13,-G13) -> 0 | I13: 0
A14: FALSE | H14: =SUM(E14,F14,-G14) -> 0 | I14: 0
A15: FALSE | I15: 0
A16: FALSE | I16: 0
A17: FALSE | I17: 0
A18: FALSE | I18: 0
A19: FALSE | I19: 0
A20: FALSE | I20: 0
A21: FALSE | I21: 0
A22: FALSE | I22: 0
A23: FALSE | I23: 0
A24: FALSE | I24: 0
A25: FALSE | I25: 0
A26: =A9 -> FALSE
A27: =OR(A29,A35,A45,A57) -> FALSE | B27: Vermögenspositionen:
A28: =A27 -> FALSE
A29: =A30 -> FALSE | B29: 23 | C29: LIEFERFORDERUNGEN | E29: =E30 -> 0 | F29: =F30 -> 0 | G29: =G30 -> 0 | H29: =H30 -> 0
A30: =OR(A31:A33) -> FALSE | B30: 230 | C30: Schließliche Reste (Einnahmen) | E30: =SUMPRODUCT(E31:E33,$I31:$I33) -> 0 | F30: =SUMPRODUCT(F31:F33,$I31:$I33) -> 0 | G30: =SUMPRODUCT(G31:G33,$I31:$I33) -> 0 | H30: =SUMPRODUCT(H31:H33,$I31:$I33) -> 0
A31: =I31>0 -> FALSE | F31: =MAX(0,H31-E31) -> 0 | G31: =MAX(0,-H31+E31) -> 0 | I31: =IF(C31=0,0,IF(VALUE(LEFT(C31,3))=wST.Ansatz,1,0)) -> 0
A32: =I32>0 -> FALSE | I32: =IF(C32=0,0,IF(VALUE(LEFT(C32,3))=wST.Ansatz,1,0)) -> 0
A33: =I33>0 -> FALSE | I33: =IF(C33=0,0,IF(VALUE(LEFT(C33,3))=wST.Ansatz,1,0)) -> 0
A34: =A29 -> FALSE
A35: =OR(A36,A40) -> FALSE | B35: 27 | C35: VORSCHÜSSE | E35: =SUM(E36,E40) -> 0 | F35: =SUM(F36,F40) -> 0 | G35: =SUM(G36,G40) -> 0 | H35: =SUM(H36,H40) -> 0
A36: =OR(A37:A39) -> FALSE | B36: 270 | C36: Finanzamt - Vorsteuerbeträge | E36: =SUMPRODUCT(E37:E39,$I37:$I39) -> 0 | F36: =SUMPRODUCT(F37:F39,$I37:$I39) -> 0 | G36: =SUMPRODUCT(G37:G39,$I37:$I39) -> 0 | H36: =SUMPRODUCT(H37:H39,$I37:$I39) -> 0
A37: =I37>0 -> FALSE | H37: =SUM(E37,F37,-G37) -> 0 | I37: =IF(C37=0,0,IF(VALUE(LEFT(C37,3))=wST.Ansatz,1,0)) -> 0
A38: =I38>0 -> FALSE | I38: =IF(C38=0,0,IF(VALUE(LEFT(C38,3))=wST.Ansatz,1,0)) -> 0
A39: =I39>0 -> FALSE | I39: =IF(C39=0,0,IF(VALUE(LEFT(C39,3))=wST.Ansatz,1,0)) -> 0
A40: =OR(A41:A43) -> FALSE | B40: 279 | C40: Sonstige Vorschüsse | E40: =SUMPRODUCT(E41:E43,$I41:$I43) -> 0 | F40: =SUMPRODUCT(F41:F43,$I41:$I43) -> 0 | G40: =SUMPRODUCT(G41:G43,$I41:$I43) -> 0 | H40: =SUMPRODUCT(H41:H43,$I41:$I43) -> 0
A41: =I41>0 -> FALSE | H41: =SUM(E41,F41,-G41) -> 0 | I41: =IF(C41=0,0,IF(VALUE(LEFT(C41,3))=wST.Ansatz,1,0)) -> 0
A42: =I42>0 -> FALSE | H42: =SUM(E42,F42,-G42) -> 0 | I42: =IF(C42=0,0,IF(VALUE(LEFT(C42,3))=wST.Ansatz,1,0)) -> 0
A43: =I43>0 -> FALSE | H43: =SUM(E43,F43,-G43) -> 0 | I43: =IF(C43=0,0,IF(VALUE(LEFT(C43,3))=wST.Ansatz,1,0)) -> 0
A44: =A35 -> FALSE
A45: =OR(A46,A50) -> FALSE | B45: 28 | C45: GEGEBENE ANZAHLUNGEN UND SONSTIGE FORDERUNGEN | E45: =SUM(E46,E50) -> 0 | F45: =SUM(F46,F50) -> 0 | G45: =SUM(G46,G50) -> 0 | H45: =SUM(H46,H50) -> 0
A46: =OR(A47:A49) -> FALSE | B46: 280 | C46: Anzahlungen an Geschäftsleute | E46: =SUMPRODUCT(E47:E49,$I47:$I49) -> 0 | F46: =SUMPRODUCT(F47:F49,$I47:$I49) -> 0 | G46: =SUMPRODUCT(G47:G49,$I47:$I49) -> 0 | H46: =SUMPRODUCT(H47:H49,$I47:$I49) -> 0
A47: =I47>0 -> FALSE | I47: =IF(C47=0,0,IF(VALUE(LEFT(C47,3))=wST.Ansatz,1,0)) -> 0
A48: =I48>0 -> FALSE | I48: =IF(C48=0,0,IF(VALUE(LEFT(C48,3))=wST.Ansatz,1,0)) -> 0
A49: =I49>0 -> FALSE | I49: =IF(C49=0,0,IF(VALUE(LEFT(C49,3))=wST.Ansatz,1,0)) -> 0
A50: =OR(A51:A53) -> FALSE | B50: 287 | C50: Sonstige Forderungen | E50: =SUMPRODUCT(E51:E53,$I51:$I53) -> 0 | F50: =SUMPRODUCT(F51:F53,$I51:$I53) -> 0 | G50: =SUMPRODUCT(G51:G53,$I51:$I53) -> 0 | H50: =SUMPRODUCT(H51:H53,$I51:$I53) -> 0
A51: =I51>0 -> FALSE | I51: =IF(C51=0,0,IF(VALUE(LEFT(C51,3))=wST.Ansatz,1,0)) -> 0
A52: =I52>0 -> FALSE | I52: =IF(C52=0,0,IF(VALUE(LEFT(C52,3))=wST.Ansatz,1,0)) -> 0
A53: =I53>0 -> FALSE | I53: =IF(C53=0,0,IF(VALUE(LEFT(C53,3))=wST.Ansatz,1,0)) -> 0
A56: =A45 -> FALSE
A57: =A58 -> FALSE | B57: 290 | C57: AKTIVE RECHNUNGSABGRENZUNG | E57: =E58 -> 0 | F57: =F58 -> 0 | G57: =G58 -> 0 | H57: =H58 -> 0
A58: =OR(A59:A61) -> FALSE | B58: 290 | C58: Aktive Rechnungsabgrenzung | E58: =SUMPRODUCT(E59:E61,$I59:$I61) -> 0 | F58: =SUMPRODUCT(F59:F61,$I59:$I61) -> 0 | G58: =SUMPRODUCT(G59:G61,$I59:$I61) -> 0 | H58: =SUMPRODUCT(H59:H61,$I59:$I61) -> 0
A59: =I59>0 -> FALSE | H59: =SUM(E59,F59,-G59) -> 0 | I59: =IF(C59=0,0,IF(VALUE(LEFT(C59,3))=wST.Ansatz,1,0)) -> 0
A60: =I60>0 -> FALSE | I60: =IF(C60=0,0,IF(VALUE(LEFT(C60,3))=wST.Ansatz,1,0)) -> 0
A61: =I61>0 -> FALSE | I61: =IF(C61=0,0,IF(VALUE(LEFT(C61,3))=wST.Ansatz,1,0)) -> 0
A62: =A51 -> FALSE
A63: =OR(A65,A71,A104,A114,A120) -> FALSE | B63: Schuldpositionen:
A64: =A63 -> FALSE
A65: =A66 -> FALSE | B65: 33 | C65: LIEFERSCHULDEN | E65: =E66 -> 0 | F65: =F66 -> 0 | G65: =G66 -> 0 | H65: =H66 -> 0
A66: =OR(A67:A69) -> FALSE | B66: 330 | C66: Schließliche Reste (Ausgaben) | E66: =SUMPRODUCT(E67:E69,$I67:$I69) -> 0 | F66: =SUMPRODUCT(F67:F69,$I67:$I69) -> 0 | G66: =SUMPRODUCT(G67:G69,$I67:$I69) -> 0 | H66: =SUMPRODUCT(H67:H69,$I67:$I69) -> 0
A67: =I67>0 -> FALSE | F67: =MAX(0,H67-E67) -> 0 | G67: =MAX(0,-H67+E67) -> 0 | I67: =IF(C67=0,0,IF(VALUE(LEFT(C67,3))=wST.Ansatz,1,0)) -> 0
A68: =I68>0 -> FALSE | I68: =IF(C68=0,0,IF(VALUE(LEFT(C68,3))=wST.Ansatz,1,0)) -> 0
A69: =I69>0 -> FALSE | I69: =IF(C69=0,0,IF(VALUE(LEFT(C69,3))=wST.Ansatz,1,0)) -> 0
A70: =A65 -> FALSE
A71: =OR(A72,A76,A80,A84,A90,A95,A99) -> FALSE | B71: 360 | C71: ERLÄGE | E71: =SUM(E72,E76,E80,E84,E90,E95,E99) -> 0 | F71: =SUM(F72,F76,F80,F84,F90,F95,F99) -> 0 | G71: =SUM(G72,G76,G80,G84,G90,G95,G99) -> 0 | H71: =SUM(H72,H76,H80,H84,H90,H95,H99) -> 0
A72: =OR(A73:A75) -> FALSE | B72: 360 | C72: Verbindlichkeiten aus Steuern | E72: =SUMPRODUCT(E73:E75,$I73:$I75) -> 0 | F72: =SUMPRODUCT(F73:F75,$I73:$I75) -> 0 | G72: =SUMPRODUCT(G73:G75,$I73:$I75) -> 0 | H72: =SUMPRODUCT(H73:H75,$I73:$I75) -> 0
A73: =I73>0 -> FALSE | H73: =SUM(E73,F73,-G73) -> 0 | I73: =IF(C73=0,0,IF(VALUE(LEFT(C73,3))=wST.Ansatz,1,0)) -> 0
A74: =I74>0 -> FALSE | I74: =IF(C74=0,0,IF(VALUE(LEFT(C74,3))=wST.Ansatz,1,0)) -> 0
A75: =I75>0 -> FALSE | I75: =IF(C75=0,0,IF(VALUE(LEFT(C75,3))=wST.Ansatz,1,0)) -> 0
A76: =OR(A77:A79) -> FALSE | B76: 361 | C76: Erläge von/für Dienststellen der Gebietskörperschaften | E76: =SUMPRODUCT(E77:E79,$I77:$I79) -> 0 | F76: =SUMPRODUCT(F77:F79,$I77:$I79) -> 0 | G76: =SUMPRODUCT(G77:G79,$I77:$I79) -> 0 | H76: =SUMPRODUCT(H77:H79,$I77:$I79) -> 0
A77: =I77>0 -> FALSE | I77: =IF(C77=0,0,IF(VALUE(LEFT(C77,3))=wST.Ansatz,1,0)) -> 0
A78: =I78>0 -> FALSE | I78: =IF(C78=0,0,IF(VALUE(LEFT(C78,3))=wST.Ansatz,1,0)) -> 0
A79: =I79>0 -> FALSE | I79: =IF(C79=0,0,IF(VALUE(LEFT(C79,3))=wST.Ansatz,1,0)) -> 0
A80: =OR(A81:A83) -> FALSE | B80: 362 | C80: Gehaltsabzugsgebarungen | E80: =SUMPRODUCT(E81:E83,$I81:$I83) -> 0 | F80: =SUMPRODUCT(F81:F83,$I81:$I83) -> 0 | G80: =SUMPRODUCT(G81:G83,$I81:$I83) -> 0 | H80: =SUMPRODUCT(H81:H83,$I81:$I83) -> 0
A81: =I81>0 -> FALSE | H81: =SUM(E81,F81,-G81) -> 0 | I81: =IF(C81=0,0,IF(VALUE(LEFT(C81,3))=wST.Ansatz,1,0)) -> 0
A82: =I82>0 -> FALSE | H82: =SUM(E82,F82,-G82) -> 0 | I82: =IF(C82=0,0,IF(VALUE(LEFT(C82,3))=wST.Ansatz,1,0)) -> 0
A83: =I83>0 -> FALSE | H83: =SUM(E83,F83,-G83) -> 0 | I83: =IF(C83=0,0,IF(VALUE(LEFT(C83,3))=wST.Ansatz,1,0)) -> 0
A84: =OR(A85:A89) -> FALSE | B84: 365 | C84: Sonstige Schulden an Dritte | E84: =SUMPRODUCT(E85:E89,$I85:$I89) -> 0 | F84: =SUMPRODUCT(F85:F89,$I85:$I89) -> 0 | G84: =SUMPRODUCT(G85:G89,$I85:$I89) -> 0 | H84: =SUMPRODUCT(H85:H89,$I85:$I89) -> 0
A85: =I85>0 -> FALSE | H85: =SUM(E85,F85,-G85) -> 0 | I85: =IF(C85=0,0,IF(VALUE(LEFT(C85,3))=wST.Ansatz,1,0)) -> 0
A86: =I86>0 -> FALSE | H86: =SUM(E86,F86,-G86) -> 0 | I86: =IF(C86=0,0,IF(VALUE(LEFT(C86,3))=wST.Ansatz,1,0)) -> 0
A87: =I87>0 -> FALSE | H87: =SUM(E87,F87,-G87) -> 0 | I87: =IF(C87=0,0,IF(VALUE(LEFT(C87,3))=wST.Ansatz,1,0)) -> 0
A88: =I88>0 -> FALSE | H88: =SUM(E88,F88,-G88) -> 0 | I88: =IF(C88=0,0,IF(VALUE(LEFT(C88,3))=wST.Ansatz,1,0)) -> 0
A89: =I89>0 -> FALSE | E89: 0 | H89: =SUM(E89,F89,-G89) -> 0 | I89: =IF(C89=0,0,IF(VALUE(LEFT(C89,3))=wST.Ansatz,1,0)) -> 0
A90: =OR(A91:A94) -> FALSE | B90: 366 | C90: Stiftungen und Fonds | E90: =SUMPRODUCT(E91:E94,$I91:$I94) -> 0 | F90: =SUMPRODUCT(F91:F94,$I91:$I94) -> 0 | G90: =SUMPRODUCT(G91:G94,$I91:$I94) -> 0 | H90: =SUMPRODUCT(H91:H94,$I91:$I94) -> 0
A91: =I91>0 -> FALSE | I91: =IF(C91=0,0,IF(VALUE(LEFT(C91,3))=wST.Ansatz,1,0)) -> 0
A92: =I92>0 -> FALSE | I92: =IF(C92=0,0,IF(VALUE(LEFT(C92,3))=wST.Ansatz,1,0)) -> 0
A93: =I93>0 -> FALSE | I93: =IF(C93=0,0,IF(VALUE(LEFT(C93,3))=wST.Ansatz,1,0)) -> 0
A94: =I94>0 -> FALSE | I94: =IF(C94=0,0,IF(VALUE(LEFT(C94,3))=wST.Ansatz,1,0)) -> 0
A95: =OR(A96:A98) -> FALSE | B95: 367 | C95: Sonstige Erläge | E95: =SUMPRODUCT(E96:E98,$I96:$I98) -> 0 | F95: =SUMPRODUCT(F96:F98,$I96:$I98) -> 0 | G95: =SUMPRODUCT(G96:G98,$I96:$I98) -> 0 | H95: =SUMPRODUCT(H96:H98,$I96:$I98) -> 0
A96: =I96>0 -> FALSE | I96: =IF(C96=0,0,IF(VALUE(LEFT(C96,3))=wST.Ansatz,1,0)) -> 0
A97: =I97>0 -> FALSE | I97: =IF(C97=0,0,IF(VALUE(LEFT(C97,3))=wST.Ansatz,1,0)) -> 0
A98: =I98>0 -> FALSE | I98: =IF(C98=0,0,IF(VALUE(LEFT(C98,3))=wST.Ansatz,1,0)) -> 0
A99: =OR(A100:A102) -> FALSE | B99: 368 | C99: Sonstige Erläge | E99: =SUMPRODUCT(E100:E102,$I100:$I102) -> 0 | F99: =SUMPRODUCT(F100:F102,$I100:$I102) -> 0 | G99: =SUMPRODUCT(G100:G102,$I100:$I102) -> 0 | H99: =SUMPRODUCT(H100:H102,$I100:$I102) -> 0
A100: =I100>0 -> FALSE | I100: =IF(C100=0,0,IF(VALUE(LEFT(C100,3))=wST.Ansatz,1,0)) -> 0
A101: =I101>0 -> FALSE | I101: =IF(C101=0,0,IF(VALUE(LEFT(C101,3))=wST.Ansatz,1,0)) -> 0
A102: =I102>0 -> FALSE | I102: =IF(C102=0,0,IF(VALUE(LEFT(C102,3))=wST.Ansatz,1,0)) -> 0
A103: =A71 -> FALSE
A104: =OR(A105,A109) -> FALSE | B104: 37 | C104: EMPFANGENE ANZAHLUNGEN UND SONSTIGE SCHULDEN | E104: =SUM(E105,E109) -> 0 | F104: =SUM(F105,F109) -> 0 | G104: =SUM(G105,G109) -> 0 | H104: =SUM(H105,H109) -> 0
A105: =OR(A106:A108) -> FALSE | B105: 370 | C105: Sonstige Schulden | E105: =SUMPRODUCT(E106:E108,$I106:$I108) -> 0 | F105: =SUMPRODUCT(F106:F108,$I106:$I108) -> 0 | G105: =SUMPRODUCT(G106:G108,$I106:$I108) -> 0 | H105: =SUMPRODUCT(H106:H108,$I106:$I108) -> 0
A106: =I106>0 -> FALSE | I106: =IF(C106=0,0,IF(VALUE(LEFT(C106,3))=wST.Ansatz,1,0)) -> 0
A107: =I107>0 -> FALSE | I107: =IF(C107=0,0,IF(VALUE(LEFT(C107,3))=wST.Ansatz,1,0)) -> 0
A108: =I108>0 -> FALSE | I108: =IF(C108=0,0,IF(VALUE(LEFT(C108,3))=wST.Ansatz,1,0)) -> 0
A109: =OR(A110:A112) -> FALSE | B109: 379 | C109: Empfangene Anzahlungen | E109: =SUMPRODUCT(E110:E112,$I110:$I112) -> 0 | F109: =SUMPRODUCT(F110:F112,$I110:$I112) -> 0 | G109: =SUMPRODUCT(G110:G112,$I110:$I112) -> 0 | H109: =SUMPRODUCT(H110:H112,$I110:$I112) -> 0
A110: =I110>0 -> FALSE | I110: =IF(C110=0,0,IF(VALUE(LEFT(C110,3))=wST.Ansatz,1,0)) -> 0
A111: =I111>0 -> FALSE | I111: =IF(C111=0,0,IF(VALUE(LEFT(C111,3))=wST.Ansatz,1,0)) -> 0
A112: =I112>0 -> FALSE | I112: =IF(C112=0,0,IF(VALUE(LEFT(C112,3))=wST.Ansatz,1,0)) -> 0
A113: =A104 -> FALSE
A114: =A115 -> FALSE | B114: 38 | C114: RÜCKSTELLUNGEN | E114: =E115 -> 0 | F114: =F115 -> 0 | G114: =G115 -> 0 | H114: =H115 -> 0
A115: =OR(A116:A118) -> FALSE | B115: 380 | C115: Rückstellungen | E115: =SUMPRODUCT(E116:E118,$I116:$I118) -> 0 | F115: =SUMPRODUCT(F116:F118,$I116:$I118) -> 0 | G115: =SUMPRODUCT(G116:G118,$I116:$I118) -> 0 | H115: =SUMPRODUCT(H116:H118,$I116:$I118) -> 0
A116: =I116>0 -> FALSE | I116: =IF(C116=0,0,IF(VALUE(LEFT(C116,3))=wST.Ansatz,1,0)) -> 0
A117: =I117>0 -> FALSE | I117: =IF(C117=0,0,IF(VALUE(LEFT(C117,3))=wST.Ansatz,1,0)) -> 0
A118: =I118>0 -> FALSE | I118: =IF(C118=0,0,IF(VALUE(LEFT(C118,3))=wST.Ansatz,1,0)) -> 0
A119: =A114 -> FALSE
A120: =A121 -> FALSE | B120: 39 | C120: PASSIVE RECHNUNGENABGRENZUNG | E120: =E121 -> 0 | F120: =F121 -> 0 | G120: =G121 -> 0 | H120: =H121 -> 0
A121: =OR(A122:A124) -> FALSE | B121: 390 | C121: Passive Rechnungsabgrenzung | E121: =SUMPRODUCT(E122:E124,$I122:$I124) -> 0 | F121: =SUMPRODUCT(F122:F124,$I122:$I124) -> 0 | G121: =SUMPRODUCT(G122:G124,$I122:$I124) -> 0 | H121: =SUMPRODUCT(H122:H124,$I122:$I124) -> 0
A122: =I122>0 -> FALSE | G122: 0 | H122: =SUM(E122,F122,-G122) -> 0 | I122: =IF(C122=0,0,IF(VALUE(LEFT(C122,3))=wST.Ansatz,1,0)) -> 0
A123: =I123>0 -> FALSE | I123: =IF(C123=0,0,IF(VALUE(LEFT(C123,3))=wST.Ansatz,1,0)) -> 0
A124: =I124>0 -> FALSE | E124: 0 | H124: =SUM(E124,F124,-G124) -> 0 | I124: =IF(C124=0,0,IF(VALUE(LEFT(C124,3))=wST.Ansatz,1,0)) -> 0
A125: TRUE
A126: Ende

Sheet Aktiva (hidden)
A1: FALSE | B1: TRUE | C1: Ende
A2: FALSE | B2: Aktiva | C2: 001.00
A3: FALSE | B3: Ende
A4: TRUE | B4: =TEXT(wST.Ansatz,"000")&", VERMÖGENS- UND SCHULDENNACHWEIS, AKTIVA" -> 850, VERMÖGENS- UND SCHULDENNACHWEIS, AKTIVA | H4: =wST.ORT -> 0
A5: TRUE | B5: ="per "&TEXT(wST.PeriodeEnde,"T. MMMM JJJJ") -> per 31. Dezember 2021 | F5: =wST.PeriodeEnde -> 2021-12-31 | H5: =IF(H74=0,"",wST.PeriodeAnfang-1) -> 
A6: TRUE | G6: Angaben in €
A7: =A34 ->  | B7: =CHAR(IF(A7,1,0)+64) ->  | C7: ANLAGEVERMÖGEN
A8: =OR(F8<>0,H8<>0) -> FALSE | B8: =IF(A8,"I","")&"." -> . | C8: Immaterielle Vermögensgegenstände | G8: =F9 -> 0 | H8: =H9 -> 0
A9: =OR(F9<>0,H9<>0) -> FALSE | D9: 70 | E9: Aktivierungsfähige Rechte | F9: =Anlagen!W170 -> 0 | H9: =Anlagen!Z170-Anlagen!O170 -> 0
A10: =A8 -> FALSE
A11: =OR(A12,A20,A27) ->  | B11: =IF(A11,"I","")&B8 ->  | C11: Sachanlagevermögen | G11: =SUM(G12,G20,G27) ->  | H11: =SUM(H12,H20,H27) -> 
A12: =OR(G12<>0,H12<>0) -> FALSE | B12: =IF(A12,1,0) -> 0 | C12: Unbewegliches Sachanlagevermögen | G12: =SUM(F13:F19) -> 0 | H12: =SUM(H13:H19) -> 0
A13: =OR(F13<>0,H13<>0) -> FALSE | D13: 0 | E13: Bebaute Grundstücke | F13: =Anlagen!W8 -> 0 | H13: =Anlagen!Z8-Anlagen!O8 -> 0
A14: FALSE | D14: 1 | E14: Unbebaute Grundstücke | F14: =Anlagen!W15 -> 0 | H14: =Anlagen!Z15-Anlagen!O15 -> 0
A15: FALSE | D15: 2 | E15: Straßenbauten | F15: =Anlagen!W20 -> 0 | H15: =Anlagen!Z20-Anlagen!O20 -> 0
A16: FALSE | D16: 4 | E16: Wasser- und Kanalisationsbauten | F16: =Anlagen!W26 -> 0 | H16: =Anlagen!Z26-Anlagen!O26 -> 0
A17: FALSE | D17: 6 | E17: Sonstige Grundstückseinrichtungen | F17: =Anlagen!W63 -> 0 | H17: =Anlagen!Z63-Anlagen!O63 -> 0
A18: FALSE | D18: 10 | E18: Gebäude | F18: =Anlagen!W70 -> 0 | H18: =Anlagen!Z70-Anlagen!O70 -> 0
A19: FALSE | D19: 50 | E19: Sonderanlagen | F19: =Anlagen!W110 -> 0 | H19: =Anlagen!Z110-Anlagen!O110 -> 0
A20: =OR(G20<>0,H20<>0) ->  | B20: =IF(A20,1,0)+B12 ->  | C20: Bewegliches Sachanlagevermögen | G20: =SUM(F21:F26) ->  | H20: =SUM(H21:H26) -> 
A21: =OR(F21<>0,H21<>0) -> FALSE | D21: 20 | E21: Maschinen und maschinelle Anlagen | F21: =Anlagen!W77 -> 0 | H21: =Anlagen!Z77-Anlagen!O77 -> 0
A22: FALSE | D22: 30 | E22: Werkzeuge und sonstige Erzeugungshilfsmittel | F22: =Anlagen!W91 -> 0 | H22: =Anlagen!Z91-Anlagen!O91 -> 0
A23: FALSE | D23: 40 | E23: Fahzeuge | F23: =Anlagen!W98 -> 0 | H23: =Anlagen!Z98-Anlagen!O98 -> 0
A24: FALSE | D24: 42 | E24: Amtsausstattung | F24: =Anlagen!W104 -> 0 | H24: =Anlagen!Z104-Anlagen!O104 -> 0
D25: 43 | E25: Betriebsausstattung | F25: =Anlagen!#REF! ->  | H25: =Anlagen!#REF!-Anlagen!#REF! -> 
D26: 44 | E26: Geschäftsausstattung | F26: =Anlagen!#REF! ->  | H26: =Anlagen!#REF!-Anlagen!#REF! -> 
A27: =OR(G27<>0,H27<>0) -> FALSE | B27: =IF(A27,1,0)+B20 ->  | C27: Anlagen in Bau | G27: =F28 -> 0 | H27: =H28 -> 0
A28: =OR(F28<>0,H28<>0) -> FALSE | D28: 60 | E28: In Bau befindliche Anlagen | F28: =Anlagen!W118 -> 0 | H28: =Anlagen!Z118-Anlagen!O118 -> 0
A29: =A11 -> 
A30: =OR(A31:A32) -> FALSE | B30: =IF(A30,"I","")&B11 ->  | C30: Beteiligungen und Wertpapiere | G30: =SUM(F31,F32) -> 0 | H30: =SUM(H31,H32) -> 0
A31: =OR(F31<>0,H31<>0) -> FALSE | D31: 80 | E31: Beteiligungen | F31: =Wertpapiere!H10 -> 0 | H31: =Wertpapiere!E10 -> 0
A32: =OR(F32<>0,H32<>0) -> FALSE | D32: 85 | E32: Anlagewertpapiere | F32: =Wertpapiere!H14 -> 0 | H32: =Wertpapiere!E14 -> 0
A33: =A30 -> FALSE
A34: =OR(G34<>0,H34<>0) ->  | C34: SUMME ANLAGEVERMÖGEN | G34: =SUM(G8,G11,G30,) ->  | H34: =SUM(H8,H11,H30,) -> 
A35: =A34 -> 
A36: =A68 ->  | B36: =CHAR(IF(A36,1,0)+CODE(B7)) ->  | C36: UMLAUFVERMÖGEN
A37: =OR(A38:A46) -> FALSE | B37: =IF(A37,"I","")&"." -> . | C37: Vorräte | G37: =SUM(F38:F46) -> 0 | H37: =SUM(H38:H46) -> 0
A38: =OR(F38<>0,H38<>0) -> FALSE | D38: 100 | E38: Ersatzteile | F38: =Vorräte!H9 -> 0 | H38: =Vorräte!E9 -> 0
A39: FALSE | D39: 110 | E39: Geringwertige Wirtschaftsgüter (lt. VRV) | F39: =Vorräte!H15 -> 0 | H39: =Vorräte!E15 -> 0
A40: FALSE | D40: 120 | E40: Werkstoffe | F40: =Vorräte!H87 -> 0 | H40: =Vorräte!E87 -> 0
A41: FALSE | D41: 140 | E41: Verbrauchsgüter, Lebens- und Futtermittel | F41: =Vorräte!H99 -> 0 | H41: =Vorräte!E99 -> 0
A42: FALSE | D42: 150 | E42: Betriebsstoffe und sonstige Verbrauchsgüter | F42: =Vorräte!H105 -> 0 | H42: =Vorräte!E105 -> 0
A43: FALSE | D43: 160 | E43: Altmaterial | F43: =Vorräte!H111 -> 0 | H43: =Vorräte!E111 -> 0
A44: =OR(F44<>0,H44<>0) -> FALSE | D44: 130 | E44: Handelswaren | F44: =Vorräte!H93 -> 0 | H44: =Vorräte!E93 -> 0
A45: =OR(F45<>0,H45<>0) -> FALSE | D45: 170 | E45: Erzeugnisse | F45: =Vorräte!H117 -> 0 | H45: =Vorräte!E117 -> 0
A46: =OR(F46<>0,H46<>0) -> FALSE | D46: 280 | E46: Anzahlungen an Geschäftsleute | F46: =Andere!H46 -> 0 | H46: =Andere!E46 -> 0
A47: =A37 -> FALSE
A48: =OR(A49:A52) -> FALSE | B48: =IF(A48,"I","")&B37 -> . | C48: Sonstige Forderungen | G48: =SUM(F49,F50,F51,F52) -> 0 | H48: =SUM(H49,H50,H51,H52) -> 0
A49: =OR(F49<>0,H49<>0) -> FALSE | D49: 230 | E49: Schließliche Reste (Einnahmen) | F49: =Andere!H30 -> 0 | H49: =Andere!E30 -> 0
A50: =OR(F50<>0,H50<>0) -> FALSE | D50: 270 | E50: Finanzamt - Vorsteuerbeträge | F50: =Andere!H36 -> 0 | H50: =Andere!E36 -> 0
A51: =OR(F51<>0,H51<>0) -> FALSE | D51: 279 | E51: Sonstige Vorschüsse | F51: =Andere!H40 -> 0 | H51: =Andere!E40 -> 0
A52: =OR(F52<>0,H52<>0) -> FALSE | D52: 287 | E52: Sonstige Forderungen | F52: =Andere!H50 -> 0 | H52: =Andere!E50 -> 0
A53: =OR(G53<>0,H53<>0) ->  | B53: =IF(A53,"I","")&B48 ->  | C53: Forderungen aus Darlehen, Kapital- und Geldanlagen | G53: =G54+G61+G63 ->  | H53: =H54+H61+H63 -> 
A54: =OR(G54<>0,H54<>0) ->  | C54: Darlehen | G54: =SUM(F55:F60) ->  | H54: =SUM(H55:H60) -> 
A55: =OR(F55<>0,H55<>0) ->  | D55: 240 | E55: Darlehen zu Inv. zwecken an Träger des öffentl. Rechtes | F55: =BÜB!#REF! ->  | H55: =BÜB!#REF! -> 
D56: 241 | E56: Darlehen zu Inv.zwecken an netto-veranschlagte Betriebe | F56: =BÜB!#REF! ->  | H56: =BÜB!#REF! -> 
D57: 242 | E57: Darlehen zu Investitionszwecken an andere | F57: =BÜB!#REF! ->  | H57: =BÜB!#REF! -> 
A58: FALSE | D58: 250 | E58: Darlehen ohne Inv. zweck an Träger des öffentl. Rechtes | F58: =BÜB!AB84 -> 0 | H58: =BÜB!F86 -> 0
A59: FALSE | D59: 251 | E59: Darlehen ohne Investitionszweck an andere | F59: =BÜB!AB172 -> 0 | H59: =BÜB!F172 -> 0
A60: FALSE | D60: 256 | E60: Bezugsvorschüsse | F60: =BÜB!AB176 -> 0 | H60: =BÜB!F176 -> 0
A61: =OR(G61<>0,H61<>0) -> FALSE | C61: Kapitalanlagen | G61: =F62 -> 0 | H61: =H62 -> 0
A62: =OR(F62<>0,H62<>0) -> FALSE | D62: 220 | E62: Wertpapiere des Umlaufvermögens | F62: =Wertpapiere!H27 -> 0 | H62: =Wertpapiere!E27 -> 0
A63: =OR(G63<>0,H63<>0) ->  | C63: Geldanlagen | G63: =SUM(F64:F66) ->  | H63: =SUM(H64:H66) -> 
A64: =OR(F64<>0,H64<>0) -> FALSE | D64: 200 | E64: Bargeldbestände | F64: =BÜB!AB11 -> 0 | H64: =BÜB!F11 -> 0
A65: =OR(F65<>0,H65<>0) ->  | D65: 210 | E65: Postsparkasse | F65: =BÜB!#REF! ->  | H65: =BÜB!#REF! -> 
A66: =OR(F66<>0,H66<>0) ->  | D66: 211 | E66: Sonstige Geldanstalten | F66: =BÜB!#REF! ->  | H66: =BÜB!#REF! -> 
A67: =A53 -> 
A68: =OR(G68<>0,H68<>0) ->  | C68: SUMME UMLAUFVERMÖGEN | G68: =SUM(G37,G48,G53,) ->  | H68: =SUM(H37,H48,H53) -> 
A69: =A68 -> 
A70: =A72 -> FALSE | B70: =CHAR(IF(A70,1,0)+CODE(B36)) ->  | C70: RECHNUNGSABGRENZUNGSPOSTEN
A71: =OR(F71<>0,H71<>0) -> FALSE | D71: 290 | E71: Aktive Rechnungsabgrenzung | F71: =Andere!H58 -> 0 | H71: =Andere!E58 -> 0
A72: =OR(G72<>0,H72<>0) -> FALSE | C72: SUMME RECHNUNGSABGRENZUNGSPOSTEN | G72: =F71 -> 0 | H72: =H71 -> 0
A73: =A72 -> FALSE
A74: Ende | C74: SUMME AKTIVA | G74: =SUM(G34,G68,G72) ->  | H74: =SUM(H34,H68,H72) -> 

Sheet Passiva (hidden)
A1: FALSE | B1: TRUE | C1: Ende
A2: FALSE | B2: Passiva | C2: 001.00
A3: FALSE | B3: Ende
A4: TRUE | B4: =TEXT(wST.Ansatz,"000")&", VERMÖGENS- UND SCHULDENNACHWEIS, PASSIVA" -> 850, VERMÖGENS- UND SCHULDENNACHWEIS, PASSIVA | H4: =wST.ORT -> 0
A5: TRUE | B5: ="per "&TEXT(wST.PeriodeEnde,"T. MMMM JJJJ") -> per 31. Dezember 2021 | F5: =wST.PeriodeEnde -> 2021-12-31 | H5: =IF(H66=0,"",wST.PeriodeAnfang-1) -> 
A6: TRUE | G6: Angaben in €
A7: =A9 -> FALSE | B7: =CHAR(IF(A7,1,0)+64) -> @ | C7: RÜCKLAGEN
A8: =OR(F8<>0,H8<>0) -> FALSE | D8: 298 | E8: Haushaltsrücklage | F8: =Andere!H10 -> 0 | H8: =Andere!E10 -> 0
A9: =OR(G9<>0,H9<>0) -> FALSE | C9: SUMME RÜCKLAGEN | G9: =F8 -> 0 | H9: =H8 -> 0
A10: =A9 -> FALSE
